Workbook

Sheet Sheet1
K1: Specified Model Parameters
C2: T-5 Cell Specifications | K2: Tamb (K) | O2: T∞ (K) | P2: THTFi (K) | Q2: ΔT,HTF-NaS | R2: Dat,o (m) | S2: Dat,i (m) | T2: Dgt,o (m) | Y2: Dgt,i (m) | Z2: Dbt,o (m) | AA2: Dbt,i (m) | AB2: "a" - Dbt,o (m)/Dat,i (m) | AD2: kat (Wm-1K-1) | AE2: kbt (Wm-1K-1) | AF2: kgt (Wm-1K-1) | AG2: HTF Loop Length (m) | AH2: NaS Cell length (m) | AJ2: cp,air(Jkg-1K-1) | AK2: ρair(kgm-3) | AL2: kair (Wm-1K-1) | AM2: µair(kgm-1s-1) | AN2: Pr | AP2: γ(m2/s) | AR2: Gr | AS2: Ra | AT2: Nufree-conv | AU2: hfree-conv
K3: =K4+273 -> 295 | O3: =O4+273 -> 278.7063598 | P3: =P4+273 -> 303 | Q3: 10 | R3: 0.168 | S3: 0.154 | T3: 0.19 | Y3: 0.18 | Z3: 0.114 | AA3: 0.102 | AB3: =Z3/S3 -> 0.7402597403 | AD3: 23 | AE3: 200 | AF3: 1.14 | AG3: 779.5 | AH3: 0.5 | AJ3: =1030.5-0.19975*$K$3+0.00039734*$K$3^2 -> 1006.152264 | AK3: =(351.99/$K$3)+(344.84/$K$3^2) -> 1.19714898 | AL3: =(0.00234*$K$3^(3/2))/(164.54+$K$3) -> 0.02580034786 | AM3: =0.000001*(1.45*$K$3^(3/2))/(109.1+$K$3) -> 1.818076594e-05 | AN3: =AJ3*AM3/AL3 -> 0.7090066733 | AP3: =AM3/AK3 -> 1.518671965e-05 | AR3: =(9.81*(1/$K$3)*(0.55)*$T$3^3)/($AP$3)^2 -> 543929.3981 | AS3: =AN3*AR3 -> 385649.573 | AT3: =((0.6+0.387*$AS$3^(1/6))/(1+(0.559/$AN$3)^(9/16))^(8/27))^2 -> 10.48963954 | AU3: =AT3*AL3/T3 -> 1.424401837
A4: Cell Case Outer Diameter (Dbt,o) (m) | B4: Cell Case Inner Diameter (Dbt,i) (m) | C4: Sulphur electrode outer Diameter (Dse,o) (m) | D4: Sulphur Electrode Inner Diameter (Dse,i) (m) | E4: Beta- Alumina Outer Diameter (Dba,o) (m) | F4: Beta- Alumina Inner Diameter (Dba,i) (m) | G4: Sodium Electrode Outer Diameter (Dsod) (m) | H4: Cell length (m) | K4: 22 | O4: =0.0553*K4^1.5 -> 5.706359813 | P4: 30
A5: =0.091 -> 0.091 | B5: =0.087 -> 0.087 | C5: =$B$5 -> 0.087 | D5: =$E$5 -> 0.06 | E5: =0.06 -> 0.06 | F5: =0.057 -> 0.057 | G5: =$F$5-0.0005*2 -> 0.056 | H5: =$AH$3 -> 0.5 | K5: εat | M5: q''sol_conc_incident(Wm-2) | O5: εgt | P5: q''sol_Abs_at (Wm-2) | Q5: σ (Wm-2K-4) | R5: Ṁ (kgs-1) | S5: SF(ato-gti) | T5: SF (gto-sky) | X5: PTC Rim Angle(o) | Y5: VF(ato-gti) | Z5: VF(gto-sky) | AA5: q"sol (1 sun)W/m2 | AB5: Dh (ati- bto) | AC5: PTC Aperature(m) | AD5: PTC Arc Length(m) | AE5: kair (Wm-1K-1) | AF5: Flux Conc. Ratio | AG5: d* = dbto/dati | AH5: Parabola Focal Length | AI5: Lost Area (m2) | AJ5: Lost Area, θi (m2)
K6: 0.1 | M6: =P7*K24*P24*Q24 -> 4702.551588 | O6: 0.9 | P6: =P7*K24*O24*P24*Q24*R24 -> 4470.24554 | Q6: 5.67e-08 | R6: 10 | S6: =1/(1/Y6+((1/K6)-1)+(R3/Y3)*((1/O6)-1)) -> 0.09897360704 | T6: 1 | X6: 82.5 | Y6: 1 | Z6: 1 | AA6: =V15 -> 469.2466422 | AB6: =S3-Z3 -> 0.04 | AC6: 6 | AD6: 6.6979 | AF6: =($AD$6-$R$3-$AJ$6)/(PI()*R3) -> 12.37221265 | AG6: =Z3/S3 -> 0.7402597403 | AH6: =AC6/(4*TAN((PI()/180)*X6/2)) -> 1.710422187 | AI6: =((2/3)*AC6*AH6)+(AH6*AC6*(1+((AC6^2)/(48*AH6^2)))) -> 19.73515126 | AJ6: =AI6*TAN(M24) -> 0
A7: Cell Case Wall (m) | B7: Sulphur Electrode Thickness (m) | C7: Beta Alumina Electrolyte Thickness (m) | D7: Safety Tube Wall (m) | E7: Sodium electrode radius (mm) | F7: Sodium Electrode Inner Diameter (Dsod) (m) | G7: Safety Tube Outer Diameter (Dst,o) (m) | H7: Safety Tube Inner Diameter (Dst,o) (m) | P7: =AA6*AF6 -> 5805.619245 | AI7: Kaligouru
A8: =($A$5-$B$5)/2 -> 0.002 | B8: =($C$5-$D$5) -> 0.027 | C8: =($E$5-$F$5)/2 -> 0.0015 | D8: =0.00005 -> 5e-05 | E8: =$G$5/2 -> 0.028 | F8: =G5-0.0001 -> 0.0559 | G8: =F5 -> 0.057 | H8: =G8-D8 -> 0.05695 | K8: Calculated Flow Parameters | Z8: Temperature Dependent Fluid Parameters (Source:Therminol 66 High Temp. HTF Data Correlations)
K9: Re | O9: Pr | P9: Nu,o | Q9: Nu,i | R9: han,o (Wm-2k-1) | S9: han,i (Wm-2k-1) | T9: hconv(Wm-2k-1) | Y9: q'NaS (Wm-1) | Z9: µHTF(kgm-1s-1) | AA9: vHTF(m2s-1) | AD9: cp,HTF(Jkg-1K-1) | AE9: ρHTF(kgm-3) | AF9: kHTF (Wm-1K-1) | AG9: Pr | AI9: V (m/s)
A10: Cell Case Volume (m3) | B10: Sulphur Electrode Volume (m3) | C10: Beta Alumina Electrolyte Volume (m3) | D10: Safety Tube Volume (m3) | E10: Sodium electrode Volume (m3) | F10: TOTAL | G10: Mullite- Alumina Outer Diameter (Dba,o) (m) | H10: Mullite- Alumina Inner Diameter (Dba,i) (m) | K10: =4*R6/(3.14159*(S3+Z3)*Z10) -> 819.3268844 | O10: =(AD10*Z10)/AF10 -> 789.9392877 | P10: 600 | Q10: 300 | R10: =P10*AF10/(S3-Z3) -> 1757.535 | S10: =Q10*AF10/(S3-Z3) -> 878.7675 | T10: 12 | Y10: =0.1*K15 -> 3.5 | Z10: =AA10*AE10 -> 0.0579853771 | AA10: =EXP(586.375/(P4+62.5)-2.2809)/1000000 -> 5.787521279e-05 | AD10: =(0.003313*P4+0.0000008970785*POWER(P4,2)+1.496005)*1000 -> 1596.202371 | AE10: =-0.614254*P4-0.000321*POWER(P4,2)+1020.62 -> 1001.90348 | AF10: =-0.000033*P4-0.00000015*POWER(P4,2)+0.118294 -> 0.117169 | AG10: =AD10*Z10/AF10 -> 789.9392877 | AI10: =(R6/AE10)/(PI()*(POWER(S3,2)-POWER(Z3,2))/4) -> 1.185466943
A11: =$H$5*PI()*($A$5^2-$B$5^2)/4 -> 0.0002796017462 | B11: =$H$5*PI()*($C$5^2-$D$5^2)/4 -> 0.001558622655 | C11: =$H$5*PI()*($E$5^2-$F$5^2)/4 -> 0.0001378373777 | D11: =$H$5*PI()*$F$5*$D$8 -> 4.476769531e-06 | E11: =H5*PI()*E8^2 -> 0.00123150432 | G11: =0.101 -> 0.101 | H11: =0.092 -> 0.092
K13: Solar Resource Calculation for SEGS SOLAR PLANT, KRAMER JUNCTION, USA- Based on Solar AHRAE Model | M13: Avg. Day June (Klein 1977)
A14: SS Cell Case Specific Heat (J/kgK) | B14: Sulphur Electrode Specific Heat (J/kgK) | C14: Beta Alumina Electrolyte Specific Heat (J/kgK) | D14: SS Safety Tube Specific Heat (J/kgK) | E14: Sodium electrode Specific Heat (J/kgK) | F14: TOTAL (mCp) (J/K)- Lagrangian | G14: Sodium Electrode Latent Heat of Fusion (J/kg) | H14: Sodium (mLf) (J) | K14: Latitude_Loc.φ | L14: Longitude_Loc. | M14: Day of Year | N14: B- Constant | O14: Declination Angle(M. Acc)δ | P14: Declination Angle δ | Q14: Air mass, m | R14: Hour (24 hr) | S14: Hour Angle AM/PM,ω | T14: Zenith Angle θz | U14: Sky Clearness # (Kramer Junction) | V14: Direct Normal Irradiance(W/m2) | Y14: TNaS (K)
A15: =500 -> 500 | B15: 705 | C15: =965.37 -> 965.37 | D15: =500 -> 500 | E15: =1230 -> 1230 | F15: =(F22/H5)*(CB33-CB32) -> 6.65290216 | G15: =113000 -> 113000 | H15: =E19*E11*G15 -> 134706.8686 | K15: 35 | L15: 117 | M15: 162 | N15: =(M15-1)*(360/365) -> 158.7945205 | O15: =(180/PI())*(0.006918-0.399912*COS(N15*PI()/180)+0.070257*SIN(N15*PI()/180)-0.006758*COS(2*N15*PI()/180)+0.000907*SIN(2*N15*PI()/180)-0.002697*COS(3*N15*PI()/180)+0.00148*SIN(3*N15*PI()/180)) -> 23.03792051 | P15: =23.45*SIN(360*(PI()/180)*((284+M15)/365)) -> 23.085911 | Q15: =1/COS(PI()/180*T15) -> 4.455066191 | R15: 6 | S15: =(12-R15)*-15 -> -90 | T15: =(180/PI())*ACOS(COS($K$15*PI()/180)*COS($O$15*PI()/180)*COS($S$15*PI()/180)+SIN($K$15*PI()/180)*SIN($O$15*PI()/180)) -> 77.02866465 | U15: =1.075 -> 1.075 | V15: =COS(M24)*U15*1088*EXP(-0.205*Q15) -> 469.2466422 | Y15: =P4-(Y10/(S10*PI()*Z3)) -> 29.98887912
R16: =5+(R15-5)*0.6 -> 5.6
A18: SS Cell Case Density (kg/m3) | B18: Sulphur Electrode Density (kg/m3) | C18: Beta Alumina Electrolyte Density (kg/m3) | D18: SS Safety Tube Density (kg/m3) | E18: Sodium electrode Density (kg/m3) | G18: Sulphur Electrode Latent Heat of Fusion (J/kg) | H18: Sulphur (mLf) (J)
A19: =8027 -> 8027 | B19: 1960 | C19: =3200 -> 3200 | D19: =8027 -> 8027 | E19: 968 | G19: =53600 -> 53600 | H19: =B19*B11*G19 -> 163742.6617
A21: SS Cell Case (mCp) (J/K) | B21: Sulphur Electrode (mCp) (J/K) | C21: Beta Alumina Electrolyte (mCp) (J/K) | D21: SS Safety Tube (mCp) (J/K) | E21: Sodium electrode (mCp) (J/K) | F21: TOTAL (mCp) (J/K) | G21: TOTAL (Lf-NaS cell) (J/kg) | H21: TOTAL (mLf-NaS cell) (J)
A22: =A19*A15*A11 -> 1122.181608 | B22: =B19*B15*B11 -> 2153.704785 | C22: =C19*C15*C11 -> 425.8050217 | D22: =D19*D15*D11 -> 17.96751451 | E22: =E19*E15*E11 -> 1466.278304 | F22: =SUM(A22:E22) -> 5185.937233 | G22: =G15+G19 -> 166600 | H22: =H15+H19 -> 298449.5302 | K22: Mirror + Reciever Tube Parameters | BL22: Prof, it took close ton 50 mins to go through the 779.5 m, with "delta x"= 0.5m
K23: ρm (Mirror Refl.) | L23: θ (Incidence Angle_degrees) | M23: θ (Incidence Angle_radians) | O23: τgt (Glass Trans.) | P23: Kθ (Incidence Angle Mod.) | Q23: γ (Mirror Shape Factor) | R23: αat (Sol-Abs.-at) | S23: αgt (Sol-Abs.-gt) | T23: εgt (Emis.-gt), long wave
K24: 0.9 | L24: 0 | M24: =L24*PI()/180 -> 0 | O24: 0.97 | P24: =COS(M24)-0.0003512*M24-0.00003137*M24^2 -> 1 | Q24: 0.9 | R24: 0.98 | S24: =1-O24 -> 0.03 | T24: 0.9
A25: SS Cell Thermal Conductivity (W/mK) | B25: Sulphur Electrode Conductivity (W/mK) | C25: Beta Alumina Electrolyte Conductivity (W/mK) | D25: SS Safety Tube Conductivity (W/mK) | E25: Sodium Electrode Conductivity (W/mK) | F25: Mullite Alumina Tube Conductivity (W/mK) | G25: Battery Tube Conductivity (W/mK) | K25: * Assumption 1: Glass Tube reflectivity = 0
A26: =16 -> 16 | B26: 0.205 | C26: 3 | D26: =16 -> 16 | E26: 140 | F26: 20 | G26: 16 | H26: 115.233909 | I26: 360.5869751 | K26: * Assumption 2: Convective Heat Loss in PECT Tube Annulus is negligable
E27: Current Row | G27: Tssc (Initial) | H27: Time_hr (initial) | I27: Thtf_i,j (Initial) | K27: * Assumption 3: Possible Values for "Nu" and "h" are assumed for this initial calculation
E28: ROW 1592 OF 1592 | G28: 22 | H28: 6 | I28: 22 | T28: =K32+J32 -> 246.6257626
G29: Next hr | H29: 7 | BL29: Cp(Na) Equation: (Foust, 1972) - The Sodium Sulphur Battery
S30: Changing Column | T30: Desired Goal seek Column | Z30: Adjusted Value
A31: HTF Velocity, (m/s) | B31: Loop Position, X (m) | C31: Lagrangian Time, t' (s) | D31: Cp (htf), JKg-1 K-1 | E31: Thtf_x (°C) | F31: RHS-Qat(P1) | G31: RHS-Qat(P2) | H31: RHS-Co.eff-1 | I31: RHS-Co.eff-2 | J31: RHS- Qat | K31: LHS-Qat | L31: LHS-RHS | M31: Eat | N31: Shape Factor (at-gt) | O31: kat (W/mK)-321 SS | P31: q'sol.abs,gt (Wm-2) | Q31: q'cond,at (W/m) | R31: q'Lrad,at (Wm-1) | S31: q'Ltot,gt (Wm-1) | T31: Col. Eff (%) | U31: Tat,i (K) | V31: Tat,i (°C) | W31: Tat,o (K) | X31: Tat,o_x (°C) | Y31: q'sol.abs,at (Wm-2) | Z31: Tgt,i (K) | AA31: Tgt,i_x (°C) | AB31: Tgt,o (K) | AC31: Tgt,o_x (°C) | AD31: TNaS (K) | AE31: TNaS (°C) | AF31: µHTF(kgm-1s-1) | AG31: vHTF(m2s-1) | AH31: ρHTF(kgm-3) | AI31: kHTF (Wm-1K-1) | AJ31: Pr | AK31: Re | AO31: hann,o | AQ31: hann,i | AR31: Uo(NaS) (W/m2K) | AS31: cp,air(Jkg-1K-1) | AT31: ρair(kgm-3) | AU31: kair (Wm-1K-1) | AV31: µair(kgm-1s-1) | AW31: Pr(air) | AX31: γ(m2/s) | AY31: Gr | AZ31: Ra | BA31: Nufree-conv | BB31: hfree-conv | BC31: (∂Thtf/∂x'|t')_i | BD31: QNaS (W) | BE31: (∂Tssc/∂t'|x')_i | BF31: Qu_htf (W) | BG31: Qtot (W) | BH31: Cpw, JKg-1 K-1 | BI31: µw(kgm-1s-1) | BJ31: kw (Wm-1K-1) | BK31: Prw | BL31: Re* | BM31: fann | BN31: k1 | BO31: Nu (V. Gnielinski) | BP31: Nuo | BQ31: Nui | BR31: Cp(Na) | BS31: Cp(S) | BU31: Time (hr) | BV31: Hour Angle | BW31: Zenith Angle | BX31: Air mass | BY31: DNI (W/m2) | BZ31: Conc. DNI (W/m2) | CA31: qsol.abs,at (W/m2) | CB31: x' | CC31: (∂Thtf/∂x'|t')_init
A32: =$AI$10 -> 1.185466943 | B32: 0 | C32: =0 -> 0 | D32: =(1.498+0.002414*E32+0.0000059591*(E32)^2-0.000000029879*(E32)^3+0.000000000044172*(E32)^4)*1000 -> 1876.501696 | E32: 136.0092729 | F32: =POWER((POWER((Q32*LN($R$3/$S$3))/(2*PI()*O32)+((Q32/(AO32*PI()*$S$3))+(E32+273)),4)-((CA32*PI()*$R$3-Q32)/(N32*$Y$6*$Q$6*PI()*$R$3))),0.25) -> 308.2644257 | G32: =(((BZ32*$K$24*$P$24*$Q$24*PI()*($O$24*$R$24*$R$3+$S$24*$T$3))-Q32)*LN($T$3/$Y$3))/(2*PI()*$AF$3) -> 0.9308030033 | H32: =BB32*PI()*$T$3 -> 2.073777777 | I32: =$Z$6*$Q$6*PI()*$T$3 -> 3.384437766e-08 | J32: =H32*(F32-G32-$K$3)+I32*(POWER((F32-G32),4)-POWER($O$3,4)) -> 123.3128812 | K32: =((BZ32*$K$24*$P$24*$Q$24*PI()*($O$24*$R$24*$R$3+$S$24*$T$3))-Q32) -> 123.3128813 | L32: =J32-K32 -> -8.279636177e-08 | M32: =0.062+0.0000002*(E32)^2 -> 0.06569970446 | N32: =1/(1/$Y$6+((1/M32)-1)+($R$3/$Y$3)*((1/$O$6)-1)) -> 0.0652551017 | O32: =0.0153*((E32+273))+14.775 -> 21.03284188 | P32: =BZ32*$K$24*$P$24*$Q$24*$S$24 -> 141.0765476 | Q32: 2320.236089 | R32: =CA32*(PI()*$R$3)-Q32 -> 39.10392265 | S32: =$M$6*$O$24*0.02*PI()*$R$3+R32+0*P32*PI()*$T$3 -> 87.25371881 | U32: =(Q32/(AO32*PI()*$S$3))+(E32+273) -> 411.3335993 | V32: =U32-273 -> 138.3335993 | W32: =(Q32*LN($R$3/$S$3))/(2*PI()*O32)+U32 -> 412.8612723 | X32: =W32-273 -> 139.8612723 | Y32: =CA32 -> 4470.24554 | Z32: =POWER((POWER((W32),4)-((R32)/(N32*$Q$6*PI()*$R$3))),0.25) -> 308.2644257 | AA32: =Z32-273 -> 35.26442566 | AB32: =Z32-((R32+P32)*LN($T$3/$Y$3))/(2*PI()*$AF$3) -> 306.9043689 | AC32: =AB32-273 -> 33.90436886 | AD32: =AE32+273 -> 295.157159 | AE32: 22.157159 | AF32: =AG32*AH32 -> 0.0006342805086 | AG32: =0.000001*EXP(544.149/(E32+114.43)-2.59578) -> 6.550774734e-07 | AH32: =1083.25-0.90797*E32+0.00078116*E32^2-0.000002367*E32^3 -> 968.2526638 | AI32: =0.137743-0.0000819477*E32-0.000000192257*E32^2+0.000000000025034*E32^3-0.0000000000000072974*E32^4 -> 0.1231013702 | AJ32: =(D32*AF32)/AI32 -> 9.668685643 | AK32: =4*$R$6/(($S$3+$Z$3)*AF32) -> 235311.868 | AO32: =BP32*AI32/$S$3 -> 2063.30989 | AQ32: =BQ32*AI32/$Z$3 -> 2839.720872 | AR32: =((1/AQ32)+($Z$3/2)*((LN($Z$3/$AA$3)/$G$26)+(LN($G$11/$H$11)/$F$26)+(LN($A$5/$B$5)/$A$26)+(LN($C$5/$D$5)/$B$26)+(LN($E$5/$F$5)/$C$26)+(LN($G$8/$H$8)/$D$26)+(LN($G$5/$F$8)/$E$26)))^-1 -> 9.481751692 | AS32: =1030.5-0.19975*$K$3+0.00039734*$K$3^2 -> 1006.152264 | AT32: =(351.99/$K$3)+(344.84/$K$3^2) -> 1.19714898 | AU32: =(0.00234*$K$3^(3/2))/(164.54+$K$3) -> 0.02580034786 | AV32: =0.000001*(1.45*$K$3^(3/2))/(109.1+$K$3) -> 1.818076594e-05 | AW32: =AS32*AV32/AU32 -> 0.7090066733 | AX32: =AV32/AT32 -> 1.518671965e-05 | AY32: =(9.81*(1/(($K$3+AB32)/2))*(AB32-$K$3)*$T$3^3)/($AP$3)^2 -> 11540130.86 | AZ32: =AY32*AW32 -> 8182029.79 | BA32: =((0.6+0.387*AZ32^(1/6))/(1+(0.559/AW32)^(9/16))^(8/27))^2 -> 25.58508017 | BB32: =BA32*AU32/$T$3 -> 3.474231412 | BC32: =(Q32*$AH$3-BD32)/($R$6*D32) -> 0.05152182964 | BD32: =AR32*PI()*$Z$3*$AH$3*(E32-AE32) -> 193.3100374 | BE32: =((C33-C32)*AR32*PI()*$Z$3*$AH$3*(E32-AE32))/($F$22) -> 0.01572199685 | BF32: =BG32-BD32 -> 966.8080073 | BG32: =AO32*PI()*$S$3*(CB33-CB32)*$AG$3*(V32-E32) -> 1160.118045 | BH32: =1574.27947+1.7072*E32+0.00000015609*E32^2 -> 1806.477388 | BI32: =(0.01533-(0.000379993*E32)+(0.00000703717*POWER(E32,2))-(0.0000000978061*POWER(E32,3))+(0.000000000914537*POWER(E32,4))-(0.00000000000550071*POWER(E32,5))+(0.0000000000000208325*POWER(E32,6))-(4.78395E-17*POWER(E32,7))+(6.07105E-20*POWER(E32,8))-(3.26206E-23*POWER(E32,9))) -> 0.001959014777 | BJ32: =0.13877-0.000188021*E32-0.000000000156094*POWER(E32,2) -> 0.113194513 | BK32: =BH32*BI32/BJ32 -> 31.26402335 | BL32: =AK32*(((1+$AG$6^2)*LN($AG$6)+(1-$AG$6^2))/((1-$AG$6)^2*LN($AG$6))) -> 157110.3134 | BM32: =(1.8*LOG10(BL32)-1.5)^-2 -> 0.01621474688 | BN32: =1.07+(900/AK32)-0.63/(1+10*AW32) -> 0.9959514354 | BO32: =(((BM32/8)*AK32*AJ32)/(BN32+12.7*((BM32/8)^1/2)*(AJ32^2/3-1)))*(1+($AB$6/$AG$3)^2/3) -> 3331.590821 | BP32: =BO32*(0.9-0.15*$AB$3^0.6) -> 2581.203788 | BQ32: =BO32*0.75*$AB$3^-0.17 -> 2629.7691 | BR32: =1437.08-0.58063*AE32+0.0004624*AE32^2 -> 1424.441899 | BU32: =H28 -> 6 | BV32: =(12-BU32)*-15 -> -90 | BW32: =(180/PI())*ACOS(COS($K$15*PI()/180)*COS($O$15*PI()/180)*COS(BV32*PI()/180)+SIN($K$15*PI()/180)*SIN($O$15*PI()/180)) -> 77.02866465 | BX32: =1/COS(PI()/180*BW32) -> 4.455066191 | BY32: =COS($M$24)*$U$15*1088*EXP(-0.205*BX32) -> 469.2466422 | BZ32: =BY32*$AF$6 -> 5805.619245 | CA32: =BZ32*$K$24*$O$24*$P$24*$Q$24*$R$24 -> 4470.24554 | CB32: =B32/$AG$3 -> 0 | CC32: =($AG$3*(CB33-CB32))*(AO32*PI()*$S$3*(V32-E32)+AR32*PI()*$Z$3*(AE32-E32))/($R$6*D32) -> 0.05152182964
A33: 1.185466943 | B33: =B32+0.5 -> 0.5 | C33: =C32+$AH$3/$AI$10 -> 0.4217747301 | D33: =(1.498+0.002414*E33+0.0000059591*(E33)^2-0.000000029879*(E33)^3+0.000000000044172*(E33)^4)*1000 -> 1876.647055 | E33: 136.0607947 | F33: 308.2237976 | G33: 0.9320846162 | H33: =BB33*PI()*$T$3 -> 2.10805821 | I33: =$Z$6*$Q$6*PI()*$T$3 -> 3.384437766e-08 | J33: =H33*(F33-G33-$K$3)+I33*(POWER((F33-G33),4)-POWER($O$3,4)) -> 123.4826695 | K33: 123.4826695 | L33: =J33-K33 -> 4.888534022e-12 | M33: =0.062+0.0000002*(X32)^2 -> 0.0659122351 | N33: =1/(1/$Y$6+((1/M33)-1)+($R$3/$Y$3)*((1/$O$6)-1)) -> 0.06546476101 | O33: =0.0153*((E33+273+W32)/2)+14.775 -> 21.06270381 | P33: =BZ33*$K$24*$P$24*$Q$24*$S$24 -> 141.0898188 | Q33: 2320.296167 | R33: 39.26578929 | S33: =$M$6*$O$24*0.02*PI()*$R$3+R33+0*P33*PI()*$T$3 -> 87.41558545 | U33: =(Q33/(AO33*PI()*$S$3))+(E33+273) -> 411.384504 | V33: =U33-273 -> 138.384504 | W33: =(Q33*LN($R$3/$S$3))/(2*PI()*O33)+U33 -> 412.9100506 | X33: =W33-273 -> 139.9100506 | Y33: =CA33 -> 4470.666058 | Z33: =POWER((POWER((W33),4)-((R33)/(N33*$Q$6*PI()*$R$3))),0.25) -> 308.2237976 | AA33: =Z33-273 -> 35.22379756 | AB33: =Z33-((R33+P33)*LN($T$3/$Y$3))/(2*PI()*$AF$3) -> 306.8624188 | AC33: =AB33-273 -> 33.86241876 | AD33: =AE33+273 -> 295.1907806 | AE33: 22.19078057 | AF33: =AG33*AH33 -> 0.0006339692147 | AG33: =0.000001*EXP(544.149/(E33+114.43)-2.59578) -> 6.547847816e-07 | AH33: =1083.25-0.90797*E33+0.00078116*E33^2-0.000002367*E33^3 -> 968.2100631 | AI33: =0.137743-0.0000819477*E33-0.000000192257*E33^2+0.000000000025034*E33^3-0.0000000000000072974*E33^4 -> 0.1230945209 | AJ33: 9.665226779 | AK33: =4*$R$6/(($S$3+$Z$3)*AF33) -> 235427.4117 | AO33: 2063.911345 | AQ33: 2840.548651 | AR33: =((1/AQ33)+($Z$3/2)*((LN($Z$3/$AA$3)/$G$26)+(LN($G$11/$H$11)/$F$26)+(LN($A$5/$B$5)/$A$26)+(LN($C$5/$D$5)/$B$26)+(LN($E$5/$F$5)/$C$26)+(LN($G$8/$H$8)/$D$26)+(LN($G$5/$F$8)/$E$26)))^-1 -> 9.481760918 | AS33: =1030.5-0.19975*(($K$3+AB32)/2)+0.00039734*(($K$3+AB32)/2)^2 -> 1006.372766 | AT33: =(351.99/(($K$3+AB32)/2)+(344.84/(($K$3+AB32)/2)^2)) -> 1.173395138 | AU33: =(0.00234*(($K$3+AB32)/2)^(3/2))/(164.54+(($K$3+AB32)/2)) -> 0.02624518955 | AV33: =0.000001*(1.45*((($K$3+AB32)/2)^(3/2))/(109.1+(($K$3+AB32)/2))) -> 1.846184593e-05 | AW33: =AS33*AV33/AU33 -> 0.7079201664 | AX33: =AV33/AT33 -> 1.573369902e-05 | AY33: =(9.81*(1/(($K$3+AB32)/2))*(AB32-$K$3)*$T$3^3)/($AP$3)^2 -> 11540130.86 | AZ33: =AY33*AW33 -> 8169491.359 | BA33: =((0.6+0.387*AZ33^(1/6))/(1+(0.559/AW33)^(9/16))^(8/27))^2 -> 25.5671908 | BB33: =BA33*AU33/$T$3 -> 3.531661941 | BC33: 0.05151781003 | BD33: =AR33*PI()*$Z$3*$AH$3*(E33-AE33) -> 193.3406184 | BE33: =((C34-C33)*AR33*PI()*$Z$3*$AH$3*(E33-AE33))/($F$22) -> 0.01572448402 | BF33: =BG33-BD33 -> 966.8074649 | BG33: =AO33*PI()*$S$3*(CB34-CB33)*$AG$3*(V33-E33) -> 1160.148083 | BH33: =1574.27947+1.7072*V32+0.00000015609*V32^2 -> 1810.445578 | BI33: =(0.01533-(0.000379993*V32)+(0.00000703717*POWER(V32,2))-(0.0000000978061*POWER(V32,3))+(0.000000000914537*POWER(V32,4))-(0.00000000000550071*POWER(V32,5))+(0.0000000000000208325*POWER(V32,6))-(4.78395E-17*POWER(V32,7))+(6.07105E-20*POWER(V32,8))-(3.26206E-23*POWER(V32,9))) -> 0.001913625893 | BJ33: =0.13877-0.000188021*V32-0.000000000156094*POWER(V32,2) -> 0.1127573913 | BK33: =BH33*BI33/BJ33 -> 30.72539633 | BL33: =AK33*(((1+$AG$6^2)*LN($AG$6)+(1-$AG$6^2))/((1-$AG$6)^2*LN($AG$6))) -> 157187.4583 | BM33: =(1.8*LOG10(BL33)-1.5)^-2 -> 0.0162131623 | BN33: 0.9958448328 | BO33: 3332.74741 | BP33: =BO33*(0.9-0.15*$AB$3^0.6) -> 2582.099875 | BQ33: =BO33*0.75*$AB$3^-0.17 -> 2630.682046 | BR33: =1437.08-0.58063*AE33+0.0004624*AE33^2 -> 1424.423067 | BU33: =$H$28+(C33/60)/60 -> 6.00011716 | BV33: =(12-BU33)*-15 -> -89.99824261 | BW33: =(180/PI())*ACOS(COS($K$15*PI()/180)*COS($O$15*PI()/180)*COS(BV33*PI()/180)+SIN($K$15*PI()/180)*SIN($O$15*PI()/180)) -> 77.0273052 | BX33: =1/COS(PI()/180*BW33) -> 4.454607333 | BY33: =COS($M$24)*$U$15*1088*EXP(-0.205*BX33) -> 469.2907845 | BZ33: =BY33*$AF$6 -> 5806.165382 | CA33: =BZ33*$K$24*$O$24*$P$24*$Q$24*$R$24 -> 4470.666058 | CB33: =B33/$AG$3 -> 0.0006414368185 | CC33: =($AG$3*(CB34-CB33))*(AO33*PI()*$S$3*(V33-E33)+AR33*PI()*$Z$3*(AE33-E33))/($R$6*D33) -> 0.05151781003
A34: 1.185466943 | B34: =B33+0.5 -> 1 | C34: =C33+$AH$3/$AI$10 -> 0.8435494601 | D34: 1876.79241 | E34: 136.1123175 | F34: 308.2346306 | G34: 0.9323514543 | H34: 2.10574708 | I34: 3.384437766e-08 | J34: 123.5180203 | K34: 123.5180203 | L34: -2.557953849e-12 | M34: =0.062+0.0000002*(X33)^2 -> 0.06591496445 | N34: 0.06546745343 | O34: 21.06347112 | P34: 141.1030884 | Q34: 2320.490656 | R34: 39.29321934 | S34: 87.4430155 | U34: 411.4357212 | V34: 138.4357212 | W34: 412.9613401 | X34: 139.9613401 | Y34: 4471.086528 | Z34: 308.2346306 | AA34: 35.23463058 | AB34: 306.8729446 | AC34: 33.87294457 | AD34: 295.2244043 | AE34: 22.22440426 | AF34: 0.0006336581825 | AG34: 6.544923355e-07 | AH34: 968.1674607 | AI34: 0.1230876706 | AJ34: 9.661770848 | AK34: 235542.9717 | AO34: 2064.355782 | AQ34: 2841.160327 | AR34: 9.481767732 | AS34: =1030.5-0.19975*(($K$3+AB33)/2)+0.00039734*(($K$3+AB33)/2)^2 -> 1006.37194 | AT34: =(351.99/(($K$3+AB33)/2)+(344.84/(($K$3+AB33)/2)^2)) -> 1.173477189 | AU34: =(0.00234*(($K$3+AB33)/2)^(3/2))/(164.54+(($K$3+AB33)/2)) -> 0.02624362837 | AV34: =0.000001*(1.45*((($K$3+AB33)/2)^(3/2))/(109.1+(($K$3+AB33)/2))) -> 1.846086021e-05 | AW34: 0.7079238981 | AX34: 1.57317589e-05 | AY34: =(9.81*(1/(($K$3+AB33)/2))*(AB33-$K$3)*$T$3^3)/($AP$3)^2 -> 11500265.83 | AZ34: 8141313.016 | BA34: 25.54067997 | BB34: 3.527790071 | BC34: 0.05151737478 | BD34: 193.3711484 | BE34: 0.01572696703 | BF34: 966.8741796 | BG34: 1160.245328 | BH34: =1574.27947+1.7072*V33+0.00000015609*V33^2 -> 1810.532484 | BI34: =(0.01533-(0.000379993*V33)+(0.00000703717*POWER(V33,2))-(0.0000000978061*POWER(V33,3))+(0.000000000914537*POWER(V33,4))-(0.00000000000550071*POWER(V33,5))+(0.0000000000000208325*POWER(V33,6))-(4.78395E-17*POWER(V33,7))+(6.07105E-20*POWER(V33,8))-(3.26206E-23*POWER(V33,9))) -> 0.00191265062 | BJ34: =0.13877-0.000188021*V33-0.000000000156094*POWER(V33,2) -> 0.1127478179 | BK34: 30.71381906 | BL34: 157264.614 | BM34: 0.0162115785 | BN34: 0.9958433174 | BO34: 3333.650597 | BP34: 2582.799633 | BQ34: 2631.394971 | BR34: 1424.404235 | BU34: =$H$28+(C34/60)/60 -> 6.000234319 | BV34: -89.99648521 | BW34: 77.02594573 | BX34: 4.454148569 | BY34: 469.3349217 | BZ34: 5806.711458 | CA34: 4471.086528 | CB34: 0.001282873637 | CC34: 0.05151737478
A35: 1.185466943 | B35: 1.5 | C35: =C34+$AH$3/$AI$10 -> 1.26532419 | D35: 1876.937757 | E35: 136.16384 | F35: 308.2398127 | G35: 0.932628785 | H35: 2.106327464 | I35: 3.384437766e-08 | J35: 123.5547611 | K35: 123.5547611 | L35: -8.668621376e-13 | M35: 0.06591783535 | N35: 0.06547028547 | O35: 21.06425763 | P35: 141.1163566 | Q35: 2320.683729 | R35: 39.32204034 | S35: 87.4718365 | U35: 411.4869366 | V35: 138.4869366 | W35: 413.0126254 | X35: 140.0126254 | Y35: 4471.506952 | Z35: 308.2398127 | AA35: 35.2398127 | AB35: 306.877809 | AC35: 33.87780899 | AD35: 295.2580289 | AE35: 22.25802894 | AF35: 0.0006333474188 | AG35: 6.542001416e-07 | AH35: 968.1248574 | AI35: 0.1230808193 | AJ35: 9.658317927 | AK35: 235658.5452 | AO35: 2064.800526 | AQ35: 2841.772426 | AR35: 9.481774548 | AS35: 1006.372147 | AT35: 1.1734566 | AU35: 0.0262440201 | AV35: 1.846110755e-05 | AW35: 0.7079229617 | AX35: 1.573224569e-05 | AY35: 11510268.99 | AZ35: 8148383.717 | BA35: 25.54733813 | BB35: 3.528762397 | BC35: 0.0515169022 | BD35: 193.4016763 | BE35: 0.01572944988 | BF35: 966.9401884 | BG35: 1160.341865 | BH35: 1810.619925 | BI35: 0.001911670151 | BJ35: 0.1127381858 | BK35: 30.70217992 | BL35: 157341.7788 | BM35: 0.01620999552 | BN35: 0.9958413532 | BO35: 3334.554405 | BP35: 2583.499873 | BQ35: 2632.108385 | BR35: 1424.385403 | BU35: 6.000351479 | BV35: -89.99472782 | BW35: 77.02458626 | BX35: 4.453689899 | BY35: 469.3790541 | BZ35: 5807.257472 | CA35: 4471.506952 | CB35: 0.001924310455 | CC35: 0.0515169022
A36: 1.185466943 | B36: 2 | C36: 1.68709892 | D36: 1877.083096 | E36: 136.2153623 | F36: 308.2456085 | G36: 0.9329051485 | H36: 2.106595572 | I36: 3.384437766e-08 | J36: 123.5913737 | K36: 123.5913737 | L36: -2.998490345e-12 | M36: 0.06592070706 | N36: 0.06547311832 | O36: 21.06504411 | P36: 141.1296232 | Q36: 2320.876905 | R36: 39.3507341 | S36: 87.50053026 | U36: 411.5381525 | V36: 138.5381525 | W36: 413.0639113 | X36: 140.0639113 | Y36: 4471.927329 | Z36: 308.2456085 | AA36: 35.24560853 | AB36: 306.8832881 | AC36: 33.88328809 | AD36: 295.2916546 | AE36: 22.29165464 | AF36: 0.0006330369233 | AG36: 6.539081995e-07 | AH36: 968.0822534 | AI36: 0.1230739671 | AJ36: 9.654868011 | AK36: 235774.1324 | AO36: 2065.244833 | AQ36: 2842.383922 | AR36: 9.481781354 | AS36: 1006.372243 | AT36: 1.173447086 | AU36: 0.02624420113 | AV36: 1.846122185e-05 | AW36: 0.707922529 | AX36: 1.573247066e-05 | AY36: 11514891.75 | AZ36: 8151651.291 | BA36: 25.55041373 | BB36: 3.529211562 | BC36: 0.05151643275 | BD36: 193.4322019 | BE36: 0.01573193255 | BF36: 967.0062506 | BG36: 1160.438453 | BH36: 1810.707362 | BI36: 0.001910690511 | BJ36: 0.112728554 | BK36: 30.69055045 | BL36: 157418.9527 | BM36: 0.01620841336 | BN36: 0.9958394391 | BO36: 3335.457632 | BP36: 2584.199663 | BQ36: 2632.821342 | BR36: 1424.366571 | BU36: 6.000468639 | BV36: -89.99297042 | BW36: 77.02322679 | BX36: 4.453231324 | BY36: 469.4231815 | BZ36: 5807.803426 | CA36: 4471.927329 | CB36: 0.002565747274 | CC36: 0.05151643275
A37: 1.185466943 | B37: 2.5 | C37: 2.10887365 | D37: 1877.228427 | E37: 136.2668844 | F37: 308.2513395 | G37: 0.9331817202 | H37: 2.106897475 | I37: 3.384437766e-08 | J37: 123.628014 | K37: 123.628014 | L37: -3.709033081e-12 | M37: 0.06592357985 | N37: 0.06547595223 | O37: 21.06583059 | P37: 141.1428884 | Q37: 2321.070028 | R37: 39.37945632 | S37: 87.52925248 | U37: 411.5893685 | V37: 138.5893685 | W37: 413.1151974 | X37: 140.1151974 | Y37: 4472.347658 | Z37: 308.2513395 | AA37: 35.25133949 | AB37: 306.8887021 | AC37: 33.88870212 | AD37: 295.3252813 | AE37: 22.32528134 | AF37: 0.0006327266956 | AG37: 6.53616509e-07 | AH37: 968.0396486 | AI37: 0.1230671139 | AJ37: 9.651421096 | AK37: 235889.7331 | AO37: 2065.688783 | AQ37: 2842.994928 | AR37: 9.481788152 | AS37: 1006.372351 | AT37: 1.173436369 | AU37: 0.02624440503 | AV37: 1.846135059e-05 | AW37: 0.7079220416 | AX37: 1.573272406e-05 | AY37: 11520098.58 | AZ37: 8155331.704 | BA37: 25.5538769 | BB37: 3.529717345 | BC37: 0.05151596229 | BD37: 193.4627254 | BE37: 0.01573441503 | BF37: 967.0722885 | BG37: 1160.535014 | BH37: 1810.7948 | BI37: 0.001909711654 | BJ37: 0.1127189222 | BK37: 30.67893008 | BL37: 157496.1357 | BM37: 0.01620683203 | BN37: 0.9958375214 | BO37: 3336.360409 | BP37: 2584.899104 | BQ37: 2633.533943 | BR37: 1424.34774 | BU37: 6.000585798 | BV37: -89.99121303 | BW37: 77.0218673 | BX37: 4.452772843 | BY37: 469.467304 | BZ37: 5808.349318 | CA37: 4472.347658 | CB37: 0.003207184092 | CC37: 0.05151596229
A38: 1.185466943 | B38: 3 | C38: 2.53064838 | D38: 1877.37375 | E38: 136.3184062 | F38: 308.2570791 | G38: 0.9334583728 | H38: 2.107195705 | I38: 3.384437766e-08 | J38: 123.664665 | K38: 123.664665 | L38: 4.419575816e-12 | M38: 0.06592645371 | N38: 0.0654787872 | O38: 21.06661707 | P38: 141.1561521 | Q38: 2321.263114 | R38: 39.40819014 | S38: 87.55798631 | U38: 411.6405849 | V38: 138.6405849 | W38: 413.1664838 | X38: 140.1664838 | Y38: 4472.767941 | Z38: 308.2570791 | AA38: 35.25707907 | AB38: 306.8941247 | AC38: 33.89412469 | AD38: 295.358909 | AE38: 22.35890905 | AF38: 0.0006324167355 | AG38: 6.533250696e-07 | AH38: 967.9970429 | AI38: 0.1230602598 | AJ38: 9.647977181 | AK38: 236005.3474 | AO38: 2066.132367 | AQ38: 2843.60543 | AR38: 9.481794941 | AS38: 1006.372457 | AT38: 1.173425779 | AU38: 0.02624460652 | AV38: 1.846147781e-05 | AW38: 0.70792156 | AX38: 1.573297445e-05 | AY38: 11525243.46 | AZ38: 8158968.333 | BA38: 25.55729782 | BB38: 3.530216973 | BC38: 0.05151549126 | BD38: 193.4932465 | BE38: 0.01573689733 | BF38: 967.1383103 | BG38: 1160.631557 | BH38: 1810.882238 | BI38: 0.001908733583 | BJ38: 0.1127092902 | BK38: 30.66731886 | BL38: 157573.3277 | BM38: 0.01620525151 | BN38: 0.9958356059 | BO38: 3337.262723 | BP38: 2585.598186 | BQ38: 2634.246178 | BR38: 1424.32891 | BU38: 6.000702958 | BV38: -89.98945563 | BW38: 77.02050781 | BX38: 4.452314457 | BY38: 469.5114215 | BZ38: 5808.89515 | CA38: 4472.767941 | CB38: 0.003848620911 | CC38: 0.05151549126
A39: 1.185466943 | B39: 3.5 | C39: 2.95242311 | D39: 1877.519066 | E39: 136.3699278 | F39: 308.2628193 | G39: 0.9337351201 | H39: 2.107494317 | I39: 3.384437766e-08 | J39: 123.7013285 | K39: 123.7013285 | L39: 2.728484105e-12 | M39: 0.06592932863 | N39: 0.06548162321 | O39: 21.06740355 | P39: 141.1694144 | Q39: 2321.456162 | R39: 39.4369374 | S39: 87.58673357 | U39: 411.6918016 | V39: 138.6918016 | W39: 413.2177703 | X39: 140.2177703 | Y39: 4473.188176 | Z39: 308.2628193 | AA39: 35.26281932 | AB39: 306.8995478 | AC39: 33.89954783 | AD39: 295.3925378 | AE39: 22.39253776 | AF39: 0.0006321070425 | AG39: 6.530338812e-07 | AH39: 967.9544365 | AI39: 0.1230534048 | AJ39: 9.64453626 | AK39: 236120.9752 | AO39: 2066.575588 | AQ39: 2844.215432 | AR39: 9.481801722 | AS39: 1006.372564 | AT39: 1.173415173 | AU39: 0.02624480832 | AV39: 1.846160522e-05 | AW39: 0.7079210776 | AX39: 1.573322524e-05 | AY39: 11530396.38 | AZ39: 8162610.63 | BA39: 25.56072303 | BB39: 3.530717244 | BC39: 0.05151501962 | BD39: 193.5237655 | BE39: 0.01573937945 | BF39: 967.2043153 | BG39: 1160.728081 | BH39: 1810.969677 | BI39: 0.001907756296 | BJ39: 0.1126996583 | BK39: 30.65571677 | BL39: 157650.5288 | BM39: 0.01620367182 | BN39: 0.9958336919 | BO39: 3338.164574 | BP39: 2586.29691 | BQ39: 2634.958048 | BR39: 1424.31008 | BU39: 6.000820118 | BV39: -89.98769824 | BW39: 77.01914831 | BX39: 4.451856165 | BY39: 469.5555341 | BZ39: 5809.44092 | CA39: 4473.188176 | CB39: 0.004490057729 | CC39: 0.05151501962
A40: 1.185466943 | B40: 4 | C40: 3.37419784 | D40: 1877.664374 | E40: 136.4214492 | F40: 308.2685611 | G40: 0.9340119607 | H40: 2.107792874 | I40: 3.384437766e-08 | J40: 123.7380043 | K40: 123.7380043 | L40: -2.47268872e-12 | M40: 0.06593220462 | N40: 0.06548446027 | O40: 21.06819003 | P40: 141.1826751 | Q40: 2321.649171 | R40: 39.4656979 | S40: 87.61549407 | U40: 411.7430185 | V40: 138.7430185 | W40: 413.2690571 | X40: 140.2690571 | Y40: 4473.608365 | Z40: 308.2685611 | AA40: 35.26856108 | AB40: 306.9049724 | AC40: 33.90497241 | AD40: 295.4261675 | AE40: 22.42616748 | AF40: 0.0006317976165 | AG40: 6.527429435e-07 | AH40: 967.9118293 | AI40: 0.1230465488 | AJ40: 9.641098331 | AK40: 236236.6167 | AO40: 2067.018444 | AQ40: 2844.824933 | AR40: 9.481808494 | AS40: 1006.372671 | AT40: 1.173404567 | AU40: 0.02624501014 | AV40: 1.846173265e-05 | AW40: 0.7079205953 | AX40: 1.573347605e-05 | AY40: 11535549.74 | AZ40: 8166253.24 | BA40: 25.56414748 | BB40: 3.531217421 | BC40: 0.05151454737 | BD40: 193.5542822 | BE40: 0.01574186139 | BF40: 967.2703035 | BG40: 1160.824586 | BH40: 1811.057116 | BI40: 0.001906779793 | BJ40: 0.1126900262 | BK40: 30.64412378 | BL40: 157727.7389 | BM40: 0.01620209295 | BN40: 0.9958317795 | BO40: 3339.065963 | BP40: 2586.995276 | BQ40: 2635.669554 | BR40: 1424.291251 | BU40: 6.000937277 | BV40: -89.98594084 | BW40: 77.0177888 | BX40: 4.451397968 | BY40: 469.5996417 | BZ40: 5809.986629 | CA40: 4473.608365 | CB40: 0.005131494548 | CC40: 0.05151454737
A41: 1.185466943 | B41: 4.5 | C41: 3.795972571 | D41: 1877.809674 | E41: 136.4729703 | F41: 308.2743043 | G41: 0.9342888947 | H41: 2.108091423 | I41: 3.384437766e-08 | J41: 123.7746926 | K41: 123.7746926 | L41: -4.590106073e-12 | M41: 0.06593508168 | N41: 0.06548729838 | O41: 21.06897651 | P41: 141.1959343 | Q41: 2321.842143 | R41: 39.49447167 | S41: 87.64426784 | U41: 411.7942356 | V41: 138.7942356 | W41: 413.3203442 | X41: 140.3203442 | Y41: 4474.028506 | Z41: 308.2743043 | AA41: 35.27430428 | AB41: 306.9103983 | AC41: 33.91039833 | AD41: 295.4597982 | AE41: 22.4597982 | AF41: 0.0006314884571 | AG41: 6.524522561e-07 | AH41: 967.8692213 | AI41: 0.1230396919 | AJ41: 9.637663391 | AK41: 236352.2716 | AO41: 2067.460938 | AQ41: 2845.433934 | AR41: 9.481815258 | AS41: 1006.372778 | AT41: 1.173393957 | AU41: 0.02624521201 | AV41: 1.846186011e-05 | AW41: 0.7079201128 | AX41: 1.573372694e-05 | AY41: 11540704.38 | AZ41: 8169896.744 | BA41: 25.56757174 | BB41: 3.531717583 | BC41: 0.05151407451 | BD41: 193.5847966 | BE41: 0.01574434315 | BF41: 967.3362748 | BG41: 1160.921071 | BH41: 1811.144556 | BI41: 0.001905804073 | BJ41: 0.1126803942 | BK41: 30.6325399 | BL41: 157804.9581 | BM41: 0.01620051489 | BN41: 0.9958298687 | BO41: 3339.966892 | BP41: 2587.693285 | BQ41: 2636.380696 | BR41: 1424.272422 | BU41: 6.001054437 | BV41: -89.98418345 | BW41: 77.01642929 | BX41: 4.450939865 | BY41: 469.6437444 | BZ41: 5810.532278 | CA41: 4474.028506 | CB41: 0.005772931366 | CC41: 0.05151407451
A42: 1.185466943 | B42: 5 | C42: 4.217747301 | D42: 1877.954967 | E42: 136.5244912 | F42: 308.2800489 | G42: 0.9345659222 | H42: 2.108389958 | I42: 3.384437766e-08 | J42: 123.8113932 | K42: 123.8113932 | L42: -3.609557098e-12 | M42: 0.0659379598 | N42: 0.06549013754 | O42: 21.06976299 | P42: 141.2091921 | Q42: 2322.035077 | R42: 39.52325871 | S42: 87.67305488 | U42: 411.845453 | V42: 138.845453 | W42: 413.3716314 | X42: 140.3716314 | Y42: 4474.448601 | Z42: 308.2800489 | AA42: 35.28004892 | AB42: 306.9158256 | AC42: 33.91582561 | AD42: 295.4934299 | AE42: 22.49342992 | AF42: 0.0006311795639 | AG42: 6.521618188e-07 | AH42: 967.8266125 | AI42: 0.123032834 | AJ42: 9.634231435 | AK42: 236467.9402 | AO42: 2067.903068 | AQ42: 2846.042435 | AR42: 9.481822014 | AS42: 1006.372885 | AT42: 1.173383345 | AU42: 0.02624541393 | AV42: 1.846198761e-05 | AW42: 0.7079196302 | AX42: 1.573397789e-05 | AY42: 11545860.19 | AZ42: 8173541.079 | BA42: 25.57099572 | BB42: 3.532217723 | BC42: 0.05151360104 | BD42: 193.6153089 | BE42: 0.01574682472 | BF42: 967.4022294 | BG42: 1161.017538 | BH42: 1811.231996 | BI42: 0.001904829133 | BJ42: 0.1126707621 | BK42: 30.62096509 | BL42: 157882.1863 | BM42: 0.01619893765 | BN42: 0.9958279594 | BO42: 3340.86736 | BP42: 2588.390937 | BQ42: 2637.091474 | BR42: 1424.253593 | BU42: 6.001171596 | BV42: -89.98242605 | BW42: 77.01506976 | BX42: 4.450481856 | BY42: 469.6878422 | BZ42: 5811.077865 | CA42: 4474.448601 | CB42: 0.006414368185 | CC42: 0.05151360104
A43: 1.185466943 | B43: 5.5 | C43: 4.639522031 | D43: 1878.100252 | E43: 136.5760118 | F43: 308.285795 | G43: 0.9348430432 | H43: 2.10868848 | I43: 3.384437766e-08 | J43: 123.8481062 | K43: 123.8481062 | L43: -1.676880856e-12 | M43: 0.06594083898 | N43: 0.06549297775 | O43: 21.07054947 | P43: 141.2224484 | Q43: 2322.227972 | R43: 39.55205903 | S43: 87.70185519 | U43: 411.8966707 | V43: 138.8966707 | W43: 413.4229189 | X43: 140.4229189 | Y43: 4474.868648 | Z43: 308.285795 | AA43: 35.285795 | AB43: 306.9212542 | AC43: 33.92125423 | AD43: 295.5270627 | AE43: 22.52706265 | AF43: 0.0006308709366 | AG43: 6.518716313e-07 | AH43: 967.7840028 | AI43: 0.1230259752 | AJ43: 9.630802461 | AK43: 236583.6222 | AO43: 2068.344836 | AQ43: 2846.650437 | AR43: 9.481828761 | AS43: 1006.372992 | AT43: 1.173372731 | AU43: 0.02624561591 | AV43: 1.846211513e-05 | AW43: 0.7079191474 | AX43: 1.57342289e-05 | AY43: 11551017.2 | AZ43: 8177186.251 | BA43: 25.57441945 | BB43: 3.532717842 | BC43: 0.05151312696 | BD43: 193.6458189 | BE43: 0.01574930611 | BF43: 967.4681671 | BG43: 1161.113986 | BH43: 1811.319437 | BI43: 0.001903854973 | BJ43: 0.1126611299 | BK43: 30.60939936 | BL43: 157959.4236 | BM43: 0.01619736123 | BN43: 0.9958260518 | BO43: 3341.767367 | BP43: 2589.088232 | BQ43: 2637.801889 | BR43: 1424.234765 | BU43: 6.001288756 | BV43: -89.98066866 | BW43: 77.01371023 | BX43: 4.450023941 | BY43: 469.7319351 | BZ43: 5811.623391 | CA43: 4474.868648 | CB43: 0.007055805003 | CC43: 0.05151312696
A44: 1.185466943 | B44: 6 | C44: 5.061296761 | D44: 1878.245529 | E44: 136.6275322 | F44: 308.2915425 | G44: 0.9351202578 | H44: 2.108986989 | I44: 3.384437766e-08 | J44: 123.8848317 | K44: 123.8848317 | L44: 4.97379915e-13 | M44: 0.06594371923 | N44: 0.06549581901 | O44: 21.07133595 | P44: 141.2357032 | Q44: 2322.420829 | R44: 39.58087263 | S44: 87.73066879 | U44: 411.9478887 | V44: 138.9478887 | W44: 413.4742067 | X44: 140.4742067 | Y44: 4475.288648 | Z44: 308.2915425 | AA44: 35.29154253 | AB44: 306.9266842 | AC44: 33.92668421 | AD44: 295.5606964 | AE44: 22.56069639 | AF44: 0.0006305625751 | AG44: 6.515816932e-07 | AH44: 967.7413924 | AI44: 0.1230191155 | AJ44: 9.627376464 | AK44: 236699.3178 | AO44: 2068.786241 | AQ44: 2847.257941 | AR44: 9.481835499 | AS44: 1006.373099 | AT44: 1.173362114 | AU44: 0.02624581793 | AV44: 1.846224268e-05 | AW44: 0.7079186646 | AX44: 1.573447997e-05 | AY44: 11556175.41 | AZ44: 8180832.261 | BA44: 25.57784292 | BB44: 3.533217939 | BC44: 0.05151265228 | BD44: 193.6763266 | BE44: 0.01575178732 | BF44: 967.5340881 | BG44: 1161.210415 | BH44: 1811.406878 | BI44: 0.001902881591 | BJ44: 0.1126514977 | BK44: 30.59784267 | BL44: 158036.6699 | BM44: 0.01619578562 | BN44: 0.9958241458 | BO44: 3342.666915 | BP44: 2589.785172 | BQ44: 2638.511942 | BR44: 1424.215938 | BU44: 6.001405916 | BV44: -89.97891126 | BW44: 77.0123507 | BX44: 4.449566121 | BY44: 469.776023 | BZ44: 5812.168856 | CA44: 4475.288648 | CB44: 0.007697241822 | CC44: 0.05151265228
A45: 1.185466943 | B45: 6.5 | C45: 5.483071491 | D45: 1878.390798 | E45: 136.6790524 | F45: 308.2972915 | G45: 0.935397566 | H45: 2.109285485 | I45: 3.384437766e-08 | J45: 123.9215695 | K45: 123.9215695 | L45: 5.513811629e-12 | M45: 0.06594660055 | N45: 0.06549866131 | O45: 21.07212243 | P45: 141.2489565 | Q45: 2322.613649 | R45: 39.60969951 | S45: 87.75949567 | U45: 411.9991069 | V45: 138.9991069 | W45: 413.5254946 | X45: 140.5254946 | Y45: 4475.708602 | Z45: 308.2972915 | AA45: 35.29729149 | AB45: 306.9321155 | AC45: 33.93211554 | AD45: 295.5943311 | AE45: 22.59433112 | AF45: 0.0006302544788 | AG45: 6.512920044e-07 | AH45: 967.6987812 | AI45: 0.1230122548 | AJ45: 9.623953443 | AK45: 236815.0269 | AO45: 2069.227284 | AQ45: 2847.864946 | AR45: 9.48184223 | AS45: 1006.373206 | AT45: 1.173351495 | AU45: 0.02624602 | AV45: 1.846237027e-05 | AW45: 0.7079181817 | AX45: 1.573473111e-05 | AY45: 11561334.8 | AZ45: 8184479.108 | BA45: 25.58126614 | BB45: 3.533718014 | BC45: 0.05151217699 | BD45: 193.7068321 | BE45: 0.01575426835 | BF45: 967.5999922 | BG45: 1161.306824 | BH45: 1811.494319 | BI45: 0.001901908987 | BJ45: 0.1126418654 | BK45: 30.58629501 | BL45: 158113.9252 | BM45: 0.01619421083 | BN45: 0.9958222414 | BO45: 3343.566004 | BP45: 2590.481755 | BQ45: 2639.221631 | BR45: 1424.19711 | BU45: 6.001523075 | BV45: -89.97715387 | BW45: 77.01099115 | BX45: 4.449108395 | BY45: 469.8201059 | BZ45: 5812.714259 | CA45: 4475.708602 | CB45: 0.00833867864 | CC45: 0.05151217699
A46: 1.185466943 | B46: 7 | C46: 5.904846221 | D46: 1878.536059 | E46: 136.7305723 | F46: 308.3030419 | G46: 0.9356749679 | H46: 2.109583968 | I46: 3.384437766e-08 | J46: 123.9583197 | K46: 123.9583197 | L46: 6.380673767e-12 | M46: 0.06594948293 | N46: 0.06550150467 | O46: 21.07290891 | P46: 141.2622083 | Q46: 2322.80643 | R46: 39.63853968 | S46: 87.78833584 | U46: 412.0503253 | V46: 139.0503253 | W46: 413.5767828 | X46: 140.5767828 | Y46: 4476.128508 | Z46: 308.3030419 | AA46: 35.3030419 | AB46: 306.9375482 | AC46: 33.93754822 | AD46: 295.6279669 | AE46: 22.62796686 | AF46: 0.0006299466475 | AG46: 6.510025644e-07 | AH46: 967.6561691 | AI46: 0.1230053932 | AJ46: 9.620533392 | AK46: 236930.7495 | AO46: 2069.667966 | AQ46: 2848.471453 | AR46: 9.481848951 | AS46: 1006.373313 | AT46: 1.173340873 | AU46: 0.02624622212 | AV46: 1.846249789e-05 | AW46: 0.7079176986 | AX46: 1.573498231e-05 | AY46: 11566495.38 | AZ46: 8188126.794 | BA46: 25.58468909 | BB46: 3.534218068 | BC46: 0.05151170108 | BD46: 193.7373354 | BE46: 0.0157567492 | BF46: 967.6658795 | BG46: 1161.403215 | BH46: 1811.581761 | BI46: 0.001900937159 | BJ46: 0.1126322331 | BK46: 30.57475637 | BL46: 158191.1895 | BM46: 0.01619263686 | BN46: 0.9958203385 | BO46: 3344.464634 | BP46: 2591.177984 | BQ46: 2639.930959 | BR46: 1424.178284 | BU46: 6.001640235 | BV46: -89.97539647 | BW46: 77.0096316 | BX46: 4.448650763 | BY46: 469.864184 | BZ46: 5813.259602 | CA46: 4476.128508 | CB46: 0.008980115459 | CC46: 0.05151170108
A47: 1.185466943 | B47: 7.5 | C47: 6.326620951 | D47: 1878.681313 | E47: 136.782092 | F47: 308.3087937 | G47: 0.9359524633 | H47: 2.109882439 | I47: 3.384437766e-08 | J47: 123.9950823 | K47: 123.9950823 | L47: 4.064304449e-12 | M47: 0.06595236637 | N47: 0.06550434907 | O47: 21.07369539 | P47: 141.2754587 | Q47: 2322.999173 | R47: 39.66739314 | S47: 87.8171893 | U47: 412.1015441 | V47: 139.1015441 | W47: 413.6280712 | X47: 140.6280712 | Y47: 4476.548368 | Z47: 308.3087937 | AA47: 35.30879375 | AB47: 306.9429823 | AC47: 33.94298226 | AD47: 295.6616036 | AE47: 22.6616036 | AF47: 0.000629639081 | AG47: 6.50713373e-07 | AH47: 967.6135562 | AI47: 0.1229985306 | AJ47: 9.617116309 | AK47: 237046.4856 | AO47: 2070.108286 | AQ47: 2849.077463 | AR47: 9.481855665 | AS47: 1006.37342 | AT47: 1.173330249 | AU47: 0.02624642429 | AV47: 1.846262554e-05 | AW47: 0.7079172155 | AX47: 1.573523358e-05 | AY47: 11571657.16 | AZ47: 8191775.317 | BA47: 25.58811179 | BB47: 3.5347181 | BC47: 0.05151122458 | BD47: 193.7678365 | BE47: 0.01575922987 | BF47: 967.73175 | BG47: 1161.499586 | BH47: 1811.669203 | BI47: 0.001899966105 | BJ47: 0.1126226007 | BK47: 30.56322674 | BL47: 158268.4629 | BM47: 0.0161910637 | BN47: 0.9958184373 | BO47: 3345.362806 | BP47: 2591.873857 | BQ47: 2640.639925 | BR47: 1424.159458 | BU47: 6.001757395 | BV47: -89.97363908 | BW47: 77.00827204 | BX47: 4.448193225 | BY47: 469.9082571 | BZ47: 5813.804884 | CA47: 4476.548368 | CB47: 0.009621552277 | CC47: 0.05151122458
A48: 1.185466943 | B48: 8 | C48: 6.748395681 | D48: 1878.826558 | E48: 136.8336115 | F48: 308.314547 | G48: 0.9362300525 | H48: 2.110180897 | I48: 3.384437766e-08 | J48: 124.0318574 | K48: 124.0318574 | L48: -1.961097951e-12 | M48: 0.06595525088 | N48: 0.06550719452 | O48: 21.07448187 | P48: 141.2887076 | Q48: 2323.191878 | R48: 39.6962599 | S48: 87.84605606 | U48: 412.152763 | V48: 139.152763 | W48: 413.6793598 | X48: 140.6793598 | Y48: 4476.96818 | Z48: 308.314547 | AA48: 35.31454704 | AB48: 306.9484177 | AC48: 33.94841765 | AD48: 295.6952413 | AE48: 22.69524134 | AF48: 0.0006293317788 | AG48: 6.5042443e-07 | AH48: 967.5709426 | AI48: 0.1229916672 | AJ48: 9.613702191 | AK48: 237162.2352 | AO48: 2070.548245 | AQ48: 2849.682976 | AR48: 9.48186237 | AS48: 1006.373527 | AT48: 1.173319623 | AU48: 0.02624662651 | AV48: 1.846275322e-05 | AW48: 0.7079167322 | AX48: 1.573548491e-05 | AY48: 11576820.13 | AZ48: 8195424.679 | BA48: 25.59153424 | BB48: 3.535218111 | BC48: 0.05151074746 | BD48: 193.7983353 | BE48: 0.01576171035 | BF48: 967.7976037 | BG48: 1161.595939 | BH48: 1811.756646 | BI48: 0.001898995826 | BJ48: 0.1126129683 | BK48: 30.55170609 | BL48: 158345.7452 | BM48: 0.01618949135 | BN48: 0.9958165376 | BO48: 3346.260521 | BP48: 2592.569375 | BQ48: 2641.34853 | BR48: 1424.140632 | BU48: 6.001874554 | BV48: -89.97188168 | BW48: 77.00691248 | BX48: 4.447735781 | BY48: 469.9523252 | BZ48: 5814.350105 | CA48: 4476.96818 | CB48: 0.0102629891 | CC48: 0.05151074746
A49: 1.185466943 | B49: 8.5 | C49: 7.170170411 | D49: 1878.971796 | E49: 136.8851307 | F49: 308.3203018 | G49: 0.9365077354 | H49: 2.110479342 | I49: 3.384437766e-08 | J49: 124.0686448 | K49: 124.0686448 | L49: -4.831690603e-12 | M49: 0.06595813646 | N49: 0.06551004103 | O49: 21.07526835 | P49: 141.3019549 | Q49: 2323.384545 | R49: 39.72513996 | S49: 87.87493613 | U49: 412.2039823 | V49: 139.2039823 | W49: 413.7306487 | X49: 140.7306487 | Y49: 4477.387945 | Z49: 308.3203018 | AA49: 35.32030178 | AB49: 306.9538544 | AC49: 33.9538544 | AD49: 295.7288801 | AE49: 22.72888009 | AF49: 0.0006290247407 | AG49: 6.50135735e-07 | AH49: 967.5283281 | AI49: 0.1229848027 | AJ49: 9.610291034 | AK49: 237277.9983 | AO49: 2070.987843 | AQ49: 2850.287992 | AR49: 9.481869067 | AS49: 1006.373634 | AT49: 1.173308993 | AU49: 0.02624682878 | AV49: 1.846288093e-05 | AW49: 0.7079162488 | AX49: 1.573573631e-05 | AY49: 11581984.3 | AZ49: 8199074.879 | BA49: 25.59495642 | BB49: 3.5357181 | BC49: 0.05151026974 | BD49: 193.8288319 | BE49: 0.01576419065 | BF49: 967.8634405 | BG49: 1161.692272 | BH49: 1811.84409 | BI49: 0.001898026318 | BJ49: 0.1126033358 | BK49: 30.54019441 | BL49: 158423.0366 | BM49: 0.01618791982 | BN49: 0.9958146395 | BO49: 3347.157778 | BP49: 2593.26454 | BQ49: 2642.056774 | BR49: 1424.121807 | BU49: 6.001991714 | BV49: -89.97012429 | BW49: 77.0055529 | BX49: 4.447278431 | BY49: 469.9963885 | BZ49: 5814.895265 | CA49: 4477.387945 | CB49: 0.01090442591 | CC49: 0.05151026974
A50: 1.185466943 | B50: 9 | C50: 7.591945141 | D50: 1879.117026 | E50: 136.9366497 | F50: 308.326058 | G50: 0.9367855121 | H50: 2.110777774 | I50: 3.384437766e-08 | J50: 124.1054447 | K50: 124.1054447 | L50: 4.547473509e-13 | M50: 0.0659610231 | N50: 0.06551288858 | O50: 21.07605483 | P50: 141.3152008 | Q50: 2323.577174 | R50: 39.75403334 | S50: 87.9038295 | U50: 412.2552018 | V50: 139.2552018 | W50: 413.7819378 | X50: 140.7819378 | Y50: 4477.807664 | Z50: 308.326058 | AA50: 35.32605796 | AB50: 306.9592925 | AC50: 33.9592925 | AD50: 295.7625198 | AE50: 22.76251983 | AF50: 0.0006287179663 | AG50: 6.498472877e-07 | AH50: 967.4857128 | AI50: 0.1229779374 | AJ50: 9.606882834 | AK50: 237393.7748 | AO50: 2071.427081 | AQ50: 2850.892513 | AR50: 9.481875755 | AS50: 1006.373741 | AT50: 1.173298362 | AU50: 0.0262470311 | AV50: 1.846300867e-05 | AW50: 0.7079157654 | AX50: 1.573598777e-05 | AY50: 11587149.66 | AZ50: 8202725.918 | BA50: 25.59837836 | BB50: 3.536218068 | BC50: 0.05150979141 | BD50: 193.8593262 | BE50: 0.01576667077 | BF50: 967.9292606 | BG50: 1161.788587 | BH50: 1811.931533 | BI50: 0.001897057582 | BJ50: 0.1125937033 | BK50: 30.52869169 | BL50: 158500.3369 | BM50: 0.0161863491 | BN50: 0.995812743 | BO50: 3348.054578 | BP50: 2593.95935 | BQ50: 2642.764657 | BR50: 1424.102982 | BU50: 6.002108874 | BV50: -89.9683669 | BW50: 77.00419332 | BX50: 4.446821176 | BY50: 470.0404468 | BZ50: 5815.440363 | CA50: 4477.807664 | CB50: 0.01154586273 | CC50: 0.05150979141
A51: 1.185466943 | B51: 9.5 | C51: 8.013719871 | D51: 1879.262249 | E51: 136.9881684 | F51: 308.3318156 | G51: 0.9370633826 | H51: 2.111076193 | I51: 3.384437766e-08 | J51: 124.142257 | K51: 124.142257 | L51: 2.856381798e-12 | M51: 0.0659639108 | N51: 0.06551573718 | O51: 21.07684131 | P51: 141.3284453 | Q51: 2323.769764 | R51: 39.78294002 | S51: 87.93273618 | U51: 412.3064215 | V51: 139.3064215 | W51: 413.8332271 | X51: 140.8332271 | Y51: 4478.227335 | Z51: 308.3318156 | AA51: 35.33181559 | AB51: 306.964732 | AC51: 33.96473196 | AD51: 295.7961606 | AE51: 22.79616058 | AF51: 0.0006284114555 | AG51: 6.495590879e-07 | AH51: 967.4430967 | AI51: 0.1229710711 | AJ51: 9.603477588 | AK51: 237509.5649 | AO51: 2071.865959 | AQ51: 2851.496538 | AR51: 9.481882436 | AS51: 1006.373849 | AT51: 1.173287728 | AU51: 0.02624723347 | AV51: 1.846313644e-05 | AW51: 0.7079152818 | AX51: 1.573623929e-05 | AY51: 11592316.21 | AZ51: 8206377.795 | BA51: 25.60180003 | BB51: 3.536718014 | BC51: 0.05150931247 | BD51: 193.8898184 | BE51: 0.01576915071 | BF51: 967.9950638 | BG51: 1161.884882 | BH51: 1812.018977 | BI51: 0.001896089616 | BJ51: 0.1125840707 | BK51: 30.51719791 | BL51: 158577.6463 | BM51: 0.01618477919 | BN51: 0.9958108481 | BO51: 3348.950922 | BP51: 2594.653807 | BQ51: 2643.47218 | BR51: 1424.084158 | BU51: 6.002226033 | BV51: -89.9666095 | BW51: 77.00283373 | BX51: 4.446364014 | BY51: 470.0845002 | BZ51: 5815.985401 | CA51: 4478.227335 | CB51: 0.01218729955 | CC51: 0.05150931247
A52: 1.185466943 | B52: 10 | C52: 8.435494601 | D52: 1879.407463 | E52: 137.0396869 | F52: 308.3375747 | G52: 0.9373413469 | H52: 2.1113746 | I52: 3.384437766e-08 | J52: 124.1790818 | K52: 124.1790818 | L52: -1.165290087e-12 | M52: 0.06596679957 | N52: 0.06551858682 | O52: 21.07762779 | P52: 141.3416882 | Q52: 2323.962317 | R52: 39.81186002 | S52: 87.96165618 | U52: 412.3576415 | V52: 139.3576415 | W52: 413.8845166 | X52: 140.8845166 | Y52: 4478.64696 | Z52: 308.3375747 | AA52: 35.33757466 | AB52: 306.9701728 | AC52: 33.97017277 | AD52: 295.8298023 | AE52: 22.82980233 | AF52: 0.0006281052077 | AG52: 6.492711352e-07 | AH52: 967.4004798 | AI52: 0.1229642038 | AJ52: 9.600075294 | AK52: 237625.3684 | AO52: 2072.304477 | AQ52: 2852.100067 | AR52: 9.481889108 | AS52: 1006.373956 | AT52: 1.173277092 | AU52: 0.02624743589 | AV52: 1.846326425e-05 | AW52: 0.7079147981 | AX52: 1.573649088e-05 | AY52: 11597483.96 | AZ52: 8210030.513 | BA52: 25.60522145 | BB52: 3.537217939 | BC52: 0.05150883293 | BD52: 193.9203083 | BE52: 0.01577163047 | BF52: 968.0608502 | BG52: 1161.981158 | BH52: 1812.106422 | BI52: 0.001895122419 | BJ52: 0.1125744381 | BK52: 30.50571305 | BL52: 158654.9646 | BM52: 0.01618321009 | BN52: 0.9958089547 | BO52: 3349.84681 | BP52: 2595.347911 | BQ52: 2644.179343 | BR52: 1424.065335 | BU52: 6.002343193 | BV52: -89.96485211 | BW52: 77.00147413 | BX52: 4.445906946 | BY52: 470.1285486 | BZ52: 5816.530378 | CA52: 4478.64696 | CB52: 0.01282873637 | CC52: 0.05150883293
A53: 1.185466943 | B53: 10.5 | C53: 8.857269331 | D53: 1879.55267 | E53: 137.0912052 | F53: 308.3433352 | G53: 0.9376194051 | H53: 2.111672994 | I53: 3.384437766e-08 | J53: 124.215919 | K53: 124.215919 | L53: 3.083755473e-12 | M53: 0.0659696894 | N53: 0.06552143752 | O53: 21.07841427 | P53: 141.3549296 | Q53: 2324.154831 | R53: 39.84079334 | S53: 87.9905895 | U53: 412.4088617 | V53: 139.4088617 | W53: 413.9358064 | X53: 140.9358064 | Y53: 4479.066537 | Z53: 308.3433352 | AA53: 35.34333517 | AB53: 306.9756149 | AC53: 33.97561494 | AD53: 295.8634451 | AE53: 22.86344507 | AF53: 0.0006277992228 | AG53: 6.489834294e-07 | AH53: 967.357862 | AI53: 0.1229573356 | AJ53: 9.596675947 | AK53: 237741.1853 | AO53: 2072.742636 | AQ53: 2852.703103 | AR53: 9.481895771 | AS53: 1006.374063 | AT53: 1.173266453 | AU53: 0.02624763836 | AV53: 1.846339208e-05 | AW53: 0.7079143143 | AX53: 1.573674253e-05 | AY53: 11602652.9 | AZ53: 8213684.069 | BA53: 25.60864261 | BB53: 3.537717843 | BC53: 0.05150835278 | BD53: 193.9507959 | BE53: 0.01577411004 | BF53: 968.1266198 | BG53: 1162.077416 | BH53: 1812.193867 | BI53: 0.001894155989 | BJ53: 0.1125648055 | BK53: 30.4942371 | BL53: 158732.2919 | BM53: 0.0161816418 | BN53: 0.9958070629 | BO53: 3350.742242 | BP53: 2596.041662 | BQ53: 2644.886147 | BR53: 1424.046512 | BU53: 6.002460353 | BV53: -89.96309471 | BW53: 77.00011453 | BX53: 4.445449973 | BY53: 470.1725921 | BZ53: 5817.075294 | CA53: 4479.066537 | CB53: 0.01347017319 | CC53: 0.05150835278
A54: 1.185466943 | B54: 11 | C54: 9.279044061 | D54: 1879.697869 | E54: 137.1427232 | F54: 308.3490971 | G54: 0.9378975572 | H54: 2.111971375 | I54: 3.384437766e-08 | J54: 124.2527686 | K54: 124.2527686 | L54: 5.229594535e-12 | M54: 0.0659725803 | N54: 0.06552428927 | O54: 21.07920075 | P54: 141.3681696 | Q54: 2324.347308 | R54: 39.86973999 | S54: 88.01953615 | U54: 412.4600822 | V54: 139.4600822 | W54: 413.9870963 | X54: 140.9870963 | Y54: 4479.486068 | Z54: 308.3490971 | AA54: 35.34909714 | AB54: 306.9810585 | AC54: 33.98105846 | AD54: 295.8970888 | AE54: 22.89708882 | AF54: 0.0006274935004 | AG54: 6.486959702e-07 | AH54: 967.3152434 | AI54: 0.1229504665 | AJ54: 9.593279544 | AK54: 237857.0157 | AO54: 2073.180435 | AQ54: 2853.305644 | AR54: 9.481902427 | AS54: 1006.37417 | AT54: 1.173255811 | AU54: 0.02624784088 | AV54: 1.846351995e-05 | AW54: 0.7079138303 | AX54: 1.573699425e-05 | AY54: 11607823.03 | AZ54: 8217338.465 | BA54: 25.61206352 | BB54: 3.538217726 | BC54: 0.05150787202 | BD54: 193.9812813 | BE54: 0.01577658944 | BF54: 968.1923725 | BG54: 1162.173654 | BH54: 1812.281312 | BI54: 0.001893190326 | BJ54: 0.1125551727 | BK54: 30.48277005 | BL54: 158809.6282 | BM54: 0.01618007433 | BN54: 0.9958051727 | BO54: 3351.63722 | BP54: 2596.73506 | BQ54: 2645.592592 | BR54: 1424.027689 | BU54: 6.002577512 | BV54: -89.96133732 | BW54: 76.99875492 | BX54: 4.444993093 | BY54: 470.2166307 | BZ54: 5817.620149 | CA54: 4479.486068 | CB54: 0.01411161001 | CC54: 0.05150787202
A55: 1.185466943 | B55: 11.5 | C55: 9.700818791 | D55: 1879.84306 | E55: 137.1942409 | F55: 308.3548605 | G55: 0.9381758033 | H55: 2.112269743 | I55: 3.384437766e-08 | J55: 124.2896306 | K55: 124.2896306 | L55: -4.661160347e-12 | M55: 0.06597547227 | N55: 0.06552714206 | O55: 21.07998723 | P55: 141.3814081 | Q55: 2324.539746 | R55: 39.89869997 | S55: 88.04849613 | U55: 412.5113029 | V55: 139.5113029 | W55: 414.0383865 | X55: 141.0383865 | Y55: 4479.905551 | Z55: 308.3548605 | AA55: 35.35486054 | AB55: 306.9865033 | AC55: 33.98650334 | AD55: 295.9307336 | AE55: 22.93073356 | AF55: 0.0006271880402 | AG55: 6.484087573e-07 | AH55: 967.272624 | AI55: 0.1229435964 | AJ55: 9.589886081 | AK55: 237972.8595 | AO55: 2073.617876 | AQ55: 2853.907691 | AR55: 9.481909074 | AS55: 1006.374278 | AT55: 1.173245168 | AU55: 0.02624804345 | AV55: 1.846364785e-05 | AW55: 0.7079133463 | AX55: 1.573724603e-05 | AY55: 11612994.36 | AZ55: 8220993.701 | BA55: 25.61548418 | BB55: 3.538717588 | BC55: 0.05150739066 | BD55: 194.0117645 | BE55: 0.01577906865 | BF55: 968.2581085 | BG55: 1162.269873 | BH55: 1812.368758 | BI55: 0.001892225428 | BJ55: 0.11254554 | BK55: 30.47131187 | BL55: 158886.9735 | BM55: 0.01617850766 | BN55: 0.9958032841 | BO55: 3352.531743 | BP55: 2597.428107 | BQ55: 2646.298678 | BR55: 1424.008867 | BU55: 6.002694672 | BV55: -89.95957992 | BW55: 76.9973953 | BX55: 4.444536307 | BY55: 470.2606644 | BZ55: 5818.164942 | CA55: 4479.905551 | CB55: 0.01475304682 | CC55: 0.05150739066
A56: 1.185466943 | B56: 12 | C56: 10.12259352 | D56: 1879.988243 | E56: 137.2457585 | F56: 308.3606254 | G56: 0.9384541433 | H56: 2.112568099 | I56: 3.384437766e-08 | J56: 124.3265052 | K56: 124.3265052 | L56: -3.808509064e-12 | M56: 0.06597836529 | N56: 0.0655299959 | O56: 21.08077371 | P56: 141.3946451 | Q56: 2324.732146 | R56: 39.92767328 | S56: 88.07746944 | U56: 412.5625239 | V56: 139.5625239 | W56: 414.0896769 | X56: 141.0896769 | Y56: 4480.324988 | Z56: 308.3606254 | AA56: 35.3606254 | AB56: 306.9919496 | AC56: 33.99194958 | AD56: 295.9643793 | AE56: 22.96437931 | AF56: 0.0006268828419 | AG56: 6.481217905e-07 | AH56: 967.2300038 | AI56: 0.1229367254 | AJ56: 9.586495556 | AK56: 238088.7167 | AO56: 2074.054959 | AQ56: 2854.509245 | AR56: 9.481915713 | AS56: 1006.374385 | AT56: 1.173234521 | AU56: 0.02624824607 | AV56: 1.846377578e-05 | AW56: 0.7079128622 | AX56: 1.573749787e-05 | AY56: 11618166.89 | AZ56: 8224649.777 | BA56: 25.61890458 | BB56: 3.539217428 | BC56: 0.05150690869 | BD56: 194.0422455 | BE56: 0.01578154768 | BF56: 968.3238276 | BG56: 1162.366073 | BH56: 1812.456204 | BI56: 0.001891261293 | BJ56: 0.1125359072 | BK56: 30.45986255 | BL56: 158964.3277 | BM56: 0.0161769418 | BN56: 0.995801397 | BO56: 3353.425813 | BP56: 2598.120801 | BQ56: 2647.004406 | BR56: 1423.990045 | BU56: 6.002811832 | BV56: -89.95782253 | BW56: 76.99603567 | BX56: 4.444079615 | BY56: 470.3046931 | BZ56: 5818.709675 | CA56: 4480.324988 | CB56: 0.01539448364 | CC56: 0.05150690869
A57: 1.185466943 | B57: 12.5 | C57: 10.54436825 | D57: 1880.133418 | E57: 137.2972758 | F57: 308.3663917 | G57: 0.9387325773 | H57: 2.112866443 | I57: 3.384437766e-08 | J57: 124.3633921 | K57: 124.3633921 | L57: -1.98951966e-12 | M57: 0.06598125939 | N57: 0.06553285079 | O57: 21.08156019 | P57: 141.4078806 | Q57: 2324.924508 | R57: 39.95665993 | S57: 88.10645609 | U57: 412.6137451 | V57: 139.6137451 | W57: 414.1409675 | X57: 141.1409675 | Y57: 4480.744378 | Z57: 308.3663917 | AA57: 35.3663917 | AB57: 306.9973972 | AC57: 33.99739718 | AD57: 295.998026 | AE57: 22.99802605 | AF57: 0.0006265779051 | AG57: 6.478350693e-07 | AH57: 967.1873828 | AI57: 0.1229298535 | AJ57: 9.583107966 | AK57: 238204.5874 | AO57: 2074.491683 | AQ57: 2855.110306 | AR57: 9.481922343 | AS57: 1006.374493 | AT57: 1.173223873 | AU57: 0.02624844873 | AV57: 1.846390374e-05 | AW57: 0.7079123779 | AX57: 1.573774978e-05 | AY57: 11623340.61 | AZ57: 8228306.694 | BA57: 25.62232472 | BB57: 3.539717247 | BC57: 0.05150642612 | BD57: 194.0727242 | BE57: 0.01578402653 | BF57: 968.3895299 | BG57: 1162.462254 | BH57: 1812.543651 | BI57: 0.001890297922 | BJ57: 0.1125262743 | BK57: 30.44842209 | BL57: 159041.6909 | BM57: 0.01617537674 | BN57: 0.9957995115 | BO57: 3354.319429 | BP57: 2598.813145 | BQ57: 2647.709776 | BR57: 1423.971224 | BU57: 6.002928991 | BV57: -89.95606513 | BW57: 76.99467604 | BX57: 4.443623017 | BY57: 470.3487169 | BZ57: 5819.254347 | CA57: 4480.744378 | CB57: 0.01603592046 | CC57: 0.05150642612
A58: 1.185466943 | B58: 13 | C58: 10.96614298 | D58: 1880.278585 | E58: 137.3487928 | F58: 308.3721595 | G58: 0.9390111054 | H58: 2.113164774 | I58: 3.384437766e-08 | J58: 124.4002916 | K58: 124.4002916 | L58: 5.258016245e-12 | M58: 0.06598415454 | N58: 0.06553570673 | O58: 21.08234667 | P58: 141.4211147 | Q58: 2325.116832 | R58: 39.98565993 | S58: 88.13545609 | U58: 412.6649666 | V58: 139.6649666 | W58: 414.1922584 | X58: 141.1922584 | Y58: 4481.163721 | Z58: 308.3721595 | AA58: 35.37215945 | AB58: 307.0028461 | AC58: 34.00284614 | AD58: 296.0316738 | AE58: 23.03167379 | AF58: 0.0006262732297 | AG58: 6.475485936e-07 | AH58: 967.1447609 | AI58: 0.1229229806 | AJ58: 9.579723306 | AK58: 238320.4714 | AO58: 2074.92805 | AQ58: 2855.710875 | AR58: 9.481928966 | AS58: 1006.3746 | AT58: 1.173213221 | AU58: 0.02624865145 | AV58: 1.846403174e-05 | AW58: 0.7079118936 | AX58: 1.573800175e-05 | AY58: 11628515.53 | AZ58: 8231964.451 | BA58: 25.62574462 | BB58: 3.540217045 | BC58: 0.05150594294 | BD58: 194.1032007 | BE58: 0.0157865052 | BF58: 968.4552153 | BG58: 1162.558416 | BH58: 1812.631098 | BI58: 0.001889335312 | BJ58: 0.1125166414 | BK58: 30.43699045 | BL58: 159119.063 | BM58: 0.0161738125 | BN58: 0.9957976275 | BO58: 3355.212592 | BP58: 2599.505137 | BQ58: 2648.414788 | BR58: 1423.952403 | BU58: 6.003046151 | BV58: -89.95430774 | BW58: 76.9933164 | BX58: 4.443166513 | BY58: 470.3927358 | BZ58: 5819.798958 | CA58: 4481.163721 | CB58: 0.01667735728 | CC58: 0.05150594294
A59: 1.185466943 | B59: 13.5 | C59: 11.38791771 | D59: 1880.423745 | E59: 137.4003096 | F59: 308.3779287 | G59: 0.9392897276 | H59: 2.113463092 | I59: 3.384437766e-08 | J59: 124.4372035 | K59: 124.4372035 | L59: 4.334310688e-12 | M59: 0.06598705076 | N59: 0.06553856372 | O59: 21.08313315 | P59: 141.4343472 | Q59: 2325.309118 | R59: 40.01467327 | S59: 88.16446944 | U59: 412.7161883 | V59: 139.7161883 | W59: 414.2435494 | X59: 141.2435494 | Y59: 4481.583016 | Z59: 308.3779287 | AA59: 35.37792865 | AB59: 307.0082965 | AC59: 34.00829645 | AD59: 296.0653225 | AE59: 23.06532252 | AF59: 0.0006259688153 | AG59: 6.47262363e-07 | AH59: 967.1021382 | AI59: 0.1229161068 | AJ59: 9.576341573 | AK59: 238436.3689 | AO59: 2075.364059 | AQ59: 2856.310952 | AR59: 9.48193558 | AS59: 1006.374707 | AT59: 1.173202568 | AU59: 0.02624885422 | AV59: 1.846415976e-05 | AW59: 0.7079114091 | AX59: 1.573825379e-05 | AY59: 11633691.65 | AZ59: 8235623.048 | BA59: 25.62916426 | BB59: 3.540716822 | BC59: 0.05150545916 | BD59: 194.133675 | BE59: 0.01578898368 | BF59: 968.520884 | BG59: 1162.654559 | BH59: 1812.718546 | BI59: 0.001888373462 | BJ59: 0.1125070085 | BK59: 30.42556763 | BL59: 159196.4441 | BM59: 0.01617224906 | BN59: 0.9957957452 | BO59: 3356.105303 | BP59: 2600.196779 | BQ59: 2649.119444 | BR59: 1423.933583 | BU59: 6.00316331 | BV59: -89.95255034 | BW59: 76.99195675 | BX59: 4.442710102 | BY59: 470.4367498 | BZ59: 5820.343508 | CA59: 4481.583016 | CB59: 0.0173187941 | CC59: 0.05150545916
A60: 1.185466943 | B60: 14 | C60: 11.80969244 | D60: 1880.568897 | E60: 137.4518262 | F60: 308.3836993 | G60: 0.9395684439 | H60: 2.113761398 | I60: 3.384437766e-08 | J60: 124.4741278 | K60: 124.4741278 | L60: -2.046363079e-12 | M60: 0.06598994805 | N60: 0.06554142175 | O60: 21.08391962 | P60: 141.4475783 | Q60: 2325.501366 | R60: 40.04369997 | S60: 88.19349613 | U60: 412.7674103 | V60: 139.7674103 | W60: 414.2948407 | X60: 141.2948407 | Y60: 4482.002265 | Z60: 308.3836993 | AA60: 35.3836993 | AB60: 307.0137481 | AC60: 34.01374812 | AD60: 296.0989723 | AE60: 23.09897226 | AF60: 0.0006256646615 | AG60: 6.469763774e-07 | AH60: 967.0595146 | AI60: 0.1229092321 | AJ60: 9.572962764 | AK60: 238552.2797 | AO60: 2075.799711 | AQ60: 2856.910538 | AR60: 9.481942186 | AS60: 1006.374815 | AT60: 1.173191912 | AU60: 0.02624905703 | AV60: 1.846428782e-05 | AW60: 0.7079109246 | AX60: 1.573850589e-05 | AY60: 11638868.96 | AZ60: 8239282.487 | BA60: 25.63258364 | BB60: 3.541216579 | BC60: 0.05150497477 | BD60: 194.164147 | BE60: 0.01579146199 | BF60: 968.5865358 | BG60: 1162.750683 | BH60: 1812.805994 | BI60: 0.001887412371 | BJ60: 0.1124973755 | BK60: 30.4141536 | BL60: 159273.8341 | BM60: 0.01617068643 | BN60: 0.9957938643 | BO60: 3356.997562 | BP60: 2600.888071 | BQ60: 2649.823742 | BR60: 1423.914763 | BU60: 6.00328047 | BV60: -89.95079295 | BW60: 76.9905971 | BX60: 4.442253786 | BY60: 470.4807588 | BZ60: 5820.887997 | CA60: 4482.002265 | CB60: 0.01796023092 | CC60: 0.05150497477
A61: 1.185466943 | B61: 14.5 | C61: 12.23146717 | D61: 1880.71404 | E61: 137.5033425 | F61: 308.3894714 | G61: 0.9398472544 | H61: 2.114059691 | I61: 3.384437766e-08 | J61: 124.5110647 | K61: 124.5110647 | L61: -1.563194019e-12 | M61: 0.0659928464 | N61: 0.06554428083 | O61: 21.0847061 | P61: 141.4608079 | Q61: 2325.693575 | R61: 40.07274003 | S61: 88.22253619 | U61: 412.8186325 | V61: 139.8186325 | W61: 414.3461321 | X61: 141.3461321 | Y61: 4482.421467 | Z61: 308.3894714 | AA61: 35.3894714 | AB61: 307.0192012 | AC61: 34.01920116 | AD61: 296.132623 | AE61: 23.13262299 | AF61: 0.000625360768 | AG61: 6.466906363e-07 | AH61: 967.0168902 | AI61: 0.1229023564 | AJ61: 9.569586876 | AK61: 238668.204 | AO61: 2076.235007 | AQ61: 2857.509632 | AR61: 9.481948784 | AS61: 1006.374923 | AT61: 1.173181253 | AU61: 0.0262492599 | AV61: 1.84644159e-05 | AW61: 0.7079104399 | AX61: 1.573875806e-05 | AY61: 11644047.47 | AZ61: 8242942.767 | BA61: 25.63600277 | BB61: 3.541716314 | BC61: 0.05150448978 | BD61: 194.1946168 | BE61: 0.01579394011 | BF61: 968.6521707 | BG61: 1162.846788 | BH61: 1812.893442 | BI61: 0.001886452038 | BJ61: 0.1124877425 | BK61: 30.40274837 | BL61: 159351.2331 | BM61: 0.0161691246 | BN61: 0.9957919851 | BO61: 3357.889369 | BP61: 2601.579013 | BQ61: 2650.527684 | BR61: 1423.895944 | BU61: 6.00339763 | BV61: -89.94903555 | BW61: 76.98923743 | BX61: 4.441797563 | BY61: 470.5247629 | BZ61: 5821.432425 | CA61: 4482.421467 | CB61: 0.01860166774 | CC61: 0.05150448978
A62: 1.185466943 | B62: 15 | C62: 12.6532419 | D62: 1880.859176 | E62: 137.5548586 | F62: 308.3952449 | G62: 0.9401261591 | H62: 2.114357972 | I62: 3.384437766e-08 | J62: 124.548014 | K62: 124.548014 | L62: 1.804778549e-12 | M62: 0.06599574581 | N62: 0.06554714097 | O62: 21.08549258 | P62: 141.4740361 | Q62: 2325.885747 | R62: 40.10179345 | S62: 88.25158961 | U62: 412.8698549 | V62: 139.8698549 | W62: 414.3974238 | X62: 141.3974238 | Y62: 4482.840622 | Z62: 308.3952449 | AA62: 35.39524495 | AB62: 307.0246555 | AC62: 34.02465555 | AD62: 296.1662747 | AE62: 23.16627472 | AF62: 0.0006250571347 | AG62: 6.464051395e-07 | AH62: 966.974265 | AI62: 0.1228954798 | AJ62: 9.566213905 | AK62: 238784.1416 | AO62: 2076.669946 | AQ62: 2858.108236 | AR62: 9.481955374 | AS62: 1006.37503 | AT62: 1.173170592 | AU62: 0.02624946282 | AV62: 1.846454402e-05 | AW62: 0.7079099551 | AX62: 1.573901029e-05 | AY62: 11649227.18 | AZ62: 8246603.889 | BA62: 25.63942165 | BB62: 3.542216028 | BC62: 0.05150400418 | BD62: 194.2250844 | BE62: 0.01579641805 | BF62: 968.7177889 | BG62: 1162.942873 | BH62: 1812.980891 | BI62: 0.001885492462 | BJ62: 0.1124781094 | BK62: 30.3913519 | BL62: 159428.641 | BM62: 0.01616756358 | BN62: 0.9957901074 | BO62: 3358.780725 | BP62: 2602.269606 | BQ62: 2651.23127 | BR62: 1423.877125 | BU62: 6.003514789 | BV62: -89.94727816 | BW62: 76.98787776 | BX62: 4.441341433 | BY62: 470.5687621 | BZ62: 5821.976792 | CA62: 4482.840622 | CB62: 0.01924310455 | CC62: 0.05150400418
A63: 1.185466943 | B63: 15.5 | C63: 13.07501663 | D63: 1881.004304 | E63: 137.6063744 | F63: 308.4010199 | G63: 0.940405158 | H63: 2.11465624 | I63: 3.384437766e-08 | J63: 124.5849758 | K63: 124.5849758 | L63: 5.130118552e-12 | M63: 0.06599864629 | N63: 0.06555000214 | O63: 21.08627906 | P63: 141.4872627 | Q63: 2326.07788 | R63: 40.13086023 | S63: 88.2806564 | U63: 412.9210776 | V63: 139.9210776 | W63: 414.4487157 | X63: 141.4487157 | Y63: 4483.259731 | Z63: 308.4010199 | AA63: 35.40101994 | AB63: 307.0301113 | AC63: 34.0301113 | AD63: 296.1999274 | AE63: 23.19992744 | AF63: 0.000624753761 | AG63: 6.461198867e-07 | AH63: 966.931639 | AI63: 0.1228886022 | AJ63: 9.562843849 | AK63: 238900.0926 | AO63: 2077.104529 | AQ63: 2858.70635 | AR63: 9.481961955 | AS63: 1006.375138 | AT63: 1.173159928 | AU63: 0.02624966578 | AV63: 1.846467217e-05 | AW63: 0.7079094702 | AX63: 1.573926259e-05 | AY63: 11654408.08 | AZ63: 8250265.852 | BA63: 25.64284028 | BB63: 3.542715722 | BC63: 0.05150351798 | BD63: 194.2555498 | BE63: 0.01579889582 | BF63: 968.7833902 | BG63: 1163.03894 | BH63: 1813.06834 | BI63: 0.001884533641 | BJ63: 0.1124684763 | BK63: 30.37996418 | BL63: 159506.0578 | BM63: 0.01616600336 | BN63: 0.9957882312 | BO63: 3359.67163 | BP63: 2602.959849 | BQ63: 2651.934501 | BR63: 1423.858307 | BU63: 6.003631949 | BV63: -89.94552076 | BW63: 76.98651808 | BX63: 4.440885398 | BY63: 470.6127563 | BZ63: 5822.521099 | CA63: 4483.259731 | CB63: 0.01988454137 | CC63: 0.05150351798
A64: 1.185466943 | B64: 16 | C64: 13.49679136 | D64: 1881.149425 | E64: 137.65789 | F64: 308.4067964 | G64: 0.9406842511 | H64: 2.114954496 | I64: 3.384437766e-08 | J64: 124.6219501 | K64: 124.6219501 | L64: 6.679101716e-13 | M64: 0.06600154783 | N64: 0.06555286437 | O64: 21.08706553 | P64: 141.5004879 | Q64: 2326.269975 | R64: 40.15994039 | S64: 88.30973655 | U64: 412.9723005 | V64: 139.9723005 | W64: 414.5000078 | X64: 141.5000078 | Y64: 4483.678792 | Z64: 308.4067964 | AA64: 35.40679639 | AB64: 307.0355684 | AC64: 34.03556842 | AD64: 296.2335812 | AE64: 23.23358116 | AF64: 0.0006244506469 | AG64: 6.458348777e-07 | AH64: 966.8890121 | AI64: 0.1228817237 | AJ64: 9.559476703 | AK64: 239016.0569 | AO64: 2077.538756 | AQ64: 2859.303975 | AR64: 9.481968529 | AS64: 1006.375245 | AT64: 1.173149263 | AU64: 0.0262498688 | AV64: 1.846480035e-05 | AW64: 0.7079089852 | AX64: 1.573951495e-05 | AY64: 11659590.19 | AZ64: 8253928.657 | BA64: 25.64625865 | BB64: 3.543215394 | BC64: 0.05150303118 | BD64: 194.2860129 | BE64: 0.0158013734 | BF64: 968.8489746 | BG64: 1163.134988 | BH64: 1813.15579 | BI64: 0.001883575575 | BJ64: 0.1124588431 | BK64: 30.36858521 | BL64: 159583.4835 | BM64: 0.01616444394 | BN64: 0.9957863566 | BO64: 3360.562086 | BP64: 2603.649744 | BQ64: 2652.637376 | BR64: 1423.839489 | BU64: 6.003749109 | BV64: -89.94376337 | BW64: 76.9851584 | BX64: 4.440429456 | BY64: 470.6567456 | BZ64: 5823.065344 | CA64: 4483.678792 | CB64: 0.02052597819 | CC64: 0.05150303118
A65: 1.185466943 | B65: 16.5 | C65: 13.91856609 | D65: 1881.294537 | E65: 137.7094054 | F65: 308.4125743 | G65: 0.9409634386 | H65: 2.115252739 | I65: 3.384437766e-08 | J65: 124.6589369 | K65: 124.6589369 | L65: -3.836930773e-13 | M65: 0.06600445044 | N65: 0.06555572765 | O65: 21.08785201 | P65: 141.5137115 | Q65: 2326.462032 | R65: 40.18903393 | S65: 88.33883009 | U65: 413.0235236 | V65: 140.0235236 | W65: 414.5513 | X65: 141.5513 | Y65: 4484.097806 | Z65: 308.4125743 | AA65: 35.41257429 | AB65: 307.0410269 | AC65: 34.04102689 | AD65: 296.2672359 | AE65: 23.26723587 | AF65: 0.0006241477918 | AG65: 6.455501121e-07 | AH65: 966.8463844 | AI65: 0.1228748443 | AJ65: 9.556112464 | AK65: 239132.0346 | AO65: 2077.972628 | AQ65: 2859.90111 | AR65: 9.481975094 | AS65: 1006.375353 | AT65: 1.173138594 | AU65: 0.02625007187 | AV65: 1.846492856e-05 | AW65: 0.7079085001 | AX65: 1.573976737e-05 | AY65: 11664773.49 | AZ65: 8257592.304 | BA65: 25.64967678 | BB65: 3.543715046 | BC65: 0.05150254377 | BD65: 194.3164738 | BE65: 0.0158038508 | BF65: 968.9145423 | BG65: 1163.231016 | BH65: 1813.24324 | BI65: 0.001882618261 | BJ65: 0.1124492099 | BK65: 30.35721495 | BL65: 159660.9182 | BM65: 0.01616288533 | BN65: 0.9957844836 | BO65: 3361.452092 | BP65: 2604.33929 | BQ65: 2653.339896 | BR65: 1423.820672 | BU65: 6.003866268 | BV65: -89.94200597 | BW65: 76.9837987 | BX65: 4.439973608 | BY65: 470.7007301 | BZ65: 5823.609528 | CA65: 4484.097806 | CB65: 0.02116741501 | CC65: 0.05150254377
A66: 1.185466943 | B66: 17 | C66: 14.34034082 | D66: 1881.439641 | E66: 137.7609205 | F66: 308.4183536 | G66: 0.9412427204 | H66: 2.115550971 | I66: 3.384437766e-08 | J66: 124.6959362 | K66: 124.6959362 | L66: 7.219114195e-12 | M66: 0.06600735411 | N66: 0.06555859197 | O66: 21.08863849 | P66: 141.5269337 | Q66: 2326.654051 | R66: 40.21814084 | S66: 88.367937 | U66: 413.074747 | V66: 140.074747 | W66: 414.6025925 | X66: 141.6025925 | Y66: 4484.516774 | Z66: 308.4183536 | AA66: 35.41835364 | AB66: 307.0464867 | AC66: 34.04648673 | AD66: 296.3008916 | AE66: 23.30089158 | AF66: 0.0006238451956 | AG66: 6.452655897e-07 | AH66: 966.8037558 | AI66: 0.1228679639 | AJ66: 9.55275113 | AK66: 239248.0256 | AO66: 2078.406145 | AQ66: 2860.497756 | AR66: 9.481981651 | AS66: 1006.375461 | AT66: 1.173127923 | AU66: 0.02625027498 | AV66: 1.846505681e-05 | AW66: 0.7079080148 | AX66: 1.574001986e-05 | AY66: 11669957.99 | AZ66: 8261256.794 | BA66: 25.65309465 | BB66: 3.544214677 | BC66: 0.05150205576 | BD66: 194.3469324 | BE66: 0.01580632801 | BF66: 968.9800931 | BG66: 1163.327026 | BH66: 1813.33069 | BI66: 0.001881661699 | BJ66: 0.1124395766 | BK66: 30.3458534 | BL66: 159738.3617 | BM66: 0.01616132751 | BN66: 0.9957826121 | BO66: 3362.341648 | BP66: 2605.028489 | BQ66: 2654.042061 | BR66: 1423.801855 | BU66: 6.003983428 | BV66: -89.94024858 | BW66: 76.982439 | BX66: 4.439517853 | BY66: 470.7447095 | BZ66: 5824.153652 | CA66: 4484.516774 | CB66: 0.02180885183 | CC66: 0.05150205576
A67: 1.185466943 | B67: 17.5 | C67: 14.76211555 | D67: 1881.584738 | E67: 137.8124353 | F67: 308.4241344 | G67: 0.9415220966 | H67: 2.115849189 | I67: 3.384437766e-08 | J67: 124.7329479 | K67: 124.7329479 | L67: 3.453237696e-12 | M67: 0.06601025884 | N67: 0.06556145734 | O67: 21.08942496 | P67: 141.5401545 | Q67: 2326.846032 | R67: 40.24726114 | S67: 88.39705731 | U67: 413.1259706 | V67: 140.1259706 | W67: 414.6538852 | X67: 141.6538852 | Y67: 4484.935695 | Z67: 308.4241344 | AA67: 35.42413444 | AB67: 307.0519479 | AC67: 34.05194793 | AD67: 296.3345483 | AE67: 23.33454828 | AF67: 0.0006235428579 | AG67: 6.449813102e-07 | AH67: 966.7611264 | AI67: 0.1228610826 | AJ67: 9.549392696 | AK67: 239364.03 | AO67: 2078.839307 | AQ67: 2861.093914 | AR67: 9.481988201 | AS67: 1006.375568 | AT67: 1.17311725 | AU67: 0.02625047815 | AV67: 1.846518508e-05 | AW67: 0.7079075295 | AX67: 1.574027241e-05 | AY67: 11675143.69 | AZ67: 8264922.126 | BA67: 25.65651227 | BB67: 3.544714288 | BC67: 0.05150156714 | BD67: 194.3773889 | BE67: 0.01580880505 | BF67: 969.045627 | BG67: 1163.423016 | BH67: 1813.418141 | BI67: 0.001880705888 | BJ67: 0.1124299433 | BK67: 30.33450054 | BL67: 159815.8142 | BM67: 0.0161597705 | BN67: 0.9957807422 | BO67: 3363.230756 | BP67: 2605.71734 | BQ67: 2654.743873 | BR67: 1423.783039 | BU67: 6.004100588 | BV67: -89.93849119 | BW67: 76.9810793 | BX67: 4.439062192 | BY67: 470.7886841 | BZ67: 5824.697715 | CA67: 4484.935695 | CB67: 0.02245028865 | CC67: 0.05150156714
A68: 1.185466943 | B68: 18 | C68: 15.18389028 | D68: 1881.729826 | E68: 137.8639499 | F68: 308.4299167 | G68: 0.9418015671 | H68: 2.116147396 | I68: 3.384437766e-08 | J68: 124.7699722 | K68: 124.7699722 | L68: -2.941646926e-12 | M68: 0.06601316464 | N68: 0.06556432376 | O68: 21.09021144 | P68: 141.5533737 | Q68: 2327.037975 | R68: 40.27639483 | S68: 88.426191 | U68: 413.1771945 | V68: 140.1771945 | W68: 414.7051782 | X68: 141.7051782 | Y68: 4485.354568 | Z68: 308.4299167 | AA68: 35.42991669 | AB68: 307.0574105 | AC68: 34.05741049 | AD68: 296.368206 | AE68: 23.36820598 | AF68: 0.0006232407785 | AG68: 6.446972732e-07 | AH68: 966.7184961 | AI68: 0.1228542003 | AJ68: 9.54603716 | AK68: 239480.0477 | AO68: 2079.272114 | AQ68: 2861.689585 | AR68: 9.481994742 | AS68: 1006.375676 | AT68: 1.173106574 | AU68: 0.02625068137 | AV68: 1.846531339e-05 | AW68: 0.707907044 | AX68: 1.574052503e-05 | AY68: 11680330.59 | AZ68: 8268588.301 | BA68: 25.65992963 | BB68: 3.545213877 | BC68: 0.05150107793 | BD68: 194.4078431 | BE68: 0.0158112819 | BF68: 969.1111442 | BG68: 1163.518987 | BH68: 1813.505592 | BI68: 0.001879750827 | BJ68: 0.1124203099 | BK68: 30.32315636 | BL68: 159893.2755 | BM68: 0.01615821429 | BN68: 0.9957788738 | BO68: 3364.119416 | BP68: 2606.405843 | BQ68: 2655.445331 | BR68: 1423.764223 | BU68: 6.004217747 | BV68: -89.93673379 | BW68: 76.97971958 | BX68: 4.438606624 | BY68: 470.8326538 | BZ68: 5825.241716 | CA68: 4485.354568 | CB68: 0.02309172547 | CC68: 0.05150107793
A69: 1.185466943 | B69: 18.5 | C69: 15.60566501 | D69: 1881.874907 | E69: 137.9154643 | F69: 308.4357004 | G69: 0.9420811322 | H69: 2.11644559 | I69: 3.384437766e-08 | J69: 124.807009 | K69: 124.807009 | L69: 7.204903341e-12 | M69: 0.0660160715 | N69: 0.06556719123 | O69: 21.09099791 | P69: 141.5665915 | Q69: 2327.229879 | R69: 40.30554192 | S69: 88.45533808 | U69: 413.2284186 | V69: 140.2284186 | W69: 414.7564713 | X69: 141.7564713 | Y69: 4485.773395 | Z69: 308.4357004 | AA69: 35.4357004 | AB69: 307.0628744 | AC69: 34.06287441 | AD69: 296.4018647 | AE69: 23.40186467 | AF69: 0.0006229389569 | AG69: 6.444134787e-07 | AH69: 966.675865 | AI69: 0.1228473172 | AJ69: 9.542684518 | AK69: 239596.0787 | AO69: 2079.704568 | AQ69: 2862.284768 | AR69: 9.482001275 | AS69: 1006.375784 | AT69: 1.173095896 | AU69: 0.02625088463 | AV69: 1.846544173e-05 | AW69: 0.7079065585 | AX69: 1.574077771e-05 | AY69: 11685518.69 | AZ69: 8272255.319 | BA69: 25.66334675 | BB69: 3.545713447 | BC69: 0.05150058811 | BD69: 194.4382951 | BE69: 0.01581375858 | BF69: 969.1766445 | BG69: 1163.61494 | BH69: 1813.593044 | BI69: 0.001878796514 | BJ69: 0.1124106765 | BK69: 30.31182084 | BL69: 159970.7458 | BM69: 0.01615665888 | BN69: 0.9957770069 | BO69: 3365.007628 | BP69: 2607.094 | BQ69: 2656.146435 | BR69: 1423.745407 | BU69: 6.004334907 | BV69: -89.9349764 | BW69: 76.97835986 | BX69: 4.43815115 | BY69: 470.8766185 | BZ69: 5825.785657 | CA69: 4485.773395 | CB69: 0.02373316228 | CC69: 0.05150058811
A70: 1.185466943 | B70: 19 | C70: 16.02743974 | D70: 1882.01998 | E70: 137.9669784 | F70: 308.4414856 | G70: 0.9423607917 | H70: 2.116743772 | I70: 3.384437766e-08 | J70: 124.8440584 | K70: 124.8440584 | L70: -4.97379915e-13 | M70: 0.06601897943 | N70: 0.06557005974 | O70: 21.09178439 | P70: 141.5798078 | Q70: 2327.421745 | R70: 40.33470241 | S70: 88.48449857 | U70: 413.2796429 | V70: 140.2796429 | W70: 414.8077646 | X70: 141.8077646 | Y70: 4486.192175 | Z70: 308.4414856 | AA70: 35.44148556 | AB70: 307.0683397 | AC70: 34.0683397 | AD70: 296.4355244 | AE70: 23.43552435 | AF70: 0.000622637393 | AG70: 6.441299261e-07 | AH70: 966.6332331 | AI70: 0.122840433 | AJ70: 9.539334767 | AK70: 239712.123 | AO70: 2080.136668 | AQ70: 2862.879464 | AR70: 9.4820078 | AS70: 1006.375892 | AT70: 1.173085215 | AU70: 0.02625108795 | AV70: 1.84655701e-05 | AW70: 0.7079060728 | AX70: 1.574103046e-05 | AY70: 11690707.99 | AZ70: 8275923.18 | BA70: 25.66676362 | BB70: 3.546212995 | BC70: 0.05150009768 | BD70: 194.4687448 | BE70: 0.01581623507 | BF70: 969.2421279 | BG70: 1163.710873 | BH70: 1813.680496 | BI70: 0.001877842947 | BJ70: 0.1124010431 | BK70: 30.30049396 | BL70: 160048.2249 | BM70: 0.01615510427 | BN70: 0.9957751416 | BO70: 3365.895393 | BP70: 2607.78181 | BQ70: 2656.847186 | BR70: 1423.726593 | BU70: 6.004452067 | BV70: -89.933219 | BW70: 76.97700013 | BX70: 4.43769577 | BY70: 470.9205783 | BZ70: 5826.329537 | CA70: 4486.192175 | CB70: 0.0243745991 | CC70: 0.05150009768
A71: 1.185466943 | B71: 19.5 | C71: 16.44921447 | D71: 1882.165044 | E71: 138.0184923 | F71: 308.4472722 | G71: 0.9426405457 | H71: 2.117041941 | I71: 3.384437766e-08 | J71: 124.8811202 | K71: 124.8811202 | L71: -1.563194019e-12 | M71: 0.06602188842 | N71: 0.0655729293 | O71: 21.09257087 | P71: 141.5930226 | Q71: 2327.613574 | R71: 40.3638763 | S71: 88.51367246 | U71: 413.3308674 | V71: 140.3308674 | W71: 414.8590581 | X71: 141.8590581 | Y71: 4486.610908 | Z71: 308.4472722 | AA71: 35.44727217 | AB71: 307.0738063 | AC71: 34.07380635 | AD71: 296.469185 | AE71: 23.46918503 | AF71: 0.0006223360864 | AG71: 6.438466153e-07 | AH71: 966.5906003 | AI71: 0.122833548 | AJ71: 9.535987904 | AK71: 239828.1806 | AO71: 2080.568414 | AQ71: 2863.473674 | AR71: 9.482014317 | AS71: 1006.376 | AT71: 1.173074532 | AU71: 0.02625129131 | AV71: 1.84656985e-05 | AW71: 0.707905587 | AX71: 1.574128327e-05 | AY71: 11695898.49 | AZ71: 8279591.884 | BA71: 25.67018023 | BB71: 3.546712523 | BC71: 0.05149960666 | BD71: 194.4991924 | BE71: 0.01581871138 | BF71: 969.3075945 | BG71: 1163.806787 | BH71: 1813.767948 | BI71: 0.001876890127 | BJ71: 0.1123914096 | BK71: 30.28917572 | BL71: 160125.7129 | BM71: 0.01615355046 | BN71: 0.9957732779 | BO71: 3366.782711 | BP71: 2608.469274 | BQ71: 2657.547585 | BR71: 1423.707778 | BU71: 6.004569226 | BV71: -89.93146161 | BW71: 76.97564039 | BX71: 4.437240483 | BY71: 470.9645332 | BZ71: 5826.873357 | CA71: 4486.610908 | CB71: 0.02501603592 | CC71: 0.05149960666
A72: 1.185466943 | B72: 20 | C72: 16.8709892 | D72: 1882.310101 | E72: 138.0700059 | F72: 308.4530602 | G72: 0.9429203942 | H72: 2.117340099 | I72: 3.384437766e-08 | J72: 124.9181946 | K72: 124.9181946 | L72: 7.091216503e-12 | M72: 0.06602479847 | N72: 0.06557579991 | O72: 21.09335734 | P72: 141.6062359 | Q72: 2327.805364 | R72: 40.39306359 | S72: 88.54285976 | U72: 413.3820922 | V72: 140.3820922 | W72: 414.9103518 | X72: 141.9103518 | Y72: 4487.029595 | Z72: 308.4530602 | AA72: 35.45306024 | AB72: 307.0792744 | AC72: 34.07927436 | AD72: 296.5028467 | AE72: 23.5028467 | AF72: 0.0006220350368 | AG72: 6.43563546e-07 | AH72: 966.5479666 | AI72: 0.122826662 | AJ72: 9.532643925 | AK72: 239944.2515 | AO72: 2080.999807 | AQ72: 2864.067397 | AR72: 9.482020826 | AS72: 1006.376108 | AT72: 1.173063846 | AU72: 0.02625149473 | AV72: 1.846582693e-05 | AW72: 0.7079051012 | AX72: 1.574153615e-05 | AY72: 11701090.19 | AZ72: 8283261.433 | BA72: 25.6735966 | BB72: 3.547212031 | BC72: 0.05149911503 | BD72: 194.5296377 | BE72: 0.01582118752 | BF72: 969.3730443 | BG72: 1163.902682 | BH72: 1813.855401 | BI72: 0.001875938051 | BJ72: 0.1123817761 | BK72: 30.27786608 | BL72: 160203.2098 | BM72: 0.01615199744 | BN72: 0.9957714156 | BO72: 3367.669583 | BP72: 2609.156392 | BQ72: 2658.247631 | BR72: 1423.688964 | BU72: 6.004686386 | BV72: -89.92970421 | BW72: 76.97428065 | BX72: 4.436785289 | BY72: 471.0084831 | BZ72: 5827.417115 | CA72: 4487.029595 | CB72: 0.02565747274 | CC72: 0.05149911503
A73: 1.185466943 | B73: 20.5 | C73: 17.29276393 | D73: 1882.45515 | E73: 138.1215193 | F73: 308.4588498 | G73: 0.9432003374 | H73: 2.117638244 | I73: 3.384437766e-08 | J73: 124.9552815 | K73: 124.9552815 | L73: 5.343281373e-12 | M73: 0.06602770959 | N73: 0.06557867157 | O73: 21.09414381 | P73: 141.6194477 | Q73: 2327.997116 | R73: 40.42226431 | S73: 88.57206047 | U73: 413.4333172 | V73: 140.4333172 | W73: 414.9616457 | X73: 141.9616457 | Y73: 4487.448234 | Z73: 308.4588498 | AA73: 35.45884976 | AB73: 307.0847437 | AC73: 34.08474374 | AD73: 296.5365094 | AE73: 23.53650936 | AF73: 0.000621734244 | AG73: 6.43280718e-07 | AH73: 966.5053321 | AI73: 0.1228197751 | AJ73: 9.529302827 | AK73: 240060.3357 | AO73: 2081.430847 | AQ73: 2864.660635 | AR73: 9.482027326 | AS73: 1006.376216 | AT73: 1.173053158 | AU73: 0.02625169819 | AV73: 1.846595539e-05 | AW73: 0.7079046152 | AX73: 1.574178909e-05 | AY73: 11706283.09 | AZ73: 8286931.825 | BA73: 25.67701272 | BB73: 3.547711518 | BC73: 0.0514986228 | BD73: 194.5600807 | BE73: 0.01582366347 | BF73: 969.4384772 | BG73: 1163.998558 | BH73: 1813.942854 | BI73: 0.001874986719 | BJ73: 0.1123721425 | BK73: 30.26656504 | BL73: 160280.7156 | BM73: 0.01615044522 | BN73: 0.9957695549 | BO73: 3368.556009 | BP73: 2609.843165 | BQ73: 2658.947326 | BR73: 1423.670151 | BU73: 6.004803546 | BV73: -89.92794682 | BW73: 76.97292089 | BX73: 4.436330189 | BY73: 471.0524282 | BZ73: 5827.960812 | CA73: 4487.448234 | CB73: 0.02629890956 | CC73: 0.0514986228
A74: 1.185466943 | B74: 21 | C74: 17.71453866 | D74: 1882.600191 | E74: 138.1730325 | F74: 308.4646407 | G74: 0.9434803752 | H74: 2.117936377 | I74: 3.384437766e-08 | J74: 124.9923809 | K74: 124.9923809 | L74: 1.620037438e-12 | M74: 0.06603062177 | N74: 0.06558154427 | O74: 21.09493029 | P74: 141.6326581 | Q74: 2328.18883 | R74: 40.45147843 | S74: 88.6012746 | U74: 413.4845424 | V74: 140.4845424 | W74: 415.0129398 | X74: 142.0129398 | Y74: 4487.866827 | Z74: 308.4646407 | AA74: 35.46464073 | AB74: 307.0902145 | AC74: 34.09021448 | AD74: 296.570173 | AE74: 23.57017301 | AF74: 0.0006214337075 | AG74: 6.429981308e-07 | AH74: 966.4626968 | AI74: 0.1228128872 | AJ74: 9.525964606 | AK74: 240176.4332 | AO74: 2081.861535 | AQ74: 2865.253389 | AR74: 9.482033819 | AS74: 1006.376324 | AT74: 1.173042467 | AU74: 0.02625190171 | AV74: 1.846608389e-05 | AW74: 0.707904129 | AX74: 1.574204209e-05 | AY74: 11711477.19 | AZ74: 8290603.062 | BA74: 25.68042858 | BB74: 3.548210985 | BC74: 0.05149812997 | BD74: 194.5905216 | BE74: 0.01582613924 | BF74: 969.5038932 | BG74: 1164.094415 | BH74: 1814.030307 | BI74: 0.001874036129 | BJ74: 0.1123625089 | BK74: 30.25527259 | BL74: 160358.2302 | BM74: 0.0161488938 | BN74: 0.9957676958 | BO74: 3369.44199 | BP74: 2610.529593 | BQ74: 2659.646669 | BR74: 1423.651338 | BU74: 6.004920705 | BV74: -89.92618942 | BW74: 76.97156114 | BX74: 4.435875182 | BY74: 471.0963683 | BZ74: 5828.504449 | CA74: 4487.866827 | CB74: 0.02694034638 | CC74: 0.05149812997
A75: 1.185466943 | B75: 21.5 | C75: 18.13631339 | D75: 1882.745224 | E75: 138.2245454 | F75: 308.4704332 | G75: 0.9437605076 | H75: 2.118234498 | I75: 3.384437766e-08 | J75: 125.0294929 | K75: 125.0294929 | L75: -5.087485988e-12 | M75: 0.06603353501 | N75: 0.06558441802 | O75: 21.09571676 | P75: 141.645867 | Q75: 2328.380505 | R75: 40.48070599 | S75: 88.63050215 | U75: 413.5357679 | V75: 140.5357679 | W75: 415.0642341 | X75: 142.0642341 | Y75: 4488.285372 | Z75: 308.4704332 | AA75: 35.47043317 | AB75: 307.0956866 | AC75: 34.09568659 | AD75: 296.6038377 | AE75: 23.60383765 | AF75: 0.0006211334272 | AG75: 6.427157843e-07 | AH75: 966.4200605 | AI75: 0.1228059984 | AJ75: 9.522629261 | AK75: 240292.5439 | AO75: 2082.291871 | AQ75: 2865.845657 | AR75: 9.482040304 | AS75: 1006.376432 | AT75: 1.173031774 | AU75: 0.02625210528 | AV75: 1.846621242e-05 | AW75: 0.7079036428 | AX75: 1.574229516e-05 | AY75: 11716672.5 | AZ75: 8294275.143 | BA75: 25.6838442 | BB75: 3.548710431 | BC75: 0.05149763654 | BD75: 194.6209602 | BE75: 0.01582861482 | BF75: 969.5692925 | BG75: 1164.190253 | BH75: 1814.117761 | BI75: 0.001873086279 | BJ75: 0.1123528752 | BK75: 30.2439887 | BL75: 160435.7537 | BM75: 0.01614734318 | BN75: 0.9957658382 | BO75: 3370.327526 | BP75: 2611.215676 | BQ75: 2660.345661 | BR75: 1423.632526 | BU75: 6.005037865 | BV75: -89.92443203 | BW75: 76.97020137 | BX75: 4.435420268 | BY75: 471.1403035 | BZ75: 5829.048025 | CA75: 4488.285372 | CB75: 0.02758178319 | CC75: 0.05149763654
A76: 1.185466943 | B76: 22 | C76: 18.55808812 | D76: 1882.890249 | E76: 138.276058 | F76: 308.4762271 | G76: 0.9440407347 | H76: 2.118532606 | I76: 3.384437766e-08 | J76: 125.0666174 | K76: 125.0666174 | L76: 2.813749234e-12 | M76: 0.06603644932 | N76: 0.06558729282 | O76: 21.09650323 | P76: 141.6590744 | Q76: 2328.572143 | R76: 40.50994697 | S76: 88.65974313 | U76: 413.5869935 | V76: 140.5869935 | W76: 415.1155286 | X76: 142.1155286 | Y76: 4488.703871 | Z76: 308.4762271 | AA76: 35.47622705 | AB76: 307.1011601 | AC76: 34.10116007 | AD76: 296.6375033 | AE76: 23.63750329 | AF76: 0.0006208334026 | AG76: 6.424336781e-07 | AH76: 966.3774235 | AI76: 0.1227991086 | AJ76: 9.519296786 | AK76: 240408.668 | AO76: 2082.721855 | AQ76: 2866.437441 | AR76: 9.482046781 | AS76: 1006.37654 | AT76: 1.173021078 | AU76: 0.02625230889 | AV76: 1.846634098e-05 | AW76: 0.7079031565 | AX76: 1.574254829e-05 | AY76: 11721869 | AZ76: 8297948.068 | BA76: 25.68725957 | BB76: 3.549209857 | BC76: 0.0514971425 | BD76: 194.6513966 | BE76: 0.01583109023 | BF76: 969.6346748 | BG76: 1164.286071 | BH76: 1814.205216 | BI76: 0.00187213717 | BJ76: 0.1123432415 | BK76: 30.23271337 | BL76: 160513.286 | BM76: 0.01614579335 | BN76: 0.9957639821 | BO76: 3371.212617 | BP76: 2611.901415 | BQ76: 2661.044302 | BR76: 1423.613714 | BU76: 6.005155024 | BV76: -89.92267463 | BW76: 76.96884159 | BX76: 4.434965448 | BY76: 471.1842338 | BZ76: 5829.59154 | CA76: 4488.703871 | CB76: 0.02822322001 | CC76: 0.0514971425
A77: 1.185466943 | B77: 22.5 | C77: 18.97986285 | D77: 1883.035266 | E77: 138.3275704 | F77: 308.4820224 | G77: 0.9443210566 | H77: 2.118830703 | I77: 3.384437766e-08 | J77: 125.1037545 | K77: 125.1037545 | L77: -3.808509064e-12 | M77: 0.06603936469 | N77: 0.06559016867 | O77: 21.09728971 | P77: 141.6722804 | Q77: 2328.763742 | R77: 40.53920138 | S77: 88.68899754 | U77: 413.6382194 | V77: 140.6382194 | W77: 415.1668232 | X77: 142.1668232 | Y77: 4489.122324 | Z77: 308.4820224 | AA77: 35.4820224 | AB77: 307.1066349 | AC77: 34.10663491 | AD77: 296.6711699 | AE77: 23.67116991 | AF77: 0.0006205336336 | AG77: 6.421518121e-07 | AH77: 966.3347855 | AI77: 0.122792218 | AJ77: 9.51596718 | AK77: 240524.8052 | AO77: 2083.151487 | AQ77: 2867.028742 | AR77: 9.48205325 | AS77: 1006.376648 | AT77: 1.17301038 | AU77: 0.02625251256 | AV77: 1.846646957e-05 | AW77: 0.7079026701 | AX77: 1.574280149e-05 | AY77: 11727066.71 | AZ77: 8301621.838 | BA77: 25.69067469 | BB77: 3.549709263 | BC77: 0.05149664787 | BD77: 194.6818308 | BE77: 0.01583356546 | BF77: 969.7000404 | BG77: 1164.381871 | BH77: 1814.29267 | BI77: 0.0018711888 | BJ77: 0.1123336077 | BK77: 30.22144657 | BL77: 160590.8272 | BM77: 0.01614424431 | BN77: 0.9957621275 | BO77: 3372.097265 | BP77: 2612.58681 | BQ77: 2661.742593 | BR77: 1423.594903 | BU77: 6.005272184 | BV77: -89.92091724 | BW77: 76.96748181 | BX77: 4.434510721 | BY77: 471.2281592 | BZ77: 5830.134994 | CA77: 4489.122324 | CB77: 0.02886465683 | CC77: 0.05149664787
A78: 1.185466943 | B78: 23 | C78: 19.40163758 | D78: 1883.180275 | E78: 138.3790825 | F78: 308.4878192 | G78: 0.9446014732 | H78: 2.119128788 | I78: 3.384437766e-08 | J78: 125.1409041 | K78: 125.1409041 | L78: -4.305888979e-12 | M78: 0.06604228113 | N78: 0.06559304556 | O78: 21.09807618 | P78: 141.6854848 | Q78: 2328.955304 | R78: 40.56846922 | S78: 88.71826539 | U78: 413.6894455 | V78: 140.6894455 | W78: 415.2181181 | X78: 142.2181181 | Y78: 4489.540729 | Z78: 308.4878192 | AA78: 35.4878192 | AB78: 307.1121111 | AC78: 34.11211111 | AD78: 296.7048375 | AE78: 23.70483753 | AF78: 0.0006202341198 | AG78: 6.418701858e-07 | AH78: 966.2921467 | AI78: 0.1227853263 | AJ78: 9.512640439 | AK78: 240640.9557 | AO78: 2083.580768 | AQ78: 2867.619559 | AR78: 9.482059711 | AS78: 1006.376756 | AT78: 1.17299968 | AU78: 0.02625271627 | AV78: 1.846659819e-05 | AW78: 0.7079021835 | AX78: 1.574305476e-05 | AY78: 11732265.63 | AZ78: 8305296.454 | BA78: 25.69408956 | BB78: 3.550208648 | BC78: 0.05149615263 | BD78: 194.7122628 | BE78: 0.0158360405 | BF78: 969.765389 | BG78: 1164.477652 | BH78: 1814.380126 | BI78: 0.001870241167 | BJ78: 0.1123239739 | BK78: 30.21018829 | BL78: 160668.3772 | BM78: 0.01614269607 | BN78: 0.9957602745 | BO78: 3372.981469 | BP78: 2613.271861 | BQ78: 2662.440533 | BR78: 1423.576092 | BU78: 6.005389344 | BV78: -89.91915984 | BW78: 76.96612202 | BX78: 4.434056087 | BY78: 471.2720797 | BZ78: 5830.678387 | CA78: 4489.540729 | CB78: 0.02950609365 | CC78: 0.05149615263
A79: 1.185466943 | B79: 23.5 | C79: 19.82341231 | D79: 1883.325277 | E79: 138.4305944 | F79: 308.4936175 | G79: 0.9448819846 | H79: 2.11942686 | I79: 3.384437766e-08 | J79: 125.1780663 | K79: 125.1780663 | L79: -2.47268872e-12 | M79: 0.06604519862 | N79: 0.0655959235 | O79: 21.09886265 | P79: 141.6986878 | Q79: 2329.146827 | R79: 40.59775051 | S79: 88.74754668 | U79: 413.7406719 | V79: 140.7406719 | W79: 415.2694132 | X79: 142.2694132 | Y79: 4489.959087 | Z79: 308.4936175 | AA79: 35.49361746 | AB79: 307.1175887 | AC79: 34.11758869 | AD79: 296.7385061 | AE79: 23.73850613 | AF79: 0.0006199348609 | AG79: 6.415887991e-07 | AH79: 966.2495071 | AI79: 0.1227784338 | AJ79: 9.509316558 | AK79: 240757.1194 | AO79: 2084.009699 | AQ79: 2868.209893 | AR79: 9.482066165 | AS79: 1006.376864 | AT79: 1.172988977 | AU79: 0.02625292004 | AV79: 1.846672684e-05 | AW79: 0.7079016969 | AX79: 1.574330809e-05 | AY79: 11737465.74 | AZ79: 8308971.914 | BA79: 25.69750418 | BB79: 3.550708014 | BC79: 0.0514956568 | BD79: 194.7426925 | BE79: 0.01583851537 | BF79: 969.8307209 | BG79: 1164.573413 | BH79: 1814.467581 | BI79: 0.00186929427 | BJ79: 0.1123143401 | BK79: 30.19893852 | BL79: 160745.9361 | BM79: 0.01614114863 | BN79: 0.995758423 | BO79: 3373.86523 | BP79: 2613.95657 | BQ79: 2663.138124 | BR79: 1423.557281 | BU79: 6.005506503 | BV79: -89.91740245 | BW79: 76.96476223 | BX79: 4.433601547 | BY79: 471.3159952 | BZ79: 5831.22172 | CA79: 4489.959087 | CB79: 0.03014753047 | CC79: 0.0514956568
A80: 1.185466943 | B80: 24 | C80: 20.24518704 | D80: 1883.47027 | E80: 138.4821061 | F80: 308.4994172 | G80: 0.9451625909 | H80: 2.11972492 | I80: 3.384437766e-08 | J80: 125.215241 | K80: 125.215241 | L80: -3.609557098e-12 | M80: 0.06604811718 | N80: 0.06559880249 | O80: 21.09964912 | P80: 141.7118893 | Q80: 2329.338312 | R80: 40.62704525 | S80: 88.77684141 | U80: 413.7918984 | V80: 140.7918984 | W80: 415.3207084 | X80: 142.3207084 | Y80: 4490.377399 | Z80: 308.4994172 | AA80: 35.49941717 | AB80: 307.1230676 | AC80: 34.12306763 | AD80: 296.7721757 | AE80: 23.77217572 | AF80: 0.0006196358566 | AG80: 6.413076517e-07 | AH80: 966.2068665 | AI80: 0.1227715403 | AJ80: 9.505995537 | AK80: 240873.2964 | AO80: 2084.438279 | AQ80: 2868.799745 | AR80: 9.48207261 | AS80: 1006.376972 | AT80: 1.172978271 | AU80: 0.02625312386 | AV80: 1.846685553e-05 | AW80: 0.7079012101 | AX80: 1.574356148e-05 | AY80: 11742667.06 | AZ80: 8312648.221 | BA80: 25.70091856 | BB80: 3.551207359 | BC80: 0.05149516036 | BD80: 194.77312 | BE80: 0.01584099005 | BF80: 969.8960358 | BG80: 1164.669156 | BH80: 1814.555037 | BI80: 0.001868348108 | BJ80: 0.1123047062 | BK80: 30.18769724 | BL80: 160823.5037 | BM80: 0.01613960197 | BN80: 0.995756573 | BO80: 3374.748549 | BP80: 2614.640935 | BQ80: 2663.835366 | BR80: 1423.538471 | BU80: 6.005623663 | BV80: -89.91564505 | BW80: 76.96340242 | BX80: 4.4331471 | BY80: 471.3599059 | BZ80: 5831.764992 | CA80: 4490.377399 | CB80: 0.03078896729 | CC80: 0.05149516036
A81: 1.185466943 | B81: 24.5 | C81: 20.66696177 | D81: 1883.615255 | E81: 138.5336175 | F81: 308.5052183 | G81: 0.945443292 | H81: 2.120022969 | I81: 3.384437766e-08 | J81: 125.2524283 | K81: 125.2524283 | L81: 1.421085472e-12 | M81: 0.06605103681 | N81: 0.06560168253 | O81: 21.10043559 | P81: 141.7250893 | Q81: 2329.529759 | R81: 40.65635343 | S81: 88.8061496 | U81: 413.8431252 | V81: 140.8431252 | W81: 415.3720039 | X81: 142.3720039 | Y81: 4490.795664 | Z81: 308.5052183 | AA81: 35.50521835 | AB81: 307.1285479 | AC81: 34.12854794 | AD81: 296.8058463 | AE81: 23.80584631 | AF81: 0.0006193371066 | AG81: 6.410267432e-07 | AH81: 966.1642251 | AI81: 0.1227646459 | AJ81: 9.50267737 | AK81: 240989.4866 | AO81: 2084.866508 | AQ81: 2869.389115 | AR81: 9.482079047 | AS81: 1006.37708 | AT81: 1.172967563 | AU81: 0.02625332772 | AV81: 1.846698424e-05 | AW81: 0.7079007232 | AX81: 1.574381494e-05 | AY81: 11747869.58 | AZ81: 8316325.373 | BA81: 25.70433269 | BB81: 3.551706684 | BC81: 0.05149466332 | BD81: 194.8035453 | BE81: 0.01584346455 | BF81: 969.9613339 | BG81: 1164.764879 | BH81: 1814.642493 | BI81: 0.00186740268 | BJ81: 0.1122950723 | BK81: 30.17646443 | BL81: 160901.0803 | BM81: 0.01613805611 | BN81: 0.9957547245 | BO81: 3375.631425 | BP81: 2615.324958 | BQ81: 2664.532259 | BR81: 1423.519662 | BU81: 6.005740823 | BV81: -89.91388766 | BW81: 76.96204261 | BX81: 4.432692745 | BY81: 471.4038116 | BZ81: 5832.308203 | CA81: 4490.795664 | CB81: 0.03143040411 | CC81: 0.05149466332
A82: 1.185466943 | B82: 25 | C82: 21.0887365 | D82: 1883.760232 | E82: 138.5851287 | F82: 308.511021 | G82: 0.945724088 | H82: 2.120321005 | I82: 3.384437766e-08 | J82: 125.2896282 | K82: 125.2896282 | L82: 3.680611371e-12 | M82: 0.0660539575 | N82: 0.06560456361 | O82: 21.10122206 | P82: 141.7382879 | Q82: 2329.721167 | R82: 40.68567507 | S82: 88.83547123 | U82: 413.8943522 | V82: 140.8943522 | W82: 415.4232995 | X82: 142.4232995 | Y82: 4491.213882 | Z82: 308.511021 | AA82: 35.51102098 | AB82: 307.1340296 | AC82: 34.13402962 | AD82: 296.8395179 | AE82: 23.83951788 | AF82: 0.0006190386107 | AG82: 6.407460735e-07 | AH82: 966.1215829 | AI82: 0.1227577505 | AJ82: 9.499362055 | AK82: 241105.69 | AO82: 2085.294388 | AQ82: 2869.978004 | AR82: 9.482085477 | AS82: 1006.377189 | AT82: 1.172956853 | AU82: 0.02625353164 | AV82: 1.846711299e-05 | AW82: 0.7079002363 | AX82: 1.574406846e-05 | AY82: 11753073.31 | AZ82: 8320003.37 | BA82: 25.70774657 | BB82: 3.552205989 | BC82: 0.05149416569 | BD82: 194.8339684 | BE82: 0.01584593888 | BF82: 970.0266152 | BG82: 1164.860584 | BH82: 1814.72995 | BI82: 0.001866457985 | BJ82: 0.1122854384 | BK82: 30.16524008 | BL82: 160978.6656 | BM82: 0.01613651104 | BN82: 0.9957528776 | BO82: 3376.51386 | BP82: 2616.008639 | BQ82: 2665.228803 | BR82: 1423.500853 | BU82: 6.005857982 | BV82: -89.91213026 | BW82: 76.96068279 | BX82: 4.432238485 | BY82: 471.4477124 | BZ82: 5832.851353 | CA82: 4491.213882 | CB82: 0.03207184092 | CC82: 0.05149416569
A83: 1.185466943 | B83: 25.5 | C83: 21.51051123 | D83: 1883.905202 | E83: 138.6366396 | F83: 308.5168251 | G83: 0.946004979 | H83: 2.12061903 | I83: 3.384437766e-08 | J83: 125.3268407 | K83: 125.3268407 | L83: -4.263256415e-12 | M83: 0.06605687925 | N83: 0.06560744574 | O83: 21.10200853 | P83: 141.751485 | Q83: 2329.912538 | R83: 40.71501017 | S83: 88.86480633 | U83: 413.9455794 | V83: 140.9455794 | W83: 415.4745953 | X83: 142.4745953 | Y83: 4491.632053 | Z83: 308.5168251 | AA83: 35.51682507 | AB83: 307.1395127 | AC83: 34.13951266 | AD83: 296.8731904 | AE83: 23.87319044 | AF83: 0.0006187403685 | AG83: 6.404656421e-07 | AH83: 966.0789397 | AI83: 0.1227508542 | AJ83: 9.496049589 | AK83: 241221.9065 | AO83: 2085.721919 | AQ83: 2870.566411 | AR83: 9.482091898 | AS83: 1006.377297 | AT83: 1.17294614 | AU83: 0.02625373561 | AV83: 1.846724177e-05 | AW83: 0.7078997492 | AX83: 1.574432205e-05 | AY83: 11758278.24 | AZ83: 8323682.215 | BA83: 25.7111602 | BB83: 3.552705274 | BC83: 0.05149366745 | BD83: 194.8643892 | BE83: 0.01584841302 | BF83: 970.0918796 | BG83: 1164.956269 | BH83: 1814.817407 | BI83: 0.001865514021 | BJ83: 0.1122758043 | BK83: 30.15402417 | BL83: 161056.2598 | BM83: 0.01613496676 | BN83: 0.9957510322 | BO83: 3377.395854 | BP83: 2616.691978 | BQ83: 2665.924999 | BR83: 1423.482045 | BU83: 6.005975142 | BV83: -89.91037287 | BW83: 76.95932296 | BX83: 4.431784317 | BY83: 471.4916083 | BZ83: 5833.394442 | CA83: 4491.632053 | CB83: 0.03271327774 | CC83: 0.05149366745
A84: 1.185466943 | B84: 26 | C84: 21.93228596 | D84: 1884.050163 | E84: 138.6881502 | F84: 308.5226306 | G84: 0.946285965 | H84: 2.120917042 | I84: 3.384437766e-08 | J84: 125.3640657 | K84: 125.3640657 | L84: 3.623767952e-12 | M84: 0.06605980206 | N84: 0.06561032891 | O84: 21.102795 | P84: 141.7646805 | Q84: 2330.10387 | R84: 40.74435873 | S84: 88.8941549 | U84: 413.9968068 | V84: 140.9968068 | W84: 415.5258913 | X84: 142.5258913 | Y84: 4492.050178 | Z84: 308.5226306 | AA84: 35.52263062 | AB84: 307.1449971 | AC84: 34.14499708 | AD84: 296.906864 | AE84: 23.90686398 | AF84: 0.0006184423797 | AG84: 6.40185449e-07 | AH84: 966.0362957 | AI84: 0.122743957 | AJ84: 9.492739968 | AK84: 241338.1363 | AO84: 2086.1491 | AQ84: 2871.154338 | AR84: 9.482098312 | AS84: 1006.377405 | AT84: 1.172935424 | AU84: 0.02625393962 | AV84: 1.846737058e-05 | AW84: 0.707899262 | AX84: 1.57445757e-05 | AY84: 11763484.37 | AZ84: 8327361.905 | BA84: 25.71457359 | BB84: 3.553204539 | BC84: 0.05149316861 | BD84: 194.8948079 | BE84: 0.01585088698 | BF84: 970.1571272 | BG84: 1165.051935 | BH84: 1814.904864 | BI84: 0.001864570788 | BJ84: 0.1122661703 | BK84: 30.14281669 | BL84: 161133.8627 | BM84: 0.01613342327 | BN84: 0.9957491883 | BO84: 3378.277408 | BP84: 2617.374976 | BQ84: 2666.620847 | BR84: 1423.463237 | BU84: 6.006092302 | BV84: -89.90861548 | BW84: 76.95796313 | BX84: 4.431330242 | BY84: 471.5354993 | BZ84: 5833.937471 | CA84: 4492.050178 | CB84: 0.03335471456 | CC84: 0.05149316861
A85: 1.185466943 | B85: 26.5 | C85: 22.35406069 | D85: 1884.195116 | E85: 138.7396606 | F85: 308.5284376 | G85: 0.9465670459 | H85: 2.121215043 | I85: 3.384437766e-08 | J85: 125.4013034 | K85: 125.4013034 | L85: 3.424815986e-12 | M85: 0.06606272594 | N85: 0.06561321314 | O85: 21.10358147 | P85: 141.7778747 | Q85: 2330.295164 | R85: 40.77372077 | S85: 88.92351693 | U85: 414.0480345 | V85: 141.0480345 | W85: 415.5771875 | X85: 142.5771875 | Y85: 4492.468255 | Z85: 308.5284376 | AA85: 35.52843763 | AB85: 307.1504829 | AC85: 34.15048286 | AD85: 296.9405385 | AE85: 23.94053852 | AF85: 0.000618144644 | AG85: 6.399054937e-07 | AH85: 965.9936508 | AI85: 0.1227370588 | AJ85: 9.489433189 | AK85: 241454.3793 | AO85: 2086.575932 | AQ85: 2871.741785 | AR85: 9.482104718 | AS85: 1006.377513 | AT85: 1.172924706 | AU85: 0.02625414369 | AV85: 1.846749942e-05 | AW85: 0.7078987746 | AX85: 1.574482942e-05 | AY85: 11768691.71 | AZ85: 8331042.442 | BA85: 25.71798673 | BB85: 3.553703784 | BC85: 0.05149266918 | BD85: 194.9252243 | BE85: 0.01585336076 | BF85: 970.2223578 | BG85: 1165.147582 | BH85: 1814.992322 | BI85: 0.001863628284 | BJ85: 0.1122565362 | BK85: 30.13161762 | BL85: 161211.4745 | BM85: 0.01613188057 | BN85: 0.9957473459 | BO85: 3379.158521 | BP85: 2618.057632 | BQ85: 2667.316348 | BR85: 1423.444429 | BU85: 6.006209461 | BV85: -89.90685808 | BW85: 76.95660329 | BX85: 4.43087626 | BY85: 471.5793854 | BZ85: 5834.480439 | CA85: 4492.468255 | CB85: 0.03399615138 | CC85: 0.05149266918
A86: 1.185466943 | B86: 27 | C86: 22.77583542 | D86: 1884.340061 | E86: 138.7911708 | F86: 308.5342461 | G86: 0.946848222 | H86: 2.121513032 | I86: 3.384437766e-08 | J86: 125.4385536 | K86: 125.4385536 | L86: 3.22586402e-12 | M86: 0.06606565088 | N86: 0.06561609841 | O86: 21.10436794 | P86: 141.7910673 | Q86: 2330.48642 | R86: 40.80309627 | S86: 88.95289244 | U86: 414.0992623 | V86: 141.0992623 | W86: 415.6284838 | X86: 142.6284838 | Y86: 4492.886286 | Z86: 308.5342461 | AA86: 35.5342461 | AB86: 307.15597 | AC86: 34.15597001 | AD86: 296.974214 | AE86: 23.97421404 | AF86: 0.0006178471612 | AG86: 6.39625776e-07 | AH86: 965.9510051 | AI86: 0.1227301597 | AJ86: 9.486129249 | AK86: 241570.6355 | AO86: 2087.002416 | AQ86: 2872.328752 | AR86: 9.482111116 | AS86: 1006.377622 | AT86: 1.172913986 | AU86: 0.02625434781 | AV86: 1.84676283e-05 | AW86: 0.7078982872 | AX86: 1.57450832e-05 | AY86: 11773900.26 | AZ86: 8334723.826 | BA86: 25.72139962 | BB86: 3.554203009 | BC86: 0.05149216914 | BD86: 194.9556384 | BE86: 0.01585583436 | BF86: 970.2875717 | BG86: 1165.24321 | BH86: 1815.07978 | BI86: 0.001862686507 | BJ86: 0.1122469021 | BK86: 30.12042696 | BL86: 161289.0951 | BM86: 0.01613033866 | BN86: 0.995745505 | BO86: 3380.039194 | BP86: 2618.739948 | BQ86: 2668.011502 | BR86: 1423.425622 | BU86: 6.006326621 | BV86: -89.90510069 | BW86: 76.95524344 | BX86: 4.430422372 | BY86: 471.6232666 | BZ86: 5835.023346 | CA86: 4492.886286 | CB86: 0.0346375882 | CC86: 0.05149216914
A87: 1.185466943 | B87: 27.5 | C87: 23.19761015 | D87: 1884.484999 | E87: 138.8426807 | F87: 308.540056 | G87: 0.9471294931 | H87: 2.121811009 | I87: 3.384437766e-08 | J87: 125.4758164 | K87: 125.4758164 | L87: 0 | M87: 0.06606857688 | N87: 0.06561898472 | O87: 21.10515441 | P87: 141.8042585 | Q87: 2330.677638 | R87: 40.83248526 | S87: 88.98228142 | U87: 414.1504904 | V87: 141.1504904 | W87: 415.6797804 | X87: 142.6797804 | Y87: 4493.30427 | Z87: 308.540056 | AA87: 35.54005604 | AB87: 307.1614585 | AC87: 34.16145854 | AD87: 297.0078905 | AE87: 24.00789055 | AF87: 0.0006175499309 | AG87: 6.393462956e-07 | AH87: 965.9083584 | AI87: 0.1227232597 | AJ87: 9.482828144 | AK87: 241686.9048 | AO87: 2087.428552 | AQ87: 2872.91524 | AR87: 9.482117506 | AS87: 1006.37773 | AT87: 1.172903263 | AU87: 0.02625455197 | AV87: 1.84677572e-05 | AW87: 0.7078977997 | AX87: 1.574533705e-05 | AY87: 11779110.01 | AZ87: 8338406.057 | BA87: 25.72481227 | BB87: 3.554702214 | BC87: 0.05149166851 | BD87: 194.9860504 | BE87: 0.01585830778 | BF87: 970.3527686 | BG87: 1165.338819 | BH87: 1815.167238 | BI87: 0.001861745458 | BJ87: 0.1122372679 | BK87: 30.10924467 | BL87: 161366.7244 | BM87: 0.01612879753 | BN87: 0.9957436657 | BO87: 3380.919429 | BP87: 2619.421924 | BQ87: 2668.706309 | BR87: 1423.406816 | BU87: 6.006443781 | BV87: -89.90334329 | BW87: 76.95388359 | BX87: 4.429968576 | BY87: 471.6671428 | BZ87: 5835.566193 | CA87: 4493.30427 | CB87: 0.03527902502 | CC87: 0.05149166851
A88: 1.185466943 | B88: 28 | C88: 23.61938488 | D88: 1884.629928 | E88: 138.8941903 | F88: 308.5458674 | G88: 0.9474108593 | H88: 2.122108974 | I88: 3.384437766e-08 | J88: 125.5130919 | K88: 125.5130919 | L88: 5.329070518e-12 | M88: 0.06607150395 | N88: 0.06562187209 | O88: 21.10594088 | P88: 141.8174482 | Q88: 2330.868818 | R88: 40.86188772 | S88: 89.01168389 | U88: 414.2017187 | V88: 141.2017187 | W88: 415.7310771 | X88: 142.7310771 | Y88: 4493.722208 | Z88: 308.5458674 | AA88: 35.54586743 | AB88: 307.1669484 | AC88: 34.16694843 | AD88: 297.041568 | AE88: 24.04156804 | AF88: 0.0006172529528 | AG88: 6.390670524e-07 | AH88: 965.8657109 | AI88: 0.1227163587 | AJ88: 9.479529873 | AK88: 241803.1873 | AO88: 2087.854339 | AQ88: 2873.501249 | AR88: 9.482123888 | AS88: 1006.377839 | AT88: 1.172892538 | AU88: 0.02625475619 | AV88: 1.846788614e-05 | AW88: 0.707897312 | AX88: 1.574559096e-05 | AY88: 11784320.97 | AZ88: 8342089.136 | BA88: 25.72822467 | BB88: 3.555201399 | BC88: 0.05149116728 | BD88: 195.0164601 | BE88: 0.01586078102 | BF88: 970.4179487 | BG88: 1165.434409 | BH88: 1815.254697 | BI88: 0.001860805134 | BJ88: 0.1122276337 | BK88: 30.09807075 | BL88: 161444.3626 | BM88: 0.0161272572 | BN88: 0.9957418278 | BO88: 3381.799224 | BP88: 2620.10356 | BQ88: 2669.40077 | BR88: 1423.38801 | BU88: 6.00656094 | BV88: -89.9015859 | BW88: 76.95252372 | BX88: 4.429514873 | BY88: 471.7110142 | BZ88: 5836.108978 | CA88: 4493.722208 | CB88: 0.03592046183 | CC88: 0.05149116728
A89: 1.185466943 | B89: 28.5 | C89: 24.04115961 | D89: 1884.774849 | E89: 138.9456997 | F89: 308.5516803 | G89: 0.9476923207 | H89: 2.122406927 | I89: 3.384437766e-08 | J89: 125.5503799 | K89: 125.5503799 | L89: 3.367972568e-12 | M89: 0.06607443208 | N89: 0.0656247605 | O89: 21.10672734 | P89: 141.8306364 | Q89: 2331.059959 | R89: 40.89130368 | S89: 89.04109984 | U89: 414.2529472 | V89: 141.2529472 | W89: 415.782374 | X89: 142.782374 | Y89: 4494.140098 | Z89: 308.5516803 | AA89: 35.55168028 | AB89: 307.1724397 | AC89: 34.1724397 | AD89: 297.0752465 | AE89: 24.07524652 | AF89: 0.0006169562267 | AG89: 6.387880458e-07 | AH89: 965.8230625 | AI89: 0.1227094568 | AJ89: 9.47623443 | AK89: 241919.4829 | AO89: 2088.27978 | AQ89: 2874.08678 | AR89: 9.482130263 | AS89: 1006.377947 | AT89: 1.17288181 | AU89: 0.02625496046 | AV89: 1.846801511e-05 | AW89: 0.7078968243 | AX89: 1.574584493e-05 | AY89: 11789533.13 | AZ89: 8345773.062 | BA89: 25.73163682 | BB89: 3.555700565 | BC89: 0.05149066544 | BD89: 195.0468677 | BE89: 0.01586325408 | BF89: 970.483112 | BG89: 1165.52998 | BH89: 1815.342156 | BI89: 0.001859865534 | BJ89: 0.1122179995 | BK89: 30.08690518 | BL89: 161522.0095 | BM89: 0.01612571765 | BN89: 0.9957399915 | BO89: 3382.678582 | BP89: 2620.784856 | BQ89: 2670.094885 | BR89: 1423.369205 | BU89: 6.0066781 | BV89: -89.8998285 | BW89: 76.95116385 | BX89: 4.429061263 | BY89: 471.7548806 | BZ89: 5836.651703 | CA89: 4494.140098 | CB89: 0.03656189865 | CC89: 0.05149066544
A90: 1.185466943 | B90: 29 | C90: 24.46293434 | D90: 1884.919762 | E90: 138.9972089 | F90: 308.5574946 | G90: 0.9479738773 | H90: 2.122704868 | I90: 3.384437766e-08 | J90: 125.5876805 | K90: 125.5876805 | L90: -1.932676241e-12 | M90: 0.06607736127 | N90: 0.06562764996 | O90: 21.10751381 | P90: 141.8438231 | Q90: 2331.251063 | R90: 40.92073312 | S90: 89.07052929 | U90: 414.3041758 | V90: 141.3041758 | W90: 415.8336711 | X90: 142.8336711 | Y90: 4494.557942 | Z90: 308.5574946 | AA90: 35.5574946 | AB90: 307.1779323 | AC90: 34.17793234 | AD90: 297.108926 | AE90: 24.10892599 | AF90: 0.0006166597523 | AG90: 6.385092759e-07 | AH90: 965.7804132 | AI90: 0.1227025539 | AJ90: 9.472941814 | AK90: 242035.7917 | AO90: 2088.704873 | AQ90: 2874.671832 | AR90: 9.482136629 | AS90: 1006.378056 | AT90: 1.17287108 | AU90: 0.02625516478 | AV90: 1.846814411e-05 | AW90: 0.7078963364 | AX90: 1.574609898e-05 | AY90: 11794746.5 | AZ90: 8349457.835 | BA90: 25.73504873 | BB90: 3.556199711 | BC90: 0.05149016301 | BD90: 195.077273 | BE90: 0.01586572695 | BF90: 970.5482584 | BG90: 1165.625531 | BH90: 1815.429616 | BI90: 0.001858926658 | BJ90: 0.1122083652 | BK90: 30.07574794 | BL90: 161599.6652 | BM90: 0.01612417888 | BN90: 0.9957381567 | BO90: 3383.557501 | BP90: 2621.465814 | BQ90: 2670.788654 | BR90: 1423.3504 | BU90: 6.00679526 | BV90: -89.89807111 | BW90: 76.94980397 | BX90: 4.428607747 | BY90: 471.7987422 | BZ90: 5837.194368 | CA90: 4494.557942 | CB90: 0.03720333547 | CC90: 0.05149016301
A91: 1.185466943 | B91: 29.5 | C91: 24.88470907 | D91: 1885.064668 | E91: 139.0487178 | F91: 308.5633104 | G91: 0.9482555291 | H91: 2.123002798 | I91: 3.384437766e-08 | J91: 125.6249938 | K91: 125.6249938 | L91: 3.524291969e-12 | M91: 0.06608029152 | N91: 0.06563054046 | O91: 21.10830028 | P91: 141.8570084 | Q91: 2331.442128 | R91: 40.95017607 | S91: 89.09997223 | U91: 414.3554047 | V91: 141.3554047 | W91: 415.8849684 | X91: 142.8849684 | Y91: 4494.97574 | Z91: 308.5633104 | AA91: 35.56331038 | AB91: 307.1834263 | AC91: 34.18342634 | AD91: 297.1426064 | AE91: 24.14260644 | AF91: 0.0006163635292 | AG91: 6.382307421e-07 | AH91: 965.7377631 | AI91: 0.1226956501 | AJ91: 9.46965202 | AK91: 242152.1136 | AO91: 2089.129619 | AQ91: 2875.256408 | AR91: 9.482142988 | AS91: 1006.378164 | AT91: 1.172860347 | AU91: 0.02625536914 | AV91: 1.846827314e-05 | AW91: 0.7078958484 | AX91: 1.574635308e-05 | AY91: 11799961.08 | AZ91: 8353143.457 | BA91: 25.7384604 | BB91: 3.556698837 | BC91: 0.05148965999 | BD91: 195.107676 | BE91: 0.01586819965 | BF91: 970.6133879 | BG91: 1165.721064 | BH91: 1815.517076 | BI91: 0.001857988503 | BJ91: 0.1121987308 | BK91: 30.06459903 | BL91: 161677.3297 | BM91: 0.01612264091 | BN91: 0.9957363233 | BO91: 3384.435984 | BP91: 2622.146432 | BQ91: 2671.482079 | BR91: 1423.331595 | BU91: 6.006912419 | BV91: -89.89631371 | BW91: 76.94844409 | BX91: 4.428154323 | BY91: 471.8425988 | BZ91: 5837.736971 | CA91: 4494.97574 | CB91: 0.03784477229 | CC91: 0.05148965999
A92: 1.185466943 | B92: 30 | C92: 25.3064838 | D92: 1885.209565 | E92: 139.1002264 | F92: 308.5691276 | G92: 0.9485372762 | H92: 2.123300716 | I92: 3.384437766e-08 | J92: 125.6623197 | K92: 125.6623197 | L92: -2.032152224e-12 | M92: 0.06608322284 | N92: 0.06563343201 | O92: 21.10908674 | P92: 141.8701922 | Q92: 2331.633155 | R92: 40.97963251 | S92: 89.12942868 | U92: 414.4066339 | V92: 141.4066339 | W92: 415.9362658 | X92: 142.9362658 | Y92: 4495.39349 | Z92: 308.5691276 | AA92: 35.56912762 | AB92: 307.1889217 | AC92: 34.18892173 | AD92: 297.1762879 | AE92: 24.17628787 | AF92: 0.0006160675572 | AG92: 6.379524443e-07 | AH92: 965.695112 | AI92: 0.1226887454 | AJ92: 9.466365046 | AK92: 242268.4487 | AO92: 2089.554018 | AQ92: 2875.840506 | AR92: 9.48214934 | AS92: 1006.378273 | AT92: 1.172849612 | AU92: 0.02625557356 | AV92: 1.84684022e-05 | AW92: 0.7078953604 | AX92: 1.574660725e-05 | AY92: 11805176.86 | AZ92: 8356829.927 | BA92: 25.74187182 | BB92: 3.557197943 | BC92: 0.05148915636 | BD92: 195.1380769 | BE92: 0.01587067217 | BF92: 970.6785005 | BG92: 1165.816577 | BH92: 1815.604536 | BI92: 0.00185705107 | BJ92: 0.1121890965 | BK92: 30.05345842 | BL92: 161755.0029 | BM92: 0.01612110372 | BN92: 0.9957344915 | BO92: 3385.314029 | BP92: 2622.826712 | BQ92: 2672.175158 | BR92: 1423.312791 | BU92: 6.007029579 | BV92: -89.89455632 | BW92: 76.94708419 | BX92: 4.427700992 | BY92: 471.8864505 | BZ92: 5838.279514 | CA92: 4495.39349 | CB92: 0.03848620911 | CC92: 0.05148915636
A93: 1.185466943 | B93: 30.5 | C93: 25.72825853 | D93: 1885.354454 | E93: 139.1517348 | F93: 308.5749463 | G93: 0.9488191186 | H93: 2.123598622 | I93: 3.384437766e-08 | J93: 125.6996582 | K93: 125.6996582 | L93: 4.035882739e-12 | M93: 0.06608615522 | N93: 0.0656363246 | O93: 21.10987321 | P93: 141.8833745 | Q93: 2331.824144 | R93: 41.00910246 | S93: 89.15889863 | U93: 414.4578632 | V93: 141.4578632 | W93: 415.9875634 | X93: 142.9875634 | Y93: 4495.811194 | Z93: 308.5749463 | AA93: 35.57494633 | AB93: 307.1944185 | AC93: 34.19441848 | AD93: 297.2099703 | AE93: 24.20997029 | AF93: 0.0006157718359 | AG93: 6.376743822e-07 | AH93: 965.6524601 | AI93: 0.1226818398 | AJ93: 9.463080889 | AK93: 242384.7968 | AO93: 2089.978071 | AQ93: 2876.424128 | AR93: 9.482155683 | AS93: 1006.378381 | AT93: 1.172838874 | AU93: 0.02625577803 | AV93: 1.84685313e-05 | AW93: 0.7078948722 | AX93: 1.574686149e-05 | AY93: 11810393.85 | AZ93: 8360517.245 | BA93: 25.745283 | BB93: 3.55769703 | BC93: 0.05148865214 | BD93: 195.1684755 | BE93: 0.0158731445 | BF93: 970.7435963 | BG93: 1165.912072 | BH93: 1815.691996 | BI93: 0.001856114356 | BJ93: 0.1121794621 | BK93: 30.0423261 | BL93: 161832.6849 | BM93: 0.01611956731 | BN93: 0.9957326612 | BO93: 3386.191638 | BP93: 2623.506654 | BQ93: 2672.867893 | BR93: 1423.293988 | BU93: 6.007146738 | BV93: -89.89279892 | BW93: 76.94572429 | BX93: 4.427247753 | BY93: 471.9302973 | BZ93: 5838.821996 | CA93: 4495.811194 | CB93: 0.03912764593 | CC93: 0.05148865214
A94: 1.185466943 | B94: 31 | C94: 26.15003326 | D94: 1885.499335 | E94: 139.203243 | F94: 308.5807665 | G94: 0.9491010563 | H94: 2.123896517 | I94: 3.384437766e-08 | J94: 125.7370093 | K94: 125.7370093 | L94: 5.016431714e-12 | M94: 0.06608908866 | N94: 0.06563921825 | O94: 21.11065967 | P94: 141.8965553 | Q94: 2332.015094 | R94: 41.03858592 | S94: 89.18838209 | U94: 414.5090927 | V94: 141.5090927 | W94: 416.0388612 | X94: 143.0388612 | Y94: 4496.22885 | Z94: 308.5807665 | AA94: 35.5807665 | AB94: 307.1999166 | AC94: 34.19991661 | AD94: 297.2436537 | AE94: 24.24365369 | AF94: 0.0006154763652 | AG94: 6.373965556e-07 | AH94: 965.6098073 | AI94: 0.1226749332 | AJ94: 9.459799545 | AK94: 242501.1581 | AO94: 2090.401778 | AQ94: 2877.007274 | AR94: 9.482162019 | AS94: 1006.37849 | AT94: 1.172828134 | AU94: 0.02625598255 | AV94: 1.846866043e-05 | AW94: 0.7078943839 | AX94: 1.574711579e-05 | AY94: 11815612.05 | AZ94: 8364205.412 | BA94: 25.74869393 | BB94: 3.558196097 | BC94: 0.05148814732 | BD94: 195.198872 | BE94: 0.01587561666 | BF94: 970.8086752 | BG94: 1166.007547 | BH94: 1815.779457 | BI94: 0.00185517836 | BJ94: 0.1121698276 | BK94: 30.03120205 | BL94: 161910.3757 | BM94: 0.01611803169 | BN94: 0.9957308324 | BO94: 3387.068812 | BP94: 2624.186258 | BQ94: 2673.560284 | BR94: 1423.275185 | BU94: 6.007263898 | BV94: -89.89104153 | BW94: 76.94436439 | BX94: 4.426794608 | BY94: 471.9741392 | BZ94: 5839.364418 | CA94: 4496.22885 | CB94: 0.03976908275 | CC94: 0.05148814732
A95: 1.185466943 | B95: 31.5 | C95: 26.57180799 | D95: 1885.644208 | E95: 139.2547509 | F95: 308.5865881 | G95: 0.9493830894 | H95: 2.124194399 | I95: 3.384437766e-08 | J95: 125.7743731 | K95: 125.7743731 | L95: -5.00222086e-12 | M95: 0.06609202316 | N95: 0.06564211294 | O95: 21.11144613 | P95: 141.9097347 | Q95: 2332.206007 | R95: 41.0680829 | S95: 89.21787906 | U95: 414.5603224 | V95: 141.5603224 | W95: 416.0901592 | X95: 143.0901592 | Y95: 4496.646461 | Z95: 308.5865881 | AA95: 35.58658813 | AB95: 307.2054161 | AC95: 34.20541611 | AD95: 297.2773381 | AE95: 24.27733808 | AF95: 0.0006151811446 | AG95: 6.371189641e-07 | AH95: 965.5671536 | AI95: 0.1226680257 | AJ95: 9.456521012 | AK95: 242617.5325 | AO95: 2090.82514 | AQ95: 2877.589943 | AR95: 9.482168347 | AS95: 1006.378599 | AT95: 1.172817391 | AU95: 0.02625618712 | AV95: 1.846878958e-05 | AW95: 0.7078938954 | AX95: 1.574737016e-05 | AY95: 11820831.46 | AZ95: 8367894.428 | BA95: 25.75210462 | BB95: 3.558695145 | BC95: 0.0514876419 | BD95: 195.2292662 | BE95: 0.01587808863 | BF95: 970.8737373 | BG95: 1166.103003 | BH95: 1815.866919 | BI95: 0.001854243082 | BJ95: 0.1121601931 | BK95: 30.02008626 | BL95: 161988.0752 | BM95: 0.01611649684 | BN95: 0.9957290051 | BO95: 3387.94555 | BP95: 2624.865525 | BQ95: 2674.252331 | BR95: 1423.256383 | BU95: 6.007381058 | BV95: -89.88928413 | BW95: 76.94300447 | BX95: 4.426341555 | BY95: 472.0179762 | BZ95: 5839.906778 | CA95: 4496.646461 | CB95: 0.04041051956 | CC95: 0.0514876419
A96: =$AI$10 -> 1.185466943 | B96: 32 | C96: 26.99358272 | D96: 1885.789073 | E96: 139.3062585 | F96: =POWER((POWER((Q96*LN($R$3/$S$3))/(2*PI()*O96)+((Q96/(AO96*PI()*$S$3))+(E96+273)),4)-((CA96*PI()*$R$3-Q96)/(N96*$Y$6*$Q$6*PI()*$R$3))),0.25) -> 308.5924112 | G96: =(((BZ96*$K$24*$P$24*$Q$24*PI()*($O$24*$R$24*$R$3+$S$24*$T$3))-Q96)*LN($T$3/$Y$3))/(2*PI()*$AF$3) -> 0.9496652179 | H96: 2.124492271 | I96: 3.384437766e-08 | J96: 125.8117495 | K96: =((BZ96*$K$24*$P$24*$Q$24*PI()*($O$24*$R$24*$R$3+$S$24*$T$3))-Q96) -> 125.8117495 | L96: -3.751665645e-12 | M96: 0.06609495873 | N96: 0.06564500867 | O96: 21.1122326 | P96: 141.9229126 | Q96: 2332.396881 | R96: =CA96*(PI()*$R$3)-Q96 -> 41.0975934 | S96: 89.24738956 | U96: 414.6115523 | V96: 141.6115523 | W96: 416.1414573 | X96: 143.1414573 | Y96: 4497.064024 | Z96: 308.5924112 | AA96: 35.59241123 | AB96: 307.210917 | AC96: 34.21091698 | AD96: 297.3110234 | AE96: 24.31102345 | AF96: 0.0006148861739 | AG96: 6.368416074e-07 | AH96: 965.5244989 | AI96: 0.1226611172 | AJ96: =(D96*AF96)/AI96 -> 9.453245285 | AK96: 242733.92 | AO96: =BP96*AI96/$S$3 -> 2091.248156 | AQ96: =BQ96*AI96/$Z$3 -> 2878.172138 | AR96: 9.482174667 | AS96: 1006.378707 | AT96: 1.172806646 | AU96: 0.02625639174 | AV96: 1.846891878e-05 | AW96: 0.7078934069 | AX96: 1.574762459e-05 | AY96: 11826052.07 | AZ96: 8371584.293 | BA96: 25.75551506 | BB96: 3.559194173 | BC96: =(Q96*$AH$3-BD96)/($R$6*D96) -> 0.05148713588 | BD96: 195.2596582 | BE96: 0.01588056043 | BF96: 970.9387824 | BG96: 1166.198441 | BH96: 1815.95438 | BI96: 0.00185330852 | BJ96: 0.1121505586 | BK96: 30.00897871 | BL96: 162065.7835 | BM96: 0.01611496279 | BN96: =1.07+(900/AK96)-0.63/(1+10*AW96) -> 0.9957271792 | BO96: =(((BM96/8)*AK96*AJ96)/(BN96+12.7*((BM96/8)^1/2)*(AJ96^2/3-1)))*(1+($AB$6/$AG$3)^2/3) -> 3388.821852 | BP96: 2625.544454 | BQ96: 2674.944035 | BR96: 1423.237581 | BU96: 6.007498217 | BV96: -89.88752674 | BW96: 76.94164455 | BX96: 4.425888596 | BY96: 472.0618084 | BZ96: 5840.449079 | CA96: 4497.064024 | CB96: 0.04105195638 | CC96: 0.05148713588
A97: 1.185466943 | B97: 32.5 | C97: 27.41535745 | D97: =(1.498+0.002414*E97+0.0000059591*(E97)^2-0.000000029879*(E97)^3+0.000000000044172*(E97)^4)*1000 -> 1885.93393 | E97: 139.3577659 | F97: 308.5982358 | G97: 0.9499474419 | H97: =BB97*PI()*$T$3 -> 2.12479013 | I97: =$Z$6*$Q$6*PI()*$T$3 -> 3.384437766e-08 | J97: =H97*(F97-G97-$K$3)+I97*(POWER((F97-G97),4)-POWER($O$3,4)) -> 125.8491386 | K97: 125.8491386 | L97: =J97-K97 -> 1.676880856e-12 | M97: 0.06609789536 | N97: =1/(1/$Y$6+((1/M97)-1)+($R$3/$Y$3)*((1/$O$6)-1)) -> 0.06564790545 | O97: =0.0153*((E97+273+W96)/2)+14.775 -> 21.11301906 | P97: =BZ97*$K$24*$P$24*$Q$24*$S$24 -> 141.936089 | Q97: 2332.587717 | R97: 41.12711742 | S97: =$M$6*$O$24*0.02*PI()*$R$3+R97+0*P97*PI()*$T$3 -> 89.27691358 | U97: =(Q97/(AO97*PI()*$S$3))+(E97+273) -> 414.6627825 | V97: =U97-273 -> 141.6627825 | W97: =(Q97*LN($R$3/$S$3))/(2*PI()*O97)+U97 -> 416.1927556 | X97: =W97-273 -> 143.1927556 | Y97: =CA97 -> 4497.481541 | Z97: =POWER((POWER((W97),4)-((R97)/(N97*$Q$6*PI()*$R$3))),0.25) -> 308.5982358 | AA97: =Z97-273 -> 35.5982358 | AB97: =Z97-((R97+P97)*LN($T$3/$Y$3))/(2*PI()*$AF$3) -> 307.2164192 | AC97: =AB97-273 -> 34.21641923 | AD97: =AE97+273 -> 297.3447098 | AE97: 24.3447098 | AF97: =AG97*AH97 -> 0.0006145914529 | AG97: =0.000001*EXP(544.149/(E97+114.43)-2.59578) -> 6.365644854e-07 | AH97: =1083.25-0.90797*E97+0.00078116*E97^2-0.000002367*E97^3 -> 965.4818434 | AI97: =0.137743-0.0000819477*E97-0.000000192257*E97^2+0.000000000025034*E97^3-0.0000000000000072974*E97^4 -> 0.1226542078 | AJ97: 9.449972362 | AK97: =4*$R$6/(($S$3+$Z$3)*AF97) -> 242850.3206 | AO97: 2091.670827 | AQ97: 2878.753858 | AR97: =((1/AQ97)+($Z$3/2)*((LN($Z$3/$AA$3)/$G$26)+(LN($G$11/$H$11)/$F$26)+(LN($A$5/$B$5)/$A$26)+(LN($C$5/$D$5)/$B$26)+(LN($E$5/$F$5)/$C$26)+(LN($G$8/$H$8)/$D$26)+(LN($G$5/$F$8)/$E$26)))^-1 -> 9.48218098 | AS97: 1006.378816 | AT97: 1.172795898 | AU97: 0.02625659641 | AV97: 1.8469048e-05 | AW97: =AS97*AV97/AU97 -> 0.7078929183 | AX97: =AV97/AT97 -> 1.574787909e-05 | AY97: 11831273.9 | AZ97: =AY97*AW97 -> 8375275.008 | BA97: =((0.6+0.387*AZ97^(1/6))/(1+(0.559/AW97)^(9/16))^(8/27))^2 -> 25.75892526 | BB97: =BA97*AU97/$T$3 -> 3.559693182 | BC97: 0.05148662927 | BD97: =AR97*PI()*$Z$3*$AH$3*(E97-AE97) -> 195.2900479 | BE97: =((C98-C97)*AR97*PI()*$Z$3*$AH$3*(E97-AE97))/($F$22) -> 0.01588303204 | BF97: =BG97-BD97 -> 971.0038107 | BG97: =AO97*PI()*$S$3*(CB98-CB97)*$AG$3*(V97-E97) -> 1166.293859 | BH97: 1816.041842 | BI97: 0.001852374673 | BJ97: 0.112140924 | BK97: =BH97*BI97/BJ97 -> 29.9978794 | BL97: =AK97*(((1+$AG$6^2)*LN($AG$6)+(1-$AG$6^2))/((1-$AG$6)^2*LN($AG$6))) -> 162143.5004 | BM97: =(1.8*LOG10(BL97)-1.5)^-2 -> 0.01611342951 | BN97: 0.9957253549 | BO97: 3389.697721 | BP97: =BO97*(0.9-0.15*$AB$3^0.6) -> 2626.223048 | BQ97: =BO97*0.75*$AB$3^-0.17 -> 2675.635396 | BR97: =1437.08-0.58063*AE97+0.0004624*AE97^2 -> 1423.218779 | BU97: 6.007615377 | BV97: =(12-BU97)*-15 -> -89.88576934 | BW97: =(180/PI())*ACOS(COS($K$15*PI()/180)*COS($O$15*PI()/180)*COS(BV97*PI()/180)+SIN($K$15*PI()/180)*SIN($O$15*PI()/180)) -> 76.94028462 | BX97: =1/COS(PI()/180*BW97) -> 4.425435728 | BY97: =COS($M$24)*$U$15*1088*EXP(-0.205*BX97) -> 472.1056355 | BZ97: =BY97*$AF$6 -> 5840.991318 | CA97: =BZ97*$K$24*$O$24*$P$24*$Q$24*$R$24 -> 4497.481541 | CB97: =B97/$AG$3 -> 0.0416933932 | CC97: =($AG$3*(CB98-CB97))*(AO97*PI()*$S$3*(V97-E97)+AR97*PI()*$Z$3*(AE97-E97))/($R$6*D97) -> 0.05148662927
A98: 1.185466943 | B98: =B97+0.5 -> 33 | C98: 27.83713218 | D98: 1886.078779 | E98: 139.409273 | F98: 308.6040618 | G98: 0.9502297613 | H98: 2.125087978 | I98: 3.384437766e-08 | J98: 125.8865403 | K98: 125.8865403 | L98: -4.590106073e-12 | M98: =0.062+0.0000002*(X97)^2 -> 0.06610083305 | N98: 0.06565080328 | O98: 21.11380552 | P98: 141.949264 | Q98: 2332.778515 | R98: 41.15665497 | S98: 89.30645113 | U98: 414.7140128 | V98: 141.7140128 | W98: 416.2440541 | X98: 143.2440541 | Y98: 4497.899011 | Z98: 308.6040618 | AA98: 35.60406183 | AB98: 307.2219229 | AC98: 34.22192285 | AD98: 297.3783971 | AE98: 24.37839713 | AF98: 0.0006142969811 | AG98: 6.362875977e-07 | AH98: 965.4391871 | AI98: 0.1226472975 | AJ98: 9.44670224 | AK98: 242966.7342 | AO98: 2092.093154 | AQ98: 2879.335104 | AR98: 9.482187285 | AS98: =1030.5-0.19975*(($K$3+AB97)/2)+0.00039734*(($K$3+AB97)/2)^2 -> 1006.378925 | AT98: =(351.99/(($K$3+AB97)/2)+(344.84/(($K$3+AB97)/2)^2)) -> 1.172785148 | AU98: =(0.00234*(($K$3+AB97)/2)^(3/2))/(164.54+(($K$3+AB97)/2)) -> 0.02625680113 | AV98: =0.000001*(1.45*((($K$3+AB97)/2)^(3/2))/(109.1+(($K$3+AB97)/2))) -> 1.846917725e-05 | AW98: 0.7078924295 | AX98: 1.574813365e-05 | AY98: =(9.81*(1/(($K$3+AB97)/2))*(AB97-$K$3)*$T$3^3)/($AP$3)^2 -> 11836496.93 | AZ98: 8378966.572 | BA98: 25.76233522 | BB98: 3.560192171 | BC98: 0.05148612206 | BD98: 195.3204355 | BE98: 0.01588550348 | BF98: 971.0688221 | BG98: 1166.389258 | BH98: =1574.27947+1.7072*V97+0.00000015609*V97^2 -> 1816.129305 | BI98: =(0.01533-(0.000379993*V97)+(0.00000703717*POWER(V97,2))-(0.0000000978061*POWER(V97,3))+(0.000000000914537*POWER(V97,4))-(0.00000000000550071*POWER(V97,5))+(0.0000000000000208325*POWER(V97,6))-(4.78395E-17*POWER(V97,7))+(6.07105E-20*POWER(V97,8))-(3.26206E-23*POWER(V97,9))) -> 0.00185144154 | BJ98: =0.13877-0.000188021*V97-0.000000000156094*POWER(V97,2) -> 0.1121312894 | BK98: 29.98678829 | BL98: 162221.2262 | BM98: 0.01611189702 | BN98: 0.9957235321 | BO98: 3390.573155 | BP98: 2626.901305 | BQ98: 2676.326414 | BR98: 1423.199978 | BU98: =$H$28+(C98/60)/60 -> 6.007732537 | BV98: -89.88401195 | BW98: 76.93892468 | BX98: 4.424982954 | BY98: 472.1494578 | BZ98: 5841.533497 | CA98: 4497.899011 | CB98: 0.04233483002 | CC98: 0.05148612206
A99: 1.185466943 | B99: 33.5 | C99: =C98+$AH$3/$AI$10 -> 28.25890691 | D99: 1886.223619 | E99: 139.4607799 | F99: 308.6098893 | G99: 0.9505121763 | H99: 2.125385815 | I99: 3.384437766e-08 | J99: 125.9239547 | K99: 125.9239547 | L99: 9.805489753e-13 | M99: 0.06610377181 | N99: 0.06565370216 | O99: 21.11459198 | P99: 141.9624374 | Q99: 2332.969275 | R99: 41.18620606 | S99: 89.33600222 | U99: 414.7652433 | V99: 141.7652433 | W99: 416.2953528 | X99: 143.2953528 | Y99: 4498.316434 | Z99: 308.6098893 | AA99: 35.60988933 | AB99: 307.2274279 | AC99: 34.22742785 | AD99: 297.4120854 | AE99: 24.41208545 | AF99: 0.0006140027584 | AG99: 6.360109442e-07 | AH99: 965.3965298 | AI99: 0.1226403862 | AJ99: 9.443434915 | AK99: 243083.161 | AO99: 2092.515137 | AQ99: 2879.915876 | AR99: 9.482193582 | AS99: 1006.379034 | AT99: 1.172774395 | AU99: 0.0262570059 | AV99: 1.846930654e-05 | AW99: 0.7078919407 | AX99: 1.574838828e-05 | AY99: 11841721.18 | AZ99: 8382658.985 | BA99: 25.76574493 | BB99: 3.560691141 | BC99: 0.05148561426 | BD99: 195.3508208 | BE99: 0.01588797473 | BF99: 971.1338167 | BG99: 1166.484638 | BH99: 1816.216767 | BI99: 0.001850509119 | BJ99: 0.1121216548 | BK99: 29.97570538 | BL99: 162298.9606 | BM99: 0.0161103653 | BN99: 0.9957217107 | BO99: 3391.448156 | BP99: 2627.579226 | BQ99: 2677.01709 | BR99: 1423.181178 | BU99: 6.007849696 | BV99: -89.88225455 | BW99: 76.93756474 | BX99: 4.424530272 | BY99: 472.1932752 | BZ99: 5842.075615 | CA99: 4498.316434 | CB99: 0.04297626684 | CC99: 0.05148561426
A100: 1.185466943 | B100: 34 | C100: 28.68068164 | D100: 1886.368452 | E100: 139.5122865 | F100: 308.6157183 | G100: 0.9507946868 | H100: 2.125683639 | I100: 3.384437766e-08 | J100: 125.9613817 | K100: 125.9613817 | L100: -3.609557098e-12 | M100: 0.06610671162 | N100: 0.06565660208 | O100: 21.11537844 | P100: 141.9756094 | Q100: 2333.159997 | R100: 41.21577068 | S100: 89.36556684 | U100: 414.816474 | V100: 141.816474 | W100: 416.3466516 | X100: 143.3466516 | Y100: 4498.733811 | Z100: 308.6157183 | AA100: 35.61571829 | AB100: 307.2329342 | AC100: 34.23293423 | AD100: 297.4457747 | AE100: 24.44577474 | AF100: 0.0006137087844 | AG100: 6.357345244e-07 | AH100: 965.3538716 | AI100: 0.122633474 | AJ100: 9.440170385 | AK100: 243199.6008 | AO100: 2092.936775 | AQ100: 2880.496174 | AR100: 9.482199872 | AS100: 1006.379142 | AT100: 1.17276364 | AU100: 0.02625721072 | AV100: 1.846943585e-05 | AW100: 0.7078914517 | AX100: 1.574864297e-05 | AY100: 11846946.63 | AZ100: 8386352.249 | BA100: 25.76915441 | BB100: 3.561190091 | BC100: 0.05148510586 | BD100: 195.381204 | BE100: 0.01589044581 | BF100: 971.1987944 | BG100: 1166.579998 | BH100: 1816.30423 | BI100: 0.00184957741 | BJ100: 0.1121120201 | BK100: 29.96463065 | BL100: 162376.7038 | BM100: 0.01610883437 | BN100: 0.9957198909 | BO100: 3392.322724 | BP100: 2628.256811 | BQ100: 2677.707424 | BR100: 1423.162378 | BU100: 6.007966856 | BV100: -89.88049716 | BW100: 76.93620478 | BX100: 4.424077683 | BY100: 472.2370877 | BZ100: 5842.617672 | CA100: 4498.733811 | CB100: 0.04361770366 | CC100: 0.05148510586
A101: 1.185466943 | B101: 34.5 | C101: 29.10245637 | D101: 1886.513277 | E101: 139.5637929 | F101: 308.6215487 | G101: 0.9510772929 | H101: 2.125981453 | I101: 3.384437766e-08 | J101: 125.9988214 | K101: 125.9988214 | L101: 2.728484105e-12 | M101: 0.0661096525 | N101: 0.06565950304 | O101: 21.1161649 | P101: 141.98878 | Q101: 2333.35068 | R101: 41.24534885 | S101: 89.39514501 | U101: 414.8677049 | V101: 141.8677049 | W101: 416.3979506 | X101: 143.3979506 | Y101: 4499.151141 | Z101: 308.6215487 | AA101: 35.62154872 | AB101: 307.238442 | AC101: 34.23844198 | AD101: 297.479465 | AE101: 24.47946502 | AF101: 0.0006134150588 | AG101: 6.354583381e-07 | AH101: 965.3112125 | AI101: 0.1226265609 | AJ101: 9.436908646 | AK101: 243316.0536 | AO101: 2093.35807 | AQ101: 2881.075999 | AR101: 9.482206154 | AS101: 1006.379251 | AT101: 1.172752882 | AU101: 0.02625741559 | AV101: 1.84695652e-05 | AW101: 0.7078909626 | AX101: 1.574889773e-05 | AY101: 11852173.3 | AZ101: 8390046.363 | BA101: 25.77256364 | BB101: 3.561689022 | BC101: 0.05148459686 | BD101: 195.4115849 | BE101: 0.0158929167 | BF101: 971.2637552 | BG101: 1166.67534 | BH101: 1816.391694 | BI101: 0.001848646411 | BJ101: 0.1121023854 | BK101: 29.95356409 | BL101: 162454.4557 | BM101: 0.01610730421 | BN101: 0.9957180725 | BO101: 3393.196859 | BP101: 2628.934061 | BQ101: 2678.397417 | BR101: 1423.143579 | BU101: 6.008084016 | BV101: -89.87873977 | BW101: 76.93484482 | BX101: 4.423625186 | BY101: 472.2808953 | BZ101: 5843.159669 | CA101: 4499.151141 | CB101: 0.04425914047 | CC101: 0.05148459686
A102: 1.185466943 | B102: 35 | C102: 29.5242311 | D102: 1886.658093 | E102: 139.615299 | F102: 308.6273806 | G102: 0.9513599946 | H102: 2.126279255 | I102: 3.384437766e-08 | J102: 126.0362737 | K102: 126.0362737 | L102: 2.98427949e-12 | M102: 0.06611259444 | N102: 0.06566240506 | O102: 21.11695136 | P102: 142.001949 | Q102: 2333.541325 | R102: 41.27494056 | S102: 89.42473672 | U102: 414.9189361 | V102: 141.9189361 | W102: 416.4492497 | X102: 143.4492497 | Y102: 4499.568424 | Z102: 308.6273806 | AA102: 35.62738062 | AB102: 307.2439511 | AC102: 34.24395111 | AD102: 297.5131563 | AE102: 24.51315628 | AF102: 0.0006131215815 | AG102: 6.351823851e-07 | AH102: 965.2685525 | AI102: 0.1226196468 | AJ102: 9.433649695 | AK102: 243432.5195 | AO102: 2093.779021 | AQ102: 2881.655352 | AR102: 9.482212428 | AS102: 1006.37936 | AT102: 1.172742122 | AU102: 0.02625762051 | AV102: 1.846969458e-05 | AW102: 0.7078904734 | AX102: 1.574915255e-05 | AY102: 11857401.17 | AZ102: 8393741.328 | BA102: 25.77597262 | BB102: 3.562187934 | BC102: 0.05148408727 | BD102: 195.4419636 | BE102: 0.01589538741 | BF102: 971.3286991 | BG102: 1166.770663 | BH102: 1816.479157 | BI102: 0.001847716121 | BJ102: 0.1120927506 | BK102: 29.94250568 | BL102: 162532.2163 | BM102: 0.01610577484 | BN102: 0.9957162556 | BO102: 3394.070562 | BP102: 2629.610977 | BQ102: 2679.087069 | BR102: 1423.12478 | BU102: 6.008201175 | BV102: -89.87698237 | BW102: 76.93348486 | BX102: 4.423172782 | BY102: 472.324698 | BZ102: 5843.701605 | CA102: 4499.568424 | CB102: 0.04490057729 | CC102: 0.05148408727
A103: 1.185466943 | B103: 35.5 | C103: 29.94600583 | D103: 1886.802902 | E103: 139.6668048 | F103: 308.633214 | G103: 0.951642792 | H103: 2.126577045 | I103: 3.384437766e-08 | J103: 126.0737388 | K103: 126.0737388 | L103: 5.826450433e-13 | M103: 0.06611553745 | N103: 0.06566530811 | O103: 21.11773782 | P103: 142.0151166 | Q103: 2333.731932 | R103: 41.30454583 | S103: 89.45434199 | U103: 414.9701674 | V103: 141.9701674 | W103: 416.500549 | X103: 143.500549 | Y103: 4499.985661 | Z103: 308.633214 | AA103: 35.63321398 | AB103: 307.2494616 | AC103: 34.24946161 | AD103: 297.5468485 | AE103: 24.54684852 | AF103: 0.0006128283519 | AG103: 6.349066652e-07 | AH103: 965.2258916 | AI103: 0.1226127318 | AJ103: 9.430393529 | AK103: 243548.9985 | AO103: 2094.199629 | AQ103: 2882.234233 | AR103: 9.482218694 | AS103: 1006.379469 | AT103: 1.17273136 | AU103: 0.02625782549 | AV103: 1.8469824e-05 | AW103: 0.7078899841 | AX103: 1.574940744e-05 | AY103: 11862630.25 | AZ103: 8397437.143 | BA103: 25.77938137 | BB103: 3.562686827 | BC103: 0.05148357708 | BD103: 195.47234 | BE103: 0.01589785795 | BF103: 971.3936261 | BG103: 1166.865966 | BH103: 1816.566621 | BI103: 0.001846786539 | BJ103: 0.1120831158 | BK103: 29.93145541 | BL103: 162609.9856 | BM103: 0.01610424624 | BN103: 0.9957144402 | BO103: 3394.943833 | BP103: 2630.287558 | BQ103: 2679.77638 | BR103: 1423.105981 | BU103: 6.008318335 | BV103: -89.87522498 | BW103: 76.93212488 | BX103: 4.422720471 | BY103: 472.3684958 | BZ103: 5844.243481 | CA103: 4499.985661 | CB103: 0.04554201411 | CC103: 0.05148357708
A104: 1.185466943 | B104: 36 | C104: 30.36778056 | D104: 1886.947702 | E104: 139.7183104 | F104: 308.6390488 | G104: 0.9519256851 | H104: 2.126874824 | I104: 3.384437766e-08 | J104: 126.1112165 | K104: 126.1112165 | L104: -4.263256415e-13 | M104: 0.06611848151 | N104: 0.06566821222 | O104: 21.11852427 | P104: 142.0282827 | Q104: 2333.922501 | R104: 41.33416465 | S104: 89.48396082 | U104: 415.0213989 | V104: 142.0213989 | W104: 416.5518485 | X104: 143.5518485 | Y104: 4500.402851 | Z104: 308.6390488 | AA104: 35.63904882 | AB104: 307.2549735 | AC104: 34.25497349 | AD104: 297.5805417 | AE104: 24.58054174 | AF104: 0.00061253537 | AG104: 6.346311779e-07 | AH104: 965.1832298 | AI104: 0.1226058159 | AJ104: 9.427140145 | AK104: 243665.4904 | AO104: 2094.619895 | AQ104: 2882.812642 | AR104: 9.482224954 | AS104: 1006.379578 | AT104: 1.172720594 | AU104: 0.02625803051 | AV104: 1.846995344e-05 | AW104: 0.7078894947 | AX104: 1.574966239e-05 | AY104: 11867860.55 | AZ104: 8401133.809 | BA104: 25.78278987 | BB104: 3.563185701 | BC104: 0.05148306629 | BD104: 195.5027143 | BE104: 0.0159003283 | BF104: 971.4585363 | BG104: 1166.961251 | BH104: 1816.654086 | BI104: 0.001845857664 | BJ104: 0.112073481 | BK104: 29.92041326 | BL104: 162687.7637 | BM104: 0.01610271842 | BN104: 0.9957126263 | BO104: 3395.816673 | BP104: 2630.963805 | BQ104: 2680.46535 | BR104: 1423.087184 | BU104: 6.008435495 | BV104: -89.87346758 | BW104: 76.9307649 | BX104: 4.422268252 | BY104: 472.4122887 | BZ104: 5844.785296 | CA104: 4500.402851 | CB104: 0.04618345093 | CC104: 0.05148306629
A105: 1.185466943 | B105: 36.5 | C105: 30.78955529 | D105: 1887.092494 | E105: 139.7698158 | F105: 308.6448851 | G105: 0.9522086739 | H105: 2.127172591 | I105: 3.384437766e-08 | J105: 126.1487068 | K105: 126.1487068 | L105: 6.437517186e-12 | M105: 0.06612142664 | N105: 0.06567111737 | O105: 21.11931073 | P105: 142.0414473 | Q105: 2334.113032 | R105: 41.36379704 | S105: 89.5135932 | U105: 415.0726306 | V105: 142.0726306 | W105: 416.6031481 | X105: 143.6031481 | Y105: 4500.819994 | Z105: 308.6448851 | AA105: 35.64488512 | AB105: 307.2604867 | AC105: 34.26048675 | AD105: 297.6142359 | AE105: 24.61423594 | AF105: 0.0006122426354 | AG105: 6.343559231e-07 | AH105: 965.1405671 | AI105: 0.122598899 | AJ105: 9.42388954 | AK105: 243781.9954 | AO105: 2095.039818 | AQ105: 2883.390579 | AR105: 9.482231205 | AS105: 1006.379687 | AT105: 1.172709827 | AU105: 0.02625823558 | AV105: 1.847008292e-05 | AW105: 0.7078890052 | AX105: 1.574991741e-05 | AY105: 11873092.06 | AZ105: 8404831.326 | BA105: 25.78619814 | BB105: 3.563684555 | BC105: 0.05148255491 | BD105: 195.5330863 | BE105: 0.01590279847 | BF105: 971.5234295 | BG105: 1167.056516 | BH105: 1816.74155 | BI105: 0.001844929494 | BJ105: 0.1120638461 | BK105: 29.90937921 | BL105: 162765.5504 | BM105: 0.01610119137 | BN105: 0.9957108138 | BO105: 3396.689082 | BP105: 2631.639718 | BQ105: 2681.153981 | BR105: 1423.068386 | BU105: 6.008552654 | BV105: -89.87171019 | BW105: 76.92940491 | BX105: 4.421816126 | BY105: 472.4560767 | BZ105: 5845.32705 | CA105: 4500.819994 | CB105: 0.04682488775 | CC105: 0.05148255491
A106: 1.185466943 | B106: 37 | C106: 31.21133002 | D106: 1887.237278 | E106: 139.8213209 | F106: 308.6507229 | G106: 0.9524917585 | H106: 2.127470347 | I106: 3.384437766e-08 | J106: 126.1862099 | K106: 126.1862099 | L106: 2.302158464e-12 | M106: 0.06612437283 | N106: 0.06567402357 | O106: 21.12009719 | P106: 142.0546105 | Q106: 2334.303524 | R106: 41.39344299 | S106: 89.54323916 | U106: 415.1238624 | V106: 142.1238624 | W106: 416.6544479 | X106: 143.6544479 | Y106: 4501.237091 | Z106: 308.6507229 | AA106: 35.65072289 | AB106: 307.2660014 | AC106: 34.26600138 | AD106: 297.6479311 | AE106: 24.64793112 | AF106: 0.0006119501477 | AG106: 6.340809006e-07 | AH106: 965.0979034 | AI106: 0.1225919812 | AJ106: 9.42064171 | AK106: 243898.5135 | AO106: 2095.459399 | AQ106: 2883.968046 | AR106: 9.482237449 | AS106: 1006.379796 | AT106: 1.172699057 | AU106: 0.02625844071 | AV106: 1.847021243e-05 | AW106: 0.7078885156 | AX106: 1.575017249e-05 | AY106: 11878324.78 | AZ106: 8408529.695 | BA106: 25.78960616 | BB106: 3.56418339 | BC106: 0.05148204294 | BD106: 195.5634562 | BE106: 0.01590526846 | BF106: 971.5883059 | BG106: 1167.151762 | BH106: 1816.829016 | BI106: 0.001844002029 | BJ106: 0.1120542112 | BK106: 29.89835325 | BL106: 162843.3458 | BM106: 0.01609966511 | BN106: 0.9957090029 | BO106: 3397.561062 | BP106: 2632.315298 | BQ106: 2681.842272 | BR106: 1423.049589 | BU106: 6.008669814 | BV106: -89.86995279 | BW106: 76.92804491 | BX106: 4.421364092 | BY106: 472.4998598 | BZ106: 5845.868744 | CA106: 4501.237091 | CB106: 0.04746632457 | CC106: 0.05148204294
A107: 1.185466943 | B107: 37.5 | C107: 31.63310475 | D107: 1887.382054 | E107: 139.8728257 | F107: 308.6565621 | G107: 0.9527749389 | H107: 2.127768092 | I107: 3.384437766e-08 | J107: 126.2237257 | K107: 126.2237257 | L107: 1.151079232e-12 | M107: 0.06612732008 | N107: 0.06567693081 | O107: 21.12088364 | P107: 142.0677722 | Q107: 2334.493978 | R107: 41.42310252 | S107: 89.57289868 | U107: 415.1750945 | V107: 142.1750945 | W107: 416.7057479 | X107: 143.7057479 | Y107: 4501.654141 | Z107: 308.6565621 | AA107: 35.65656214 | AB107: 307.2715174 | AC107: 34.2715174 | AD107: 297.6816273 | AE107: 24.68162727 | AF107: 0.0006116579068 | AG107: 6.338061099e-07 | AH107: 965.0552389 | AI107: 0.1225850624 | AJ107: 9.417396652 | AK107: 244015.0445 | AO107: 2095.878639 | AQ107: 2884.545043 | AR107: 9.482243685 | AS107: 1006.379905 | AT107: 1.172688284 | AU107: 0.02625864588 | AV107: 1.847034197e-05 | AW107: 0.7078880258 | AX107: 1.575042764e-05 | AY107: 11883558.71 | AZ107: 8412228.915 | BA107: 25.79301394 | BB107: 3.564682206 | BC107: 0.05148153037 | BD107: 195.5938238 | BE107: 0.01590773828 | BF107: 971.6531654 | BG107: 1167.246989 | BH107: 1816.916481 | BI107: 0.001843075267 | BJ107: 0.1120445763 | BK107: 29.88733537 | BL107: 162921.1499 | BM107: 0.01609813962 | BN107: 0.9957071934 | BO107: 3398.432611 | BP107: 2632.990545 | BQ107: 2682.530223 | BR107: 1423.030793 | BU107: 6.008786974 | BV107: -89.8681954 | BW107: 76.92668491 | BX107: 4.42091215 | BY107: 472.543638 | BZ107: 5846.410377 | CA107: 4501.654141 | CB107: 0.04810776139 | CC107: 0.05148153037
A108: 1.185466943 | B108: 38 | C108: 32.05487948 | D108: 1887.526822 | E108: 139.9243303 | F108: 308.6624028 | G108: 0.9530582151 | H108: 2.128065825 | I108: 3.384437766e-08 | J108: 126.2612542 | K108: 126.2612542 | L108: 4.76063633e-12 | M108: 0.06613026839 | N108: 0.0656798391 | O108: 21.1216701 | P108: 142.0809324 | Q108: 2334.684394 | R108: 41.45277562 | S108: 89.60257178 | U108: 415.2263268 | V108: 142.2263268 | W108: 416.757048 | X108: 143.757048 | Y108: 4502.071144 | Z108: 308.6624028 | AA108: 35.66240285 | AB108: 307.2770348 | AC108: 34.27703479 | AD108: 297.7153244 | AE108: 24.71532441 | AF108: 0.0006113659123 | AG108: 6.335315509e-07 | AH108: 965.0125735 | AI108: 0.1225781428 | AJ108: 9.414154364 | AK108: 244131.5885 | AO108: 2096.297537 | AQ108: 2885.12157 | AR108: 9.482249914 | AS108: 1006.380014 | AT108: 1.172677509 | AU108: 0.02625885111 | AV108: 1.847047154e-05 | AW108: 0.707887536 | AX108: 1.575068286e-05 | AY108: 11888793.85 | AZ108: 8415928.987 | BA108: 25.79642148 | BB108: 3.565181003 | BC108: 0.0514810172 | BD108: 195.6241892 | BE108: 0.01591020791 | BF108: 971.718008 | BG108: 1167.342197 | BH108: 1817.003947 | BI108: 0.001842149207 | BJ108: 0.1120349413 | BK108: 29.87632554 | BL108: 162998.9626 | BM108: 0.0160966149 | BN108: 0.9957053854 | BO108: 3399.303731 | BP108: 2633.665459 | BQ108: 2683.217836 | BR108: 1423.011997 | BU108: 6.008904133 | BV108: -89.866438 | BW108: 76.9253249 | BX108: 4.420460301 | BY108: 472.5874113 | BZ108: 5846.95195 | CA108: 4502.071144 | CB108: 0.0487491982 | CC108: 0.0514810172
A109: 1.185466943 | B109: 38.5 | C109: 32.47665421 | D109: 1887.671582 | E109: 139.9758346 | F109: 308.668245 | G109: 0.9533415872 | H109: 2.128363547 | I109: 3.384437766e-08 | J109: 126.2987953 | K109: 126.2987953 | L109: 6.664890861e-12 | M109: 0.06613321777 | N109: 0.06568274843 | O109: 21.12245655 | P109: 142.0940911 | Q109: 2334.874772 | R109: 41.4824623 | S109: 89.63225846 | U109: 415.2775592 | V109: 142.2775592 | W109: 416.8083483 | X109: 143.8083483 | Y109: 4502.488101 | Z109: 308.668245 | AA109: 35.66824503 | AB109: 307.2825536 | AC109: 34.28255357 | AD109: 297.7490225 | AE109: 24.74902252 | AF109: 0.000611074164 | AG109: 6.332572234e-07 | AH109: 964.9699071 | AI109: 0.1225712222 | AJ109: 9.410914842 | AK109: 244248.1455 | AO109: 2096.716093 | AQ109: 2885.697627 | AR109: 9.482256135 | AS109: 1006.380123 | AT109: 1.172666731 | AU109: 0.02625905638 | AV109: 1.847060114e-05 | AW109: 0.707887046 | AX109: 1.575093814e-05 | AY109: 11894030.21 | AZ109: 8419629.911 | BA109: 25.79982878 | BB109: 3.565679782 | BC109: 0.05148050345 | BD109: 195.6545524 | BE109: 0.01591267736 | BF109: 971.7828338 | BG109: 1167.437386 | BH109: 1817.091413 | BI109: 0.001841223847 | BJ109: 0.1120253063 | BK109: 29.86532376 | BL109: 163076.7841 | BM109: 0.01609509096 | BN109: 0.9957035788 | BO109: 3400.174422 | BP109: 2634.340041 | BQ109: 2683.90511 | BR109: 1422.993202 | BU109: 6.009021293 | BV109: -89.86468061 | BW109: 76.92396488 | BX109: 4.420008545 | BY109: 472.6311797 | BZ109: 5847.493462 | CA109: 4502.488101 | CB109: 0.04939063502 | CC109: 0.05148050345
A110: 1.185466943 | B110: 39 | C110: 32.89842894 | D110: 1887.816334 | E110: 140.0273386 | F110: 308.6740887 | G110: 0.9536250553 | H110: 2.128661258 | I110: 3.384437766e-08 | J110: 126.3363492 | K110: 126.3363492 | L110: 6.167510946e-12 | M110: 0.06613616821 | N110: 0.06568565881 | O110: 21.123243 | P110: 142.1072484 | Q110: 2335.065112 | R110: 41.51216257 | S110: 89.66195873 | U110: 415.3287919 | V110: 142.3287919 | W110: 416.8596487 | X110: 143.8596487 | Y110: 4502.905011 | Z110: 308.6740887 | AA110: 35.67408869 | AB110: 307.2880737 | AC110: 34.28807372 | AD110: 297.7827216 | AE110: 24.78272161 | AF110: 0.0006107826615 | AG110: 6.329831269e-07 | AH110: 964.9272398 | AI110: 0.1225643006 | AJ110: 9.407678084 | AK110: 244364.7155 | AO110: 2097.13431 | AQ110: 2886.273215 | AR110: 9.482262349 | AS110: 1006.380232 | AT110: 1.172655951 | AU110: 0.02625926171 | AV110: 1.847073078e-05 | AW110: 0.7078865559 | AX110: 1.575119348e-05 | AY110: 11899267.78 | AZ110: 8423331.688 | BA110: 25.80323584 | BB110: 3.566178541 | BC110: 0.05147998909 | BD110: 195.6849134 | BE110: 0.01591514664 | BF110: 971.8476426 | BG110: 1167.532556 | BH110: 1817.178879 | BI110: 0.001840299188 | BJ110: 0.1120156712 | BK110: 29.85433001 | BL110: 163154.6142 | BM110: 0.01609356779 | BN110: 0.9957017738 | BO110: 3401.044684 | BP110: 2635.014291 | BQ110: 2684.592046 | BR110: 1422.974407 | BU110: 6.009138452 | BV110: -89.86292321 | BW110: 76.92260485 | BX110: 4.41955688 | BY110: 472.6749432 | BZ110: 5848.034913 | CA110: 4502.905011 | CB110: 0.05003207184 | CC110: 0.05147998909
A111: 1.185466943 | B111: 39.5 | C111: 33.32020367 | D111: 1887.961077 | E111: 140.0788424 | F111: 308.6799338 | G111: 0.9539086192 | H111: 2.128958957 | I111: 3.384437766e-08 | J111: 126.3739158 | K111: 126.3739158 | L111: 4.590106073e-12 | M111: 0.06613911971 | N111: 0.06568857023 | O111: 21.12402946 | P111: 142.1204042 | Q111: 2335.255413 | R111: 41.54187642 | S111: 89.69167259 | U111: 415.3800247 | V111: 142.3800247 | W111: 416.9109493 | X111: 143.9109493 | Y111: 4503.321874 | Z111: 308.6799338 | AA111: 35.67993381 | AB111: 307.2935953 | AC111: 34.29359525 | AD111: 297.8164217 | AE111: 24.81642168 | AF111: 0.0006104914046 | AG111: 6.327092614e-07 | AH111: 964.8845716 | AI111: 0.1225573781 | AJ111: 9.404444085 | AK111: 244481.2985 | AO111: 2097.552185 | AQ111: 2886.848335 | AR111: 9.482268555 | AS111: 1006.380342 | AT111: 1.172645169 | AU111: 0.02625946708 | AV111: 1.847086044e-05 | AW111: 0.7078860658 | AX111: 1.575144889e-05 | AY111: 11904506.56 | AZ111: 8427034.317 | BA111: 25.80664266 | BB111: 3.566677281 | BC111: 0.05147947415 | BD111: 195.7152721 | BE111: 0.01591761573 | BF111: 971.9124346 | BG111: 1167.627707 | BH111: 1817.266346 | BI111: 0.001839375227 | BJ111: 0.1120060361 | BK111: 29.84334427 | BL111: 163232.453 | BM111: 0.01609204539 | BN111: 0.9956999702 | BO111: 3401.914519 | BP111: 2635.688209 | BQ111: 2685.278644 | BR111: 1422.955612 | BU111: 6.009255612 | BV111: -89.86116582 | BW111: 76.92124482 | BX111: 4.419105308 | BY111: 472.7187018 | BZ111: 5848.576304 | CA111: 4503.321874 | CB111: 0.05067350866 | CC111: 0.05147947415
A112: 1.185466943 | B112: 40 | C112: 33.7419784 | D112: 1888.105813 | E112: 140.130346 | F112: 308.6857804 | G112: 0.9541922792 | H112: 2.129256646 | I112: 3.384437766e-08 | J112: 126.4114951 | K112: 126.4114951 | L112: 4.533262654e-12 | M112: 0.06614207227 | N112: 0.0656914827 | O112: 21.12481591 | P112: 142.1335585 | Q112: 2335.445677 | R112: 41.57160388 | S112: 89.72140004 | U112: 415.4312577 | V112: 142.4312577 | W112: 416.96225 | X112: 143.96225 | Y112: 4503.738691 | Z112: 308.6857804 | AA112: 35.68578041 | AB112: 307.2991182 | AC112: 34.29911817 | AD112: 297.8501227 | AE112: 24.85012272 | AF112: 0.000610200393 | AG112: 6.324356264e-07 | AH112: 964.8419025 | AI112: 0.1225504547 | AJ112: 9.401212843 | AK112: 244597.8945 | AO112: 2097.969721 | AQ112: 2887.422987 | AR112: 9.482274754 | AS112: 1006.380451 | AT112: 1.172634384 | AU112: 0.02625967251 | AV112: 1.847099014e-05 | AW112: 0.7078855755 | AX112: 1.575170437e-05 | AY112: 11909746.56 | AZ112: 8430737.798 | BA112: 25.81004924 | BB112: 3.567176003 | BC112: 0.05147895861 | BD112: 195.7456287 | BE112: 0.01592008464 | BF112: 971.9772096 | BG112: 1167.722838 | BH112: 1817.353812 | BI112: 0.001838451964 | BJ112: 0.111996401 | BK112: 29.83236653 | BL112: 163310.3004 | BM112: 0.01609052377 | BN112: 0.995698168 | BO112: 3402.783926 | BP112: 2636.361797 | BQ112: 2685.964905 | BR112: 1422.936818 | BU112: 6.009372772 | BV112: -89.85940842 | BW112: 76.91988478 | BX112: 4.418653829 | BY112: 472.7624555 | BZ112: 5849.117634 | CA112: 4503.738691 | CB112: 0.05131494548 | CC112: 0.05147895861
A113: 1.185466943 | B113: 40.5 | C113: 34.16375313 | D113: 1888.25054 | E113: 140.1818493 | F113: 308.6916285 | G113: 0.9544760352 | H113: 2.129554322 | I113: 3.384437766e-08 | J113: 126.4490871 | K113: 126.4490871 | L113: 3.893774192e-12 | M113: 0.06614502589 | N113: 0.06569439622 | O113: 21.12560236 | P113: 142.1467114 | Q113: 2335.635902 | R113: 41.60134493 | S113: 89.75114109 | U113: 415.4824909 | V113: 142.4824909 | W113: 417.0135509 | X113: 144.0135509 | Y113: 4504.155461 | Z113: 308.6916285 | AA113: 35.69162848 | AB113: 307.3046425 | AC113: 34.30464246 | AD113: 297.8838247 | AE113: 24.88382474 | AF113: 0.0006099096264 | AG113: 6.321622218e-07 | AH113: 964.7992325 | AI113: 0.1225435304 | AJ113: 9.397984355 | AK113: 244714.5034 | AO113: 2098.386916 | AQ113: 2887.997171 | AR113: 9.482280945 | AS113: 1006.38056 | AT113: 1.172623596 | AU113: 0.02625987799 | AV113: 1.847111987e-05 | AW113: 0.707885085 | AX113: 1.575195991e-05 | AY113: 11914987.77 | AZ113: 8434442.133 | BA113: 25.81345558 | BB113: 3.567674705 | BC113: 0.05147844247 | BD113: 195.775983 | BE113: 0.01592255337 | BF113: 972.0419678 | BG113: 1167.817951 | BH113: 1817.44128 | BI113: 0.001837529396 | BJ113: 0.1119867659 | BK113: 29.82139677 | BL113: 163388.1565 | BM113: 0.01608900292 | BN113: 0.9956963674 | BO113: 3403.652907 | BP113: 2637.035053 | BQ113: 2686.650829 | BR113: 1422.918025 | BU113: 6.009489931 | BV113: -89.85765103 | BW113: 76.91852473 | BX113: 4.418202441 | BY113: 472.8062043 | BZ113: 5849.658904 | CA113: 4504.155461 | CB113: 0.0519563823 | CC113: 0.05147844247
A114: 1.185466943 | B114: 41 | C114: 34.58552786 | D114: 1888.395259 | E114: 140.2333523 | F114: 308.697478 | G114: 0.9547598873 | H114: 2.129851988 | I114: 3.384437766e-08 | J114: 126.4866919 | K114: 126.4866919 | L114: 2.316369319e-12 | M114: 0.06614798057 | N114: 0.06569731078 | O114: 21.12638881 | P114: 142.1598627 | Q114: 2335.826089 | R114: 41.63109958 | S114: 89.78089575 | U114: 415.5337243 | V114: 142.5337243 | W114: 417.064852 | X114: 144.064852 | Y114: 4504.572184 | Z114: 308.697478 | AA114: 35.69747803 | AB114: 307.3101681 | AC114: 34.31016814 | AD114: 297.9175277 | AE114: 24.91752774 | AF114: 0.0006096191045 | AG114: 6.318890473e-07 | AH114: 964.7565615 | AI114: 0.1225366051 | AJ114: 9.394758618 | AK114: 244831.1253 | AO114: 2098.803773 | AQ114: 2888.570887 | AR114: 9.482287128 | AS114: 1006.380669 | AT114: 1.172612806 | AU114: 0.02626008352 | AV114: 1.847124963e-05 | AW114: 0.7078845945 | AX114: 1.575221552e-05 | AY114: 11920230.2 | AZ114: 8438147.321 | BA114: 25.81686168 | BB114: 3.568173389 | BC114: 0.05147792574 | BD114: 195.8063352 | BE114: 0.01592502193 | BF114: 972.1067091 | BG114: 1167.913044 | BH114: 1817.528747 | BI114: 0.001836607524 | BJ114: 0.1119771307 | BK114: 29.81043498 | BL114: 163466.0213 | BM114: 0.01608748284 | BN114: 0.9956945682 | BO114: 3404.52146 | BP114: 2637.707979 | BQ114: 2687.336416 | BR114: 1422.899232 | BU114: 6.009607091 | BV114: -89.85589363 | BW114: 76.91716468 | BX114: 4.417751146 | BY114: 472.8499483 | BZ114: 5850.200113 | CA114: 4504.572184 | CB114: 0.05259781911 | CC114: 0.05147792574
A115: 1.185466943 | B115: 41.5 | C115: 35.00730259 | D115: 1888.53997 | E115: 140.2848551 | F115: 308.703329 | G115: 0.9550438354 | H115: 2.130149643 | I115: 3.384437766e-08 | J115: 126.5243093 | K115: 126.5243093 | L115: -3.581135388e-12 | M115: 0.06615093632 | N115: 0.06570022638 | O115: 21.12717526 | P115: 142.1730127 | Q115: 2336.016237 | R115: 41.66086785 | S115: 89.81066401 | U115: 415.5849579 | V115: 142.5849579 | W115: 417.1161532 | X115: 144.1161532 | Y115: 4504.988861 | Z115: 308.703329 | AA115: 35.70332904 | AB115: 307.3156952 | AC115: 34.3156952 | AD115: 297.9512317 | AE115: 24.95123171 | AF115: 0.0006093288271 | AG115: 6.316161025e-07 | AH115: 964.7138897 | AI115: 0.1225296789 | AJ115: 9.391535628 | AK115: 244947.7601 | AO115: 2099.22029 | AQ115: 2889.144137 | AR115: 9.482293304 | AS115: 1006.380779 | AT115: 1.172602013 | AU115: 0.02626028909 | AV115: 1.847137943e-05 | AW115: 0.7078841039 | AX115: 1.575247119e-05 | AY115: 11925473.84 | AZ115: 8441853.362 | BA115: 25.82026755 | BB115: 3.568672054 | BC115: 0.05147740842 | BD115: 195.8366851 | BE115: 0.0159274903 | BF115: 972.1714335 | BG115: 1168.008119 | BH115: 1817.616215 | BI115: 0.001835686346 | BJ115: 0.1119674954 | BK115: 29.79948114 | BL115: 163543.8947 | BM115: 0.01608596353 | BN115: 0.9956927705 | BO115: 3405.389588 | BP115: 2638.380575 | BQ115: 2688.021667 | BR115: 1422.88044 | BU115: 6.009724251 | BV115: -89.85413624 | BW115: 76.91580461 | BX115: 4.417299943 | BY115: 472.8936873 | BZ115: 5850.741262 | CA115: 4504.988861 | CB115: 0.05323925593 | CC115: 0.05147740842
A116: 1.185466943 | B116: 42 | C116: 35.42907732 | D116: 1888.684673 | E116: 140.3363576 | F116: 308.7091815 | G116: 0.9553278797 | H116: 2.130447286 | I116: 3.384437766e-08 | J116: 126.5619396 | K116: 126.5619396 | L116: 4.547473509e-13 | M116: 0.06615389312 | N116: 0.06570314304 | O116: 21.12796171 | P116: 142.1861611 | Q116: 2336.206348 | R116: 41.69064973 | S116: 89.84044589 | U116: 415.6361916 | V116: 142.6361916 | W116: 417.1674546 | X116: 144.1674546 | Y116: 4505.405491 | Z116: 308.7091815 | AA116: 35.70918154 | AB116: 307.3212236 | AC116: 34.32122364 | AD116: 297.9849367 | AE116: 24.98493666 | AF116: 0.0006090387938 | AG116: 6.313433874e-07 | AH116: 964.6712169 | AI116: 0.1225227517 | AJ116: 9.388315383 | AK116: 245064.4078 | AO116: 2099.636468 | AQ116: 2889.716921 | AR116: 9.482299473 | AS116: 1006.380888 | AT116: 1.172591218 | AU116: 0.02626049472 | AV116: 1.847150925e-05 | AW116: 0.7078836132 | AX116: 1.575272693e-05 | AY116: 11930718.69 | AZ116: 8445560.257 | BA116: 25.82367317 | BB116: 3.5691707 | BC116: 0.05147689051 | BD116: 195.8670328 | BE116: 0.01592995849 | BF116: 972.236141 | BG116: 1168.103174 | BH116: 1817.703683 | BI116: 0.00183476586 | BJ116: 0.1119578602 | BK116: 29.78853524 | BL116: 163621.7767 | BM116: 0.01608444499 | BN116: 0.9956909742 | BO116: 3406.25729 | BP116: 2639.052841 | BQ116: 2688.706582 | BR116: 1422.861648 | BU116: 6.00984141 | BV116: -89.85237884 | BW116: 76.91444454 | BX116: 4.416848832 | BY116: 472.9374214 | BZ116: 5851.28235 | CA116: 4505.405491 | CB116: 0.05388069275 | CC116: 0.05147689051
A117: 1.185466943 | B117: 42.5 | C117: 35.85085205 | D117: 1888.829367 | E117: 140.3878598 | F117: 308.7150355 | G117: 0.9556120201 | H117: 2.130744918 | I117: 3.384437766e-08 | J117: 126.5995825 | K117: 126.5995825 | L117: -1.26476607e-12 | M117: 0.06615685099 | N117: 0.06570606073 | O117: 21.12874816 | P117: 142.1993081 | Q117: 2336.39642 | R117: 41.72044522 | S117: 89.87024138 | U117: 415.6874255 | V117: 142.6874255 | W117: 417.2187561 | X117: 144.2187561 | Y117: 4505.822075 | Z117: 308.7150355 | AA117: 35.7150355 | AB117: 307.3267535 | AC117: 34.32675346 | AD117: 298.0186426 | AE117: 25.01864259 | AF117: 0.0006087490043 | AG117: 6.310709015e-07 | AH117: 964.6285431 | AI117: 0.1225158236 | AJ117: 9.385097879 | AK117: 245181.0685 | AO117: 2100.052307 | AQ117: 2890.289238 | AR117: 9.482305634 | AS117: 1006.380998 | AT117: 1.172580421 | AU117: 0.0262607004 | AV117: 1.847163911e-05 | AW117: 0.7078831223 | AX117: 1.575298273e-05 | AY117: 11935964.76 | AZ117: 8449268.005 | BA117: 25.82707856 | BB117: 3.569669328 | BC117: 0.051476372 | BD117: 195.8973783 | BE117: 0.01593242651 | BF117: 972.3008316 | BG117: 1168.19821 | BH117: 1817.791152 | BI117: 0.001833846066 | BJ117: 0.1119482249 | BK117: 29.77759726 | BL117: 163699.6674 | BM117: 0.01608292722 | BN117: 0.9956891794 | BO117: 3407.124567 | BP117: 2639.724778 | BQ117: 2689.391161 | BR117: 1422.842857 | BU117: 6.00995857 | BV117: -89.85062145 | BW117: 76.91308446 | BX117: 4.416397814 | BY117: 472.9811507 | BZ117: 5851.823377 | CA117: 4505.822075 | CB117: 0.05452212957 | CC117: 0.051476372
A118: 1.185466943 | B118: 43 | C118: 36.27262678 | D118: 1888.974054 | E118: 140.4393618 | F118: 308.7208909 | G118: 0.9558962568 | H118: 2.131042539 | I118: 3.384437766e-08 | J118: 126.6372382 | K118: 126.6372382 | L118: -1.98951966e-13 | M118: 0.06615980992 | N118: 0.06570897947 | O118: 21.1295346 | P118: 142.2124536 | Q118: 2336.586454 | R118: 41.75025434 | S118: 89.9000505 | U118: 415.7386597 | V118: 142.7386597 | W118: 417.2700577 | X118: 144.2700577 | Y118: 4506.238612 | Z118: 308.7208909 | AA118: 35.72089094 | AB118: 307.3322847 | AC118: 34.33228467 | AD118: 298.0523495 | AE118: 25.05234948 | AF118: 0.0006084594585 | AG118: 6.307986447e-07 | AH118: 964.5858685 | AI118: 0.1225088946 | AJ118: 9.381883114 | AK118: 245297.7421 | AO118: 2100.467809 | AQ118: 2890.86109 | AR118: 9.482311788 | AS118: 1006.381107 | AT118: 1.17256962 | AU118: 0.02626090613 | AV118: 1.8471769e-05 | AW118: 0.7078826314 | AX118: 1.57532386e-05 | AY118: 11941212.05 | AZ118: 8452976.608 | BA118: 25.83048371 | BB118: 3.570167937 | BC118: 0.0514758529 | BD118: 195.9277216 | BE118: 0.01593489434 | BF118: 972.3655053 | BG118: 1168.293227 | BH118: 1817.878621 | BI118: 0.001832926963 | BJ118: 0.1119385895 | BK118: 29.76666718 | BL118: 163777.5666 | BM118: 0.01608141021 | BN118: 0.995687386 | BO118: 3407.991419 | BP118: 2640.396386 | BQ118: 2690.075405 | BR118: 1422.824066 | BU118: 6.01007573 | BV118: -89.84886406 | BW118: 76.91172438 | BX118: 4.415946887 | BY118: 473.024875 | BZ118: 5852.364345 | CA118: 4506.238612 | CB118: 0.05516356639 | CC118: 0.0514758529
A119: 1.185466943 | B119: 43.5 | C119: 36.69440152 | D119: 1889.118732 | E119: 140.4908635 | F119: 308.7267479 | G119: 0.9561805897 | H119: 2.131340149 | I119: 3.384437766e-08 | J119: 126.6749067 | K119: 126.6749067 | L119: -1.705302566e-13 | M119: 0.06616276991 | N119: 0.06571189926 | O119: 21.13032105 | P119: 142.2255976 | Q119: 2336.776449 | R119: 41.78007709 | S119: 89.92987325 | U119: 415.7898939 | V119: 142.7898939 | W119: 417.3213595 | X119: 144.3213595 | Y119: 4506.655103 | Z119: 308.7267479 | AA119: 35.72674786 | AB119: 307.3378173 | AC119: 34.33781725 | AD119: 298.0523492 | AE119: 25.05234919 | AF119: 0.000608170156 | AG119: 6.305266166e-07 | AH119: 964.5431929 | AI119: 0.1225019647 | AJ119: 9.378671084 | AK119: 245414.4286 | AO119: 2100.882972 | AQ119: 2891.432477 | AR119: 9.482317935 | AS119: 1006.381216 | AT119: 1.172558818 | AU119: 0.02626111192 | AV119: 1.847189892e-05 | AW119: 0.7078821403 | AX119: 1.575349453e-05 | AY119: 11946460.55 | AZ119: 8456686.065 | BA119: 25.83388862 | BB119: 3.570666527 | BC119: 0.0514723034 | BD119: 196.0152993 | BE119: 0.01594201708 | BF119: 972.3729254 | BG119: 1168.388225 | BH119: 1817.96609 | BI119: 0.001832008549 | BJ119: 0.1119289542 | BK119: 29.755745 | BL119: 163855.4745 | BM119: 0.01607989398 | BN119: 0.9956855941 | BO119: 3408.857847 | BP119: 2641.067665 | BQ119: 2690.759314 | BR119: 1422.824066 | BU119: 6.010192889 | BV119: -89.84710666 | BW119: 76.91036429 | BX119: 4.415496053 | BY119: 473.0685945 | BZ119: 5852.905251 | CA119: 4506.655103 | CB119: 0.05580500321 | CC119: 0.0514723034
A120: 1.185466943 | B120: 44 | C120: 37.11617625 | D120: 1889.26332 | E120: 140.5423358 | F120: 308.7326035 | G120: 0.956464899 | H120: 2.131637748 | I120: 3.384437766e-08 | J120: 126.712572 | K120: 126.712572 | L120: 1.200248789e-10 | M120: 0.06616573096 | N120: 0.06571482009 | O120: 21.13110727 | P120: 142.2387402 | Q120: 2336.966423 | R120: 41.80989759 | S120: 89.95969375 | U120: 415.8410995 | V120: 142.8410995 | W120: 417.3726326 | X120: 144.3726326 | Y120: 4507.071547 | Z120: 308.7326035 | AA120: 35.73260352 | AB120: 307.3433486 | AC120: 34.34334862 | AD120: 298.0860578 | AE120: 25.08605776 | AF120: 0.0006078812601 | AG120: 6.302549709e-07 | AH120: 964.5005405 | AI120: 0.1224950377 | AJ120: 9.375463603 | AK120: 245531.062 | AO120: 2101.297564 | AQ120: 2892.003077 | AR120: 9.48232407 | AS120: 1006.381326 | AT120: 1.172548013 | AU120: 0.02626131775 | AV120: 1.847202888e-05 | AW120: 0.7078816491 | AX120: 1.575375053e-05 | AY120: 11951710.27 | AZ120: 8460396.377 | BA120: 25.83729329 | BB120: 3.571165099 | BC120: 0.0514717886 | BD120: 196.0455891 | BE120: 0.01594448056 | BF120: 972.4376223 | BG120: 1168.483211 | BH120: 1818.053559 | BI120: 0.001831090823 | BJ120: 0.1119193188 | BK120: 29.7448307 | BL120: 163933.3469 | BM120: 0.01607837937 | BN120: 0.9956838047 | BO120: 3409.72336 | BP120: 2641.738235 | BQ120: 2691.442501 | BR120: 1422.805275 | BU120: 6.010310049 | BV120: -89.84534927 | BW120: 76.90900418 | BX120: 4.415045311 | BY120: 473.1123091 | BZ120: 5853.446097 | CA120: 4507.071547 | CB120: 0.05644644003 | CC120: 0.0514717886
A121: 1.185466943 | B121: 44.5 | C121: 37.53795098 | D121: 1889.407908 | E121: 140.5938108 | F121: 308.738461 | G121: 0.9567493084 | H121: 2.131935195 | I121: 3.384437766e-08 | J121: 126.7502506 | K121: 126.7502506 | L121: -3.609557098e-12 | M121: 0.06616869141 | N121: 0.06571774033 | O121: 21.13189329 | P121: 142.2518813 | Q121: 2337.156358 | R121: 41.83973222 | S121: 89.98952839 | U121: 415.8923081 | V121: 142.8923081 | W121: 417.4239087 | X121: 144.4239087 | Y121: 4507.487944 | Z121: 308.738461 | AA121: 35.73846103 | AB121: 307.3488817 | AC121: 34.34888174 | AD121: 298.1197684 | AE121: 25.11976839 | AF121: 0.0006075925905 | AG121: 6.299835379e-07 | AH121: 964.4578848 | AI121: 0.1224881094 | AJ121: 9.372258669 | AK121: 245647.7147 | AO121: 2101.711841 | AQ121: 2892.573244 | AR121: 9.482330198 | AS121: 1006.381435 | AT121: 1.17253721 | AU121: 0.02626152353 | AV121: 1.84721588e-05 | AW121: 0.707881158 | AX121: 1.575400648e-05 | AY121: 11956958.73 | AZ121: 8464105.792 | BA121: 25.84069612 | BB121: 3.571663417 | BC121: 0.05147127281 | BD121: 196.0758797 | BE121: 0.01594694411 | BF121: 972.5022991 | BG121: 1168.578179 | BH121: 1818.14098 | BI121: 0.001830174301 | BJ121: 0.1119096888 | BK121: 29.7339304 | BL121: 164011.2323 | BM121: 0.01607686544 | BN121: 0.9956820166 | BO121: 3410.5885 | BP121: 2642.408516 | BQ121: 2692.125394 | BR121: 1422.786485 | BU121: 6.010427209 | BV121: -89.84359187 | BW121: 76.90764408 | BX121: 4.414594661 | BY121: 473.1560188 | BZ121: 5853.986883 | CA121: 4507.487944 | CB121: 0.05708787684 | CC121: 0.05147127281
A122: 1.185466943 | B122: 45 | C122: 37.95972571 | D122: 1889.552488 | E122: 140.6452855 | F122: 308.74432 | G122: 0.9570338149 | H122: 2.132232652 | I122: 3.384437766e-08 | J122: 126.787942 | K122: 126.787942 | L122: -5.258016245e-12 | M122: 0.06617165308 | N122: 0.06572066177 | O122: 21.13267934 | P122: 142.2650209 | Q122: 2337.346254 | R122: 41.8695806 | S122: 90.01937676 | U122: 415.9435169 | V122: 142.9435169 | W122: 417.475185 | X122: 144.475185 | Y122: 4507.904295 | Z122: 308.74432 | AA122: 35.74432 | AB122: 307.3544162 | AC122: 34.35441622 | AD122: 298.15348 | AE122: 25.15348001 | AF122: 0.0006073041631 | AG122: 6.297123327e-07 | AH122: 964.4152282 | AI122: 0.1224811802 | AJ122: 9.369056457 | AK122: 245764.3804 | AO122: 2102.125782 | AQ122: 2893.142949 | AR122: 9.48233632 | AS122: 1006.381545 | AT122: 1.172526404 | AU122: 0.02626172938 | AV122: 1.847228877e-05 | AW122: 0.7078806668 | AX122: 1.57542625e-05 | AY122: 11962208.76 | AZ122: 8467816.314 | BA122: 25.84409895 | BB122: 3.572161751 | BC122: 0.05147075643 | BD122: 196.1061681 | BE122: 0.01594940749 | BF122: 972.5669588 | BG122: 1168.673127 | BH122: 1818.228405 | BI122: 0.001829258413 | BJ122: 0.1119000582 | BK122: 29.72303733 | BL122: 164089.1263 | BM122: 0.01607535228 | BN122: 0.99568023 | BO122: 3411.453217 | BP122: 2643.07847 | BQ122: 2692.807952 | BR122: 1422.767694 | BU122: 6.010544368 | BV122: -89.84183448 | BW122: 76.90628396 | BX122: 4.414144103 | BY122: 473.1997236 | BZ122: 5854.527608 | CA122: 4507.904295 | CB122: 0.05772931366 | CC122: 0.05147075643
A123: 1.185466943 | B123: 45.5 | C123: 38.38150044 | D123: 1889.69706 | E123: 140.6967599 | F123: 308.7501804 | G123: 0.9573184176 | H123: 2.132530096 | I123: 3.384437766e-08 | J123: 126.8256462 | K123: 126.8256462 | L123: 2.458477866e-12 | M123: 0.06617461581 | N123: 0.06572358425 | O123: 21.13346538 | P123: 142.278159 | Q123: 2337.536112 | R123: 41.8994426 | S123: 90.04923877 | U123: 415.9947258 | V123: 142.9947258 | W123: 417.5264614 | X123: 144.5264614 | Y123: 4508.320599 | Z123: 308.7501804 | AA123: 35.75018045 | AB123: 307.3599521 | AC123: 34.35995209 | AD123: 298.1871926 | AE123: 25.18719259 | AF123: 0.0006070159776 | AG123: 6.29441355e-07 | AH123: 964.3725707 | AI123: 0.1224742501 | AJ123: 9.365856966 | AK123: 245881.0589 | AO123: 2102.539387 | AQ123: 2893.71219 | AR123: 9.482342433 | AS123: 1006.381654 | AT123: 1.172515596 | AU123: 0.02626193528 | AV123: 1.847241876e-05 | AW123: 0.7078801755 | AX123: 1.575451859e-05 | AY123: 11967459.99 | AZ123: 8471527.675 | BA123: 25.84750152 | BB123: 3.572660064 | BC123: 0.05147023945 | BD123: 196.1364543 | BE123: 0.01595187068 | BF123: 972.6316017 | BG123: 1168.768056 | BH123: 1818.315831 | BI123: 0.001828343208 | BJ123: 0.1118904276 | BK123: 29.71215209 | BL123: 164167.0288 | BM123: 0.01607383989 | BN123: 0.9956784448 | BO123: 3412.317513 | BP123: 2643.748097 | BQ123: 2693.490178 | BR123: 1422.748904 | BU123: 6.010661528 | BV123: -89.84007708 | BW123: 76.90492384 | BX123: 4.413693636 | BY123: 473.2434235 | BZ123: 5855.068272 | CA123: 4508.320599 | CB123: 0.05837075048 | CC123: 0.05147023945
A124: 1.185466943 | B124: 46 | C124: 38.80327517 | D124: 1889.841624 | E124: 140.748234 | F124: 308.7560424 | G124: 0.9576031167 | H124: 2.13282753 | I124: 3.384437766e-08 | J124: 126.8633632 | K124: 126.8633632 | L124: -4.00746103e-12 | M124: 0.06617757961 | N124: 0.06572650778 | O124: 21.13425142 | P124: 142.2912957 | Q124: 2337.725932 | R124: 41.92931825 | S124: 90.07911441 | U124: 416.045935 | V124: 143.045935 | W124: 417.5777379 | X124: 144.5777379 | Y124: 4508.736856 | Z124: 308.7560424 | AA124: 35.75604237 | AB124: 307.3654893 | AC124: 34.36548934 | AD124: 298.2209061 | AE124: 25.22090615 | AF124: 0.0006067280338 | AG124: 6.291706045e-07 | AH124: 964.3299122 | AI124: 0.122467319 | AJ124: 9.362660193 | AK124: 245997.7503 | AO124: 2102.952655 | AQ124: 2894.28097 | AR124: 9.48234854 | AS124: 1006.381764 | AT124: 1.172504786 | AU124: 0.02626214123 | AV124: 1.847254879e-05 | AW124: 0.7078796841 | AX124: 1.575477475e-05 | AY124: 11972712.43 | AZ124: 8475239.892 | BA124: 25.85090386 | BB124: 3.573158359 | BC124: 0.05146972188 | BD124: 196.1667383 | BE124: 0.01595433369 | BF124: 972.6962277 | BG124: 1168.862966 | BH124: 1818.403258 | BI124: 0.001827428687 | BJ124: 0.1118807969 | BK124: 29.70127465 | BL124: 164244.94 | BM124: 0.01607232825 | BN124: 0.9956766611 | BO124: 3413.181386 | BP124: 2644.417397 | BQ124: 2694.172071 | BR124: 1422.730115 | BU124: 6.010778688 | BV124: -89.83831969 | BW124: 76.90356371 | BX124: 4.413243262 | BY124: 473.2871185 | BZ124: 5855.608877 | CA124: 4508.736856 | CB124: 0.0590121873 | CC124: 0.05146972188
A125: 1.185466943 | B125: 46.5 | C125: 39.2250499 | D125: 1889.986179 | E125: 140.7997079 | F125: 308.7619058 | G125: 0.9578879121 | H125: 2.133124952 | I125: 3.384437766e-08 | J125: 126.9010929 | K125: 126.9010929 | L125: -3.169020601e-12 | M125: 0.06618054446 | N125: 0.06572943235 | O125: 21.13503746 | P125: 142.3044309 | Q125: 2337.915714 | R125: 41.95920754 | S125: 90.1090037 | U125: 416.0971443 | V125: 143.0971443 | W125: 417.6290146 | X125: 144.6290146 | Y125: 4509.153068 | Z125: 308.7619058 | AA125: 35.76190577 | AB125: 307.371028 | AC125: 34.37102797 | AD125: 298.2546207 | AE125: 25.25462068 | AF125: 0.0006064403313 | AG125: 6.28900081e-07 | AH125: 964.2872527 | AI125: 0.122460387 | AJ125: 9.359466133 | AK125: 246114.4545 | AO125: 2103.365589 | AQ125: 2894.849287 | AR125: 9.482354639 | AS125: 1006.381874 | AT125: 1.172493972 | AU125: 0.02626234724 | AV125: 1.847267885e-05 | AW125: 0.7078791925 | AX125: 1.575503098e-05 | AY125: 11977966.09 | AZ125: 8478952.963 | BA125: 25.85430596 | BB125: 3.573656636 | BC125: 0.05146920371 | BD125: 196.1970201 | BE125: 0.01595679652 | BF125: 972.7608368 | BG125: 1168.957857 | BH125: 1818.490684 | BI125: 0.001826514847 | BJ125: 0.1118711662 | BK125: 29.690405 | BL125: 164322.8597 | BM125: 0.01607081738 | BN125: 0.9956748788 | BO125: 3414.044839 | BP125: 2645.086371 | BQ125: 2694.853632 | BR125: 1422.711326 | BU125: 6.010895847 | BV125: -89.83656229 | BW125: 76.90220357 | BX125: 4.41279298 | BY125: 473.3308087 | BZ125: 5856.14942 | CA125: 4509.153068 | CB125: 0.05965362412 | CC125: 0.05146920371
A126: 1.185466943 | B126: 47 | C126: 39.64682463 | D126: 1890.130727 | E126: 140.8511815 | F126: 308.7677706 | G126: 0.958172804 | H126: 2.133422364 | I126: 3.384437766e-08 | J126: 126.9388354 | K126: 126.9388354 | L126: 9.805489753e-13 | M126: 0.06618351037 | N126: 0.06573235797 | O126: 21.1358235 | P126: 142.3175647 | Q126: 2338.105457 | R126: 41.98911047 | S126: 90.13890664 | U126: 416.1483538 | V126: 143.1483538 | W126: 417.6802914 | X126: 144.6802914 | Y126: 4509.569232 | Z126: 308.7677706 | AA126: 35.76777064 | AB126: 307.376568 | AC126: 34.376568 | AD126: 298.2883362 | AE126: 25.28833618 | AF126: 0.00060615287 | AG126: 6.286297842e-07 | AH126: 964.2445923 | AI126: 0.1224534541 | AJ126: 9.356274784 | AK126: 246231.1716 | AO126: 2103.778186 | AQ126: 2895.417143 | AR126: 9.48236073 | AS126: 1006.381983 | AT126: 1.172483157 | AU126: 0.02626255329 | AV126: 1.847280895e-05 | AW126: 0.7078787009 | AX126: 1.575528726e-05 | AY126: 11983220.96 | AZ126: 8482666.889 | BA126: 25.85770783 | BB126: 3.574154894 | BC126: 0.05146868496 | BD126: 196.2272997 | BE126: 0.01595925918 | BF126: 972.8254289 | BG126: 1169.052729 | BH126: 1818.578111 | BI126: 0.001825601688 | BJ126: 0.1118615355 | BK126: 29.67954313 | BL126: 164400.7881 | BM126: 0.01606930728 | BN126: 0.9956730979 | BO126: 3414.907872 | BP126: 2645.755019 | BQ126: 2695.534861 | BR126: 1422.692538 | BU126: 6.011013007 | BV126: -89.8348049 | BW126: 76.90084343 | BX126: 4.41234279 | BY126: 473.3744939 | BZ126: 5856.689904 | CA126: 4509.569232 | CB126: 0.06029506094 | CC126: 0.05146868496
A127: 1.185466943 | B127: 47.5 | C127: 40.06859936 | D127: 1890.275266 | E127: 140.9026549 | F127: 308.773637 | G127: 0.9584577923 | H127: 2.133719764 | I127: 3.384437766e-08 | J127: 126.9765907 | K127: 126.9765907 | L127: 2.827960088e-12 | M127: 0.06618647735 | N127: 0.06573528463 | O127: 21.13660954 | P127: 142.3306969 | Q127: 2338.295163 | R127: 42.01902706 | S127: 90.16882322 | U127: 416.1995634 | V127: 143.1995634 | W127: 417.7315684 | X127: 144.7315684 | Y127: 4509.98535 | Z127: 308.773637 | AA127: 35.77363699 | AB127: 307.3821094 | AC127: 34.3821094 | AD127: 298.3220527 | AE127: 25.32205265 | AF127: 0.0006058656494 | AG127: 6.283597138e-07 | AH127: 964.201931 | AI127: 0.1224465202 | AJ127: 9.353086144 | AK127: 246347.9015 | AO127: 2104.190449 | AQ127: 2895.984537 | AR127: 9.482366814 | AS127: 1006.382093 | AT127: 1.172472338 | AU127: 0.02626275939 | AV127: 1.847293907e-05 | AW127: 0.7078782091 | AX127: 1.575554362e-05 | AY127: 11988477.06 | AZ127: 8486381.671 | BA127: 25.86110946 | BB127: 3.574653134 | BC127: 0.05146816561 | BD127: 196.2575771 | BE127: 0.01596172165 | BF127: 972.8900042 | BG127: 1169.147581 | BH127: 1818.665538 | BI127: 0.001824689208 | BJ127: 0.1118519048 | BK127: 29.66868902 | BL127: 164478.725 | BM127: 0.01606779793 | BN127: 0.9956713185 | BO127: 3415.770484 | BP127: 2646.423342 | BQ127: 2696.215758 | BR127: 1422.67375 | BU127: 6.011130166 | BV127: -89.8330475 | BW127: 76.89948328 | BX127: 4.411892691 | BY127: 473.4181743 | BZ127: 5857.230326 | CA127: 4509.98535 | CB127: 0.06093649775 | CC127: 0.05146816561
A128: 1.185466943 | B128: 48 | C128: 40.49037409 | D128: 1890.419796 | E128: 140.954128 | F128: 308.7795048 | G128: 0.958742877 | H128: 2.134017154 | I128: 3.384437766e-08 | J128: 127.0143588 | K128: 127.0143588 | L128: -4.689582056e-12 | M128: 0.06618944538 | N128: 0.06573821233 | O128: 21.13739558 | P128: 142.3438277 | Q128: 2338.48483 | R128: 42.04895731 | S128: 90.19875347 | U128: 416.2507732 | V128: 143.2507732 | W128: 417.7828455 | X128: 144.7828455 | Y128: 4510.401422 | Z128: 308.7795048 | AA128: 35.77950482 | AB128: 307.3876522 | AC128: 34.38765219 | AD128: 298.3557701 | AE128: 25.3557701 | AF128: 0.0006055786693 | AG128: 6.280898696e-07 | AH128: 964.1592687 | AI128: 0.1224395854 | AJ128: 9.349900208 | AK128: 246464.6443 | AO128: 2104.602377 | AQ128: 2896.551472 | AR128: 9.482372891 | AS128: 1006.382203 | AT128: 1.172461518 | AU128: 0.02626296554 | AV128: 1.847306923e-05 | AW128: 0.7078777173 | AX128: 1.575580004e-05 | AY128: 11993734.37 | AZ128: 8490097.308 | BA128: 25.86451086 | BB128: 3.575151355 | BC128: 0.05146764567 | BD128: 196.2878523 | BE128: 0.01596418395 | BF128: 972.9545626 | BG128: 1169.242415 | BH128: 1818.752965 | BI128: 0.001823777406 | BJ128: 0.111842274 | BK128: 29.65784266 | BL128: 164556.6704 | BM128: 0.01606628935 | BN128: 0.9956695405 | BO128: 3416.632677 | BP128: 2647.09134 | BQ128: 2696.896324 | BR128: 1422.654963 | BU128: 6.011247326 | BV128: -89.83129011 | BW128: 76.89812312 | BX128: 4.411442684 | BY128: 473.4618498 | BZ128: 5857.770689 | CA128: 4510.401422 | CB128: 0.06157793457 | CC128: 0.05146764567
A129: 1.185466943 | B129: 48.5 | C129: 40.91214882 | D129: 1890.564319 | E129: 141.0056009 | F129: 308.7853741 | G129: 0.9590280583 | H129: 2.134314533 | I129: 3.384437766e-08 | J129: 127.0521396 | K129: 127.0521396 | L129: -1.449507181e-12 | M129: 0.06619241447 | N129: 0.06574114108 | O129: 21.13818161 | P129: 142.3569571 | Q129: 2338.674459 | R129: 42.07890122 | S129: 90.22869738 | U129: 416.3019832 | V129: 143.3019832 | W129: 417.8341228 | X129: 144.8341228 | Y129: 4510.817446 | Z129: 308.7853741 | AA129: 35.78537413 | AB129: 307.3931964 | AC129: 34.39319637 | AD129: 298.3894885 | AE129: 25.38948852 | AF129: 0.0006052919296 | AG129: 6.278202513e-07 | AH129: 964.1166055 | AI129: 0.1224326496 | AJ129: 9.346716974 | AK129: 246581.3999 | AO129: 2105.013971 | AQ129: 2897.117946 | AR129: 9.482378961 | AS129: 1006.382312 | AT129: 1.172450694 | AU129: 0.02626317175 | AV129: 1.847319941e-05 | AW129: 0.7078772253 | AX129: 1.575605652e-05 | AY129: 11998992.9 | AZ129: 8493813.8 | BA129: 25.86791202 | BB129: 3.575649559 | BC129: 0.05146712514 | BD129: 196.3181253 | BE129: 0.01596664606 | BF129: 973.019104 | BG129: 1169.337229 | BH129: 1818.840393 | BI129: 0.001822866281 | BJ129: 0.1118326432 | BK129: 29.64700403 | BL129: 164634.6245 | BM129: 0.01606478153 | BN129: 0.995667764 | BO129: 3417.49445 | BP129: 2647.759013 | BQ129: 2697.576559 | BR129: 1422.636176 | BU129: 6.011364486 | BV129: -89.82953271 | BW129: 76.89676295 | BX129: 4.41099277 | BY129: 473.5055204 | BZ129: 5858.310991 | CA129: 4510.817446 | CB129: 0.06221937139 | CC129: 0.05146712514
A130: 1.185466943 | B130: 49 | C130: 41.33392355 | D130: 1890.708834 | E130: 141.0570735 | F130: 308.7912449 | G130: 0.9593133361 | H130: 2.134611901 | I130: 3.384437766e-08 | J130: 127.0899332 | K130: 127.0899332 | L130: 4.97379915e-13 | M130: 0.06619538462 | N130: 0.06574407087 | O130: 21.13896765 | P130: 142.3700849 | Q130: 2338.864049 | R130: 42.10885879 | S130: 90.25865495 | U130: 416.3531934 | V130: 143.3531934 | W130: 417.8854002 | X130: 144.8854002 | Y130: 4511.233425 | Z130: 308.7912449 | AA130: 35.79124492 | AB130: 307.3987419 | AC130: 34.39874194 | AD130: 298.4232079 | AE130: 25.4232079 | AF130: 0.0006050054297 | AG130: 6.275508587e-07 | AH130: 964.0739413 | AI130: 0.122425713 | AJ130: 9.34353644 | AK130: 246698.1683 | AO130: 2105.425231 | AQ130: 2897.68396 | AR130: 9.482385024 | AS130: 1006.382422 | AT130: 1.172439869 | AU130: 0.026263378 | AV130: 1.847332963e-05 | AW130: 0.7078767332 | AX130: 1.575631308e-05 | AY130: 12004252.65 | AZ130: 8497531.149 | BA130: 25.87131294 | BB130: 3.576147744 | BC130: 0.05146660402 | BD130: 196.3483961 | BE130: 0.015969108 | BF130: 973.0836285 | BG130: 1169.432025 | BH130: 1818.927821 | BI130: 0.001821955832 | BJ130: 0.1118230124 | BK130: 29.63617311 | BL130: 164712.587 | BM130: 0.01606327447 | BN130: 0.9956659889 | BO130: 3418.355805 | BP130: 2648.426361 | BQ130: 2698.256464 | BR130: 1422.61739 | BU130: 6.011481645 | BV130: -89.82777532 | BW130: 76.89540278 | BX130: 4.410542947 | BY130: 473.5491861 | BZ130: 5858.851232 | CA130: 4511.233425 | CB130: 0.06286080821 | CC130: 0.05146660402
A131: 1.185466943 | B131: 49.5 | C131: 41.75569828 | D131: 1890.85334 | E131: 141.1085458 | F131: 308.7971172 | G131: 0.9595987104 | H131: 2.134909258 | I131: 3.384437766e-08 | J131: 127.1277397 | K131: 127.1277397 | L131: -1.705302566e-13 | M131: 0.06619835584 | N131: 0.0657470017 | O131: 21.13975369 | P131: 142.3832113 | Q131: 2339.053602 | R131: 42.13883004 | S131: 90.2886262 | U131: 416.4044037 | V131: 143.4044037 | W131: 417.9366777 | X131: 144.9366777 | Y131: 4511.649357 | Z131: 308.7971172 | AA131: 35.79711718 | AB131: 307.4042889 | AC131: 34.40428889 | AD131: 298.4569283 | AE131: 25.45692826 | AF131: 0.0006047191696 | AG131: 6.272816915e-07 | AH131: 964.0312762 | AI131: 0.1224187754 | AJ131: 9.340358601 | AK131: 246814.9496 | AO131: 2105.836157 | AQ131: 2898.249515 | AR131: 9.482391079 | AS131: 1006.382532 | AT131: 1.172429041 | AU131: 0.02626358431 | AV131: 1.847345989e-05 | AW131: 0.707876241 | AX131: 1.575656969e-05 | AY131: 12009513.61 | AZ131: 8501249.353 | BA131: 25.87471364 | BB131: 3.576645911 | BC131: 0.05146608231 | BD131: 196.3786647 | BE131: 0.01597156976 | BF131: 973.1481362 | BG131: 1169.526801 | BH131: 1819.015249 | BI131: 0.001821046058 | BJ131: 0.1118133815 | BK131: 29.6253499 | BL131: 164790.5582 | BM131: 0.01606176817 | BN131: 0.9956642152 | BO131: 3419.216742 | BP131: 2649.093386 | BQ131: 2698.936039 | BR131: 1422.598604 | BU131: 6.011598805 | BV131: -89.82601792 | BW131: 76.89404259 | BX131: 4.410093216 | BY131: 473.5928469 | BZ131: 5859.391413 | CA131: 4511.649357 | CB131: 0.06350224503 | CC131: 0.05146608231
A132: 1.185466943 | B132: 50 | C132: 42.17747301 | D132: 1890.997838 | E132: 141.1600179 | F132: 308.8029909 | G132: 0.9598841814 | H132: 2.135206605 | I132: 3.384437766e-08 | J132: 127.1655589 | K132: 127.1655589 | L132: 1.847411113e-12 | M132: 0.06620132811 | N132: 0.06574993358 | O132: 21.14053972 | P132: 142.3963363 | Q132: 2339.243116 | R132: 42.16881496 | S132: 90.31861112 | U132: 416.4556142 | V132: 143.4556142 | W132: 417.9879553 | X132: 144.9879553 | Y132: 4512.065242 | Z132: 308.8029909 | AA132: 35.80299093 | AB132: 307.4098372 | AC132: 34.40983723 | AD132: 298.4906496 | AE132: 25.49064959 | AF132: 0.0006044331489 | AG132: 6.270127495e-07 | AH132: 963.9886101 | AI132: 0.1224118368 | AJ132: 9.337183456 | AK132: 246931.7436 | AO132: 2106.246749 | AQ132: 2898.814611 | AR132: 9.482397127 | AS132: 1006.382642 | AT132: 1.17241821 | AU132: 0.02626379067 | AV132: 1.847359017e-05 | AW132: 0.7078757487 | AX132: 1.575682638e-05 | AY132: 12014775.8 | AZ132: 8504968.414 | BA132: 25.87811409 | BB132: 3.57714406 | BC132: 0.05146556 | BD132: 196.408931 | BE132: 0.01597403133 | BF132: 973.2126269 | BG132: 1169.621558 | BH132: 1819.102678 | BI132: 0.001820136958 | BJ132: 0.1118037506 | BK132: 29.61453437 | BL132: 164868.5379 | BM132: 0.01606026263 | BN132: 0.995662443 | BO132: 3420.077261 | BP132: 2649.760087 | BQ132: 2699.615284 | BR132: 1422.579819 | BU132: 6.011715965 | BV132: -89.82426053 | BW132: 76.89268241 | BX132: 4.409643576 | BY132: 473.6365029 | BZ132: 5859.931534 | CA132: 4512.065242 | CB132: 0.06414368185 | CC132: 0.05146556
A133: 1.185466943 | B133: 50.5 | C133: 42.59924774 | D133: 1891.142328 | E133: 141.2114897 | F133: 308.8088662 | G133: 0.9601697491 | H133: 2.135503941 | I133: 3.384437766e-08 | J133: 127.2033909 | K133: 127.2033909 | L133: -1.563194019e-12 | M133: 0.06620430144 | N133: 0.0657528665 | O133: 21.14132575 | P133: 142.4094597 | Q133: 2339.432592 | R133: 42.19881356 | S133: 90.34860973 | U133: 416.5068249 | V133: 143.5068249 | W133: 418.0392331 | X133: 145.0392331 | Y133: 4512.481081 | Z133: 308.8088662 | AA133: 35.80886615 | AB133: 307.415387 | AC133: 34.41538695 | AD133: 298.5243719 | AE133: 25.52437188 | AF133: 0.0006041473674 | AG133: 6.267440324e-07 | AH133: 963.9459431 | AI133: 0.1224048974 | AJ133: 9.334011 | AK133: 247048.5504 | AO133: 2106.657009 | AQ133: 2899.379249 | AR133: 9.482403167 | AS133: 1006.382752 | AT133: 1.172407377 | AU133: 0.02626399708 | AV133: 1.847372049e-05 | AW133: 0.7078752562 | AX133: 1.575708312e-05 | AY133: 12020039.2 | AZ133: 8508688.332 | BA133: 25.88151431 | BB133: 3.577642191 | BC133: 0.05146503711 | BD133: 196.4391952 | BE133: 0.01597649273 | BF133: 973.2771007 | BG133: 1169.716296 | BH133: 1819.190107 | BI133: 0.00181922853 | BJ133: 0.1117941196 | BK133: 29.60372652 | BL133: 164946.5261 | BM133: 0.01605875784 | BN133: 0.9956606722 | BO133: 3420.937362 | BP133: 2650.426464 | BQ133: 2700.294199 | BR133: 1422.561035 | BU133: 6.011833124 | BV133: -89.82250313 | BW133: 76.89132221 | BX133: 4.409194028 | BY133: 473.6801539 | BZ133: 5860.471594 | CA133: 4512.481081 | CB133: 0.06478511867 | CC133: 0.05146503711
A134: 1.185466943 | B134: 51 | C134: 43.02102247 | D134: 1891.286809 | E134: 141.2629612 | F134: 308.8147429 | G134: 0.9604554134 | H134: 2.135801265 | I134: 3.384437766e-08 | J134: 127.2412358 | K134: 127.2412358 | L134: 1.094235813e-12 | M134: 0.06620727583 | N134: 0.06575580047 | O134: 21.14211179 | P134: 142.4225817 | Q134: 2339.62203 | R134: 42.22882585 | S134: 90.37862201 | U134: 416.5580357 | V134: 143.5580357 | W134: 418.0905111 | X134: 145.0905111 | Y134: 4512.896873 | Z134: 308.8147429 | AA134: 35.81474286 | AB134: 307.4209381 | AC134: 34.42093807 | AD134: 298.5580951 | AE134: 25.55809515 | AF134: 0.0006038618247 | AG134: 6.264755399e-07 | AH134: 963.9032751 | AI134: 0.122397957 | AJ134: 9.330841232 | AK134: 247165.37 | AO134: 2107.066936 | AQ134: 2899.943428 | AR134: 9.482409201 | AS134: 1006.382862 | AT134: 1.172396541 | AU134: 0.02626420353 | AV134: 1.847385084e-05 | AW134: 0.7078747637 | AX134: 1.575733994e-05 | AY134: 12025303.83 | AZ134: 8512409.106 | BA134: 25.8849143 | BB134: 3.578140304 | BC134: 0.05146451362 | BD134: 196.4694572 | BE134: 0.01597895395 | BF134: 973.3415576 | BG134: 1169.811015 | BH134: 1819.277536 | BI134: 0.001818320773 | BJ134: 0.1117844887 | BK134: 29.59292631 | BL134: 165024.5229 | BM134: 0.01605725382 | BN134: 0.9956589029 | BO134: 3421.797047 | BP134: 2651.092519 | BQ134: 2700.972786 | BR134: 1422.54225 | BU134: 6.011950284 | BV134: -89.82074574 | BW134: 76.88996201 | BX134: 4.408744572 | BY134: 473.7238001 | BZ134: 5861.011594 | CA134: 4512.896873 | CB134: 0.06542655548 | CC134: 0.05146451362
A135: 1.185466943 | B135: 51.5 | C135: 43.4427972 | D135: 1891.431283 | E135: 141.3144325 | F135: 308.820621 | G135: 0.9607411745 | H135: 2.13609858 | I135: 3.384437766e-08 | J135: 127.2790934 | K135: 127.2790934 | L135: 6.124878382e-12 | M135: 0.06621025128 | N135: 0.06575873548 | O135: 21.14289782 | P135: 142.4357023 | Q135: 2339.811429 | R135: 42.25885183 | S135: 90.40864799 | U135: 416.6092467 | V135: 143.6092467 | W135: 418.1417892 | X135: 145.1417892 | Y135: 4513.312619 | Z135: 308.820621 | AA135: 35.82062105 | AB135: 307.4264906 | AC135: 34.42649057 | AD135: 298.5918194 | AE135: 25.59181938 | AF135: 0.0006035765206 | AG135: 6.262072718e-07 | AH135: 963.8606061 | AI135: 0.1223910156 | AJ135: 9.327674147 | AK135: 247282.2024 | AO135: 2107.47653 | AQ135: 2900.50715 | AR135: 9.482415227 | AS135: 1006.382972 | AT135: 1.172385702 | AU135: 0.02626441004 | AV135: 1.847398122e-05 | AW135: 0.7078742711 | AX135: 1.575759682e-05 | AY135: 12030569.67 | AZ135: 8516130.737 | BA135: 25.88831406 | BB135: 3.578638399 | BC135: 0.05146398955 | BD135: 196.4997169 | BE135: 0.015981415 | BF135: 973.4059976 | BG135: 1169.905715 | BH135: 1819.364965 | BI135: 0.001817413687 | BJ135: 0.1117748576 | BK135: 29.58213375 | BL135: 165102.5282 | BM135: 0.01605575055 | BN135: 0.9956571349 | BO135: 3422.656315 | BP135: 2651.758251 | BQ135: 2701.651044 | BR135: 1422.523467 | BU135: 6.012067444 | BV135: -89.81898835 | BW135: 76.88860179 | BX135: 4.408295208 | BY135: 473.7674414 | BZ135: 5861.551533 | CA135: 4513.312619 | CB135: 0.0660679923 | CC135: 0.05146398955
A136: 1.185466943 | B136: 52 | C136: 43.86457193 | D136: 1891.575748 | E136: 141.3659036 | F136: 308.8265007 | G136: 0.9610270323 | H136: 2.136395883 | I136: 3.384437766e-08 | J136: 127.3169639 | K136: 127.3169639 | L136: -4.590106073e-12 | M136: 0.06621322779 | N136: 0.06576167153 | O136: 21.14368385 | P136: 142.4488213 | Q136: 2340.00079 | R136: 42.28889151 | S136: 90.43868767 | U136: 416.6604578 | V136: 143.6604578 | W136: 418.1930674 | X136: 145.1930674 | Y136: 4513.728318 | Z136: 308.8265007 | AA136: 35.82650072 | AB136: 307.4320445 | AC136: 34.43204447 | AD136: 298.6255446 | AE136: 25.62554458 | AF136: 0.0006032914548 | AG136: 6.259392279e-07 | AH136: 963.8179362 | AI136: 0.1223840734 | AJ136: 9.324509744 | AK136: 247399.0476 | AO136: 2107.885792 | AQ136: 2901.070415 | AR136: 9.482421246 | AS136: 1006.383082 | AT136: 1.172374862 | AU136: 0.0262646166 | AV136: 1.847411163e-05 | AW136: 0.7078737783 | AX136: 1.575785376e-05 | AY136: 12035836.74 | AZ136: 8519853.226 | BA136: 25.89171358 | BB136: 3.579136476 | BC136: 0.05146346488 | BD136: 196.5299745 | BE136: 0.01598387586 | BF136: 973.4704207 | BG136: 1170.000395 | BH136: 1819.452395 | BI136: 0.001816507269 | BJ136: 0.1117652266 | BK136: 29.57134882 | BL136: 165180.542 | BM136: 0.01605424804 | BN136: 0.9956553684 | BO136: 3423.515168 | BP136: 2652.423661 | BQ136: 2702.328973 | BR136: 1422.504684 | BU136: 6.012184603 | BV136: -89.81723095 | BW136: 76.88724158 | BX136: 4.407845935 | BY136: 473.8110778 | BZ136: 5862.091412 | CA136: 4513.728318 | CB136: 0.06670942912 | CC136: 0.05146346488
A137: 1.185466943 | B137: 52.5 | C137: 44.28634666 | D137: 1891.720205 | E137: 141.4173743 | F137: 308.8323819 | G137: 0.961312987 | H137: 2.136693176 | I137: 3.384437766e-08 | J137: 127.3548472 | K137: 127.3548472 | L137: -5.016431714e-12 | M137: 0.06621620536 | N137: 0.06576460862 | O137: 21.14446988 | P137: 142.4619389 | Q137: 2340.190113 | R137: 42.31894488 | S137: 90.46874104 | U137: 416.7116691 | V137: 143.7116691 | W137: 418.2443457 | X137: 145.2443457 | Y137: 4514.143971 | Z137: 308.8323819 | AA137: 35.83238187 | AB137: 307.4375997 | AC137: 34.43759975 | AD137: 298.6592708 | AE137: 25.65927075 | AF137: 0.0006030066271 | AG137: 6.256714078e-07 | AH137: 963.7752654 | AI137: 0.1223771302 | AJ137: 9.321348018 | AK137: 247515.9055 | AO137: 2108.294722 | AQ137: 2901.633224 | AR137: 9.482427257 | AS137: 1006.383192 | AT137: 1.172364018 | AU137: 0.02626482321 | AV137: 1.847424207e-05 | AW137: 0.7078732854 | AX137: 1.575811078e-05 | AY137: 12041105.02 | AZ137: 8523576.571 | BA137: 25.89511287 | BB137: 3.579634535 | BC137: 0.05146293963 | BD137: 196.5602299 | BE137: 0.01598633654 | BF137: 973.5348268 | BG137: 1170.095057 | BH137: 1819.539825 | BI137: 0.00181560152 | BJ137: 0.1117555955 | BK137: 29.5605715 | BL137: 165258.5644 | BM137: 0.01605274629 | BN137: 0.9956536033 | BO137: 3424.373605 | BP137: 2653.088749 | BQ137: 2703.006575 | BR137: 1422.485901 | BU137: 6.012301763 | BV137: -89.81547356 | BW137: 76.88588135 | BX137: 4.407396754 | BY137: 473.8547094 | BZ137: 5862.631231 | CA137: 4514.143971 | CB137: 0.06735086594 | CC137: 0.05146293963
A138: 1.185466943 | B138: 53 | C138: 44.70812139 | D138: 1891.864653 | E138: 141.4688448 | F138: 308.8382645 | G138: 0.9615990384 | H138: 2.136990458 | I138: 3.384437766e-08 | J138: 127.3927433 | K138: 127.3927433 | L138: 5.542233339e-13 | M138: 0.06621918399 | N138: 0.06576754676 | O138: 21.14525591 | P138: 142.475055 | Q138: 2340.379398 | R138: 42.34901196 | S138: 90.49880812 | U138: 416.7628806 | V138: 143.7628806 | W138: 418.2956241 | X138: 145.2956241 | Y138: 4514.559578 | Z138: 308.8382645 | AA138: 35.8382645 | AB138: 307.4431564 | AC138: 34.44315642 | AD138: 298.6929979 | AE138: 25.69299789 | AF138: 0.0006027220371 | AG138: 6.254038114e-07 | AH138: 963.7325935 | AI138: 0.1223701861 | AJ138: 9.318188968 | AK138: 247632.7762 | AO138: 2108.703321 | AQ138: 2902.195576 | AR138: 9.482433262 | AS138: 1006.383302 | AT138: 1.172353173 | AU138: 0.02626502988 | AV138: 1.847437255e-05 | AW138: 0.7078727924 | AX138: 1.575836785e-05 | AY138: 12046374.53 | AZ138: 8527300.775 | BA138: 25.89851192 | BB138: 3.580132576 | BC138: 0.05146241378 | BD138: 196.590483 | BE138: 0.01598879705 | BF138: 973.599216 | BG138: 1170.189699 | BH138: 1819.627255 | BI138: 0.001814696437 | BJ138: 0.1117459644 | BK138: 29.54980177 | BL138: 165336.5953 | BM138: 0.01605124529 | BN138: 0.9956518397 | BO138: 3425.231627 | BP138: 2653.753515 | BQ138: 2703.683849 | BR138: 1422.467119 | BU138: 6.012418923 | BV138: -89.81371616 | BW138: 76.88452112 | BX138: 4.406947665 | BY138: 473.898336 | BZ138: 5863.17099 | CA138: 4514.559578 | CB138: 0.06799230276 | CC138: 0.05146241378
A139: 1.185466943 | B139: 53.5 | C139: 45.12989612 | D139: 1892.009094 | E139: 141.520315 | F139: 308.8441486 | G139: 0.9618851868 | H139: 2.137287729 | I139: 3.384437766e-08 | J139: 127.4306523 | K139: 127.4306523 | L139: -3.97903932e-13 | M139: 0.06622216368 | N139: 0.06577048594 | O139: 21.14604193 | P139: 142.4881697 | Q139: 2340.568645 | R139: 42.37909275 | S139: 90.52888891 | U139: 416.8140922 | V139: 143.8140922 | W139: 418.3469027 | X139: 145.3469027 | Y139: 4514.975137 | Z139: 308.8441486 | AA139: 35.84414861 | AB139: 307.4487145 | AC139: 34.44871448 | AD139: 298.726726 | AE139: 25.72672599 | AF139: 0.0006024376847 | AG139: 6.251364383e-07 | AH139: 963.6899207 | AI139: 0.122363241 | AJ139: 9.315032589 | AK139: 247749.6597 | AO139: 2109.111589 | AQ139: 2902.757472 | AR139: 9.482439259 | AS139: 1006.383412 | AT139: 1.172342324 | AU139: 0.02626523659 | AV139: 1.847450306e-05 | AW139: 0.7078722993 | AX139: 1.5758625e-05 | AY139: 12051645.25 | AZ139: 8531025.837 | BA139: 25.90191075 | BB139: 3.580630599 | BC139: 0.05146188735 | BD139: 196.620734 | BE139: 0.01599125737 | BF139: 973.6635883 | BG139: 1170.284322 | BH139: 1819.714686 | BI139: 0.001813792021 | BJ139: 0.1117363333 | BK139: 29.53903962 | BL139: 165414.6346 | BM139: 0.01604974504 | BN139: 0.9956500774 | BO139: 3426.089234 | BP139: 2654.417961 | BQ139: 2704.360795 | BR139: 1422.448337 | BU139: 6.012536082 | BV139: -89.81195877 | BW139: 76.88316088 | BX139: 4.406498667 | BY139: 473.9419578 | BZ139: 5863.710687 | CA139: 4514.975137 | CB139: 0.06863373958 | CC139: 0.05146188735
A140: 1.185466943 | B140: 54 | C140: 45.55167085 | D140: 1892.153526 | E140: 141.571785 | F140: 308.8500342 | G140: 0.962171432 | H140: 2.13758499 | I140: 3.384437766e-08 | J140: 127.4685741 | K140: 127.4685741 | L140: 1.705302566e-12 | M140: 0.06622514443 | N140: 0.06577342617 | O140: 21.14682796 | P140: 142.5012829 | Q140: 2340.757853 | R140: 42.40918725 | S140: 90.55898341 | U140: 416.865304 | V140: 143.865304 | W140: 418.3981815 | X140: 145.3981815 | Y140: 4515.390651 | Z140: 308.8500342 | AA140: 35.85003421 | AB140: 307.4542739 | AC140: 34.45427394 | AD140: 298.7604551 | AE140: 25.76045506 | AF140: 0.0006021535695 | AG140: 6.248692884e-07 | AH140: 963.647247 | AI140: 0.122356295 | AJ140: 9.31187888 | AK140: 247866.5558 | AO140: 2109.519525 | AQ140: 2903.318913 | AR140: 9.482445249 | AS140: 1006.383522 | AT140: 1.172331473 | AU140: 0.02626544335 | AV140: 1.84746336e-05 | AW140: 0.7078718061 | AX140: 1.575888221e-05 | AY140: 12056917.2 | AZ140: 8534751.756 | BA140: 25.90530934 | BB140: 3.581128605 | BC140: 0.05146136032 | BD140: 196.6509828 | BE140: 0.01599371752 | BF140: 973.7279437 | BG140: 1170.378927 | BH140: 1819.802117 | BI140: 0.001812888268 | BJ140: 0.1117267021 | BK140: 29.52828504 | BL140: 165492.6825 | BM140: 0.01604824555 | BN140: 0.9956483166 | BO140: 3426.946428 | BP140: 2655.082085 | BQ140: 2705.037415 | BR140: 1422.429556 | BU140: 6.012653242 | BV140: -89.81020137 | BW140: 76.88180063 | BX140: 4.40604976 | BY140: 473.9855747 | BZ140: 5864.250325 | CA140: 4515.390651 | CB140: 0.0692751764 | CC140: 0.05146136032
A141: 1.185466943 | B141: 54.5 | C141: 45.97344558 | D141: 1892.29795 | E141: 141.6232547 | F141: 308.8559213 | G141: 0.9624577742 | H141: 2.13788224 | I141: 3.384437766e-08 | J141: 127.5065088 | K141: 127.5065088 | L141: 1.335820343e-12 | M141: 0.06622812623 | N141: 0.06577636744 | O141: 21.14761399 | P141: 142.5143946 | Q141: 2340.947023 | R141: 42.43929547 | S141: 90.58909163 | U141: 416.916516 | V141: 143.916516 | W141: 418.4494603 | X141: 145.4494603 | Y141: 4515.806118 | Z141: 308.8559213 | AA141: 35.85592129 | AB141: 307.4598348 | AC141: 34.45983478 | AD141: 298.7941851 | AE141: 25.7941851 | AF141: 0.0006018696912 | AG141: 6.246023613e-07 | AH141: 963.6045722 | AI141: 0.1223493481 | AJ141: 9.308727837 | AK141: 247983.4647 | AO141: 2109.927132 | AQ141: 2903.879899 | AR141: 9.482451232 | AS141: 1006.383632 | AT141: 1.17232062 | AU141: 0.02626565017 | AV141: 1.847476417e-05 | AW141: 0.7078713128 | AX141: 1.575913948e-05 | AY141: 12062190.37 | AZ141: 8538478.534 | BA141: 25.9087077 | BB141: 3.581626593 | BC141: 0.05146083271 | BD141: 196.6812293 | BE141: 0.01599617748 | BF141: 973.7922822 | BG141: 1170.473512 | BH141: 1819.889548 | BI141: 0.001811985179 | BJ141: 0.111717071 | BK141: 29.51753801 | BL141: 165570.7389 | BM141: 0.01604674682 | BN141: 0.9956465572 | BO141: 3427.803208 | BP141: 2655.745889 | BQ141: 2705.713709 | BR141: 1422.410776 | BU141: 6.012770402 | BV141: -89.80844398 | BW141: 76.88044037 | BX141: 4.405600945 | BY141: 474.0291867 | BZ141: 5864.789902 | CA141: 4515.806118 | CB141: 0.06991661321 | CC141: 0.05146083271
A142: 1.185466943 | B142: 55 | C142: 46.39522031 | D142: 1892.442365 | E142: 141.6747242 | F142: 308.8618099 | G142: 0.9627442134 | H142: 2.13817948 | I142: 3.384437766e-08 | J142: 127.5444562 | K142: 127.5444562 | L142: -6.195932656e-12 | M142: 0.0662311091 | N142: 0.06577930975 | O142: 21.14840001 | P142: 142.5275049 | Q142: 2341.136155 | R142: 42.46941741 | S142: 90.61921357 | U142: 416.9677281 | V142: 143.9677281 | W142: 418.5007393 | X142: 145.5007393 | Y142: 4516.221538 | Z142: 308.8618099 | AA142: 35.86180986 | AB142: 307.465397 | AC142: 34.46539702 | AD142: 298.8279161 | AE142: 25.8279161 | AF142: 0.0006015860496 | AG142: 6.243356568e-07 | AH142: 963.5618965 | AI142: 0.1223424003 | AJ142: 9.305579456 | AK142: 248100.3864 | AO142: 2110.334407 | AQ142: 2904.44043 | AR142: 9.482457208 | AS142: 1006.383742 | AT142: 1.172309764 | AU142: 0.02626585703 | AV142: 1.847489477e-05 | AW142: 0.7078708194 | AX142: 1.575939682e-05 | AY142: 12067464.76 | AZ142: 8542206.171 | BA142: 25.91210582 | BB142: 3.582124563 | BC142: 0.05146030451 | BD142: 196.7114737 | BE142: 0.01599863727 | BF142: 973.8566037 | BG142: 1170.568077 | BH142: 1819.976979 | BI142: 0.001811082753 | BJ142: 0.1117074397 | BK142: 29.50679851 | BL142: 165648.8038 | BM142: 0.01604524884 | BN142: 0.9956447992 | BO142: 3428.659574 | BP142: 2656.409373 | BQ142: 2706.389676 | BR142: 1422.391995 | BU142: 6.012887561 | BV142: -89.80668658 | BW142: 76.87908011 | BX142: 4.405152222 | BY142: 474.0727939 | BZ142: 5865.329419 | CA142: 4516.221538 | CB142: 0.07055805003 | CC142: 0.05146030451
A143: 1.185466943 | B143: 55.5 | C143: 46.81699504 | D143: 1892.586773 | E143: 141.7261933 | F143: 308.8676999 | G143: 0.9630307496 | H143: 2.138476709 | I143: 3.384437766e-08 | J143: 127.5824166 | K143: 127.5824166 | L143: -1.023181539e-12 | M143: 0.06623409303 | N143: 0.0657822531 | O143: 21.14918603 | P143: 142.5406137 | Q143: 2341.325248 | R143: 42.49955308 | S143: 90.64934924 | U143: 417.0189403 | V143: 144.0189403 | W143: 418.5520184 | X143: 145.5520184 | Y143: 4516.636912 | Z143: 308.8676999 | AA143: 35.86769991 | AB143: 307.4709606 | AC143: 34.47096065 | AD143: 298.8616481 | AE143: 25.86164807 | AF143: 0.0006013026444 | AG143: 6.240691747e-07 | AH143: 963.5192198 | AI143: 0.1223354515 | AJ143: 9.302433737 | AK143: 248217.3207 | AO143: 2110.741353 | AQ143: 2905.000507 | AR143: 9.482463177 | AS143: 1006.383853 | AT143: 1.172298906 | AU143: 0.02626606395 | AV143: 1.847502541e-05 | AW143: 0.7078703258 | AX143: 1.575965423e-05 | AY143: 12072740.38 | AZ143: 8545934.666 | BA143: 25.91550372 | BB143: 3.582622515 | BC143: 0.05145977572 | BD143: 196.7417159 | BE143: 0.01600109688 | BF143: 973.9209084 | BG143: 1170.662624 | BH143: 1820.064411 | BI143: 0.001810180987 | BJ143: 0.1116978085 | BK143: 29.49606654 | BL143: 165726.8772 | BM143: 0.01604375161 | BN143: 0.9956430426 | BO143: 3429.515528 | BP143: 2657.072537 | BQ143: 2707.065318 | BR143: 1422.373216 | BU143: 6.013004721 | BV143: -89.80492919 | BW143: 76.87771984 | BX143: 4.40470359 | BY143: 474.1163962 | BZ143: 5865.868876 | CA143: 4516.636912 | CB143: 0.07119948685 | CC143: 0.05145977572
A144: 1.185466943 | B144: 56 | C144: 47.23876977 | D144: 1892.731172 | E144: 141.7776622 | F144: 308.8735914 | G144: 0.9633173828 | H144: 2.138773928 | I144: 3.384437766e-08 | J144: 127.6203898 | K144: 127.6203898 | L144: 6.281197784e-12 | M144: 0.06623707801 | N144: 0.0657851975 | O144: 21.14997206 | P144: 142.553721 | Q144: 2341.514304 | R144: 42.52970248 | S144: 90.67949865 | U144: 417.0701528 | V144: 144.0701528 | W144: 418.6032976 | X144: 145.6032976 | Y144: 4517.05224 | Z144: 308.8735914 | AA144: 35.87359144 | AB144: 307.4765257 | AC144: 34.47652567 | AD144: 298.895381 | AE144: 25.89538101 | AF144: 0.0006010194753 | AG144: 6.238029148e-07 | AH144: 963.4765422 | AI144: 0.1223285018 | AJ144: 9.299290674 | AK144: 248334.2678 | AO144: 2111.14797 | AQ144: 2905.560131 | AR144: 9.482469139 | AS144: 1006.383963 | AT144: 1.172288045 | AU144: 0.02626627092 | AV144: 1.847515608e-05 | AW144: 0.7078698322 | AX144: 1.57599117e-05 | AY144: 12078017.22 | AZ144: 8549664.02 | BA144: 25.91890138 | BB144: 3.58312045 | BC144: 0.05145924634 | BD144: 196.7719558 | BE144: 0.01600355631 | BF144: 973.9851961 | BG144: 1170.757152 | BH144: 1820.151842 | BI144: 0.001809279881 | BJ144: 0.1116881772 | BK144: 29.48534207 | BL144: 165804.9591 | BM144: 0.01604225513 | BN144: 0.9956412875 | BO144: 3430.37107 | BP144: 2657.735382 | BQ144: 2707.740634 | BR144: 1422.354437 | BU144: 6.01312188 | BV144: -89.80317179 | BW144: 76.87635956 | BX144: 4.404255049 | BY144: 474.1599936 | BZ144: 5866.408272 | CA144: 4517.05224 | CB144: 0.07184092367 | CC144: 0.05145924634
A145: 1.185466943 | B145: 56.5 | C145: 47.6605445 | D145: 1892.875562 | E145: 141.8291309 | F145: 308.8794845 | G145: 0.9636041132 | H145: 2.139071136 | I145: 3.384437766e-08 | J145: 127.6583759 | K145: 127.6583759 | L145: -1.463718036e-12 | M145: 0.06624006406 | N145: 0.06578814294 | O145: 21.15075808 | P145: 142.5668269 | Q145: 2341.703321 | R145: 42.55986563 | S145: 90.70966179 | U145: 417.1213653 | V145: 144.1213653 | W145: 418.654577 | X145: 145.654577 | Y145: 4517.467521 | Z145: 308.8794845 | AA145: 35.87948446 | AB145: 307.4820921 | AC145: 34.48209208 | AD145: 298.9291149 | AE145: 25.92911491 | AF145: 0.0006007365421 | AG145: 6.235368766e-07 | AH145: 963.4338635 | AI145: 0.1223215511 | AJ145: 9.296150266 | AK145: 248451.2276 | AO145: 2111.554257 | AQ145: 2906.119301 | AR145: 9.482475093 | AS145: 1006.384073 | AT145: 1.172277181 | AU145: 0.02626647794 | AV145: 1.847528678e-05 | AW145: 0.7078693384 | AX145: 1.576016924e-05 | AY145: 12083295.28 | AZ145: 8553394.234 | BA145: 25.92229881 | BB145: 3.583618368 | BC145: 0.05145871637 | BD145: 196.8021936 | BE145: 0.01600601557 | BF145: 974.0494668 | BG145: 1170.85166 | BH145: 1820.239275 | BI145: 0.001808379435 | BJ145: 0.1116785459 | BK145: 29.47462509 | BL145: 165883.0494 | BM145: 0.0160407594 | BN145: 0.9956395337 | BO145: 3431.2262 | BP145: 2658.397907 | BQ145: 2708.415625 | BR145: 1422.335658 | BU145: 6.01323904 | BV145: -89.8014144 | BW145: 76.87499928 | BX145: 4.4038066 | BY145: 474.2035861 | BZ145: 5866.947608 | CA145: 4517.467521 | CB145: 0.07248236049 | CC145: 0.05145871637
A146: 1.185466943 | B146: 57 | C146: 48.08231923 | D146: 1893.019945 | E146: 141.8805993 | F146: 308.885379 | G146: 0.9638909406 | H146: 2.139368334 | I146: 3.384437766e-08 | J146: 127.6963748 | K146: 127.6963748 | L146: 3.112177183e-12 | M146: 0.06624305116 | N146: 0.06579108942 | O146: 21.1515441 | P146: 142.5799313 | Q146: 2341.8923 | R146: 42.59004251 | S146: 90.73983867 | U146: 417.1725781 | V146: 144.1725781 | W146: 418.7058564 | X146: 145.7058564 | Y146: 4517.882756 | Z146: 308.885379 | AA146: 35.88537897 | AB146: 307.4876599 | AC146: 34.48765989 | AD146: 298.9628498 | AE146: 25.96284977 | AF146: 0.0006004538445 | AG146: 6.232710601e-07 | AH146: 963.3911839 | AI146: 0.1223145996 | AJ146: 9.293012509 | AK146: 248568.2001 | AO146: 2111.960215 | AQ146: 2906.678019 | AR146: 9.48248104 | AS146: 1006.384183 | AT146: 1.172266316 | AU146: 0.02626668501 | AV146: 1.847541751e-05 | AW146: 0.7078688446 | AX146: 1.576042685e-05 | AY146: 12088574.56 | AZ146: 8557125.307 | BA146: 25.92569601 | BB146: 3.584116267 | BC146: 0.05145818581 | BD146: 196.8324292 | BE146: 0.01600847464 | BF146: 974.1137207 | BG146: 1170.94615 | BH146: 1820.326707 | BI146: 0.001807479646 | BJ146: 0.1116689145 | BK146: 29.46391559 | BL146: 165961.1483 | BM146: 0.01603926443 | BN146: 0.9956377814 | BO146: 3432.080918 | BP146: 2659.060114 | BQ146: 2709.090291 | BR146: 1422.31688 | BU146: 6.0133562 | BV146: -89.799657 | BW146: 76.87363898 | BX146: 4.403358242 | BY146: 474.2471737 | BZ146: 5867.486884 | CA146: 4517.882756 | CB146: 0.07312379731 | CC146: 0.05145818581
A147: 1.185466943 | B147: 57.5 | C147: 48.50409396 | D147: 1893.164319 | E147: 141.9320674 | F147: 308.891275 | G147: 0.9641778653 | H147: 2.139665521 | I147: 3.384437766e-08 | J147: 127.7343866 | K147: 127.7343866 | L147: 6.593836588e-12 | M147: 0.06624603932 | N147: 0.06579403694 | O147: 21.15233012 | P147: 142.5930342 | Q147: 2342.08124 | R147: 42.62023314 | S147: 90.7700293 | U147: 417.2237909 | V147: 144.2237909 | W147: 418.757136 | X147: 145.757136 | Y147: 4518.297944 | Z147: 308.891275 | AA147: 35.89127496 | AB147: 307.4932291 | AC147: 34.49322909 | AD147: 298.9965856 | AE147: 25.9965856 | AF147: 0.0006001713822 | AG147: 6.230054649e-07 | AH147: 963.3485034 | AI147: 0.122307647 | AJ147: 9.2898774 | AK147: 248685.1852 | AO147: 2112.365844 | AQ147: 2907.236284 | AR147: 9.482486981 | AS147: 1006.384294 | AT147: 1.172255447 | AU147: 0.02626689213 | AV147: 1.847554828e-05 | AW147: 0.7078683506 | AX147: 1.576068452e-05 | AY147: 12093855.07 | AZ147: 8560857.24 | BA147: 25.92909298 | BB147: 3.58461415 | BC147: 0.05145765467 | BD147: 196.8626626 | BE147: 0.01601093353 | BF147: 974.1779576 | BG147: 1171.04062 | BH147: 1820.41414 | BI147: 0.001806580514 | BJ147: 0.1116592832 | BK147: 29.45321354 | BL147: 166039.2556 | BM147: 0.0160377702 | BN147: 0.9956360304 | BO147: 3432.935226 | BP147: 2659.722003 | BQ147: 2709.764633 | BR147: 1422.298103 | BU147: 6.013473359 | BV147: -89.79789961 | BW147: 76.87227868 | BX147: 4.402909976 | BY147: 474.2907565 | BZ147: 5868.026099 | CA147: 4518.297944 | CB147: 0.07376523412 | CC147: 0.05145765467
A148: 1.185466943 | B148: 58 | C148: 48.92586869 | D148: 1893.308685 | E148: 141.9835352 | F148: 308.8971724 | G148: 0.9644648871 | H148: 2.139962698 | I148: 3.384437766e-08 | J148: 127.7724113 | K148: 127.7724113 | L148: 6.451728041e-12 | M148: 0.06624902854 | N148: 0.06579698551 | O148: 21.15311614 | P148: 142.6061357 | Q148: 2342.270143 | R148: 42.65043752 | S148: 90.80023369 | U148: 417.275004 | V148: 144.275004 | W148: 418.8084158 | X148: 145.8084158 | Y148: 4518.713086 | Z148: 308.8971724 | AA148: 35.89717244 | AB148: 307.4987997 | AC148: 34.49879968 | AD148: 299.0303224 | AE148: 26.03032239 | AF148: 0.000599889155 | AG148: 6.227400909e-07 | AH148: 963.3058218 | AI148: 0.1223006936 | AJ148: 9.286744937 | AK148: 248802.183 | AO148: 2112.771145 | AQ148: 2907.794097 | AR148: 9.482492914 | AS148: 1006.384404 | AT148: 1.172244576 | AU148: 0.0262670993 | AV148: 1.847567908e-05 | AW148: 0.7078678565 | AX148: 1.576094226e-05 | AY148: 12099136.8 | AZ148: 8564590.033 | BA148: 25.93248972 | BB148: 3.585112014 | BC148: 0.05145712294 | BD148: 196.8928937 | BE148: 0.01601339225 | BF148: 974.2421776 | BG148: 1171.135071 | BH148: 1820.501573 | BI148: 0.001805682037 | BJ148: 0.1116496518 | BK148: 29.44251895 | BL148: 166117.3713 | BM148: 0.01603627672 | BN148: 0.9956342809 | BO148: 3433.789123 | BP148: 2660.383573 | BQ148: 2710.438651 | BR148: 1422.279326 | BU148: 6.013590519 | BV148: -89.79614221 | BW148: 76.87091838 | BX148: 4.4024618 | BY148: 474.3343344 | BZ148: 5868.565254 | CA148: 4518.713086 | CB148: 0.07440667094 | CC148: 0.05145712294
A149: 1.185466943 | B149: 58.5 | C149: 49.34764342 | D149: 1893.453043 | E149: 142.0350028 | F149: 308.9030714 | G149: 0.9647520062 | H149: 2.140259864 | I149: 3.384437766e-08 | J149: 127.8104488 | K149: 127.8104488 | L149: 3.97903932e-13 | M149: 0.06625201882 | N149: 0.06579993512 | O149: 21.15390215 | P149: 142.6192357 | Q149: 2342.459007 | R149: 42.68065566 | S149: 90.83045182 | U149: 417.3262171 | V149: 144.3262171 | W149: 418.8596956 | X149: 145.8596956 | Y149: 4519.128181 | Z149: 308.9030714 | AA149: 35.90307141 | AB149: 307.5043717 | AC149: 34.50437167 | AD149: 299.0640601 | AE149: 26.06406014 | AF149: 0.0005996071625 | AG149: 6.224749376e-07 | AH149: 963.2631392 | AI149: 0.1222937392 | AJ149: 9.283615116 | AK149: 248919.1935 | AO149: 2113.176118 | AQ149: 2908.351459 | AR149: 9.48249884 | AS149: 1006.384515 | AT149: 1.172233703 | AU149: 0.02626730652 | AV149: 1.847580991e-05 | AW149: 0.7078673623 | AX149: 1.576120006e-05 | AY149: 12104419.76 | AZ149: 8568323.686 | BA149: 25.93588624 | BB149: 3.585609862 | BC149: 0.05145659062 | BD149: 196.9231227 | BE149: 0.01601585079 | BF149: 974.3063806 | BG149: 1171.229503 | BH149: 1820.589006 | BI149: 0.001804784214 | BJ149: 0.1116400203 | BK149: 29.43183178 | BL149: 166195.4955 | BM149: 0.016034784 | BN149: 0.9956325328 | BO149: 3434.64261 | BP149: 2661.044826 | BQ149: 2711.112346 | BR149: 1422.260549 | BU149: 6.013707679 | BV149: -89.79438482 | BW149: 76.86955806 | BX149: 4.402013716 | BY149: 474.3779074 | BZ149: 5869.104349 | CA149: 4519.128181 | CB149: 0.07504810776 | CC149: 0.05145659062
A150: 1.185466943 | B150: 59 | C150: 49.76941815 | D150: 1893.597392 | E150: 142.0864701 | F150: 308.9089719 | G150: 0.9650392225 | H150: 2.14055702 | I150: 3.384437766e-08 | J150: 127.8484993 | K150: 127.8484993 | L150: -5.272227099e-12 | M150: 0.06625501016 | N150: 0.06580288577 | O150: 21.15468817 | P150: 142.6323342 | Q150: 2342.647833 | R150: 42.71088756 | S150: 90.86068372 | U150: 417.3774304 | V150: 144.3774304 | W150: 418.9109755 | X150: 145.9109755 | Y150: 4519.54323 | Z150: 308.9089719 | AA150: 35.90897187 | AB150: 307.5099451 | AC150: 34.50994505 | AD150: 299.0977989 | AE150: 26.09779886 | AF150: 0.0005993254046 | AG150: 6.22210005e-07 | AH150: 963.2204557 | AI150: 0.1222867839 | AJ150: 9.280487935 | AK150: 249036.2167 | AO150: 2113.580763 | AQ150: 2908.908369 | AR150: 9.482504759 | AS150: 1006.384625 | AT150: 1.172222827 | AU150: 0.0262675138 | AV150: 1.847594077e-05 | AW150: 0.7078668679 | AX150: 1.576145793e-05 | AY150: 12109703.94 | AZ150: 8572058.199 | BA150: 25.93928252 | BB150: 3.586107691 | BC150: 0.05145605771 | BD150: 196.9533495 | BE150: 0.01601830915 | BF150: 974.3705668 | BG150: 1171.323916 | BH150: 1820.676439 | BI150: 0.001803887045 | BJ150: 0.1116303889 | BK150: 29.42115203 | BL150: 166273.6282 | BM150: 0.01603329202 | BN150: 0.9956307861 | BO150: 3435.495688 | BP150: 2661.705762 | BQ150: 2711.785717 | BR150: 1422.241773 | BU150: 6.013824838 | BV150: -89.79262742 | BW150: 76.86819774 | BX150: 4.401565724 | BY150: 474.4214756 | BZ150: 5869.643384 | CA150: 4519.54323 | CB150: 0.07568954458 | CC150: 0.05145605771
A151: 1.185466943 | B151: 59.5 | C151: 50.19119288 | D151: 1893.741733 | E151: 142.1379372 | F151: 308.9148738 | G151: 0.9653265362 | H151: 2.140854165 | I151: 3.384437766e-08 | J151: 127.8865626 | K151: 127.8865626 | L151: 1.762145985e-12 | M151: 0.06625800256 | N151: 0.06580583747 | O151: 21.15547418 | P151: 142.6454313 | Q151: 2342.83662 | R151: 42.74113323 | S151: 90.89092939 | U151: 417.4286439 | V151: 144.4286439 | W151: 418.9622556 | X151: 145.9622556 | Y151: 4519.958233 | Z151: 308.9148738 | AA151: 35.91487381 | AB151: 307.5155198 | AC151: 34.51551983 | AD151: 299.1315385 | AE151: 26.13153854 | AF151: 0.0005990438809 | AG151: 6.219452928e-07 | AH151: 963.1777712 | AI151: 0.1222798277 | AJ151: 9.277363391 | AK151: 249153.2525 | AO151: 2113.98508 | AQ151: 2909.464829 | AR151: 9.482510671 | AS151: 1006.384736 | AT151: 1.172211948 | AU151: 0.02626772112 | AV151: 1.847607166e-05 | AW151: 0.7078663735 | AX151: 1.576171587e-05 | AY151: 12114989.35 | AZ151: 8575793.573 | BA151: 25.94267857 | BB151: 3.586605504 | BC151: 0.05145552421 | BD151: 196.9835741 | BE151: 0.01602076733 | BF151: 974.434736 | BG151: 1171.41831 | BH151: 1820.763873 | BI151: 0.001802990528 | BJ151: 0.1116207574 | BK151: 29.41047968 | BL151: 166351.7694 | BM151: 0.01603180079 | BN151: 0.9956290408 | BO151: 3436.348356 | BP151: 2662.366381 | BQ151: 2712.458765 | BR151: 1422.222998 | BU151: 6.013941998 | BV151: -89.79087003 | BW151: 76.86683741 | BX151: 4.401117822 | BY151: 474.4650389 | BZ151: 5870.182358 | CA151: 4519.958233 | CB151: 0.0763309814 | CC151: 0.05145552421
A152: 1.185466943 | B152: 60 | C152: 50.61296761 | D152: 1893.886066 | E152: 142.189404 | F152: 308.9207772 | G152: 0.9656139472 | H152: 2.141151301 | I152: 3.384437766e-08 | J152: 127.9246389 | K152: 127.9246389 | L152: 1.449507181e-12 | M152: 0.06626099601 | N152: 0.06580879021 | O152: 21.1562602 | P152: 142.6585269 | Q152: 2343.025369 | R152: 42.77139266 | S152: 90.92118883 | U152: 417.4798575 | V152: 144.4798575 | W152: 419.0135358 | X152: 146.0135358 | Y152: 4520.373189 | Z152: 308.9207772 | AA152: 35.92077724 | AB152: 307.521096 | AC152: 34.52109601 | AD152: 299.1652792 | AE152: 26.16527918 | AF152: 0.0005987625912 | AG152: 6.216808006e-07 | AH152: 963.1350857 | AI152: 0.1222728706 | AJ152: 9.27424148 | AK152: 249270.301 | AO152: 2114.389071 | AQ152: 2910.020839 | AR152: 9.482516576 | AS152: 1006.384846 | AT152: 1.172201067 | AU152: 0.0262679285 | AV152: 1.847620259e-05 | AW152: 0.707865879 | AX152: 1.576197387e-05 | AY152: 12120275.98 | AZ152: 8579529.807 | BA152: 25.94607439 | BB152: 3.587103299 | BC152: 0.05145499013 | BD152: 197.0137965 | BE152: 0.01602322533 | BF152: 974.4988882 | BG152: 1171.512685 | BH152: 1820.851307 | BI152: 0.001802094662 | BJ152: 0.1116111259 | BK152: 29.39981472 | BL152: 166429.9189 | BM152: 0.0160303103 | BN152: 0.9956272968 | BO152: 3437.200617 | BP152: 2663.026683 | BQ152: 2713.131491 | BR152: 1422.204223 | BU152: 6.014059158 | BV152: -89.78911263 | BW152: 76.86547707 | BX152: 4.400670012 | BY152: 474.5085973 | BZ152: 5870.721272 | CA152: 4520.373189 | CB152: 0.07697241822 | CC152: 0.05145499013
A153: 1.185466943 | B153: 60.5 | C153: 51.03474234 | D153: 1894.03039 | E153: 142.2408705 | F153: 308.9266822 | G153: 0.9659014555 | H153: 2.141448426 | I153: 3.384437766e-08 | J153: 127.962728 | K153: 127.962728 | L153: 6.110667528e-12 | M153: 0.06626399053 | N153: 0.06581174399 | O153: 21.15704621 | P153: 142.671621 | Q153: 2343.21408 | R153: 42.80166588 | S153: 90.95146204 | U153: 417.5310713 | V153: 144.5310713 | W153: 419.0648161 | X153: 146.0648161 | Y153: 4520.788099 | Z153: 308.9266822 | AA153: 35.92668216 | AB153: 307.5266736 | AC153: 34.52667358 | AD153: 299.1990208 | AE153: 26.19902078 | AF153: 0.0005984815352 | AG153: 6.214165283e-07 | AH153: 963.0923992 | AI153: 0.1222659125 | AJ153: 9.2711222 | AK153: 249387.3621 | AO153: 2114.792735 | AQ153: 2910.576399 | AR153: 9.482522474 | AS153: 1006.384957 | AT153: 1.172190183 | AU153: 0.02626813593 | AV153: 1.847633354e-05 | AW153: 0.7078653843 | AX153: 1.576223194e-05 | AY153: 12125563.83 | AZ153: 8583266.903 | BA153: 25.94946998 | BB153: 3.587601077 | BC153: 0.05145445546 | BD153: 197.0440167 | BE153: 0.01602568315 | BF153: 974.5630235 | BG153: 1171.60704 | BH153: 1820.938741 | BI153: 0.001801199446 | BJ153: 0.1116014943 | BK153: 29.38915712 | BL153: 166508.0769 | BM153: 0.01602882057 | BN153: 0.9956255543 | BO153: 3438.052468 | BP153: 2663.686669 | BQ153: 2713.803895 | BR153: 1422.185449 | BU153: 6.014176317 | BV153: -89.78735524 | BW153: 76.86411673 | BX153: 4.400222293 | BY153: 474.5521508 | BZ153: 5871.260125 | CA153: 4520.788099 | CB153: 0.07761385504 | CC153: 0.05145445546
A154: 1.185466943 | B154: 61 | C154: 51.45651707 | D154: 1894.174706 | E154: 142.2923367 | F154: 308.9325886 | G154: 0.9661890613 | H154: 2.14174554 | I154: 3.384437766e-08 | J154: 128.0008301 | K154: 128.0008301 | L154: 0 | M154: 0.0662669861 | N154: 0.06581469881 | O154: 21.15783222 | P154: 142.6847137 | Q154: 2343.402753 | R154: 42.83195287 | S154: 90.98174903 | U154: 417.5822852 | V154: 144.5822852 | W154: 419.1160965 | X154: 146.1160965 | Y154: 4521.202962 | Z154: 308.9325886 | AA154: 35.93258857 | AB154: 307.5322525 | AC154: 34.53225254 | AD154: 299.2327633 | AE154: 26.23276335 | AF154: 0.0005982007126 | AG154: 6.211524756e-07 | AH154: 963.0497117 | AI154: 0.1222589535 | AJ154: 9.268005548 | AK154: 249504.4359 | AO154: 2115.196072 | AQ154: 2911.131509 | AR154: 9.482528365 | AS154: 1006.385067 | AT154: 1.172179297 | AU154: 0.0262683434 | AV154: 1.847646453e-05 | AW154: 0.7078648895 | AX154: 1.576249007e-05 | AY154: 12130852.92 | AZ154: 8587004.86 | BA154: 25.95286534 | BB154: 3.588098838 | BC154: 0.05145392021 | BD154: 197.0742347 | BE154: 0.01602814079 | BF154: 974.6271419 | BG154: 1171.701377 | BH154: 1821.026176 | BI154: 0.001800304879 | BJ154: 0.1115918628 | BK154: 29.37850689 | BL154: 166586.2434 | BM154: 0.01602733158 | BN154: 0.9956238132 | BO154: 3438.903913 | BP154: 2664.346339 | BQ154: 2714.475977 | BR154: 1422.166675 | BU154: 6.014293477 | BV154: -89.78559785 | BW154: 76.86275638 | BX154: 4.399774665 | BY154: 474.5956995 | BZ154: 5871.798919 | CA154: 4521.202962 | CB154: 0.07825529185 | CC154: 0.05145392021
A155: 1.185466943 | B155: 61.5 | C155: 51.8782918 | D155: 1894.319014 | E155: 142.3438027 | F155: 308.9384965 | G155: 0.9664767646 | H155: 2.142042645 | I155: 3.384437766e-08 | J155: 128.038945 | K155: 128.038945 | L155: 6.082245818e-12 | M155: 0.06626998273 | N155: 0.06581765468 | O155: 21.15861823 | P155: 142.6978049 | Q155: 2343.591388 | R155: 42.86225364 | S155: 91.01204981 | U155: 417.6334993 | V155: 144.6334993 | W155: 419.1673771 | X155: 146.1673771 | Y155: 4521.617779 | Z155: 308.9384965 | AA155: 35.93849647 | AB155: 307.5378329 | AC155: 34.53783291 | AD155: 299.2665069 | AE155: 26.26650687 | AF155: 0.0005979201232 | AG155: 6.208886423e-07 | AH155: 963.0070233 | AI155: 0.1222519935 | AJ155: 9.264891521 | AK155: 249621.5223 | AO155: 2115.599083 | AQ155: 2911.686171 | AR155: 9.482534249 | AS155: 1006.385178 | AT155: 1.172168409 | AU155: 0.02626855093 | AV155: 1.847659556e-05 | AW155: 0.7078643946 | AX155: 1.576274827e-05 | AY155: 12136143.23 | AZ155: 8590743.679 | BA155: 25.95626048 | BB155: 3.588596581 | BC155: 0.05145338437 | BD155: 197.1044505 | BE155: 0.01603059826 | BF155: 974.6912433 | BG155: 1171.795694 | BH155: 1821.11361 | BI155: 0.001799410959 | BJ155: 0.1115822312 | BK155: 29.36786399 | BL155: 166664.4183 | BM155: 0.01602584333 | BN155: 0.9956220735 | BO155: 3439.754949 | BP155: 2665.005694 | BQ155: 2715.147737 | BR155: 1422.147901 | BU155: 6.014410637 | BV155: -89.78384045 | BW155: 76.86139602 | BX155: 4.399327128 | BY155: 474.6392433 | BZ155: 5872.337652 | CA155: 4521.617779 | CB155: 0.07889672867 | CC155: 0.05145338437
A156: 1.185466943 | B156: 62 | C156: 52.30006653 | D156: 1894.463313 | E156: 142.3952684 | F156: 308.9444059 | G156: 0.9667645653 | H156: 2.142339739 | I156: 3.384437766e-08 | J156: 128.0770729 | K156: 128.0770729 | L156: 2.842170943e-12 | M156: 0.06627298042 | N156: 0.06582061158 | O156: 21.15940424 | P156: 142.7108947 | Q156: 2343.779984 | R156: 42.89256821 | S156: 91.04236437 | U156: 417.6847134 | V156: 144.6847134 | W156: 419.2186577 | X156: 146.2186577 | Y156: 4522.03255 | Z156: 308.9444059 | AA156: 35.94440586 | AB156: 307.5434147 | AC156: 34.54341467 | AD156: 299.3002514 | AE156: 26.30025136 | AF156: 0.0005976397667 | AG156: 6.206250281e-07 | AH156: 962.9643338 | AI156: 0.1222450326 | AJ156: 9.261780117 | AK156: 249738.6213 | AO156: 2116.001768 | AQ156: 2912.240384 | AR156: 9.482540126 | AS156: 1006.385288 | AT156: 1.172157518 | AU156: 0.02626875852 | AV156: 1.847672661e-05 | AW156: 0.7078638996 | AX156: 1.576300654e-05 | AY156: 12141434.76 | AZ156: 8594483.359 | BA156: 25.95965538 | BB156: 3.589094307 | BC156: 0.05145284794 | BD156: 197.1346641 | BE156: 0.01603305555 | BF156: 974.7553279 | BG156: 1171.889992 | BH156: 1821.201045 | BI156: 0.001798517686 | BJ156: 0.1115725995 | BK156: 29.35722842 | BL156: 166742.6016 | BM156: 0.01602435583 | BN156: 0.9956203352 | BO156: 3440.60558 | BP156: 2665.664733 | BQ156: 2715.819176 | BR156: 1422.129129 | BU156: 6.014527796 | BV156: -89.78208306 | BW156: 76.86003565 | BX156: 4.398879682 | BY156: 474.6827823 | BZ156: 5872.876325 | CA156: 4522.03255 | CB156: 0.07953816549 | CC156: 0.05145284794
A157: 1.185466943 | B157: 62.5 | C157: 52.72184126 | D157: 1894.607604 | E157: 142.4467339 | F157: 308.9503167 | G157: 0.9670524636 | H157: 2.142636823 | I157: 3.384437766e-08 | J157: 128.1152137 | K157: 128.1152137 | L157: 2.273736754e-13 | M157: 0.06627597917 | N157: 0.06582356953 | O157: 21.16019025 | P157: 142.723983 | Q157: 2343.968542 | R157: 42.92289657 | S157: 91.07269273 | U157: 417.7359278 | V157: 144.7359278 | W157: 419.2699385 | X157: 146.2699385 | Y157: 4522.447274 | Z157: 308.9503167 | AA157: 35.95031674 | AB157: 307.5489978 | AC157: 34.54899783 | AD157: 299.3339968 | AE157: 26.3339968 | AF157: 0.0005973596428 | AG157: 6.203616327e-07 | AH157: 962.9216433 | AI157: 0.1222380708 | AJ157: 9.258671331 | AK157: 249855.7329 | AO157: 2116.404128 | AQ157: 2912.794149 | AR157: 9.482545996 | AS157: 1006.385399 | AT157: 1.172146624 | AU157: 0.02626896615 | AV157: 1.84768577e-05 | AW157: 0.7078634045 | AX157: 1.576326487e-05 | AY157: 12146727.53 | AZ157: 8598223.901 | BA157: 25.96305006 | BB157: 3.589592017 | BC157: 0.05145231093 | BD157: 197.1648755 | BE157: 0.01603551266 | BF157: 974.8193954 | BG157: 1171.984271 | BH157: 1821.28848 | BI157: 0.001797625059 | BJ157: 0.1115629679 | BK157: 29.34660016 | BL157: 166820.7933 | BM157: 0.01602286907 | BN157: 0.9956185982 | BO157: 3441.455803 | BP157: 2666.323458 | BQ157: 2716.490295 | BR157: 1422.110356 | BU157: 6.014644956 | BV157: -89.78032566 | BW157: 76.85867528 | BX157: 4.398432328 | BY157: 474.7263163 | BZ157: 5873.414938 | CA157: 4522.447274 | CB157: 0.08017960231 | CC157: 0.05145231093
A158: 1.185466943 | B158: 63 | C158: 53.14361599 | D158: 1894.751887 | E158: 142.498199 | F158: 308.9562291 | G158: 0.9673404595 | H158: 2.142933896 | I158: 3.384437766e-08 | J158: 128.1533674 | K158: 128.1533674 | L158: -3.126388037e-12 | M158: 0.06627897898 | N158: 0.06582652852 | O158: 21.16097625 | P158: 142.7370698 | Q158: 2344.157061 | R158: 42.95323873 | S158: 91.10303489 | U158: 417.7871423 | V158: 144.7871423 | W158: 419.3212193 | X158: 146.3212193 | Y158: 4522.861952 | Z158: 308.9562291 | AA158: 35.95622912 | AB158: 307.5545824 | AC158: 34.55458239 | AD158: 299.3677432 | AE158: 26.36774321 | AF158: 0.0005970797513 | AG158: 6.20098456e-07 | AH158: 962.8789519 | AI158: 0.1222311081 | AJ158: 9.255565161 | AK158: 249972.8571 | AO158: 2116.806162 | AQ158: 2913.347467 | AR158: 9.482551859 | AS158: 1006.38551 | AT158: 1.172135728 | AU158: 0.02626917383 | AV158: 1.847698882e-05 | AW158: 0.7078629093 | AX158: 1.576352327e-05 | AY158: 12152021.52 | AZ158: 8601965.306 | BA158: 25.96644451 | BB158: 3.590089709 | BC158: 0.05145177333 | BD158: 197.1950847 | BE158: 0.01603796959 | BF158: 974.883446 | BG158: 1172.078531 | BH158: 1821.375916 | BI158: 0.001796733075 | BJ158: 0.1115533362 | BK158: 29.3359792 | BL158: 166898.9935 | BM158: 0.01602138306 | BN158: 0.9956168627 | BO158: 3442.305621 | BP158: 2666.981868 | BQ158: 2717.161093 | BR158: 1422.091585 | BU158: 6.014762116 | BV158: -89.77856827 | BW158: 76.8573149 | BX158: 4.397985064 | BY158: 474.7698455 | BZ158: 5873.95349 | CA158: 4522.861952 | CB158: 0.08082103913 | CC158: 0.05145177333
A159: 1.185466943 | B159: 63.5 | C159: 53.56539072 | D159: 1894.896161 | E159: 142.5496639 | F159: 308.962143 | G159: 0.9676285529 | H159: 2.14323096 | I159: 3.384437766e-08 | J159: 128.1915341 | K159: 128.1915341 | L159: 2.899014362e-12 | M159: 0.06628197985 | N159: 0.06582948856 | O159: 21.16176226 | P159: 142.7501552 | Q159: 2344.345543 | R159: 42.9835947 | S159: 91.13339086 | U159: 417.8383569 | V159: 144.8383569 | W159: 419.3725003 | X159: 146.3725003 | Y159: 4523.276584 | Z159: 308.962143 | AA159: 35.96214298 | AB159: 307.5601683 | AC159: 34.56016834 | AD159: 299.4014906 | AE159: 26.40149058 | AF159: 0.0005968000919 | AG159: 6.198354976e-07 | AH159: 962.8362594 | AI159: 0.1222241444 | AJ159: 9.252461605 | AK159: 250089.9939 | AO159: 2117.207871 | AQ159: 2913.900337 | AR159: 9.482557715 | AS159: 1006.385621 | AT159: 1.172124829 | AU159: 0.02626938156 | AV159: 1.847711997e-05 | AW159: 0.707862414 | AX159: 1.576378173e-05 | AY159: 12157316.74 | AZ159: 8605707.572 | BA159: 25.96983873 | BB159: 3.590587384 | BC159: 0.05145123514 | BD159: 197.2252917 | BE159: 0.01604042634 | BF159: 974.9474797 | BG159: 1172.172771 | BH159: 1821.463351 | BI159: 0.001795841735 | BJ159: 0.1115437045 | BK159: 29.32536552 | BL159: 166977.202 | BM159: 0.01601989779 | BN159: 0.9956151285 | BO159: 3443.155034 | BP159: 2667.639964 | BQ159: 2717.831571 | BR159: 1422.072813 | BU159: 6.014879275 | BV159: -89.77681087 | BW159: 76.85595451 | BX159: 4.397537891 | BY159: 474.8133699 | BZ159: 5874.491983 | CA159: 4523.276584 | CB159: 0.08146247595 | CC159: 0.05145123514
A160: =$AI$10 -> 1.185466943 | B160: 64 | C160: 53.98716545 | D160: 1895.040428 | E160: 142.6011286 | F160: =POWER((POWER((Q160*LN($R$3/$S$3))/(2*PI()*O160)+((Q160/(AO160*PI()*$S$3))+(E160+273)),4)-((CA160*PI()*$R$3-Q160)/(N160*$Y$6*$Q$6*PI()*$R$3))),0.25) -> 308.9680583 | G160: =(((BZ160*$K$24*$P$24*$Q$24*PI()*($O$24*$R$24*$R$3+$S$24*$T$3))-Q160)*LN($T$3/$Y$3))/(2*PI()*$AF$3) -> 0.967916744 | H160: 2.143528013 | I160: 3.384437766e-08 | J160: 128.2297137 | K160: =((BZ160*$K$24*$P$24*$Q$24*PI()*($O$24*$R$24*$R$3+$S$24*$T$3))-Q160) -> 128.2297137 | L160: 4.97379915e-12 | M160: 0.06628498177 | N160: 0.06583244964 | O160: 21.16254826 | P160: 142.7632391 | Q160: 2344.533986 | R160: =CA160*(PI()*$R$3)-Q160 -> 43.01396447 | S160: 91.16376063 | U160: 417.8895716 | V160: 144.8895716 | W160: 419.4237814 | X160: 146.4237814 | Y160: 4523.691169 | Z160: 308.9680583 | AA160: 35.96805834 | AB160: 307.5657557 | AC160: 34.5657557 | AD160: 299.4352389 | AE160: 26.4352389 | AF160: 0.0005965206644 | AG160: 6.195727573e-07 | AH160: 962.7935659 | AI160: 0.1222171798 | AJ160: =(D160*AF160)/AI160 -> 9.24936066 | AK160: 250207.1433 | AO160: =BP160*AI160/$S$3 -> 2117.609256 | AQ160: =BQ160*AI160/$Z$3 -> 2914.45276 | AR160: 9.482563564 | AS160: 1006.385731 | AT160: 1.172113928 | AU160: 0.02626958935 | AV160: 1.847725115e-05 | AW160: 0.7078619186 | AX160: 1.576404027e-05 | AY160: 12162613.18 | AZ160: 8609450.702 | BA160: 25.97323273 | BB160: 3.591085042 | BC160: =(Q160*$AH$3-BD160)/($R$6*D160) -> 0.05145069637 | BD160: 197.2554966 | BE160: 0.01604288291 | BF160: 975.0114964 | BG160: 1172.266993 | BH160: 1821.550787 | BI160: 0.001794951037 | BJ160: 0.1115340727 | BK160: 29.31475911 | BL160: 167055.419 | BM160: 0.01601841326 | BN160: =1.07+(900/AK160)-0.63/(1+10*AW160) -> 0.9956133957 | BO160: =(((BM160/8)*AK160*AJ160)/(BN160+12.7*((BM160/8)^1/2)*(AJ160^2/3-1)))*(1+($AB$6/$AG$3)^2/3) -> 3444.004041 | BP160: 2668.297746 | BQ160: 2718.501729 | BR160: 1422.054042 | BU160: 6.014996435 | BV160: -89.77505348 | BW160: 76.85459412 | BX160: 4.39709081 | BY160: 474.8568893 | BZ160: 5875.030415 | CA160: 4523.691169 | CB160: 0.08210391276 | CC160: 0.05145069637
A161: 1.185466943 | B161: 64.5 | C161: 54.40894018 | D161: =(1.498+0.002414*E161+0.0000059591*(E161)^2-0.000000029879*(E161)^3+0.000000000044172*(E161)^4)*1000 -> 1895.184685 | E161: 142.6525929 | F161: 308.9739752 | G161: 0.9682050328 | H161: =BB161*PI()*$T$3 -> 2.143825056 | I161: =$Z$6*$Q$6*PI()*$T$3 -> 3.384437766e-08 | J161: =H161*(F161-G161-$K$3)+I161*(POWER((F161-G161),4)-POWER($O$3,4)) -> 128.2679062 | K161: 128.2679062 | L161: =J161-K161 -> 4.945377441e-12 | M161: 0.06628798475 | N161: =1/(1/$Y$6+((1/M161)-1)+($R$3/$Y$3)*((1/$O$6)-1)) -> 0.06583541175 | O161: =0.0153*((E161+273+W160)/2)+14.775 -> 21.16333426 | P161: =BZ161*$K$24*$P$24*$Q$24*$S$24 -> 142.7763215 | Q161: 2344.722391 | R161: 43.04434805 | S161: =$M$6*$O$24*0.02*PI()*$R$3+R161+0*P161*PI()*$T$3 -> 91.19414422 | U161: =(Q161/(AO161*PI()*$S$3))+(E161+273) -> 417.9407865 | V161: =U161-273 -> 144.9407865 | W161: =(Q161*LN($R$3/$S$3))/(2*PI()*O161)+U161 -> 419.4750626 | X161: =W161-273 -> 146.4750626 | Y161: =CA161 -> 4524.105708 | Z161: =POWER((POWER((W161),4)-((R161)/(N161*$Q$6*PI()*$R$3))),0.25) -> 308.9739752 | AA161: =Z161-273 -> 35.97397519 | AB161: =Z161-((R161+P161)*LN($T$3/$Y$3))/(2*PI()*$AF$3) -> 307.5713445 | AC161: =AB161-273 -> 34.57134445 | AD161: =AE161+273 -> 299.4689882 | AE161: 26.46898818 | AF161: =AG161*AH161 -> 0.0005962414684 | AG161: =0.000001*EXP(544.149/(E161+114.43)-2.59578) -> 6.19310235e-07 | AH161: =1083.25-0.90797*E161+0.00078116*E161^2-0.000002367*E161^3 -> 962.7508715 | AI161: =0.137743-0.0000819477*E161-0.000000192257*E161^2+0.000000000025034*E161^3-0.0000000000000072974*E161^4 -> 0.1222102143 | AJ161: 9.246262322 | AK161: =4*$R$6/(($S$3+$Z$3)*AF161) -> 250324.3052 | AO161: 2118.010317 | AQ161: 2915.004737 | AR161: =((1/AQ161)+($Z$3/2)*((LN($Z$3/$AA$3)/$G$26)+(LN($G$11/$H$11)/$F$26)+(LN($A$5/$B$5)/$A$26)+(LN($C$5/$D$5)/$B$26)+(LN($E$5/$F$5)/$C$26)+(LN($G$8/$H$8)/$D$26)+(LN($G$5/$F$8)/$E$26)))^-1 -> 9.482569406 | AS161: 1006.385842 | AT161: 1.172103024 | AU161: 0.02626979719 | AV161: 1.847738237e-05 | AW161: =AS161*AV161/AU161 -> 0.707861423 | AX161: =AV161/AT161 -> 1.576429886e-05 | AY161: 12167910.86 | AZ161: =AY161*AW161 -> 8613194.694 | BA161: =((0.6+0.387*AZ161^(1/6))/(1+(0.559/AW161)^(9/16))^(8/27))^2 -> 25.9766265 | BB161: =BA161*AU161/$T$3 -> 3.591582683 | BC161: 0.05145015701 | BD161: =AR161*PI()*$Z$3*$AH$3*(E161-AE161) -> 197.2856992 | BE161: =((C162-C161)*AR161*PI()*$Z$3*$AH$3*(E161-AE161))/($F$22) -> 0.01604533931 | BF161: =BG161-BD161 -> 975.0754962 | BG161: =AO161*PI()*$S$3*(CB162-CB161)*$AG$3*(V161-E161) -> 1172.361195 | BH161: 1821.638223 | BI161: 0.00179406098 | BJ161: 0.111524441 | BK161: =BH161*BI161/BJ161 -> 29.30415995 | BL161: =AK161*(((1+$AG$6^2)*LN($AG$6)+(1-$AG$6^2))/((1-$AG$6)^2*LN($AG$6))) -> 167133.6443 | BM161: =(1.8*LOG10(BL161)-1.5)^-2 -> 0.01601692948 | BN161: 0.9956116643 | BO161: 3444.852644 | BP161: =BO161*(0.9-0.15*$AB$3^0.6) -> 2668.955215 | BQ161: =BO161*0.75*$AB$3^-0.17 -> 2719.171568 | BR161: =1437.08-0.58063*AE161+0.0004624*AE161^2 -> 1422.035272 | BU161: 6.015113594 | BV161: =(12-BU161)*-15 -> -89.77329608 | BW161: =(180/PI())*ACOS(COS($K$15*PI()/180)*COS($O$15*PI()/180)*COS(BV161*PI()/180)+SIN($K$15*PI()/180)*SIN($O$15*PI()/180)) -> 76.85323371 | BX161: =1/COS(PI()/180*BW161) -> 4.396643819 | BY161: =COS($M$24)*$U$15*1088*EXP(-0.205*BX161) -> 474.9004039 | BZ161: =BY161*$AF$6 -> 5875.568787 | CA161: =BZ161*$K$24*$O$24*$P$24*$Q$24*$R$24 -> 4524.105708 | CB161: =B161/$AG$3 -> 0.08274534958 | CC161: =($AG$3*(CB162-CB161))*(AO161*PI()*$S$3*(V161-E161)+AR161*PI()*$Z$3*(AE161-E161))/($R$6*D161) -> 0.05145015701
A162: 1.185466943 | B162: =B161+0.5 -> 65 | C162: 54.83071491 | D162: 1895.328935 | E162: 142.704057 | F162: 308.9798935 | G162: 0.9684934193 | H162: 2.14412209 | I162: 3.384437766e-08 | J162: 128.3061117 | K162: 128.3061117 | L162: -9.094947018e-13 | M162: =0.062+0.0000002*(X161)^2 -> 0.06629098879 | N162: 0.06583837491 | O162: 21.16412026 | P162: 142.7894025 | Q162: 2344.910757 | R162: 43.07474546 | S162: 91.22454162 | U162: 417.9920015 | V162: 144.9920015 | W162: 419.5263439 | X162: 146.5263439 | Y162: 4524.5202 | Z162: 308.9798935 | AA162: 35.97989353 | AB162: 307.5769346 | AC162: 34.57693461 | AD162: 299.5027384 | AE162: 26.50273842 | AF162: 0.0005959625038 | AG162: 6.190479302e-07 | AH162: 962.708176 | AI162: 0.1222032478 | AJ162: 9.243166589 | AK162: 250441.4798 | AO162: 2118.411053 | AQ162: 2915.556268 | AR162: 9.482575242 | AS162: =1030.5-0.19975*(($K$3+AB161)/2)+0.00039734*(($K$3+AB161)/2)^2 -> 1006.385953 | AT162: =(351.99/(($K$3+AB161)/2)+(344.84/(($K$3+AB161)/2)^2)) -> 1.172092118 | AU162: =(0.00234*(($K$3+AB161)/2)^(3/2))/(164.54+(($K$3+AB161)/2)) -> 0.02627000508 | AV162: =0.000001*(1.45*((($K$3+AB161)/2)^(3/2))/(109.1+(($K$3+AB161)/2))) -> 1.847751362e-05 | AW162: 0.7078609273 | AX162: 1.576455753e-05 | AY162: =(9.81*(1/(($K$3+AB161)/2))*(AB161-$K$3)*$T$3^3)/($AP$3)^2 -> 12173209.76 | AZ162: 8616939.549 | BA162: 25.98002004 | BB162: 3.592080307 | BC162: 0.05144961707 | BD162: 197.3158997 | BE162: 0.01604779552 | BF162: 975.1394791 | BG162: 1172.455379 | BH162: =1574.27947+1.7072*V161+0.00000015609*V161^2 -> 1821.72566 | BI162: =(0.01533-(0.000379993*V161)+(0.00000703717*POWER(V161,2))-(0.0000000978061*POWER(V161,3))+(0.000000000914537*POWER(V161,4))-(0.00000000000550071*POWER(V161,5))+(0.0000000000000208325*POWER(V161,6))-(4.78395E-17*POWER(V161,7))+(6.07105E-20*POWER(V161,8))-(3.26206E-23*POWER(V161,9))) -> 0.001793171563 | BJ162: =0.13877-0.000188021*V161-0.000000000156094*POWER(V161,2) -> 0.1115148092 | BK162: 29.29356802 | BL162: 167211.8781 | BM162: 0.01601544643 | BN162: 0.9956099343 | BO162: 3445.700843 | BP162: 2669.612371 | BQ162: 2719.841088 | BR162: 1422.016503 | BU162: =$H$28+(C162/60)/60 -> 6.015230754 | BV162: -89.77153869 | BW162: 76.8518733 | BX162: 4.396196919 | BY162: 474.9439137 | BZ162: 5876.107098 | CA162: 4524.5202 | CB162: 0.0833867864 | CC162: 0.05144961707
A163: 1.185466943 | B163: 65.5 | C163: =C162+$AH$3/$AI$10 -> 55.25248964 | D163: 1895.473176 | E163: 142.7555208 | F163: 308.9858134 | G163: 0.9687819035 | H163: 2.144419113 | I163: 3.384437766e-08 | J163: 128.3443301 | K163: 128.3443301 | L163: 0 | M163: 0.06629399389 | N163: 0.06584133912 | O163: 21.16490627 | P163: 142.802482 | Q163: 2345.099086 | R163: 43.10515668 | S163: 91.25495285 | U163: 418.0432167 | V163: 145.0432167 | W163: 419.5776253 | X163: 146.5776253 | Y163: 4524.934646 | Z163: 308.9858134 | AA163: 35.98581337 | AB163: 307.5825262 | AC163: 34.58252616 | AD163: 299.5364896 | AE163: 26.53648962 | AF163: 0.0005956837701 | AG163: 6.187858429e-07 | AH163: 962.6654795 | AI163: 0.1221962804 | AJ163: 9.240073458 | AK163: 250558.6669 | AO163: 2118.811466 | AQ163: 2916.107354 | AR163: 9.48258107 | AS163: 1006.386064 | AT163: 1.172081209 | AU163: 0.02627021301 | AV163: 1.84776449e-05 | AW163: 0.7078604316 | AX163: 1.576481626e-05 | AY163: 12178509.89 | AZ163: 8620685.268 | BA163: 25.98341335 | BB163: 3.592577914 | BC163: 0.05144907654 | BD163: 197.3460979 | BE163: 0.01605025156 | BF163: 975.203445 | BG163: 1172.549543 | BH163: 1821.813096 | BI163: 0.001792282784 | BJ163: 0.1115051774 | BK163: 29.28298332 | BL163: 167290.1202 | BM163: 0.01601396413 | BN163: 0.9956082057 | BO163: 3446.548638 | BP163: 2670.269214 | BQ163: 2720.51029 | BR163: 1421.997733 | BU163: 6.015347914 | BV163: -89.76978129 | BW163: 76.85051288 | BX163: 4.39575011 | BY163: 474.9874185 | BZ163: 5876.64535 | CA163: 4524.934646 | CB163: 0.08402822322 | CC163: 0.05144907654
A164: 1.185466943 | B164: 66 | C164: 55.67426437 | D164: 1895.617408 | E164: 142.8069844 | F164: 308.9917347 | G164: 0.9690704855 | H164: 2.144716126 | I164: 3.384437766e-08 | J164: 128.3825615 | K164: 128.3825615 | L164: 1.534772309e-12 | M164: 0.06629700005 | N164: 0.06584430436 | O164: 21.16569226 | P164: 142.8155601 | Q164: 2345.287376 | R164: 43.13558174 | S164: 91.2853779 | U164: 418.094432 | V164: 145.094432 | W164: 419.6289068 | X164: 146.6289068 | Y164: 4525.349046 | Z164: 308.9917347 | AA164: 35.9917347 | AB164: 307.5881191 | AC164: 34.58811912 | AD164: 299.5702418 | AE164: 26.57024178 | AF164: 0.0005954052673 | AG164: 6.185239726e-07 | AH164: 962.6227821 | AI164: 0.1221893121 | AJ164: 9.236982925 | AK164: 250675.8666 | AO164: 2119.211555 | AQ164: 2916.657994 | AR164: 9.482586892 | AS164: 1006.386175 | AT164: 1.172070297 | AU164: 0.02627042101 | AV164: 1.847777621e-05 | AW164: 0.7078599357 | AX164: 1.576507506e-05 | AY164: 12183811.25 | AZ164: 8624431.85 | BA164: 25.98680644 | BB164: 3.593075504 | BC164: 0.05144853543 | BD164: 197.376294 | BE164: 0.01605270742 | BF164: 975.2673939 | BG164: 1172.643688 | BH164: 1821.900533 | BI164: 0.001791394643 | BJ164: 0.1114955455 | BK164: 29.27240583 | BL164: 167368.3707 | BM164: 0.01601248257 | BN164: 0.9956064785 | BO164: 3447.39603 | BP164: 2670.925745 | BQ164: 2721.179173 | BR164: 1421.978965 | BU164: 6.015465073 | BV164: -89.7680239 | BW164: 76.84915246 | BX164: 4.395303392 | BY164: 475.0309185 | BZ164: 5877.183541 | CA164: 4525.349046 | CB164: 0.08466966004 | CC164: 0.05144853543
A165: 1.185466943 | B165: 66.5 | C165: 56.0960391 | D165: 1895.761632 | E165: 142.8584477 | F165: 308.9976575 | G165: 0.9693591653 | H165: 2.145013128 | I165: 3.384437766e-08 | J165: 128.4208058 | K165: 128.4208058 | L165: 2.899014362e-12 | M165: 0.06630000726 | N165: 0.06584727065 | O165: 21.16647826 | P165: 142.8286366 | Q165: 2345.475627 | R165: 43.16602062 | S165: 91.31581679 | U165: 418.1456474 | V165: 145.1456474 | W165: 419.6801884 | X165: 146.6801884 | Y165: 4525.7634 | Z165: 308.9976575 | AA165: 35.99765752 | AB165: 307.5937135 | AC165: 34.59371347 | AD165: 299.6039949 | AE165: 26.60399489 | AF165: 0.000595126995 | AG165: 6.182623193e-07 | AH165: 962.5800836 | AI165: 0.1221823429 | AJ165: 9.233894989 | AK165: 250793.0788 | AO165: 2119.611321 | AQ165: 2917.20819 | AR165: 9.482592706 | AS165: 1006.386286 | AT165: 1.172059384 | AU165: 0.02627062905 | AV165: 1.847790756e-05 | AW165: 0.7078594397 | AX165: 1.576533392e-05 | AY165: 12189113.84 | AZ165: 8628179.296 | BA165: 25.9901993 | BB165: 3.593573078 | BC165: 0.05144799374 | BD165: 197.4064878 | BE165: 0.0160551631 | BF165: 975.3313259 | BG165: 1172.737814 | BH165: 1821.98797 | BI165: 0.001790507139 | BJ165: 0.1114859136 | BK165: 29.26183552 | BL165: 167446.6296 | BM165: 0.01601100174 | BN165: 0.9956047526 | BO165: 3448.24302 | BP165: 2671.581963 | BQ165: 2721.847739 | BR165: 1421.960196 | BU165: 6.015582233 | BV165: -89.7662665 | BW165: 76.84779203 | BX165: 4.394856765 | BY165: 475.0744137 | BZ165: 5877.721672 | CA165: 4525.7634 | CB165: 0.08531109686 | CC165: 0.05144799374
A166: 1.185466943 | B166: 67 | C166: 56.51781383 | D166: 1895.905848 | E166: 142.9099107 | F166: 309.0035818 | G166: 0.969647943 | H166: 2.145310121 | I166: 3.384437766e-08 | J166: 128.4590631 | K166: 128.4590631 | L166: 8.043343769e-12 | M166: 0.06630301554 | N166: 0.06585023797 | O166: 21.16726426 | P166: 142.8417118 | Q166: 2345.663841 | R166: 43.19647335 | S166: 91.34626951 | U166: 418.196863 | V166: 145.196863 | W166: 419.7314702 | X166: 146.7314702 | Y166: 4526.177707 | Z166: 309.0035818 | AA166: 36.00358184 | AB166: 307.5993092 | AC166: 34.59930923 | AD166: 299.637749 | AE166: 26.63774897 | AF166: 0.0005948489529 | AG166: 6.180008826e-07 | AH166: 962.5373841 | AI166: 0.1221753727 | AJ166: 9.230809646 | AK166: 250910.3035 | AO166: 2120.010764 | AQ166: 2917.757941 | AR166: 9.482598514 | AS166: 1006.386397 | AT166: 1.172048467 | AU166: 0.02627083714 | AV166: 1.847803893e-05 | AW166: 0.7078589436 | AX166: 1.576559285e-05 | AY166: 12194417.67 | AZ166: 8631927.606 | BA166: 25.99359194 | BB166: 3.594070634 | BC166: 0.05144745146 | BD166: 197.4366795 | BE166: 0.01605761861 | BF166: 975.3952409 | BG166: 1172.83192 | BH166: 1822.075408 | BI166: 0.00178962027 | BJ166: 0.1114762817 | BK166: 29.2512724 | BL166: 167524.8969 | BM166: 0.01600952166 | BN166: 0.9956030281 | BO166: 3449.089607 | BP166: 2672.23787 | BQ166: 2722.515987 | BR166: 1421.941429 | BU166: 6.015699393 | BV166: -89.76450911 | BW166: 76.84643159 | BX166: 4.394410229 | BY166: 475.117904 | BZ166: 5878.259743 | CA166: 4526.177707 | CB166: 0.08595253368 | CC166: 0.05144745146
A167: 1.185466943 | B167: 67.5 | C167: 56.93958856 | D167: 1896.050056 | E167: 142.9613734 | F167: 309.0095077 | G167: 0.9699368186 | H167: 2.145607104 | I167: 3.384437766e-08 | J167: 128.4973334 | K167: 128.4973334 | L167: -2.557953849e-13 | M167: 0.06630602487 | N167: 0.06585320634 | O167: 21.16805025 | P167: 142.8547854 | Q167: 2345.852016 | R167: 43.22693991 | S167: 91.37673608 | U167: 418.2480787 | V167: 145.2480787 | W167: 419.782752 | X167: 146.782752 | Y167: 4526.591968 | Z167: 309.0095077 | AA167: 36.00950765 | AB167: 307.6049064 | AC167: 34.60490639 | AD167: 299.671504 | AE167: 26.67150399 | AF167: 0.0005945711409 | AG167: 6.177396624e-07 | AH167: 962.4946836 | AI167: 0.1221684016 | AJ167: 9.227726894 | AK167: 251027.5408 | AO167: 2120.409885 | AQ167: 2918.307249 | AR167: 9.482604315 | AS167: 1006.386508 | AT167: 1.172037548 | AU167: 0.02627104529 | AV167: 1.847817034e-05 | AW167: 0.7078584473 | AX167: 1.576585185e-05 | AY167: 12199722.72 | AZ167: 8635676.78 | BA167: 25.99698435 | BB167: 3.594568174 | BC167: 0.05144690859 | BD167: 197.466869 | BE167: 0.01606007393 | BF167: 975.459139 | BG167: 1172.926008 | BH167: 1822.162845 | BI167: 0.001788734036 | BJ167: 0.1114666498 | BK167: 29.24071644 | BL167: 167603.1725 | BM167: 0.01600804231 | BN167: 0.995601305 | BO167: 3449.935792 | BP167: 2672.893466 | BQ167: 2723.183917 | BR167: 1421.922662 | BU167: 6.015816552 | BV167: -89.76275171 | BW167: 76.84507114 | BX167: 4.393963783 | BY167: 475.1613894 | BZ167: 5878.797754 | CA167: 4526.591968 | CB167: 0.08659397049 | CC167: 0.05144690859
A168: 1.185466943 | B168: 68 | C168: 57.36136329 | D168: 1896.194255 | E168: 143.0128359 | F168: 309.015435 | G168: 0.9702257922 | H168: 2.145904077 | I168: 3.384437766e-08 | J168: 128.5356166 | K168: 128.5356166 | L168: -3.211653166e-12 | M168: 0.06630903526 | N168: 0.06585617575 | O168: 21.16883625 | P168: 142.8678576 | Q168: 2346.040153 | R168: 43.25742033 | S168: 91.40721649 | U168: 418.2992945 | V168: 145.2992945 | W168: 419.8340339 | X168: 146.8340339 | Y168: 4527.006182 | Z168: 309.015435 | AA168: 36.01543497 | AB168: 307.610505 | AC168: 34.61050495 | AD168: 299.70526 | AE168: 26.70525998 | AF168: 0.0005942935585 | AG168: 6.174786583e-07 | AH168: 962.4519821 | AI168: 0.1221614295 | AJ168: 9.224646729 | AK168: 251144.7907 | AO168: 2120.808684 | AQ168: 2918.856113 | AR168: 9.482610109 | AS168: 1006.386619 | AT168: 1.172026627 | AU168: 0.02627125348 | AV168: 1.847830178e-05 | AW168: 0.707857951 | AX168: 1.576611091e-05 | AY168: 12205029 | AZ168: 8639426.819 | BA168: 26.00037653 | BB168: 3.595065698 | BC168: 0.05144636514 | BD168: 197.4970563 | BE168: 0.01606252908 | BF168: 975.5230202 | BG168: 1173.020076 | BH168: 1822.250283 | BI168: 0.001787848435 | BJ168: 0.1114570179 | BK168: 29.23016763 | BL168: 167681.4565 | BM168: 0.0160065637 | BN168: 0.9955995833 | BO168: 3450.781576 | BP168: 2673.548751 | BQ168: 2723.851531 | BR168: 1421.903895 | BU168: 6.015933712 | BV168: -89.76099432 | BW168: 76.84371068 | BX168: 4.393517428 | BY168: 475.20487 | BZ168: 5879.335705 | CA168: 4527.006182 | CB168: 0.08723540731 | CC168: 0.05144636514
A169: 1.185466943 | B169: 68.5 | C169: 57.78313802 | D169: 1896.338446 | E169: 143.0642981 | F169: 309.0213638 | G169: 0.9705148637 | H169: 2.14620104 | I169: 3.384437766e-08 | J169: 128.5739128 | K169: 128.5739128 | L169: 2.216893336e-12 | M169: 0.0663120467 | N169: 0.06585914621 | O169: 21.16962224 | P169: 142.8809284 | Q169: 2346.228252 | R169: 43.28791459 | S169: 91.43771075 | U169: 418.3505105 | V169: 145.3505105 | W169: 419.8853159 | X169: 146.8853159 | Y169: 4527.42035 | Z169: 309.0213638 | AA169: 36.02136377 | AB169: 307.6161049 | AC169: 34.61610492 | AD169: 299.7390169 | AE169: 26.73901691 | AF169: 0.0005940162056 | AG169: 6.172178701e-07 | AH169: 962.4092795 | AI169: 0.1221544566 | AJ169: 9.221569148 | AK169: 251262.053 | AO169: 2121.207161 | AQ169: 2919.404535 | AR169: 9.482615896 | AS169: 1006.38673 | AT169: 1.172015703 | AU169: 0.02627146173 | AV169: 1.847843326e-05 | AW169: 0.7078574545 | AX169: 1.576637004e-05 | AY169: 12210336.51 | AZ169: 8643177.722 | BA169: 26.00376849 | BB169: 3.595563204 | BC169: 0.05144582111 | BD169: 197.5272414 | BE169: 0.01606498405 | BF169: 975.5868844 | BG169: 1173.114126 | BH169: 1822.337721 | BI169: 0.001786963465 | BJ169: 0.1114473859 | BK169: 29.21962595 | BL169: 167759.7489 | BM169: 0.01600508583 | BN169: 0.9955978629 | BO169: 3451.626959 | BP169: 2674.203725 | BQ169: 2724.518829 | BR169: 1421.885129 | BU169: 6.016050872 | BV169: -89.75923692 | BW169: 76.84235022 | BX169: 4.393071164 | BY169: 475.2483457 | BZ169: 5879.873596 | CA169: 4527.42035 | CB169: 0.08787684413 | CC169: 0.05144582111
A170: 1.185466943 | B170: 69 | C170: 58.20491275 | D170: 1896.482628 | E170: 143.11576 | F170: 309.0272941 | G170: 0.9708040332 | H170: 2.146497993 | I170: 3.384437766e-08 | J170: 128.612222 | K170: 128.612222 | L170: -4.575895218e-12 | M170: 0.06631505921 | N170: 0.0658621177 | O170: 21.17040823 | P170: 142.8939977 | Q170: 2346.416312 | R170: 43.31842271 | S170: 91.46821887 | U170: 418.4017266 | V170: 145.4017266 | W170: 419.936598 | X170: 146.936598 | Y170: 4527.834472 | Z170: 309.0272941 | AA170: 36.02729408 | AB170: 307.6217063 | AC170: 34.62170629 | AD170: 299.7727748 | AE170: 26.77277481 | AF170: 0.000593739082 | AG170: 6.169572976e-07 | AH170: 962.366576 | AI170: 0.1221474827 | AJ170: 9.21849415 | AK170: 251379.3279 | AO170: 2121.605316 | AQ170: 2919.952514 | AR170: 9.482621676 | AS170: 1006.386841 | AT170: 1.172004776 | AU170: 0.02627167003 | AV170: 1.847856477e-05 | AW170: 0.707856958 | AX170: 1.576662924e-05 | AY170: 12215645.26 | AZ170: 8646929.49 | BA170: 26.00716023 | BB170: 3.596060694 | BC170: 0.05144527649 | BD170: 197.5574243 | BE170: 0.01606743884 | BF170: 975.6507316 | BG170: 1173.208156 | BH170: 1822.425159 | BI170: 0.001786079127 | BJ170: 0.1114377539 | BK170: 29.20909139 | BL170: 167838.0496 | BM170: 0.01600360869 | BN170: 0.9955961439 | BO170: 3452.471942 | BP170: 2674.858389 | BQ170: 2725.18581 | BR170: 1421.866364 | BU170: 6.016168031 | BV170: -89.75747953 | BW170: 76.84098975 | BX170: 4.392624991 | BY170: 475.2918165 | BZ170: 5880.411426 | CA170: 4527.834472 | CB170: 0.08851828095 | CC170: 0.05144527649
A171: 1.185466943 | B171: 69.5 | C171: 58.62668748 | D171: 1896.626802 | E171: 143.1672216 | F171: 309.0332259 | G171: 0.9710933007 | H171: 2.146794936 | I171: 3.384437766e-08 | J171: 128.6505442 | K171: 128.6505442 | L171: 2.131628207e-12 | M171: 0.06631807277 | N171: 0.06586509024 | O171: 21.17119422 | P171: 142.9070655 | Q171: 2346.604334 | R171: 43.34894469 | S171: 91.49874085 | U171: 418.4529428 | V171: 145.4529428 | W171: 419.9878803 | X171: 146.9878803 | Y171: 4528.248548 | Z171: 309.0332259 | AA171: 36.03322588 | AB171: 307.6273091 | AC171: 34.62730906 | AD171: 299.8065337 | AE171: 26.80653366 | AF171: 0.0005934621872 | AG171: 6.166969405e-07 | AH171: 962.3238714 | AI171: 0.1221405079 | AJ171: 9.21542173 | AK171: 251496.6152 | AO171: 2122.003151 | AQ171: 2920.50005 | AR171: 9.48262745 | AS171: 1006.386952 | AT171: 1.171993847 | AU171: 0.02627187838 | AV171: 1.84786963e-05 | AW171: 0.7078564613 | AX171: 1.57668885e-05 | AY171: 12220955.23 | AZ171: 8650682.123 | BA171: 26.01055174 | BB171: 3.596558167 | BC171: 0.05144473129 | BD171: 197.587605 | BE171: 0.01606989345 | BF171: 975.7145618 | BG171: 1173.302167 | BH171: 1822.512598 | BI171: 0.001785195419 | BJ171: 0.1114281219 | BK171: 29.19856393 | BL171: 167916.3587 | BM171: 0.01600213229 | BN171: 0.9955944263 | BO171: 3453.316524 | BP171: 2675.512743 | BQ171: 2725.852476 | BR171: 1421.847598 | BU171: 6.016285191 | BV171: -89.75572214 | BW171: 76.83962928 | BX171: 4.392178908 | BY171: 475.3352825 | BZ171: 5880.949196 | CA171: 4528.248548 | CB171: 0.08915971777 | CC171: 0.05144473129
A172: 1.185466943 | B172: 70 | C172: 59.04846221 | D172: 1896.770967 | E172: 143.218683 | F172: 309.0391592 | G172: 0.9713826663 | H172: 2.147091869 | I172: 3.384437766e-08 | J172: 128.6888794 | K172: 128.6888794 | L172: 8.185452316e-12 | M172: 0.06632108739 | N172: 0.06586806381 | O172: 21.17198021 | P172: 142.9201318 | Q172: 2346.792317 | R172: 43.37948054 | S172: 91.5292767 | U172: 418.5041591 | V172: 145.5041591 | W172: 420.0391626 | X172: 147.0391626 | Y172: 4528.662577 | Z172: 309.0391592 | AA172: 36.03915918 | AB172: 307.6329132 | AC172: 34.63291324 | AD172: 299.8402935 | AE172: 26.84029346 | AF172: 0.0005931855212 | AG172: 6.164367986e-07 | AH172: 962.2811658 | AI172: 0.1221335321 | AJ172: 9.212351886 | AK172: 251613.9151 | AO172: 2122.400664 | AQ172: 2921.047145 | AR172: 9.482633216 | AS172: 1006.387064 | AT172: 1.171982915 | AU172: 0.02627208678 | AV172: 1.847882788e-05 | AW172: 0.7078559645 | AX172: 1.576714783e-05 | AY172: 12226266.44 | AZ172: 8654435.622 | BA172: 26.01394302 | BB172: 3.597055624 | BC172: 0.05144418551 | BD172: 197.6177836 | BE172: 0.01607234788 | BF172: 975.7783752 | BG172: 1173.396159 | BH172: 1822.600036 | BI172: 0.00178431234 | BJ172: 0.1114184898 | BK172: 29.18804357 | BL172: 167994.6761 | BM172: 0.01600065663 | BN172: 0.9955927101 | BO172: 3454.160707 | BP172: 2676.166787 | BQ172: 2726.518826 | BR172: 1421.828834 | BU172: 6.016402351 | BV172: -89.75396474 | BW172: 76.83826879 | BX172: 4.391732916 | BY172: 475.3787436 | BZ172: 5881.486907 | CA172: 4528.662577 | CB172: 0.08980115459 | CC172: 0.05144418551
A173: 1.185466943 | B173: 70.5 | C173: 59.47023694 | D173: 1896.915125 | E173: 143.2701441 | F173: 309.045094 | G173: 0.9716721301 | H173: 2.147388793 | I173: 3.384437766e-08 | J173: 128.7272276 | K173: 128.7272276 | L173: -2.557953849e-12 | M173: 0.06632410307 | N173: 0.06587103843 | O173: 21.1727662 | P173: 142.9331967 | Q173: 2346.980263 | R173: 43.41003025 | S173: 91.55982642 | U173: 418.5553756 | V173: 145.5553756 | W173: 420.090445 | X173: 147.090445 | Y173: 4529.07656 | Z173: 309.045094 | AA173: 36.04509397 | AB173: 307.6385188 | AC173: 34.63851882 | AD173: 299.8740542 | AE173: 26.87405422 | AF173: 0.0005929090835 | AG173: 6.161768716e-07 | AH173: 962.2384592 | AI173: 0.1221265554 | AJ173: 9.209284616 | AK173: 251731.2274 | AO173: 2122.797856 | AQ173: 2921.593799 | AR173: 9.482638976 | AS173: 1006.387175 | AT173: 1.171971981 | AU173: 0.02627229523 | AV173: 1.847895948e-05 | AW173: 0.7078554676 | AX173: 1.576740722e-05 | AY173: 12231578.88 | AZ173: 8658189.986 | BA173: 26.01733408 | BB173: 3.597553064 | BC173: 0.05144363914 | BD173: 197.6479599 | BE173: 0.01607480214 | BF173: 975.8421715 | BG173: 1173.490131 | BH173: 1822.687475 | BI173: 0.001783429888 | BJ173: 0.1114088578 | BK173: 29.17753027 | BL173: 168073.0019 | BM173: 0.0159991817 | BN173: 0.9955909952 | BO173: 3455.004491 | BP173: 2676.820522 | BQ173: 2727.184861 | BR173: 1421.81007 | BU173: 6.01651951 | BV173: -89.75220735 | BW173: 76.8369083 | BX173: 4.391287014 | BY173: 475.4221998 | BZ173: 5882.024557 | CA173: 4529.07656 | CB173: 0.0904425914 | CC173: 0.05144363914
A174: 1.185466943 | B174: 71 | C174: 59.89201167 | D174: 1897.059273 | E174: 143.3216049 | F174: 309.0510303 | G174: 0.971961692 | H174: 2.147685706 | I174: 3.384437766e-08 | J174: 128.7655888 | K174: 128.7655888 | L174: 2.273736754e-13 | M174: 0.0663271198 | N174: 0.06587401409 | O174: 21.17355218 | P174: 142.9462602 | Q174: 2347.16817 | R174: 43.44059385 | S174: 91.59039001 | U174: 418.6065922 | V174: 145.6065922 | W174: 420.1417275 | X174: 147.1417275 | Y174: 4529.490497 | Z174: 309.0510303 | AA174: 36.05103027 | AB174: 307.6441258 | AC174: 34.6441258 | AD174: 299.9078159 | AE174: 26.90781593 | AF174: 0.0005926328741 | AG174: 6.159171594e-07 | AH174: 962.1957515 | AI174: 0.1221195778 | AJ174: 9.206219916 | AK174: 251848.5522 | AO174: 2123.194729 | AQ174: 2922.140012 | AR174: 9.482644729 | AS174: 1006.387286 | AT174: 1.171961044 | AU174: 0.02627250374 | AV174: 1.847909112e-05 | AW174: 0.7078549706 | AX174: 1.576766668e-05 | AY174: 12236892.55 | AZ174: 8661945.216 | BA174: 26.02072492 | BB174: 3.598050488 | BC174: 0.05144309219 | BD174: 197.6781341 | BE174: 0.01607725622 | BF174: 975.9059509 | BG174: 1173.584085 | BH174: 1822.774914 | BI174: 0.001782548063 | BJ174: 0.1113992257 | BK174: 29.16702404 | BL174: 168151.336 | BM174: 0.0159977075 | BN174: 0.9955892817 | BO174: 3455.847876 | BP174: 2677.473949 | BQ174: 2727.850582 | BR174: 1421.791307 | BU174: 6.01663667 | BV174: -89.75044995 | BW174: 76.8355478 | BX174: 4.390841204 | BY174: 475.4656512 | BZ174: 5882.562147 | CA174: 4529.490497 | CB174: 0.09108402822 | CC174: 0.05144309219
A175: 1.185466943 | B175: 71.5 | C175: 60.3137864 | D175: 1897.203414 | E175: 143.3730655 | F175: 309.0569681 | G175: 0.9722513521 | H175: 2.14798261 | I175: 3.384437766e-08 | J175: 128.803963 | K175: 128.803963 | L175: -5.400124792e-13 | M175: 0.06633013759 | N175: 0.06587699079 | O175: 21.17433817 | P175: 142.9593221 | Q175: 2347.356039 | R175: 43.47117132 | S175: 91.62096748 | U175: 418.6578089 | V175: 145.6578089 | W175: 420.1930101 | X175: 147.1930101 | Y175: 4529.904388 | Z175: 309.0569681 | AA175: 36.05696806 | AB175: 307.6497342 | AC175: 34.64973419 | AD175: 299.9415786 | AE175: 26.94157859 | AF175: 0.0005923568925 | AG175: 6.156576616e-07 | AH175: 962.1530429 | AI175: 0.1221125993 | AJ175: 9.203157784 | AK175: 251965.8895 | AO175: 2123.591281 | AQ175: 2922.685784 | AR175: 9.482650475 | AS175: 1006.387398 | AT175: 1.171950105 | AU175: 0.02627271229 | AV175: 1.847922278e-05 | AW175: 0.7078544735 | AX175: 1.576792621e-05 | AY175: 12242207.45 | AZ175: 8665701.311 | BA175: 26.02411553 | BB175: 3.598547895 | BC175: 0.05144254466 | BD175: 197.708306 | BE175: 0.01607971012 | BF175: 975.9697133 | BG175: 1173.678019 | BH175: 1822.862354 | BI175: 0.001781666864 | BJ175: 0.1113895935 | BK175: 29.15652485 | BL175: 168229.6784 | BM175: 0.01599623404 | BN175: 0.9955875695 | BO175: 3456.690863 | BP175: 2678.127066 | BQ175: 2728.515988 | BR175: 1421.772544 | BU175: 6.01675383 | BV175: -89.74869256 | BW175: 76.83418729 | BX175: 4.390395483 | BY175: 475.5090978 | BZ175: 5883.099677 | CA175: 4529.904388 | CB175: 0.09172546504 | CC175: 0.05144254466
A176: 1.185466943 | B176: 72 | C176: 60.73556113 | D176: 1897.347545 | E176: 143.4245258 | F176: 309.0629074 | G176: 0.9725411104 | H176: 2.148279504 | I176: 3.384437766e-08 | J176: 128.8423502 | K176: 128.8423502 | L176: -4.035882739e-12 | M176: 0.06633315645 | N176: 0.06587996854 | O176: 21.17512415 | P176: 142.9723827 | Q176: 2347.543869 | R176: 43.50176268 | S176: 91.65155884 | U176: 418.7090258 | V176: 145.7090258 | W176: 420.2442928 | X176: 147.2442928 | Y176: 4530.318232 | Z176: 309.0629074 | AA176: 36.06290736 | AB176: 307.655344 | AC176: 34.65534399 | AD176: 299.9753422 | AE176: 26.97534221 | AF176: 0.0005920811386 | AG176: 6.153983781e-07 | AH176: 962.1103332 | AI176: 0.1221056198 | AJ176: 9.200098217 | AK176: 252083.2393 | AO176: 2123.987513 | AQ176: 2923.231117 | AR176: 9.482656215 | AS176: 1006.387509 | AT176: 1.171939163 | AU176: 0.0262729209 | AV176: 1.847935449e-05 | AW176: 0.7078539762 | AX176: 1.576818581e-05 | AY176: 12247523.59 | AZ176: 8669458.274 | BA176: 26.02750592 | BB176: 3.599045286 | BC176: 0.05144199654 | BD176: 197.7384758 | BE176: 0.01608216384 | BF176: 976.0334588 | BG176: 1173.771935 | BH176: 1822.949793 | BI176: 0.001780786289 | BJ176: 0.1113799614 | BK176: 29.1460327 | BL176: 168308.0291 | BM176: 0.01599476131 | BN176: 0.9955858587 | BO176: 3457.533452 | BP176: 2678.779876 | BQ176: 2729.18108 | BR176: 1421.753781 | BU176: 6.016870989 | BV176: -89.74693516 | BW176: 76.83282678 | BX176: 4.389949854 | BY176: 475.5525395 | BZ176: 5883.637146 | CA176: 4530.318232 | CB176: 0.09236690186 | CC176: 0.05144199654
A177: 1.185466943 | B177: 72.5 | C177: 61.15733586 | D177: 1897.491669 | E177: 143.4759858 | F177: 309.0688482 | G177: 0.972830967 | H177: 2.148576388 | I177: 3.384437766e-08 | J177: 128.8807504 | K177: 128.8807504 | L177: 4.604316928e-12 | M177: 0.06633617635 | N177: 0.06588294732 | O177: 21.17591013 | P177: 142.9854417 | Q177: 2347.731661 | R177: 43.53236792 | S177: 91.68216409 | U177: 418.7602427 | V177: 145.7602427 | W177: 420.2955756 | X177: 147.2955756 | Y177: 4530.73203 | Z177: 309.0688482 | AA177: 36.06884815 | AB177: 307.6609552 | AC177: 34.66095519 | AD177: 300.0091068 | AE177: 27.00910678 | AF177: 0.000591805612 | AG177: 6.151393085e-07 | AH177: 962.0676224 | AI177: 0.1220986394 | AJ177: 9.197041212 | AK177: 252200.6015 | AO177: 2124.383426 | AQ177: 2923.776009 | AR177: 9.482661948 | AS177: 1006.38762 | AT177: 1.171928219 | AU177: 0.02627312956 | AV177: 1.847948622e-05 | AW177: 0.7078534789 | AX177: 1.576844547e-05 | AY177: 12252840.96 | AZ177: 8673216.102 | BA177: 26.03089609 | BB177: 3.599542661 | BC177: 0.05144144785 | BD177: 197.7686434 | BE177: 0.01608461739 | BF177: 976.0971873 | BG177: 1173.865831 | BH177: 1823.037233 | BI177: 0.001779906337 | BJ177: 0.1113703292 | BK177: 29.13554755 | BL177: 168386.3882 | BM177: 0.01599328931 | BN177: 0.9955841493 | BO177: 3458.375644 | BP177: 2679.432377 | BQ177: 2729.845858 | BR177: 1421.735019 | BU177: 6.016988149 | BV177: -89.74517777 | BW177: 76.83146626 | BX177: 4.389504314 | BY177: 475.5959763 | BZ177: 5884.174556 | CA177: 4530.73203 | CB177: 0.09300833868 | CC177: 0.05144144785
A178: 1.185466943 | B178: 73 | C178: 61.57911059 | D178: 1897.635784 | E178: 143.5274455 | F178: 309.0747904 | G178: 0.9731209219 | H178: 2.148873262 | I178: 3.384437766e-08 | J178: 128.9191637 | K178: 128.9191637 | L178: -4.376943252e-12 | M178: 0.06633919732 | N178: 0.06588592715 | O178: 21.17669611 | P178: 142.9984993 | Q178: 2347.919415 | R178: 43.56298706 | S178: 91.71278323 | U178: 418.8114598 | V178: 145.8114598 | W178: 420.3468585 | X178: 147.3468585 | Y178: 4531.145781 | Z178: 309.0747904 | AA178: 36.07479045 | AB178: 307.6665678 | AC178: 34.6665678 | AD178: 300.0428723 | AE178: 27.0428723 | AF178: 0.0005915303126 | AG178: 6.148804527e-07 | AH178: 962.0249107 | AI178: 0.1220916581 | AJ178: 9.193986765 | AK178: 252317.9762 | AO178: 2124.77902 | AQ178: 2924.320463 | AR178: 9.482667674 | AS178: 1006.387732 | AT178: 1.171917272 | AU178: 0.02627333827 | AV178: 1.847961799e-05 | AW178: 0.7078529814 | AX178: 1.57687052e-05 | AY178: 12258159.57 | AZ178: 8676974.797 | BA178: 26.03428603 | BB178: 3.600040019 | BC178: 0.05144089857 | BD178: 197.7988088 | BE178: 0.01608707075 | BF178: 976.1608988 | BG178: 1173.959708 | BH178: 1823.124673 | BI178: 0.001779027007 | BJ178: 0.111360697 | BK178: 29.12506941 | BL178: 168464.7555 | BM178: 0.01599181805 | BN178: 0.9955824412 | BO178: 3459.217439 | BP178: 2680.084572 | BQ178: 2730.510324 | BR178: 1421.716258 | BU178: 6.017105308 | BV178: -89.74342037 | BW178: 76.83010573 | BX178: 4.389058866 | BY178: 475.6394083 | BZ178: 5884.711906 | CA178: 4531.145781 | CB178: 0.0936497755 | CC178: 0.05144089857
A179: 1.185466943 | B179: 73.5 | C179: 62.00088532 | D179: 1897.779891 | E179: 143.578905 | F179: 309.0807342 | G179: 0.9734109751 | H179: 2.149170127 | I179: 3.384437766e-08 | J179: 128.95759 | K179: 128.95759 | L179: -3.439026841e-12 | M179: 0.06634221934 | N179: 0.06588890801 | O179: 21.17748209 | P179: 143.0115554 | Q179: 2348.107131 | R179: 43.5936201 | S179: 91.74341627 | U179: 418.862677 | V179: 145.862677 | W179: 420.3981415 | X179: 147.3981415 | Y179: 4531.559487 | Z179: 309.0807342 | AA179: 36.08073424 | AB179: 307.6721818 | AC179: 34.67218182 | AD179: 300.0766388 | AE179: 27.07663878 | AF179: 0.0005912552401 | AG179: 6.146218104e-07 | AH179: 961.9821979 | AI179: 0.1220846758 | AJ179: 9.190934876 | AK179: 252435.3633 | AO179: 2125.174296 | AQ179: 2924.864478 | AR179: 9.482673393 | AS179: 1006.387843 | AT179: 1.171906323 | AU179: 0.02627354703 | AV179: 1.847974978e-05 | AW179: 0.7078524838 | AX179: 1.576896499e-05 | AY179: 12263479.41 | AZ179: 8680734.359 | BA179: 26.03767576 | BB179: 3.600537361 | BC179: 0.05144034871 | BD179: 197.828972 | BE179: 0.01608952394 | BF179: 976.2245934 | BG179: 1174.053565 | BH179: 1823.212113 | BI179: 0.001778148299 | BJ179: 0.1113510648 | BK179: 29.11459826 | BL179: 168543.1312 | BM179: 0.01599034752 | BN179: 0.9955807345 | BO179: 3460.058837 | BP179: 2680.736459 | BQ179: 2731.174476 | BR179: 1421.697497 | BU179: 6.017222468 | BV179: -89.74166298 | BW179: 76.82874519 | BX179: 4.388613507 | BY179: 475.6828354 | BZ179: 5885.249195 | CA179: 4531.559487 | CB179: 0.09429121232 | CC179: 0.05144034871
A180: 1.185466943 | B180: 74 | C180: 62.42266005 | D180: 1897.923989 | E180: 143.6303641 | F180: 309.0866795 | G180: 0.9737011267 | H180: 2.149466982 | I180: 3.384437766e-08 | J180: 128.9960293 | K180: 128.9960293 | L180: -4.263256415e-13 | M180: 0.06634524242 | N180: 0.06589188992 | O180: 21.17826807 | P180: 143.0246101 | Q180: 2348.294808 | R180: 43.62426705 | S180: 91.77406321 | U180: 418.9138944 | V180: 145.9138944 | W180: 420.4494245 | X180: 147.4494245 | Y180: 4531.973146 | Z180: 309.0866795 | AA180: 36.08667954 | AB180: 307.6777972 | AC180: 34.67779724 | AD180: 300.1104062 | AE180: 27.1104062 | AF180: 0.0005909803941 | AG180: 6.143633814e-07 | AH180: 961.9394841 | AI180: 0.1220776926 | AJ180: 9.187885539 | AK180: 252552.7629 | AO180: 2125.569252 | AQ180: 2925.408055 | AR180: 9.482679106 | AS180: 1006.387955 | AT180: 1.171895371 | AU180: 0.02627375584 | AV180: 1.847988161e-05 | AW180: 0.7078519862 | AX180: 1.576922486e-05 | AY180: 12268800.48 | AZ180: 8684494.788 | BA180: 26.04106525 | BB180: 3.601034686 | BC180: 0.05143979826 | BD180: 197.859133 | BE180: 0.01609197695 | BF180: 976.288271 | BG180: 1174.147404 | BH180: 1823.299553 | BI180: 0.001777270211 | BJ180: 0.1113414326 | BK180: 29.10413408 | BL180: 168621.5152 | BM180: 0.01598887771 | BN180: 0.9955790291 | BO180: 3460.89984 | BP180: 2681.388039 | BQ180: 2731.838316 | BR180: 1421.678737 | BU180: 6.017339628 | BV180: -89.73990558 | BW180: 76.82738465 | BX180: 4.38816824 | BY180: 475.7262577 | BZ180: 5885.786425 | CA180: 4531.973146 | CB180: 0.09493264913 | CC180: 0.05143979826
A181: 1.185466943 | B181: 74.5 | C181: 62.84443478 | D181: 1898.068078 | E181: 143.681823 | F181: 309.0926263 | G181: 0.9739913767 | H181: 2.149763827 | I181: 3.384437766e-08 | J181: 129.0344816 | K181: 129.0344816 | L181: 0 | M181: 0.06634826656 | N181: 0.06589487287 | O181: 21.17905404 | P181: 143.0376633 | Q181: 2348.482447 | R181: 43.6549279 | S181: 91.80472406 | U181: 418.9651118 | V181: 145.9651118 | W181: 420.5007077 | X181: 147.5007077 | Y181: 4532.386759 | Z181: 309.0926263 | AA181: 36.09262634 | AB181: 307.6834141 | AC181: 34.68341407 | AD181: 300.1441746 | AE181: 27.14417458 | AF181: 0.0005907057745 | AG181: 6.141051653e-07 | AH181: 961.8967692 | AI181: 0.1220707085 | AJ181: 9.184838754 | AK181: 252670.1749 | AO181: 2125.963891 | AQ181: 2925.951193 | AR181: 9.482684811 | AS181: 1006.388066 | AT181: 1.171884417 | AU181: 0.02627396471 | AV181: 1.848001348e-05 | AW181: 0.7078514884 | AX181: 1.576948479e-05 | AY181: 12274122.79 | AZ181: 8688256.085 | BA181: 26.04445453 | BB181: 3.601531996 | BC181: 0.05143924724 | BD181: 197.8892919 | BE181: 0.01609442978 | BF181: 976.3519316 | BG181: 1174.241223 | BH181: 1823.386994 | BI181: 0.001776392742 | BJ181: 0.1113318003 | BK181: 29.09367685 | BL181: 168699.9075 | BM181: 0.01598740864 | BN181: 0.9955773251 | BO181: 3461.740447 | BP181: 2682.039313 | BQ181: 2732.501843 | BR181: 1421.659977 | BU181: 6.017456787 | BV181: -89.73814819 | BW181: 76.8260241 | BX181: 4.387723062 | BY181: 475.7696751 | BZ181: 5886.323594 | CA181: 4532.386759 | CB181: 0.09557408595 | CC181: 0.05143924724
A182: 1.185466943 | B182: 75 | C182: 63.26620951 | D182: 1898.21216 | E182: 143.7332817 | F182: 309.0985746 | G182: 0.9742817252 | H182: 2.150060663 | I182: 3.384437766e-08 | J182: 129.072947 | K182: 129.072947 | L182: 3.808509064e-12 | M182: 0.06635129175 | N182: 0.06589785686 | O182: 21.17984002 | P182: 143.0507151 | Q182: 2348.670048 | R182: 43.68560267 | S182: 91.83539883 | U182: 419.0163294 | V182: 146.0163294 | W182: 420.5519909 | X182: 147.5519909 | Y182: 4532.800326 | Z182: 309.0985746 | AA182: 36.09857464 | AB182: 307.6890323 | AC182: 34.68903231 | AD182: 300.1779439 | AE182: 27.1779439 | AF182: 0.000590431381 | AG182: 6.138471621e-07 | AH182: 961.8540533 | AI182: 0.1220637235 | AJ182: 9.181794516 | AK182: 252787.5993 | AO182: 2126.358212 | AQ182: 2926.493895 | AR182: 9.482690511 | AS182: 1006.388178 | AT182: 1.17187346 | AU182: 0.02627417363 | AV182: 1.848014537e-05 | AW182: 0.7078509904 | AX182: 1.576974478e-05 | AY182: 12279446.33 | AZ182: 8692018.249 | BA182: 26.04784358 | BB182: 3.602029289 | BC182: 0.05143869563 | BD182: 197.9194485 | BE182: 0.01609688244 | BF182: 976.4155752 | BG182: 1174.335024 | BH182: 1823.474435 | BI182: 0.001775515891 | BJ182: 0.111322168 | BK182: 29.08322657 | BL182: 168778.3081 | BM182: 0.0159859403 | BN182: 0.9955756224 | BO182: 3462.580659 | BP182: 2682.690281 | BQ182: 2733.165059 | BR182: 1421.641218 | BU182: 6.017573947 | BV182: -89.73639079 | BW182: 76.82466354 | BX182: 4.387277975 | BY182: 475.8130876 | BZ182: 5886.860704 | CA182: 4532.800326 | CB182: 0.09621552277 | CC182: 0.05143869563
A183: 1.185466943 | B183: 75.5 | C183: 63.68798424 | D183: 1898.356233 | E183: 143.78474 | F183: 309.1045244 | G183: 0.9745721721 | H183: 2.150357489 | I183: 3.384437766e-08 | J183: 129.1114255 | K183: 129.1114255 | L183: 3.0127012e-12 | M183: 0.066354318 | N183: 0.06590084189 | O183: 21.18062599 | P183: 143.0637654 | Q183: 2348.85761 | R183: 43.71629135 | S183: 91.86608752 | U183: 419.067547 | V183: 146.067547 | W183: 420.6032742 | X183: 147.6032742 | Y183: 4533.213846 | Z183: 309.1045244 | AA183: 36.10452444 | AB183: 307.694652 | AC183: 34.69465196 | AD183: 300.2117142 | AE183: 27.21171418 | AF183: 0.0005901572133 | AG183: 6.135893714e-07 | AH183: 961.8113364 | AI183: 0.1220567375 | AJ183: 9.178752823 | AK183: 252905.0361 | AO183: 2126.752215 | AQ183: 2927.036159 | AR183: 9.482696203 | AS183: 1006.388289 | AT183: 1.1718625 | AU183: 0.02627438259 | AV183: 1.84802773e-05 | AW183: 0.7078504924 | AX183: 1.577000484e-05 | AY183: 12284771.11 | AZ183: 8695781.281 | BA183: 26.05123242 | BB183: 3.602526566 | BC183: 0.05143814344 | BD183: 197.949603 | BE183: 0.01609933491 | BF183: 976.4792019 | BG183: 1174.428805 | BH183: 1823.561875 | BI183: 0.001774639656 | BJ183: 0.1113125357 | BK183: 29.07278322 | BL183: 168856.7169 | BM183: 0.01598447268 | BN183: 0.9955739211 | BO183: 3463.420476 | BP183: 2683.340943 | BQ183: 2733.827963 | BR183: 1421.622459 | BU183: 6.017691107 | BV183: -89.7346334 | BW183: 76.82330298 | BX183: 4.386832978 | BY183: 475.8564954 | BZ183: 5887.397753 | CA183: 4533.213846 | CB183: 0.09685695959 | CC183: 0.05143814344
A184: 1.185466943 | B184: 76 | C184: 64.10975897 | D184: 1898.500297 | E184: 143.8361981 | F184: 309.1104757 | G184: 0.9748627176 | H184: 2.150654305 | I184: 3.384437766e-08 | J184: 129.149917 | K184: 129.149917 | L184: 2.842170943e-13 | M184: 0.06635734531 | N184: 0.06590382796 | O184: 21.18141196 | P184: 143.0768142 | Q184: 2349.045134 | R184: 43.74699396 | S184: 91.89679012 | U184: 419.1187648 | V184: 146.1187648 | W184: 420.6545576 | X184: 147.6545576 | Y184: 4533.627321 | Z184: 309.1104757 | AA184: 36.11047575 | AB184: 307.700273 | AC184: 34.70027302 | AD184: 300.2454854 | AE184: 27.24548541 | AF184: 0.0005898832712 | AG184: 6.13331793e-07 | AH184: 961.7686184 | AI184: 0.1220497506 | AJ184: 9.175713673 | AK184: 253022.4853 | AO184: 2127.145901 | AQ184: 2927.577986 | AR184: 9.482701889 | AS184: 1006.388401 | AT184: 1.171851538 | AU184: 0.02627459161 | AV184: 1.848040926e-05 | AW184: 0.7078499943 | AX184: 1.577026497e-05 | AY184: 12290097.13 | AZ184: 8699545.181 | BA184: 26.05462103 | BB184: 3.603023827 | BC184: 0.05143759067 | BD184: 197.9797553 | BE184: 0.01610178721 | BF184: 976.5428116 | BG184: 1174.522567 | BH184: 1823.649317 | BI184: 0.001773764037 | BJ184: 0.1113029034 | BK184: 29.06234677 | BL184: 168935.1341 | BM184: 0.0159830058 | BN184: 0.9955722212 | BO184: 3464.259899 | BP184: 2683.991299 | BQ184: 2734.490556 | BR184: 1421.603701 | BU184: 6.017808266 | BV184: -89.732876 | BW184: 76.8219424 | BX184: 4.386388072 | BY184: 475.8998982 | BZ184: 5887.934742 | CA184: 4533.627321 | CB184: 0.09749839641 | CC184: 0.05143759067
A185: 1.185466943 | B185: 76.5 | C185: 64.5315337 | D185: 1898.644353 | E185: 143.8876559 | F185: 309.1164286 | G185: 0.9751533616 | H185: 2.150951112 | I185: 3.384437766e-08 | J185: 129.1884215 | K185: 129.1884215 | L185: 5.144329407e-12 | M185: 0.06636037368 | N185: 0.06590681507 | O185: 21.18219793 | P185: 143.0898616 | Q185: 2349.232619 | R185: 43.7777105 | S185: 91.92750666 | U185: 419.1699828 | V185: 146.1699828 | W185: 420.7058411 | X185: 147.7058411 | Y185: 4534.040749 | Z185: 309.1164286 | AA185: 36.11642856 | AB185: 307.7058955 | AC185: 34.70589548 | AD185: 300.2792576 | AE185: 27.27925758 | AF185: 0.0005896095544 | AG185: 6.130744267e-07 | AH185: 961.7258994 | AI185: 0.1220427628 | AJ185: 9.172677062 | AK185: 253139.947 | AO185: 2127.53927 | AQ185: 2928.119378 | AR185: 9.482707568 | AS185: 1006.388512 | AT185: 1.171840573 | AU185: 0.02627480068 | AV185: 1.848054125e-05 | AW185: 0.707849496 | AX185: 1.577052517e-05 | AY185: 12295424.38 | AZ185: 8703309.949 | BA185: 26.05800942 | BB185: 3.603521072 | BC185: 0.05143703732 | BD185: 198.0099054 | BE185: 0.01610423933 | BF185: 976.6064044 | BG185: 1174.61631 | BH185: 1823.736758 | BI185: 0.001772889033 | BJ185: 0.111293271 | BK185: 29.05191723 | BL185: 169013.5595 | BM185: 0.01598153964 | BN185: 0.9955705226 | BO185: 3465.098928 | BP185: 2684.641351 | BQ185: 2735.152838 | BR185: 1421.584943 | BU185: 6.017925426 | BV185: -89.73111861 | BW185: 76.82058182 | BX185: 4.385943256 | BY185: 475.9432962 | BZ185: 5888.471672 | CA185: 4534.040749 | CB185: 0.09813983323 | CC185: 0.05143703732
A186: 1.185466943 | B186: 77 | C186: 64.95330843 | D186: 1898.7884 | E186: 143.9391134 | F186: 309.1223829 | G186: 0.9754441043 | H186: 2.151247909 | I186: 3.384437766e-08 | J186: 129.2269391 | K186: 129.2269391 | L186: -3.410605132e-12 | M186: 0.0663634031 | N186: 0.06590980322 | O186: 21.1829839 | P186: 143.1029075 | Q186: 2349.420067 | R186: 43.80844097 | S186: 91.95823713 | U186: 419.2212008 | V186: 146.2212008 | W186: 420.7571247 | X186: 147.7571247 | Y186: 4534.45413 | Z186: 309.1223829 | AA186: 36.12238287 | AB186: 307.7115194 | AC186: 34.71151936 | AD186: 300.3130307 | AE186: 27.31303071 | AF186: 0.0005893360627 | AG186: 6.128172722e-07 | AH186: 961.6831794 | AI186: 0.122035774 | AJ186: 9.169642989 | AK186: 253257.421 | AO186: 2127.932322 | AQ186: 2928.660333 | AR186: 9.48271324 | AS186: 1006.388624 | AT186: 1.171829606 | AU186: 0.02627500981 | AV186: 1.848067328e-05 | AW186: 0.7078489977 | AX186: 1.577078543e-05 | AY186: 12300752.86 | AZ186: 8707075.586 | BA186: 26.06139758 | BB186: 3.6040183 | BC186: 0.05143648339 | BD186: 198.0400533 | BE186: 0.01610669128 | BF186: 976.6699801 | BG186: 1174.710033 | BH186: 1823.8242 | BI186: 0.001772014643 | BJ186: 0.1112836386 | BK186: 29.04149457 | BL186: 169091.9932 | BM186: 0.01598007421 | BN186: 0.9955688253 | BO186: 3465.937564 | BP186: 2685.291097 | BQ186: 2735.81481 | BR186: 1421.566186 | BU186: 6.018042586 | BV186: -89.72936121 | BW186: 76.81922124 | BX186: 4.38549853 | BY186: 475.9866894 | BZ186: 5889.008541 | CA186: 4534.45413 | CB186: 0.09878127004 | CC186: 0.05143648339
A187: 1.185466943 | B187: 77.5 | C187: 65.37508316 | D187: 1898.932439 | E187: 143.9905706 | F187: 309.1283387 | G187: 0.9757349455 | H187: 2.151544697 | I187: 3.384437766e-08 | J187: 129.2654698 | K187: 129.2654698 | L187: 4.803268894e-12 | M187: 0.06636643358 | N187: 0.06591279242 | O187: 21.18376987 | P187: 143.115952 | Q187: 2349.607476 | R187: 43.83918537 | S187: 91.98898153 | U187: 419.2724189 | V187: 146.2724189 | W187: 420.8084084 | X187: 147.8084084 | Y187: 4534.867466 | Z187: 309.1283387 | AA187: 36.12833869 | AB187: 307.7171446 | AC187: 34.71714465 | AD187: 300.3468048 | AE187: 27.34680478 | AF187: 0.0005890627958 | AG187: 6.125603293e-07 | AH187: 961.6404583 | AI187: 0.1220287844 | AJ187: 9.166611449 | AK187: 253374.9074 | AO187: 2128.325058 | AQ187: 2929.200853 | AR187: 9.482718906 | AS187: 1006.388736 | AT187: 1.171818636 | AU187: 0.02627521898 | AV187: 1.848080534e-05 | AW187: 0.7078484992 | AX187: 1.577104576e-05 | AY187: 12306082.59 | AZ187: 8710842.091 | BA187: 26.06478553 | BB187: 3.604515513 | BC187: 0.05143592888 | BD187: 198.070199 | BE187: 0.01610914304 | BF187: 976.7335389 | BG187: 1174.803738 | BH187: 1823.911641 | BI187: 0.001771140864 | BJ187: 0.1112740062 | BK187: 29.03107878 | BL187: 169170.4352 | BM187: 0.01597860951 | BN187: 0.9955671294 | BO187: 3466.775807 | BP187: 2685.94054 | BQ187: 2736.476472 | BR187: 1421.54743 | BU187: 6.018159745 | BV187: -89.72760382 | BW187: 76.81786064 | BX187: 4.385053895 | BY187: 476.0300777 | BZ187: 5889.54535 | CA187: 4534.867466 | CB187: 0.09942270686 | CC187: 0.05143592888
A188: 1.185466943 | B188: 78 | C188: 65.79685789 | D188: 1899.07647 | E188: 144.0420276 | F188: 309.134296 | G188: 0.9760258855 | H188: 2.151841475 | I188: 3.384437766e-08 | J188: 129.3040136 | K188: 129.3040136 | L188: 1.648459147e-12 | M188: 0.06636946512 | N188: 0.06591578265 | O188: 21.18455584 | P188: 143.128995 | Q188: 2349.794846 | R188: 43.86994372 | S188: 92.01973988 | U188: 419.3236372 | V188: 146.3236372 | W188: 420.8596921 | X188: 147.8596921 | Y188: 4535.280756 | Z188: 309.134296 | AA188: 36.13429601 | AB188: 307.7227713 | AC188: 34.72277134 | AD188: 300.3805798 | AE188: 27.38057981 | AF188: 0.0005887897535 | AG188: 6.123035978e-07 | AH188: 961.5977361 | AI188: 0.1220217938 | AJ188: 9.16358244 | AK188: 253492.4062 | AO188: 2128.717478 | AQ188: 2929.740938 | AR188: 9.482724565 | AS188: 1006.388848 | AT188: 1.171807664 | AU188: 0.02627542821 | AV188: 1.848093743e-05 | AW188: 0.7078480006 | AX188: 1.577130616e-05 | AY188: 12311413.55 | AZ188: 8714609.466 | BA188: 26.06817326 | BB188: 3.60501271 | BC188: 0.05143537378 | BD188: 198.1003425 | BE188: 0.01611159463 | BF188: 976.7970807 | BG188: 1174.897423 | BH188: 1823.999083 | BI188: 0.001770267698 | BJ188: 0.1112643738 | BK188: 29.02066985 | BL188: 169248.8854 | BM188: 0.01597714553 | BN188: 0.9955654348 | BO188: 3467.613658 | BP188: 2686.589678 | BQ188: 2737.137824 | BR188: 1421.528673 | BU188: 6.018276905 | BV188: -89.72584643 | BW188: 76.81650004 | BX188: 4.384609349 | BY188: 476.0734611 | BZ188: 5890.0821 | CA188: 4535.280756 | CB188: 0.1000641437 | CC188: 0.05143537378
A189: 1.185466943 | B189: 78.5 | C189: 66.21863262 | D189: 1899.220492 | E189: 144.0934843 | F189: 309.1402548 | G189: 0.9763169241 | H189: 2.152138243 | I189: 3.384437766e-08 | J189: 129.3425704 | K189: 129.3425704 | L189: 7.901235222e-12 | M189: 0.06637249771 | N189: 0.06591877392 | O189: 21.1853418 | P189: 143.1420366 | Q189: 2349.982179 | R189: 43.90071601 | S189: 92.05051218 | U189: 419.3748555 | V189: 146.3748555 | W189: 420.910976 | X189: 147.910976 | Y189: 4535.693999 | Z189: 309.1402548 | AA189: 36.14025484 | AB189: 307.7283995 | AC189: 34.72839945 | AD189: 300.4143558 | AE189: 27.41435578 | AF189: 0.0005885169354 | AG189: 6.120470774e-07 | AH189: 961.5550129 | AI189: 0.1220148022 | AJ189: 9.160555959 | AK189: 253609.9173 | AO189: 2129.109582 | AQ189: 2930.280589 | AR189: 9.482730218 | AS189: 1006.388959 | AT189: 1.171796689 | AU189: 0.02627563749 | AV189: 1.848106955e-05 | AW189: 0.7078475019 | AX189: 1.577156662e-05 | AY189: 12316745.75 | AZ189: 8718377.709 | BA189: 26.07156076 | BB189: 3.605509891 | BC189: 0.05143481811 | BD189: 198.1304839 | BE189: 0.01611404604 | BF189: 976.8606055 | BG189: 1174.991089 | BH189: 1824.086525 | BI189: 0.001769395141 | BJ189: 0.1112547413 | BK189: 29.01026775 | BL189: 169327.3439 | BM189: 0.01597568228 | BN189: 0.9955637416 | BO189: 3468.451117 | BP189: 2687.238513 | BQ189: 2737.798866 | BR189: 1421.509918 | BU189: 6.018394065 | BV189: -89.72408903 | BW189: 76.81513943 | BX189: 4.384164894 | BY189: 476.1168397 | BZ189: 5890.618789 | CA189: 4535.693999 | CB189: 0.1007055805 | CC189: 0.05143481811
A190: 1.185466943 | B190: 79 | C190: 66.64040735 | D190: 1899.364505 | E190: 144.1449407 | F190: 309.1462152 | G190: 0.9766080615 | H190: 2.152435002 | I190: 3.384437766e-08 | J190: 129.3811403 | K190: 129.3811403 | L190: -2.01794137e-12 | M190: 0.06637553136 | N190: 0.06592176624 | O190: 21.18612776 | P190: 143.1550767 | Q190: 2350.169473 | R190: 43.93150226 | S190: 92.08129842 | U190: 419.426074 | V190: 146.426074 | W190: 420.9622599 | X190: 147.9622599 | Y190: 4536.107196 | Z190: 309.1462152 | AA190: 36.14621518 | AB190: 307.734029 | AC190: 34.73402897 | AD190: 300.4481327 | AE190: 27.4481327 | AF190: 0.0005882443414 | AG190: 6.117907679e-07 | AH190: 961.5122887 | AI190: 0.1220078098 | AJ190: 9.157532005 | AK190: 253727.4409 | AO190: 2129.501371 | AQ190: 2930.819806 | AR190: 9.482735864 | AS190: 1006.389071 | AT190: 1.171785712 | AU190: 0.02627584681 | AV190: 1.848120171e-05 | AW190: 0.7078470031 | AX190: 1.577182715e-05 | AY190: 12322079.18 | AZ190: 8722146.822 | BA190: 26.07494805 | BB190: 3.606007056 | BC190: 0.05143426186 | BD190: 198.160623 | BE190: 0.01611649728 | BF190: 976.9241134 | BG190: 1175.084736 | BH190: 1824.173968 | BI190: 0.001768523194 | BJ190: 0.1112451089 | BK190: 28.99987248 | BL190: 169405.8106 | BM190: 0.01597421975 | BN190: 0.9955620497 | BO190: 3469.288184 | BP190: 2687.887044 | BQ190: 2738.4596 | BR190: 1421.491163 | BU190: 6.018511224 | BV190: -89.72233164 | BW190: 76.81377881 | BX190: 4.383720529 | BY190: 476.1602135 | BZ190: 5891.155418 | CA190: 4536.107196 | CB190: 0.1013470173 | CC190: 0.05143426186
A191: 1.185466943 | B191: 79.5 | C191: 67.06218208 | D191: 1899.508511 | E191: 144.1963968 | F191: 309.152177 | G191: 0.9768992977 | H191: 2.152731752 | I191: 3.384437766e-08 | J191: 129.4197233 | K191: 129.4197233 | L191: -3.581135388e-12 | M191: 0.06637856607 | N191: 0.06592475959 | O191: 21.18691372 | P191: 143.1681153 | Q191: 2350.356729 | R191: 43.96230247 | S191: 92.11209863 | U191: 419.4772926 | V191: 146.4772926 | W191: 421.0135439 | X191: 148.0135439 | Y191: 4536.520347 | Z191: 309.152177 | AA191: 36.15217702 | AB191: 307.7396599 | AC191: 34.73965991 | AD191: 300.4819106 | AE191: 27.48191056 | AF191: 0.0005879719712 | AG191: 6.11534669e-07 | AH191: 961.4695634 | AI191: 0.1220008164 | AJ191: 9.154510573 | AK191: 253844.9767 | AO191: 2129.892845 | AQ191: 2931.358588 | AR191: 9.482741503 | AS191: 1006.389183 | AT191: 1.171774732 | AU191: 0.0262760562 | AV191: 1.848133389e-05 | AW191: 0.7078465041 | AX191: 1.577208775e-05 | AY191: 12327413.86 | AZ191: 8725916.804 | BA191: 26.07833512 | BB191: 3.606504205 | BC191: 0.05143370503 | BD191: 198.19076 | BE191: 0.01611894833 | BF191: 976.9876043 | BG191: 1175.178364 | BH191: 1824.26141 | BI191: 0.001767651855 | BJ191: 0.1112354764 | BK191: 28.98948403 | BL191: 169484.2856 | BM191: 0.01597275794 | BN191: 0.9955603591 | BO191: 3470.12486 | BP191: 2688.535273 | BQ191: 2739.120024 | BR191: 1421.472408 | BU191: 6.018628384 | BV191: -89.72057424 | BW191: 76.81241819 | BX191: 4.383276254 | BY191: 476.2035824 | BZ191: 5891.691988 | CA191: 4536.520347 | CB191: 0.1019884541 | CC191: 0.05143370503
A192: 1.185466943 | B192: 80 | C192: 67.48395681 | D192: 1899.652507 | E192: 144.2478527 | F192: 309.1581404 | G192: 0.9771906327 | H192: 2.153028492 | I192: 3.384437766e-08 | J192: 129.4583194 | K192: 129.4583194 | L192: 6.764366844e-12 | M192: 0.06638160183 | N192: 0.06592775399 | O192: 21.18769968 | P192: 143.1811525 | Q192: 2350.543946 | R192: 43.99311663 | S192: 92.14291279 | U192: 419.5285113 | V192: 146.5285113 | W192: 421.0648279 | X192: 148.0648279 | Y192: 4536.933451 | Z192: 309.1581404 | AA192: 36.15814036 | AB192: 307.7452922 | AC192: 34.74529225 | AD192: 300.5156894 | AE192: 27.51568938 | AF192: 0.0005876998245 | AG192: 6.112787805e-07 | AH192: 961.426837 | AI192: 0.121993822 | AJ192: 9.151491661 | AK192: 253962.5249 | AO192: 2130.284003 | AQ192: 2931.896938 | AR192: 9.482747136 | AS192: 1006.389295 | AT192: 1.17176375 | AU192: 0.02627626563 | AV192: 1.848146612e-05 | AW192: 0.7078460051 | AX192: 1.577234841e-05 | AY192: 12332749.77 | AZ192: 8729687.656 | BA192: 26.08172196 | BB192: 3.607001339 | BC192: 0.05143314761 | BD192: 198.2208948 | BE192: 0.01612139921 | BF192: 977.0510781 | BG192: 1175.271973 | BH192: 1824.348853 | BI192: 0.001766781123 | BJ192: 0.1112258439 | BK192: 28.97910237 | BL192: 169562.7689 | BM192: 0.01597129687 | BN192: 0.9955586699 | BO192: 3470.961146 | BP192: 2689.183198 | BQ192: 2739.780141 | BR192: 1421.453654 | BU192: 6.018745544 | BV192: -89.71881685 | BW192: 76.81105756 | BX192: 4.38283207 | BY192: 476.2469464 | BZ192: 5892.228497 | CA192: 4536.933451 | CB192: 0.102629891 | CC192: 0.05143314761
A193: 1.185466943 | B193: 80.5 | C193: 67.90573154 | D193: 1899.796495 | E193: 144.2993082 | F193: 309.1641052 | G193: 0.9774820665 | H193: 2.153325223 | I193: 3.384437766e-08 | J193: 129.4969286 | K193: 129.4969286 | L193: 3.041122909e-12 | M193: 0.06638463865 | N193: 0.06593074943 | O193: 21.18848564 | P193: 143.1941882 | Q193: 2350.731125 | R193: 44.02394476 | S193: 92.17374092 | U193: 419.5797301 | V193: 146.5797301 | W193: 421.1161121 | X193: 148.1161121 | Y193: 4537.34651 | Z193: 309.1641052 | AA193: 36.16410522 | AB193: 307.750926 | AC193: 34.75092601 | AD193: 300.5494691 | AE193: 27.54946914 | AF193: 0.0005874279011 | AG193: 6.110231023e-07 | AH193: 961.3841096 | AI193: 0.1219868268 | AJ193: 9.148475266 | AK193: 254080.0855 | AO193: 2130.674848 | AQ193: 2932.434854 | AR193: 9.482752762 | AS193: 1006.389407 | AT193: 1.171752765 | AU193: 0.02627647511 | AV193: 1.848159837e-05 | AW193: 0.707845506 | AX193: 1.577260914e-05 | AY193: 12338086.92 | AZ193: 8733459.379 | BA193: 26.08510859 | BB193: 3.607498456 | BC193: 0.05143258962 | BD193: 198.2510274 | BE193: 0.01612384991 | BF193: 977.114535 | BG193: 1175.365562 | BH193: 1824.436296 | BI193: 0.001765910997 | BJ193: 0.1112162114 | BK193: 28.96872749 | BL193: 169641.2604 | BM193: 0.01596983651 | BN193: 0.995556982 | BO193: 3471.797041 | BP193: 2689.830822 | BQ193: 2740.439949 | BR193: 1421.434901 | BU193: 6.018862703 | BV193: -89.71705945 | BW193: 76.80969692 | BX193: 4.382387975 | BY193: 476.2903057 | BZ193: 5892.764946 | CA193: 4537.34651 | CB193: 0.1032713278 | CC193: 0.05143258962
A194: 1.185466943 | B194: 81 | C194: 68.32750627 | D194: 1899.940475 | E194: 144.3507635 | F194: 309.1700716 | G194: 0.9777735992 | H194: 2.153621944 | I194: 3.384437766e-08 | J194: 129.5355509 | K194: 129.5355509 | L194: -3.808509064e-12 | M194: 0.06638767653 | N194: 0.0659337459 | O194: 21.1892716 | P194: 143.2072225 | Q194: 2350.918266 | R194: 44.05478686 | S194: 92.20458303 | U194: 419.630949 | V194: 146.630949 | W194: 421.1673963 | X194: 148.1673963 | Y194: 4537.759522 | Z194: 309.1700716 | AA194: 36.17007158 | AB194: 307.7565612 | AC194: 34.75656118 | AD194: 300.5832498 | AE194: 27.58324984 | AF194: 0.0005871562007 | AG194: 6.107676339e-07 | AH194: 961.3413811 | AI194: 0.1219798306 | AJ194: 9.145461386 | AK194: 254197.6584 | AO194: 2131.065378 | AQ194: 2932.972339 | AR194: 9.482758381 | AS194: 1006.389519 | AT194: 1.171741777 | AU194: 0.02627668465 | AV194: 1.848173065e-05 | AW194: 0.7078450067 | AX194: 1.577286994e-05 | AY194: 12343425.31 | AZ194: 8737231.971 | BA194: 26.088495 | BB194: 3.607995558 | BC194: 0.05143203105 | BD194: 198.2811579 | BE194: 0.01612630043 | BF194: 977.1779749 | BG194: 1175.459133 | BH194: 1824.523739 | BI194: 0.001765041476 | BJ194: 0.1112065788 | BK194: 28.95835937 | BL194: 169719.7601 | BM194: 0.01596837688 | BN194: 0.9955552955 | BO194: 3472.632547 | BP194: 2690.478143 | BQ194: 2741.09945 | BR194: 1421.416148 | BU194: 6.018979863 | BV194: -89.71530206 | BW194: 76.80833627 | BX194: 4.38194397 | BY194: 476.33366 | BZ194: 5893.301336 | CA194: 4537.759522 | CB194: 0.1039127646 | CC194: 0.05143203105
A195: 1.185466943 | B195: 81.5 | C195: 68.749281 | D195: 1900.084446 | E195: 144.4022186 | F195: 309.1760395 | G195: 0.9780652309 | H195: 2.153918656 | I195: 3.384437766e-08 | J195: 129.5741863 | K195: 129.5741863 | L195: -1.307398634e-12 | M195: 0.06639071546 | N195: 0.06593674342 | O195: 21.19005755 | P195: 143.2202553 | Q195: 2351.105368 | R195: 44.08564294 | S195: 92.23543911 | U195: 419.682168 | V195: 146.682168 | W195: 421.2186806 | X195: 148.2186806 | Y195: 4538.172489 | Z195: 309.1760395 | AA195: 36.17603945 | AB195: 307.7621978 | AC195: 34.76219776 | AD195: 300.6170315 | AE195: 27.61703149 | AF195: 0.0005868847231 | AG195: 6.105123753e-07 | AH195: 961.2986516 | AI195: 0.1219728335 | AJ195: 9.142450018 | AK195: 254315.2436 | AO195: 2131.455594 | AQ195: 2933.509391 | AR195: 9.482763994 | AS195: 1006.389631 | AT195: 1.171730787 | AU195: 0.02627689424 | AV195: 1.848186297e-05 | AW195: 0.7078445073 | AX195: 1.577313081e-05 | AY195: 12348764.94 | AZ195: 8741005.434 | BA195: 26.09188119 | BB195: 3.608492644 | BC195: 0.0514314719 | BD195: 198.3112861 | BE195: 0.01612875077 | BF195: 977.2413979 | BG195: 1175.552684 | BH195: 1824.611182 | BI195: 0.001764172559 | BJ195: 0.1111969462 | BK195: 28.94799802 | BL195: 169798.268 | BM195: 0.01596691796 | BN195: 0.9955536102 | BO195: 3473.467663 | BP195: 2691.125163 | BQ195: 2741.758643 | BR195: 1421.397396 | BU195: 6.019097022 | BV195: -89.71354466 | BW195: 76.80697562 | BX195: 4.381500056 | BY195: 476.3770095 | BZ195: 5893.837665 | CA195: 4538.172489 | CB195: 0.1045542014 | CC195: 0.0514314719
A196: 1.185466943 | B196: 82 | C196: 69.17105573 | D196: 1900.228409 | E196: 144.4536733 | F196: 309.1820088 | G196: 0.9783569615 | H196: 2.154215359 | I196: 3.384437766e-08 | J196: 129.6128348 | K196: 129.6128348 | L196: -6.167510946e-12 | M196: 0.06639375545 | N196: 0.06593974198 | O196: 21.19084351 | P196: 143.2332866 | Q196: 2351.292432 | R196: 44.116513 | S196: 92.26630916 | U196: 419.7333871 | V196: 146.7333871 | W196: 421.2699649 | X196: 148.2699649 | Y196: 4538.585409 | Z196: 309.1820088 | AA196: 36.18200883 | AB196: 307.7678358 | AC196: 34.76783576 | AD196: 300.6508141 | AE196: 27.65081409 | AF196: 0.0005866134681 | AG196: 6.102573261e-07 | AH196: 961.255921 | AI196: 0.1219658355 | AJ196: 9.139441159 | AK196: 254432.8412 | AO196: 2131.845496 | AQ196: 2934.046011 | AR196: 9.4827696 | AS196: 1006.389743 | AT196: 1.171719794 | AU196: 0.02627710388 | AV196: 1.848199532e-05 | AW196: 0.7078440078 | AX196: 1.577339174e-05 | AY196: 12354105.81 | AZ196: 8744779.768 | BA196: 26.09526716 | BB196: 3.608989715 | BC196: 0.05143091217 | BD196: 198.3414122 | BE196: 0.01613120094 | BF196: 977.3048038 | BG196: 1175.646216 | BH196: 1824.698626 | BI196: 0.001763304245 | BJ196: 0.1111873136 | BK196: 28.9376434 | BL196: 169876.7842 | BM196: 0.01596545977 | BN196: 0.9955519264 | BO196: 3474.30239 | BP196: 2691.771881 | BQ196: 2742.41753 | BR196: 1421.378644 | BU196: 6.019214182 | BV196: -89.71178727 | BW196: 76.80561496 | BX196: 4.381056231 | BY196: 476.4203542 | BZ196: 5894.373935 | CA196: 4538.585409 | CB196: 0.1051956382 | CC196: 0.05143091217
A197: 1.185466943 | B197: 82.5 | C197: 69.59283046 | D197: 1900.372363 | E197: 144.5051277 | F197: 309.1879797 | G197: 0.9786487912 | H197: 2.154512052 | I197: 3.384437766e-08 | J197: 129.6514964 | K197: 129.6514964 | L197: -1.136868377e-12 | M197: 0.0663967965 | N197: 0.06594274157 | O197: 21.19162946 | P197: 143.2463165 | Q197: 2351.479458 | R197: 44.14739705 | S197: 92.29719321 | U197: 419.7846063 | V197: 146.7846063 | W197: 421.3212494 | X197: 148.3212494 | Y197: 4538.998282 | Z197: 309.1879797 | AA197: 36.18797972 | AB197: 307.7734752 | AC197: 34.77347517 | AD197: 300.6845976 | AE197: 27.68459763 | AF197: 0.0005863424353 | AG197: 6.100024862e-07 | AH197: 961.2131893 | AI197: 0.1219588365 | AJ197: 9.136434807 | AK197: 254550.451 | AO197: 2132.235086 | AQ197: 2934.582201 | AR197: 9.4827752 | AS197: 1006.389855 | AT197: 1.171708799 | AU197: 0.02627731357 | AV197: 1.848212771e-05 | AW197: 0.7078435082 | AX197: 1.577365274e-05 | AY197: 12359447.92 | AZ197: 8748554.973 | BA197: 26.09865291 | BB197: 3.609486769 | BC197: 0.05143035186 | BD197: 198.3715361 | BE197: 0.01613365093 | BF197: 977.3681928 | BG197: 1175.739729 | BH197: 1824.786069 | BI197: 0.001762436532 | BJ197: 0.111177681 | BK197: 28.9272955 | BL197: 169955.3086 | BM197: 0.0159640023 | BN197: 0.9955502438 | BO197: 3475.136729 | BP197: 2692.418299 | BQ197: 2743.07611 | BR197: 1421.359893 | BU197: 6.019331342 | BV197: -89.71002987 | BW197: 76.80425429 | BX197: 4.380612496 | BY197: 476.463694 | BZ197: 5894.910144 | CA197: 4538.998282 | CB197: 0.105837075 | CC197: 0.05143035186
A198: 1.185466943 | B198: 83 | C198: 70.01460519 | D198: 1900.516308 | E198: 144.5565819 | F198: 309.1939521 | G198: 0.9789407199 | H198: 2.154808736 | I198: 3.384437766e-08 | J198: 129.6901712 | K198: 129.6901712 | L198: 2.074784788e-12 | M198: 0.0663998386 | N198: 0.06594574221 | O198: 21.19241541 | P198: 143.2593449 | Q198: 2351.666445 | R198: 44.17829508 | S198: 92.32809124 | U198: 419.8358256 | V198: 146.8358256 | W198: 421.3725339 | X198: 148.3725339 | Y198: 4539.41111 | Z198: 309.1939521 | AA198: 36.19395212 | AB198: 307.779116 | AC198: 34.779116 | AD198: 300.7183821 | AE198: 27.71838212 | AF198: 0.0005860716245 | AG198: 6.097478553e-07 | AH198: 961.1704566 | AI198: 0.1219518366 | AJ198: 9.133430958 | AK198: 254668.0732 | AO198: 2132.624362 | AQ198: 2935.117959 | AR198: 9.482780794 | AS198: 1006.389967 | AT198: 1.171697801 | AU198: 0.02627752331 | AV198: 1.848226012e-05 | AW198: 0.7078430085 | AX198: 1.577391381e-05 | AY198: 12364791.27 | AZ198: 8752331.049 | BA198: 26.10203844 | BB198: 3.609983809 | BC198: 0.05142979097 | BD198: 198.4016578 | BE198: 0.01613610074 | BF198: 977.4315647 | BG198: 1175.833222 | BH198: 1824.873513 | BI198: 0.00176156942 | BJ198: 0.1111680484 | BK198: 28.91695432 | BL198: 170033.8412 | BM198: 0.01596254556 | BN198: 0.9955485626 | BO198: 3475.97068 | BP198: 2693.064416 | BQ198: 2743.734383 | BR198: 1421.341142 | BU198: 6.019448501 | BV198: -89.70827248 | BW198: 76.80289361 | BX198: 4.380168852 | BY198: 476.507029 | BZ198: 5895.446294 | CA198: 4539.41111 | CB198: 0.1064785119 | CC198: 0.05142979097
A199: 1.185466943 | B199: 83.5 | C199: 70.43637992 | D199: 1900.660245 | E199: 144.6080358 | F199: 309.199926 | G199: 0.9792327476 | H199: 2.155105411 | I199: 3.384437766e-08 | J199: 129.728859 | K199: 129.728859 | L199: -4.320099833e-12 | M199: 0.06640288176 | N199: 0.06594874389 | O199: 21.19320136 | P199: 143.2723719 | Q199: 2351.853394 | R199: 44.20920711 | S199: 92.35900327 | U199: 419.887045 | V199: 146.887045 | W199: 421.4238185 | X199: 148.4238185 | Y199: 4539.823892 | Z199: 309.199926 | AA199: 36.19992602 | AB199: 307.7847582 | AC199: 34.78475824 | AD199: 300.7521675 | AE199: 27.75216755 | AF199: 0.0005858010355 | AG199: 6.094934332e-07 | AH199: 961.1277228 | AI199: 0.1219448358 | AJ199: 9.13042961 | AK199: 254785.7076 | AO199: 2133.013325 | AQ199: 2935.653287 | AR199: 9.48278638 | AS199: 1006.390079 | AT199: 1.171686801 | AU199: 0.02627773311 | AV199: 1.848239257e-05 | AW199: 0.7078425087 | AX199: 1.577417494e-05 | AY199: 12370135.85 | AZ199: 8756107.996 | BA199: 26.10542376 | BB199: 3.610480832 | BC199: 0.05142922951 | BD199: 198.4317773 | BE199: 0.01613855038 | BF199: 977.4949197 | BG199: 1175.926697 | BH199: 1824.960957 | BI199: 0.001760702908 | BJ199: 0.1111584157 | BK199: 28.90661982 | BL199: 170112.382 | BM199: 0.01596108953 | BN199: 0.9955468827 | BO199: 3476.804244 | BP199: 2693.710233 | BQ199: 2744.392351 | BR199: 1421.322391 | BU199: 6.019565661 | BV199: -89.70651508 | BW199: 76.80153293 | BX199: 4.379725297 | BY199: 476.5503592 | BZ199: 5895.982384 | CA199: 4539.823892 | CB199: 0.1071199487 | CC199: 0.05142922951
A200: 1.185466943 | B200: 84 | C200: 70.85815465 | D200: 1900.804174 | E200: 144.6594894 | F200: 309.2059014 | G200: 0.9795248745 | H200: 2.155402077 | I200: 3.384437766e-08 | J200: 129.76756 | K200: 129.76756 | L200: -5.400124792e-12 | M200: 0.06640592598 | N200: 0.06595174661 | O200: 21.19398731 | P200: 143.2853975 | Q200: 2352.040305 | R200: 44.24013314 | S200: 92.3899293 | U200: 419.9382645 | V200: 146.9382645 | W200: 421.4751032 | X200: 148.4751032 | Y200: 4540.236627 | Z200: 309.2059014 | AA200: 36.20590144 | AB200: 307.7904019 | AC200: 34.7904019 | AD200: 300.7859539 | AE200: 27.78595392 | AF200: 0.000585530668 | AG200: 6.092392196e-07 | AH200: 961.084988 | AI200: 0.1219378341 | AJ200: 9.12743076 | AK200: 254903.3543 | AO200: 2133.401977 | AQ200: 2936.188185 | AR200: 9.482791961 | AS200: 1006.390191 | AT200: 1.171675798 | AU200: 0.02627794295 | AV200: 1.848252505e-05 | AW200: 0.7078420087 | AX200: 1.577443614e-05 | AY200: 12375481.69 | AZ200: 8759885.815 | BA200: 26.10880885 | BB200: 3.610977841 | BC200: 0.05142866746 | BD200: 198.4618946 | BE200: 0.01614099984 | BF200: 977.5582577 | BG200: 1176.020152 | BH200: 1825.048401 | BI200: 0.001759836994 | BJ200: 0.1111487831 | BK200: 28.89629201 | BL200: 170190.931 | BM200: 0.01595963422 | BN200: 0.9955452041 | BO200: 3477.63742 | BP200: 2694.35575 | BQ200: 2745.050013 | BR200: 1421.303642 | BU200: 6.019682821 | BV200: -89.70475769 | BW200: 76.80017224 | BX200: 4.379281832 | BY200: 476.5936845 | BZ200: 5896.518414 | CA200: 4540.236627 | CB200: 0.1077613855 | CC200: 0.05142866746
A201: 1.185466943 | B201: 84.5 | C201: 71.27992938 | D201: 1900.948094 | E201: 144.7109427 | F201: 309.2118784 | G201: 0.9798171005 | H201: 2.155698733 | I201: 3.384437766e-08 | J201: 129.8062742 | K201: 129.8062742 | L201: -2.586375558e-12 | M201: 0.06640897125 | N201: 0.06595475036 | O201: 21.19477325 | P201: 143.2984215 | Q201: 2352.227177 | R201: 44.27107318 | S201: 92.42086934 | U201: 419.9894842 | V201: 146.9894842 | W201: 421.5263879 | X201: 148.5263879 | Y201: 4540.649317 | Z201: 309.2118784 | AA201: 36.21187837 | AB201: 307.796047 | AC201: 34.79604698 | AD201: 300.8197412 | AE201: 27.81974124 | AF201: 0.0005852605218 | AG201: 6.089852143e-07 | AH201: 961.0422521 | AI201: 0.1219308314 | AJ201: 9.124434405 | AK201: 255021.0133 | AO201: 2133.790316 | AQ201: 2936.722654 | AR201: 9.482797534 | AS201: 1006.390304 | AT201: 1.171664793 | AU201: 0.02627815285 | AV201: 1.848265757e-05 | AW201: 0.7078415087 | AX201: 1.577469741e-05 | AY201: 12380828.76 | AZ201: 8763664.506 | BA201: 26.11219374 | BB201: 3.611474833 | BC201: 0.05142810484 | BD201: 198.4920098 | BE201: 0.01614344912 | BF201: 977.6215786 | BG201: 1176.113588 | BH201: 1825.135845 | BI201: 0.001758971678 | BJ201: 0.1111391504 | BK201: 28.88597087 | BL201: 170269.4882 | BM201: 0.01595817963 | BN201: 0.9955435268 | BO201: 3478.47021 | BP201: 2695.000967 | BQ201: 2745.707371 | BR201: 1421.284893 | BU201: 6.01979998 | BV201: -89.70300029 | BW201: 76.79881154 | BX201: 4.378838457 | BY201: 476.6370049 | BZ201: 5897.054384 | CA201: 4540.649317 | CB201: 0.1084028223 | CC201: 0.05142810484
A202: 1.185466943 | B202: 85 | C202: 71.70170411 | D202: 1901.092005 | E202: 144.7623958 | F202: 309.2178568 | G202: 0.9801094258 | H202: 2.15599538 | I202: 3.384437766e-08 | J202: 129.8450014 | K202: 129.8450014 | L202: 2.899014362e-12 | M202: 0.06641201758 | N202: 0.06595775516 | O202: 21.19555919 | P202: 143.3114441 | Q202: 2352.414011 | R202: 44.30202722 | S202: 92.45182338 | U202: 420.0407039 | V202: 147.0407039 | W202: 421.5776727 | X202: 148.5776727 | Y202: 4541.06196 | Z202: 309.2178568 | AA202: 36.21785681 | AB202: 307.8016935 | AC202: 34.80169347 | AD202: 300.8535295 | AE202: 27.8535295 | AF202: 0.0005849905966 | AG202: 6.087314171e-07 | AH202: 960.9995151 | AI202: 0.1219238278 | AJ202: 9.121440543 | AK202: 255138.6846 | AO202: 2134.178343 | AQ202: 2937.256693 | AR202: 9.482803102 | AS202: 1006.390416 | AT202: 1.171653785 | AU202: 0.0262783628 | AV202: 1.848279011e-05 | AW202: 0.7078410085 | AX202: 1.577495874e-05 | AY202: 12386177.07 | AZ202: 8767444.068 | BA202: 26.1155784 | BB202: 3.61197181 | BC202: 0.05142754164 | BD202: 198.5221228 | BE202: 0.01614589822 | BF202: 977.6848826 | BG202: 1176.207005 | BH202: 1825.22329 | BI202: 0.001758106958 | BJ202: 0.1111295176 | BK202: 28.87565638 | BL202: 170348.0536 | BM202: 0.01595672575 | BN202: 0.9955418509 | BO202: 3479.302613 | BP202: 2695.645885 | BQ202: 2746.364423 | BR202: 1421.266144 | BU202: 6.01991714 | BV202: -89.7012429 | BW202: 76.79745083 | BX202: 4.378395172 | BY202: 476.6803206 | BZ202: 5897.590294 | CA202: 4541.06196 | CB202: 0.1090442591 | CC202: 0.05142754164
A203: 1.185466943 | B203: 85.5 | C203: 72.12347884 | D203: 1901.235908 | E203: 144.8138485 | F203: 309.2238368 | G203: 0.9804018502 | H203: 2.156292018 | I203: 3.384437766e-08 | J203: 129.8837419 | K203: 129.8837419 | L203: 2.557953849e-13 | M203: 0.06641506496 | N203: 0.065960761 | O203: 21.19634514 | P203: 143.3244653 | Q203: 2352.600806 | R203: 44.33299528 | S203: 92.48279144 | U203: 420.0919237 | V203: 147.0919237 | W203: 421.6289575 | X203: 148.6289575 | Y203: 4541.474557 | Z203: 309.2238368 | AA203: 36.22383676 | AB203: 307.8073414 | AC203: 34.80734137 | AD203: 300.8873187 | AE203: 27.8873187 | AF203: 0.0005847208922 | AG203: 6.084778277e-07 | AH203: 960.956777 | AI203: 0.1219168233 | AJ203: 9.118449171 | AK203: 255256.3682 | AO203: 2134.566058 | AQ203: 2937.790304 | AR203: 9.482808662 | AS203: 1006.390528 | AT203: 1.171642774 | AU203: 0.02627857281 | AV203: 1.848292269e-05 | AW203: 0.7078405082 | AX203: 1.577522015e-05 | AY203: 12391526.62 | AZ203: 8771224.503 | BA203: 26.11896284 | BB203: 3.612468772 | BC203: 0.05142697786 | BD203: 198.5522336 | BE203: 0.01614834715 | BF203: 977.7481696 | BG203: 1176.300403 | BH203: 1825.310734 | BI203: 0.001757242833 | BJ203: 0.1111198849 | BK203: 28.86534852 | BL203: 170426.6272 | BM203: 0.0159552726 | BN203: 0.9955401763 | BO203: 3480.134631 | BP203: 2696.290504 | BQ203: 2747.02117 | BR203: 1421.247396 | BU203: 6.0200343 | BV203: -89.6994855 | BW203: 76.79609012 | BX203: 4.377951977 | BY203: 476.7236313 | BZ203: 5898.126144 | CA203: 4541.474557 | CB203: 0.109685696 | CC203: 0.05142697786
... 922 more rows

Sheet Sheet2
A2: HTF Velocity, (m/s) | B2: Loop Position, X (m) | C2: Time, t (s) | D2: Cp (htf), JKg-1 K-1 | E2: Thtf_x (°C) | F2: RHS-Qat(P1) | G2: RHS-Qat(P2) | H2: RHS-Co.eff-1 | I2: RHS-Co.eff-2 | J2: RHS- Qat | K2: LHS-Qat | L2: LHS-RHS | M2: Eat | N2: Shape Factor (at-gt) | O2: kat (W/mK)-321 SS | P2: q'sol.abs,gt (Wm-2) | Q2: q'cond,at (Wm-1) | R2: q'Lrad,at (Wm-1) | S2: q'Ltot,gt (Wm-1) | T2: Col. Eff (%) | U2: Tat,i (K) | V2: Tat,i (°C) | W2: Tat,o (K) | X2: Tat,o_x (°C) | Y2: q'sol.abs,at (Wm-2) | Z2: Tgt,i (K) | AA2: Tgt,i_x (°C) | AB2: Tgt,o (K) | AC2: Tgt,o_x (°C) | AD2: TNaS (K) | AE2: TNaS (°C) | AF2: µHTF(kgm-1s-1) | AG2: vHTF(m2s-1) | AH2: ρHTF(kgm-3) | AI2: kHTF (Wm-1K-1) | AJ2: Pr | AK2: Re | AO2: hann,o | AQ2: hann,i | AR2: Uo(NaS) (W/m2K) | AS2: cp,air(Jkg-1K-1) | AT2: ρair(kgm-3) | AU2: kair (Wm-1K-1) | AV2: µair(kgm-1s-1) | AW2: Pr(air) | AX2: γ(m2/s) | AY2: Gr | AZ2: Ra | BA2: Nufree-conv | BB2: hfree-conv | BC2: (∂Thtf/∂x'|t')_i | BD2: QNaS (W) | BE2: (∂Tssc/∂t'|x')_i | BF2: Qu_htf (W) | BG2: Qu,tot (W) | BH2: Cpw, JKg-1 K-1 | BI2: µw(kgm-1s-1) | BJ2: kw (Wm-1K-1) | BK2: Prw | BL2: Re* | BM2: fann | BN2: k1 | BO2: Nu (V. Gnielinski) | BP2: Nuo | BQ2: Nui | BR2: Cp(Na) | BS2: Cp(S) | BT2: Cycle # | BU2: Time (hr) | BV2: Hour Angle | BW2: Zenith Angle | BX2: Air mass | BY2: DNI (W/m2) | BZ2: Conc. DNI (W/m2) | CA2: qsol.abs,at (W/m2) | CB2: Thtf_x Start-up (°C) | CC2: TNaS (°C) | CD2: Time (mins) | CE2: Optical Eff. (%) | CJ2: Cycle Time (s)
A3: 1.185466943 | B3: 0 | C3: 0 | D3: 1553.6844 | E3: 22 | F3: 303.62464 | G3: 0.6619239844 | H3: 0.850229166 | I3: 3.384437766e-08 | J3: 87.6917602 | K3: 87.69176016 | L3: 3.82530061e-08 | M3: 0.0620968 | N3: 0.06169947585 | O3: 19.2885 | P3: 141.0765476 | Q3: 2355.85721 | R3: 3.482801485 | S3: 51.63259765 | T3: 76.8849365 | U3: 297.7706036 | V3: 24.77060356 | W3: 299.4620049 | X3: 26.46200495 | Y3: 4470.24554 | Z3: 280.1049148 | AA3: 7.104914817 | AB3: 279.013737 | AC3: 6.013737036 | AD3: 295 | AE3: 22 | AF3: 0.00428187162 | AG3: 4.025724672e-06 | AH3: 1063.627538 | AI3: 0.1358473631 | AJ3: 48.97170611 | AK3: 34857.12431 | AO3: 216.0714546 | AQ3: 297.3778309 | AR3: 9.218601597 | AS3: 1006.152264 | AT3: 1.19714898 | AU3: 0.02580034786 | AV3: 1.818076594e-05 | AW3: 0.7090066733 | AX3: 1.518671965e-05 | AY3: 2966887.626 | AZ3: 385649.573 | BA3: 10.48963954 | BB3: 1.424401837 | BC3: 0.07581517874 | BD3: 0 | BE3: 0 | BF3: 1177.928605 | BG3: 1177.928605 | BH3: 1611.837946 | BI3: 0.009522838022 | BJ3: 0.1346334625 | BK3: 114.0078506 | BL3: 23273.00264 | BM3: 0.02471952419 | BN3: 1.01794641 | BO3: 316.1522426 | BP3: 244.9440553 | BQ3: 249.5526741 | BR3: 1424.529942 | BT3: 0 | BU3: 6 | BV3: -90 | BW3: 77.02866465 | BX3: 4.455066191 | BY3: 469.2466422 | BZ3: 5805.619245 | CA3: 4470.24554 | CB3: 22 | CC3: 22 | CD3: =0 -> 0 | CE3: =100*Q3/CF3 -> 76.8849365 | CF3: =BZ3*PI()*0.168 -> 3064.133649 | CJ3: 10.9591134
A4: 1.185466943 | B4: 0.5 | C4: 0.4217747301 | D4: 1553.884174 | E4: 22.07581518 | F4: 303.6589648 | G4: 0.661920046 | H4: 0.8303513484 | I4: 3.384437766e-08 | J4: 87.69123843 | K4: 87.69123841 | L4: 2.475422889e-08 | M4: 0.06214004754 | N4: 0.06174217154 | O4: 19.32321432 | P4: 141.0898188 | Q4: 2356.087598 | R4: 3.474358157 | S4: 51.62415432 | T4: 76.89245535 | U4: 297.8466897 | V4: 24.84668969 | W4: 299.5352176 | X4: 26.53521757 | Y4: 4470.666058 | Z4: 280.2611031 | AA4: 7.26110312 | AB4: 279.1698889 | AC4: 6.169888896 | AD4: 295 | AE4: 22 | AF4: 0.004272129841 | AG4: 4.016816756e-06 | AH4: 1063.561049 | AI4: 0.1358405105 | AJ4: 48.86903712 | AK4: 34936.60935 | AO4: 216.944974 | AQ4: 298.5800504 | AR4: 9.219752394 | AS4: 1005.900443 | AT4: 1.230602968 | AU4: 0.02519715212 | AV4: 1.779893694e-05 | AW4: 0.7105548463 | AX4: 1.446359012e-05 | AY4: 277818346.9 | AZ4: 385649.573 | BA4: 10.48963954 | BB4: 1.391100227 | BC4: 0.07580478961 | BD4: 0.1251699704 | BE4: 1.018013294e-05 | BF4: 1177.918629 | BG4: 1178.043799 | BH4: 1616.56794 | BI4: 0.009046250975 | BJ4: 0.1341125106 | BK4: 109.0418727 | BL4: 23326.07229 | BM4: 0.02470568968 | BN4: 1.018036406 | BO4: 317.446375 | BP4: 245.9467053 | BQ4: 250.574189 | BR4: 1424.529942 | BT4: =((BU4-$BU$3)*60)/$CJ$3 -> 0.0006414368185 | BU4: 6.00011716 | BV4: -89.99824261 | BW4: 77.0273052 | BX4: 4.454607333 | BY4: 469.2907845 | BZ4: 5806.165382 | CA4: 4470.666058 | CB4: 22.07581518 | CC4: 22 | CD4: =(BU4-$BU$3)*60 -> 0.007029578834 | CE4: =100*Q4/CF4 -> 76.88522272 | CF4: =BZ4*PI()*0.168 -> 3064.421893
A5: 1.185466943 | B5: 1 | C5: 0.8435494601 | D5: 1554.083968 | E5: 22.15161997 | F5: 303.65971 | G5: 0.6619564228 | H5: 0.8305465905 | I5: 3.384437766e-08 | J5: 87.69605768 | K5: 87.69605761 | L5: 6.308572154e-08 | M5: 0.06214082355 | N5: 0.06174293764 | O5: 19.32435431 | P5: 141.1030884 | Q5: 2356.312619 | R5: 3.47125668 | S5: 51.62105284 | T5: 76.89979904 | U5: 297.9227591 | V5: 24.92275911 | W5: 299.6113486 | X5: 26.61134864 | Y5: 4471.086528 | Z5: 280.3733422 | AA5: 7.373342164 | AB5: 279.2820512 | AC5: 6.282051187 | AD5: 295.0000102 | AE5: 22.00001018 | AF5: 0.004262422049 | AG5: 4.007939622e-06 | AH5: 1063.494576 | AI5: 0.1358336566 | AJ5: 48.76671904 | AK5: 35016.17851 | AO5: 217.8225827 | AQ5: 299.7878979 | AR5: 9.220899569 | AS5: 1005.902657 | AT5: 1.230267154 | AU5: 0.02520307678 | AV5: 1.780269128e-05 | AW5: 0.7105392179 | AX5: 1.447058976e-05 | AY5: 277901477.1 | AZ5: 385649.573 | BA5: 10.48963954 | BB5: 1.39142732 | BC5: 0.0757942297 | BD5: 0.2503371256 | BE5: 2.036003693e-05 | BF5: 1177.905972 | BG5: 1178.156309 | BH5: 1616.697835 | BI5: 0.009033705853 | BJ5: 0.1340982042 | BK5: 108.9110237 | BL5: 23379.19811 | BM5: 0.02469188361 | BN5: 1.017976369 | BO5: 318.7466249 | BP5: 246.954095 | BQ5: 251.6005326 | BR5: 1424.529936 | BT5: 0.001282873637 | BU5: 6.000234319 | BV5: -89.99648521 | BW5: 77.02594573 | BX5: 4.454148569 | BY5: 469.3349217 | BZ5: 5806.711458 | CA5: 4471.086528 | CB5: 22.15162802 | CC5: 22.00001018 | CD5: =(BU5-$BU$3)*60 -> 0.01405915767 | CE5: 76.88533458 | CF5: 3064.710105
A6: 1.185466943 | B6: 1.5 | C6: 1.26532419 | D6: 1554.283781 | E6: 22.2274142 | F6: 303.6605715 | G6: 0.6619934935 | H6: 0.8306868178 | I6: 3.384437766e-08 | J6: 87.70096875 | K6: 87.70096875 | L6: -3.694822226e-13 | M6: 0.06214163278 | N6: 0.06174373654 | O6: 19.32551654 | P6: 141.1163566 | Q6: 2356.537522 | R6: 3.468248015 | S6: 51.61804418 | T6: 76.9071389 | U6: 297.9988178 | V6: 24.99881784 | W6: 299.687467 | X6: 26.68746697 | Y6: 4471.506952 | Z6: 280.4849435 | AA6: 7.484943491 | AB6: 279.3935751 | AC6: 6.393575073 | AD6: 295.0000305 | AE6: 22.00003054 | AF6: 0.004252748112 | AG6: 3.999093154e-06 | AH6: 1063.42812 | AI6: 0.1358268016 | AJ6: 48.66475053 | AK6: 35095.83154 | AO6: 218.7023268 | AQ6: 300.9986843 | AR6: 9.222040578 | AS6: 1005.904251 | AT6: 1.230026055 | AU6: 0.025207332 | AV6: 1.780538768e-05 | AW6: 0.7105279985 | AX6: 1.44756183e-05 | AY6: 277961160.8 | AZ6: 385649.573 | BA6: 10.48963954 | BB6: 1.391662244 | BC6: 0.075783668 | BD6: 0.3755009204 | BE6: 3.053966761e-05 | BF6: 1177.89326 | BG6: 1178.268761 | BH6: 1616.827701 | BI6: 0.009021191269 | BJ6: 0.134083901 | BK6: 108.7804862 | BL6: 23432.37993 | BM6: 0.02467810591 | BN6: 1.01791696 | BO6: 320.0501339 | BP6: 247.9640096 | BQ6: 252.6294488 | BR6: 1424.529924 | BT6: 0.001924310455 | BU6: 6.000351479 | BV6: -89.99472782 | BW6: 77.02458626 | BX6: 4.453689899 | BY6: 469.3790541 | BZ6: 5807.257472 | CA6: 4471.506952 | CB6: 22.22743836 | CC6: 22.00003054 | CD6: 0.0210887365 | CE6: 76.88544339 | CF6: 3064.998285
A7: 1.185466943 | B7: 2 | C7: 1.68709892 | D7: 1554.483613 | E7: 22.30319787 | F7: 303.6614588 | G7: 0.6620313827 | H7: 0.8308262359 | I7: 3.384437766e-08 | J7: 87.70598831 | K7: 87.70598831 | L7: -2.131628207e-13 | M7: 0.06214244418 | N7: 0.06174453758 | O7: 19.32667859 | P7: 141.1296232 | Q7: 2356.762291 | R7: 3.465348663 | S7: 51.61514483 | T7: 76.91447438 | U7: 298.0748658 | V7: 25.07486585 | W7: 299.7635745 | X7: 26.7635745 | Y7: 4471.927329 | Z7: 280.5958001 | AA7: 7.595800054 | AB7: 279.5043534 | AC7: 6.50435338 | AD7: 295.0000611 | AE7: 22.00006108 | AF7: 0.004243107879 | AG7: 3.990277213e-06 | AH7: 1063.36168 | AI7: 0.1358199453 | AJ7: 48.56313005 | AK7: 35175.56838 | AO7: 219.584211 | AQ7: 302.2124161 | AR7: 9.223175467 | AS7: 1005.905837 | AT7: 1.229786422 | AU7: 0.02521156266 | AV7: 1.780806848e-05 | AW7: 0.710516848 | AX7: 1.448061888e-05 | AY7: 278020481.7 | AZ7: 385649.573 | BA7: 10.48963954 | BB7: 1.391895814 | BC7: 0.07577310398 | BD7: 0.500661091 | BE7: 4.071900353e-05 | BF7: 1177.880484 | BG7: 1178.381145 | BH7: 1616.957549 | BI7: 0.009008706127 | BJ7: 0.1340695997 | BK7: 108.6502489 | BL7: 23485.6177 | BM7: 0.02466435652 | BN7: 1.01785776 | BO7: 321.3569094 | BP7: 248.976455 | BQ7: 253.6609433 | BR7: 1424.529907 | BT7: 0.002565747274 | BU7: 6.000468639 | BV7: -89.99297042 | BW7: 77.02322679 | BX7: 4.453231324 | BY7: 469.4231815 | BZ7: 5807.803426 | CA7: 4471.927329 | CB7: 22.30324618 | CC7: 22.00006108 | CD7: 0.02811831534 | CE7: 76.88554862 | CF7: 3065.286433
A8: 1.185466943 | B8: 2.5 | C8: 2.10887365 | D8: 1554.683464 | E8: 22.37897097 | F8: 303.6623718 | G8: 0.6620700841 | H8: 0.8309647111 | I8: 3.384437766e-08 | J8: 87.71111548 | K8: 87.71111548 | L8: 3.510081115e-12 | M8: 0.06214325778 | N8: 0.0617453408 | O8: 19.32784047 | P8: 141.1428884 | Q8: 2356.986926 | R8: 3.46255781 | S8: 51.61235397 | T8: 76.92180551 | U8: 298.1509031 | V8: 25.15090313 | W8: 299.8396712 | X8: 26.83967122 | Y8: 4472.347658 | Z8: 280.7059194 | AA8: 7.705919391 | AB8: 279.6143937 | AC8: 6.614393654 | AD8: 295.0001018 | AE8: 22.0001018 | AF8: 0.004233501199 | AG8: 3.981491664e-06 | AH8: 1063.295256 | AI8: 0.1358130877 | AJ8: 48.46185606 | AK8: 35255.38894 | AO8: 220.4682345 | AQ8: 303.4290924 | AR8: 9.224304274 | AS8: 1005.907416 | AT8: 1.229548484 | AU8: 0.02521576472 | AV8: 1.781073111e-05 | AW8: 0.7105057773 | AX8: 1.448558666e-05 | AY8: 278079383.2 | AZ8: 385649.573 | BA8: 10.48963954 | BB8: 1.392127803 | BC8: 0.07576253772 | BD8: 0.6258173749 | BE8: 5.089802334e-05 | BF8: 1177.867646 | BG8: 1178.493463 | BH8: 1617.087379 | BI8: 0.008996250328 | BJ8: 0.1340553005 | BK8: 108.5203107 | BL8: 23538.91137 | BM8: 0.02465063533 | BN8: 1.01779877 | BO8: 322.6669509 | BP8: 249.9914308 | BQ8: 254.6950159 | BR8: 1424.529885 | BT8: 0.003207184092 | BU8: 6.000585798 | BV8: -89.99121303 | BW8: 77.0218673 | BX8: 4.452772843 | BY8: 469.467304 | BZ8: 5808.349318 | CA8: 4472.347658 | CB8: 22.37905149 | CC8: 22.0001018 | CD8: 0.03514789417 | CE8: 76.88565028 | CF8: 3065.574548
A9: 1.185466943 | B9: 3 | C9: 2.53064838 | D9: 1554.883334 | E9: 22.45473351 | F9: 303.6633105 | G9: 0.6621095922 | H9: 0.8311022531 | I9: 3.384437766e-08 | J9: 87.71634951 | K9: 87.71634951 | L9: -4.476419235e-12 | M9: 0.06214407359 | N9: 0.06174614619 | O9: 19.3290022 | P9: 141.1561521 | Q9: 2357.211429 | R9: 3.459874697 | S9: 51.60967086 | T9: 76.92913231 | U9: 298.2269297 | V9: 25.2269297 | W9: 299.9157571 | X9: 26.91575713 | Y9: 4472.767941 | Z9: 280.8153087 | AA9: 7.815308666 | AB9: 279.7237031 | AC9: 6.723703064 | AD9: 295.0001527 | AE9: 22.0001527 | AF9: 0.00422392792 | AG9: 3.972736372e-06 | AH9: 1063.228849 | AI9: 0.1358062289 | AJ9: 48.36092703 | AK9: 35335.29316 | AO9: 221.3543968 | AQ9: 304.6487121 | AR9: 9.225427037 | AS9: 1005.908987 | AT9: 1.229312222 | AU9: 0.02521993845 | AV9: 1.781337575e-05 | AW9: 0.7104947853 | AX9: 1.449052197e-05 | AY9: 278137869.8 | AZ9: 385649.573 | BA9: 10.48963954 | BB9: 1.39235823 | BC9: 0.07575196925 | BD9: 0.750969512 | BE9: 6.10767059e-05 | BF9: 1177.854745 | BG9: 1178.605715 | BH9: 1617.217191 | BI9: 0.008983823768 | BJ9: 0.1340410033 | BK9: 108.3906706 | BL9: 23592.2609 | BM9: 0.02463694228 | BN9: 1.017739989 | BO9: 323.9802579 | BP9: 251.0089366 | BQ9: 255.731666 | BR9: 1424.529856 | BT9: 0.003848620911 | BU9: 6.000702958 | BV9: -89.98945563 | BW9: 77.02050781 | BX9: 4.452314457 | BY9: 469.5114215 | BZ9: 5808.89515 | CA9: 4472.767941 | CB9: 22.45485427 | CC9: 22.0001527 | CD9: 0.04217747301 | CE9: 76.88574841 | CF9: 3065.862631
